Workbook

Sheet PICANet Annual Report 2015

Sheet Key
A2: KEY
A4: A | C4: Cambridge University Hospitals NHS Foundation Trust
A5: B * | C5: Brighton & Sussex University Hospitals NHS Trust
A6: C | C6: Cardiff & Vale NHS Trust
A7: D | C7: Central Manchester & Manchester Children's University Hospitals NHS Trust
A8: E | C8: Great Ormond Street Hospital for Children NHS Trust
B9: E1 | C9: PICU/NICU
B10: E2 | C10: CCCU
A11: F | C11: Guy’s & St. Thomas’ NHS Foundation Trust | G11: (Organisation F includes data on journeys carried out by STRS)
A12: G | C12: Hull & East Yorkshire Hospitals NHS Trust
A13: H | C13: King’s College Hospital NHS Trust
A14: I | C14: Leeds Teaching Hospitals NHS Trust
A15: K | C15: The Newcastle upon Tyne Hospitals NHS Foundation Trust
B16: K1/K3 | C16: Great North Children’s Hospital
B17: K2 | C17: Newcastle Freeman Hospital
A18: L | C18: University Hospitals of North Midlands NHS Trust
A19: M | C19: Nottingham University Hospitals NHS Trust
A20: N | C20: Oxford University Hospitals NHS Trust
A21: O | C21: Royal Brompton & Harefield NHS Foundation Trust
A22: P | C22: Alder Hey Children’s NHS Foundation Trust
A23: Q | C23: Sheffield Children’s NHS Foundation Trust
A24: R | C24: University Hospitals Southampton NHS Foundation Trust
A25: S | C25: South Tees Hospitals NHS Trust
A26: T | C26: St. George’s Healthcare NHS Trust
A27: U | C27: Imperial College Healthcare NHS Trust (SMH)
A28: V | C28: Birmingham Children’s Hospital NHS Trust
A29: W | C29: University Hospitals Bristol NHS Foundation Trust
A30: X | C30: University Hospitals of Leicester NHS Trust
B31: X1 | C31: Leicester Glenfield Hospital
B32: X2 | C32: Leicester Royal Infirmary
A33: Y | C33: NHS Lothian – University Hospitals Division
A34: Z | C34: Barts Health NHS Trust
A35: ZA | C35: NHS Greater Glasgow and Clyde – Women and Children’s Division
A36: ZB | C36: Belfast Health and Social Care Trust
A37: ZC | C37: Our Lady’s Hospital for Sick Children, Dublin
A38: ZD | C38: The Children’s University Hospital, Dublin
A39: ZE | C39: Harley Street Clinic (non- NHS)
A40: ZF | C40: The Portland Hospital for Women and Children (non-NHS)
A41: CATS | C41: Children's Acute Transport Service
A42: Embrace | C42: Yorkshire & Humber Infant & Children's Service
A43: KIDS | C43: Kids Intensive Care & Decision Support
A44: NWTS | C44: North West and North Wales P.T.S
A45: SORT | C45: Southampton and Oxford Retrieval team
A46: STRS | C46: South Thames Retrieval Service (Journeys carried out presented as Organisation F)
A48: * Brighton is no longer designated as a PICU and so will not be included in future annual reports
A51: Published in the UK by the Paediatric Intensive Care Audit Network (PICANet). This work is copyright.
A52: Apart from any use as permitted under the Copyright, Designs and Patents Act 1988, no part may
A53: be reproduced by any process without permission from PICANet.
A54: Requests and enquiries concerning reproduction rights should be directed to PICANet at:
A56: PICANet
A57: School of Medicine
A58: Room 8.49, Worsley Building
A59: University Of Leeds
A60: Leeds, LS2 9JT
A61: Telephone: 0113 343 8125
A62: E-mail: picanet@leeds.ac.uk
A64: In all cases PICANet must be acknowledged as the source when reproducing or quoting any part of this publication.
A65: Please use the following format when citing this report:
A66: Paediatric Intensive Care Audit Network Annual Report 2012 - 2014 (published November 2015): Universities of Leeds and Leicester.

Sheet Index
A2: INDEX
E3: PRINTED PAGE NUMBER
A5: DATA DESCRIPTION | E5: 2
A7: ADMISSION DATA | E7: 3
B8: INDEX TO ADMISSION DATA | E8: 4
A10: RETRIEVAL & TRANSPORT DATA | E10: 32
B11: INDEX TO RETRIEVAL & TRANSPORT | E11: 33
A13: INTERVENTION DATA | E13: 39
B14: INDEX TO INTERVENTION DATA | E14: 40
A16: BED ACTIVITY AND LENGTH OF STAY | E16: 46
B17: INDEX TO BED ACTIVITY & LOS | E17: 47
A19: OUTCOME DATA | E19: 57
B20: INDEX TO OUTCOME DATA | E20: 58
B21: INDEX TO SMR TABLES | E21: 69
A23: 30 DAY FOLLOW-UP | E23: 76
B24: INDEX TO FOLLOW-UP TABLES | E24: 77
A26: DATA ON INDIVIDUAL CHILDREN | E26: 83
B27: INDEX TO DATA ON INDIVIDUAL CHILDREN | E27: 84
A29: PREVALENCE FOR ADMISSION | E29: 89
B30: INDEX TO PREVALENCE | E30: 90
A32: CHILDREN IN ADULT ICUs | E32: 96
B33: INDEX TO CHILDREN IN ADULT ICUs | E33: 97
A35: PCCMDS DATA | E35: 104
B36: INDEX TO PCCMDS | E36: 105
A38: DATA QUALITY | E38: 110
B39: INDEX TO DATA QUALITY | E39: 111
A41: REFERRAL AND TRANSPORT DATA | E41: 123
B42: INDEX TO REFERRAL AND TRANSPORT | E42: 124
A44: STAFFING DATA | E44: 136
B45: INDEX TO STAFFING DATA | E45: 137

Sheet Data Description
A2: DESCRIPTION OF TABLES AND FIGURES
A4: A brief description of the data contained in the tables and figures is given before each section.
A6: All data is downloadable for use by individuals and organisations but please acknowledge the source of this data as indicated at the bottom of the key to organisations at the beginning of this report.
A8: The PICANet dataset is dynamic and updated regularly. This means that overall admission figures have changed for 2012 and 2013 since the publication of the last national report. The data in this report are those supplied to PICANet up to 11 May 2015 when the dataset was frozen.
A10: In mid-2014 some updates were made to the PICANet data collection forms; to make the collection of transport team type more comparable, to allow collection of variables relevant for PIM3 and to include two new daily data items (unplanned extubations and high flow oxygen), data are presented using the data format of the previous form and where transformation of variables has occurred this is mentioned in the footnotes.
A12: DATASET DEFINITIONS FOR THIS REPORT
A14: 1) This report covers the three year period January 2012 - December 2014.
A16: 2) There are 33 participating organisations (located in England, Wales, Scotland, Northern Ireland and The Republic of Ireland), 32 of whom collected data for the entire reporting period. The Portland Hospital for Women and Children, a non-NHS PICU, started submitting data in October 2013. Throughout these tables the term Health Organisation refers to governing bodies such as Health Boards, NHS Trusts or non-NHS providers.
A18: 3) Health Organisations are identified in this report, with agreement from all their Chief Executives.
A20: 4) A key enabling identification of each Health Organisation can be found at the beginning of the report.
A22: 5) The main focus of this report are admissions aged 0-15 years of which there were a total of 59,642 over the three year period. In addition there were 1,430 admissions aged 16 years and above.
A24: 6) Unless stated otherwise, the proportions in tables throughout the report are row percentages, except in the total column where they are column percentages.
A26: 7) The term unknown includes cases where the unit have specifically recorded not known and also cases where a required value has been left blank.

Sheet Admission Data
A2: ADMISSION DATA
A4: ADMISSION NUMBERS BY AGE, SEX, MONTH AND YEAR OF ADMISSION, ORGANISATION AND DIAGNOSTIC GROUP
A6: Tables 1 – 9 give numbers of admissions by age, sex, month of admission, organisation and diagnostic group. The primary diagnosis for the whole admission has been categorised into 13 diagnostic groups to enable a simple comparison between organisations. The classification is based on CT3 (The Read Codes). Within these mutually exclusive thirteen groups:
A8: - Infection excludes any respiratory or gastrointestinal infection but includes meningitis
A9: - Neurological disorders include neurovascular complications
A10: - Oncology includes neuro-oncology (brain tumours)
A11: - Other includes those diagnoses not covered by the other 12 groups.
A13: Read codes are five characters in length and can be made up of numbers, letters, or periods. The ordering of the individual characters does not indicate the hierarchy (e.g. patent ductus arteriosus (P70) is a subset of congenital abnormality of ductus arteriosus (Xa6aC)). Table 8 and Figure 8 focus on admissions for respiratory conditions by year and month.
A15: ADMISSIONS BY COUNTRY/NHS COMMISSIONING REGION (NHSCR)
A17: Table 10 gives numbers of admissions by Clinical Commissioning Group (CCG) /NHS Commissioning Region (NHSCR). These were obtained by linking the validated home address of children admitted to PICU to CCG/NHSCR via the National Statistics Postcode Directory (NSPD) (http://www.statistics.gov.uk/geography/nspd.asp).These tables present column percentages. Of the total number of admissions 88.6% had addresses which were validated. The remaining 11.4% included Irish addresses (7.8%), foreign addresses (3.2%) and missing addresses (0.4%). Figure 10 shows the Health Geography of England, with 4 NHS Commisioning Regions (NHSCRs) and more than 200 Clinical Commissioning Groups (CCGs) (not shown), which replaced the old structure of SHAs and PCTs in April 2013, the health geography of the other nations remain unchanged. Children in the Republic of Ireland were identified by a text search of address fields. Note that numbers of admissions from Ireland are separate to other non-UK addresses, although some Irish admissions may be classed as missing due to the anonymisation process for personal data. For the Republic of Ireland, County is the only available geographical breakdown.
A19: ADMISSIONS BY MORTALITY RISK CATEGORY
A21: Table 11 gives numbers of admissions by predicted mortality risk group by organisation. The expected probability of mortality was estimated using a recalibrated Paediatric Index of Mortality 2r (PIM2r (2015)). The categorization into <1%, 1-<5%, 5%-<15%, 15-<30% and 30% plus expected probability of mortality reflects those used by the Australian and New Zealand Intensive Care Society (ANZPICS)(2) for comparability.
A23: ADMISSIONS BY ADMISSION TYPE
A25: Tables 12 – 15 present numbers by admission type overall and by organisation and year and a breakdown of the source of admission and care area admitted from by organisation and year for emergency admissions (see below).
A27: We have used the following definitions for type of admission:
A28: An admission that is planned - following surgery, is one that the unit is aware of before the surgery begins, or one that could have been delayed for 24 hours without risk (e.g. spinal surgery).
A29: An admission that is unplanned - following surgery, is one that the unit was not aware of before surgery began and one that could not have been delayed without risk (e.g. bleeding tonsillectomy).
A30: A planned - other admission is any other planned admission that is not an emergency (e.g. liver biopsy).
A31: An unplanned - other admission is one that the unit was not expecting and is therefore an emergency admission (e.g. status epilepticus).
A33: NB: Surgery is defined as undergoing all or part of a procedure or anaesthesia for a procedure in an operating theatre or anaesthetic room. Patients admitted from the operating theatre where surgery is not the main reason for admission (e.g. a patient with a head injury who is admitted from theatre after insertion of an ICP monitor) are not included here. In such patients the main reason for admission is head injury and thus the admission type would be unplanned - other.
A35: ADMISSIONS BY PRIMARY DIAGNOSTIC GROUP
A37: Tables 16 – 22 present a breakdown of admissions by diagnostic group, overall, by organisation and year and further by organisation and year for each of the admission types listed above.
A39: Tables 23 – 25 have been removed from the report following a critical appraisal of the utility and accessibility of all tables and figures.
A41: Some organisations have chosen to code diagnoses in more detail to allow them to use this information locally, others have coded a single diagnosis at a general level. For most reporting purposes, the broad diagnostic groups used in this report are sufficient. Further disaggregation is not always possible due to the variation in coding practice between individual organisations.
A43: REFERENCES
A45: 1) Shann F, Slater A, Pearson G. PIM 2: a revised version of the Paediatric Index of mortality. Intensive Care Med 2003; 29:278-285.
A47: 2) Australian and New Zealand Intensive Care Society. Report of the Australian and New Zealand Paediatric Intensive Care Registry 2007. ISBN: 1 876980 69 9 [Online] [Accessed 19/06/2009] Available from the World Wide Web at http://www.anzics.com.au/uploads/2007ANZPICRAnnualReport.pdf

Sheet Index to Admission Data
A2: INDEX TO ADMISSION DATA
A4: TABLE 1 ADMISSIONS BY AGE AND SEX, 2012 - 2014
A5: FIGURE 1 ADMISSIONS BY AGE AND SEX, 2012 - 2014
A7: TABLE 2 ADMISSIONS BY AGE (<1 YEAR) AND SEX, 2012 - 2014
A8: FIGURE 2 ADMISSIONS BY AGE (<1 YEAR) AND SEX, 2012 - 2014
A10: TABLE 3 ADMISSIONS BY AGE, BY HEALTH ORGANISATION, 2012 - 2014
A12: TABLE 4 ADMISSIONS BY AGE (<1) BY HEALTH ORGANISATION, 2012 - 2014
A14: TABLE 5 ADMISSIONS BY AGE (16+) BY HEALTH ORGANISATION, 2012 - 2014
A16: TABLE 6 ADMISSIONS BY MONTH AND AGE, 2012 - 2014
A17: FIGURE 6 ADMISSIONS BY MONTH AND AGE, 2012 - 2014
A19: TABLE 7 ADMISSIONS BY MONTH AND PRIMARY DIAGNOSTIC GROUP, 2012 - 2014
A20: FIGURE 7 ADMISSIONS BY MONTH AND PRIMARY DIAGNOSTIC GROUP, 2012 - 2014
A22: TABLE 8 RESPIRATORY ADMISSIONS BY MONTH AND AGE, 2012 - 2014
A23: FIGURE 8 RESPIRATORY ADMISSIONS BY MONTH AND AGE, 2012 - 2014
A25: TABLE 9 ADMISSIONS BY MONTH, BY HEALTH ORGANISATION, 2012 - 2014
A27: TABLE 10 ADMISSIONS BY COUNTRY / NHS COMMISSIONING REGION (NHSCR) AND YEAR, 2012 - 2014
A29: FIGURE 10 MAP SHOWING NHS AREA TEAM / HEALTH ORGANISATION / COUNTY BOUNDARIES
A31: TABLE 11 ADMISSIONS BY PREDICTED MORTALITY RISK GROUP, BY HEALTH ORGANISATION, 2012 - 2014
A33: TABLE 12 ADMISSIONS BY ADMISSION TYPE AND AGE, 2012 - 2014
A34: FIGURE 12 ADMISSIONS BY ADMISSION TYPE AND AGE, 2012 - 2014
A36: TABLE 13 ADMISSIONS BY ADMISSION TYPE, BY HEALTH ORGANISATION, 2012 - 2014
A37: FIGURE 13 ADMISSIONS BY ADMISSION TYPE, BY HEALTH ORGANISATION, 2012 - 2014
A39: TABLE 14 ADMISSIONS BY SOURCE OF ADMISSION (ADMISSION TYPE UNPLANNED - OTHER), BY HEALTH ORGANISATION, 2012 - 2014
A40: FIGURE 14 ADMISSIONS BY SOURCE OF ADMISSION (ADMISSION TYPE UNPLANNED - OTHER), BY HEALTH ORGANISATION, 2012 - 2014
A42: TABLE 15 ADMISSIONS BY CARE AREA ADMITTED FROM (ADMISSION TYPE UNPLANNED-OTHER; ADMITTED FROM HOSPITAL), BY HEALTH ORGANISATION, 2012 - 2014
A43: FIGURE 15 ADMISSIONS BY CARE AREA ADMITTED FROM (ADMISSION TYPE UNPLANNED -OTHER; ADMITTED FROM HOSPITAL), BY HEALTH ORGANISATION, 2012 - 2014
A45: TABLE 16 ADMISSIONS BY PRIMARY DIAGNOSTIC GROUP AND AGE, 2012 - 2014
A46: FIGURE 16 ADMISSIONS BY PRIMARY DIAGNOSTIC GROUP, 2012 - 2014
A48: TABLE 17 ADMISSIONS BY PRIMARY DIAGNOSTIC GROUP AND AGE (16+), 2012 - 2014
A49: FIGURE 17 ADMISSIONS BY PRIMARY DIAGNOSTIC GROUP AND AGE (16+), 2012 - 2014
A51: TABLE 18 ADMISSIONS BY PRIMARY DIAGNOSTIC GROUP BY HEALTH ORGANISATION, 2012 - 2014
A53: TABLE 19 ADMISSIONS BY PRIMARY DIAGNOSTIC GROUP (PLANNED - FOLLOWING SURGERY), BY HEALTH ORGANISATION, 2012 - 2014
A55: TABLE 20 ADMISSIONS BY PRIMARY DIAGNOSTIC GROUP (UNPLANNED - FOLLOWING SURGERY), BY HEALTH ORGANISATION, 2012 - 2014
A57: TABLE 21 ADMISSIONS BY PRIMARY DIAGNOSTIC GROUP (PLANNED - OTHER), BY HEALTH ORGANISATION, 2012 - 2014
A59: TABLE 22 ADMISSIONS BY PRIMARY DIAGNOSTIC GROUP (UNPLANNED - OTHER), BY HEALTH ORGANISATION, 2012 - 2014

Sheet 1
A1: TABLE 1 ADMISSIONS BY AGE AND SEX, 2012 - 2014
B3: SEX
A4: Age Years | B4: Male | D4: Female | F4: Ambiguous | H4: Unknown | J4: Total
B5: n | C5: (%) | D5: n | E5: (%) | F5: n | G5: (%) | H5: n | I5: (%) | J5: n | K5: (%)
A6: 0 | B6: 16398 | C6: (58.7) | D6: 11545 | E6: (41.3) | F6: 6 | G6: (0.0) | H6: 0 | I6: (0.0) | J6: 27949 | K6: (46.9)
A7: 1 | B7: 3856 | C7: (57.6) | D7: 2844 | E7: (42.4) | F7: 0 | G7: (0.0) | H7: 0 | I7: (0.0) | J7: 6700 | K7: (11.2)
A8: 2 | B8: 2141 | C8: (56.4) | D8: 1654 | E8: (43.6) | F8: 0 | G8: (0.0) | H8: 0 | I8: (0.0) | J8: 3795 | K8: (6.4)
A9: 3 | B9: 1718 | C9: (56.1) | D9: 1340 | E9: (43.8) | F9: 2 | G9: (0.1) | H9: 0 | I9: (0.0) | J9: 3060 | K9: (5.1)
A10: 4 | B10: 1356 | C10: (55.0) | D10: 1111 | E10: (45.0) | F10: 0 | G10: (0.0) | H10: 0 | I10: (0.0) | J10: 2467 | K10: (4.1)
A11: 5 | B11: 1083 | C11: (56.5) | D11: 833 | E11: (43.5) | F11: 0 | G11: (0.0) | H11: 0 | I11: (0.0) | J11: 1916 | K11: (3.2)
A12: 6 | B12: 915 | C12: (57.0) | D12: 690 | E12: (43.0) | F12: 0 | G12: (0.0) | H12: 0 | I12: (0.0) | J12: 1605 | K12: (2.7)
A13: 7 | B13: 733 | C13: (56.8) | D13: 557 | E13: (43.2) | F13: 0 | G13: (0.0) | H13: 0 | I13: (0.0) | J13: 1290 | K13: (2.2)
A14: 8 | B14: 672 | C14: (55.4) | D14: 540 | E14: (44.6) | F14: 0 | G14: (0.0) | H14: 0 | I14: (0.0) | J14: 1212 | K14: (2.0)
A15: 9 | B15: 673 | C15: (55.7) | D15: 535 | E15: (44.3) | F15: 0 | G15: (0.0) | H15: 0 | I15: (0.0) | J15: 1208 | K15: (2.0)
A16: 10 | B16: 647 | C16: (55.9) | D16: 510 | E16: (44.1) | F16: 0 | G16: (0.0) | H16: 0 | I16: (0.0) | J16: 1157 | K16: (1.9)
A17: 11 | B17: 626 | C17: (51.8) | D17: 582 | E17: (48.2) | F17: 0 | G17: (0.0) | H17: 0 | I17: (0.0) | J17: 1208 | K17: (2.0)
A18: 12 | B18: 649 | C18: (47.8) | D18: 709 | E18: (52.2) | F18: 0 | G18: (0.0) | H18: 0 | I18: (0.0) | J18: 1358 | K18: (2.3)
A19: 13 | B19: 701 | C19: (47.0) | D19: 791 | E19: (53.0) | F19: 0 | G19: (0.0) | H19: 0 | I19: (0.0) | J19: 1492 | K19: (2.5)
A20: 14 | B20: 831 | C20: (49.8) | D20: 839 | E20: (50.2) | F20: 0 | G20: (0.0) | H20: 0 | I20: (0.0) | J20: 1670 | K20: (2.8)
A21: 15 | B21: 791 | C21: (51.0) | D21: 759 | E21: (49.0) | F21: 0 | G21: (0.0) | H21: 0 | I21: (0.0) | J21: 1550 | K21: (2.6)
A22: Unknown | B22: 1 | C22: (20.0) | D22: 4 | E22: (80.0) | F22: 0 | G22: (0.0) | H22: 0 | I22: (0.0) | J22: 5 | K22: (0.0)
A23: Grand Total | B23: 33791 | C23: (56.7) | D23: 25843 | E23: (43.3) | F23: 8 | G23: (0.0) | H23: 0 | I23: (0.0) | J23: 59642 | K23: (100.0)
A25: FIGURE 1 ADMISSIONS BY AGE AND SEX, 2012 - 2014

Sheet 2
A1: TABLE 2 ADMISSIONS BY AGE (<1 YEAR) AND SEX, 2012 - 2014
B3: SEX
A4: Age Months | B4: Male | D4: Female | F4: Ambiguous | H4: Unknown | J4: Total
B5: n | C5: (%) | D5: n | E5: (%) | F5: n | G5: (%) | H5: n | I5: (%) | J5: n | K5: (%)
A6: 0 | B6: 5569 | C6: (59.4) | D6: 3808 | E6: (40.6) | F6: 5 | G6: (0.1) | H6: 0 | I6: (0.0) | J6: 9382 | K6: (33.6)
A7: 1 | B7: 2357 | C7: (59.8) | D7: 1582 | E7: (40.2) | F7: 1 | G7: (0.0) | H7: 0 | I7: (0.0) | J7: 3940 | K7: (14.1)
A8: 2 | B8: 1552 | C8: (58.5) | D8: 1100 | E8: (41.5) | F8: 0 | G8: (0.0) | H8: 0 | I8: (0.0) | J8: 2652 | K8: (9.5)
A9: 3 | B9: 1272 | C9: (56.9) | D9: 965 | E9: (43.1) | F9: 0 | G9: (0.0) | H9: 0 | I9: (0.0) | J9: 2237 | K9: (8.0)
A10: 4 | B10: 1140 | C10: (59.5) | D10: 775 | E10: (40.5) | F10: 0 | G10: (0.0) | H10: 0 | I10: (0.0) | J10: 1915 | K10: (6.9)
A11: 5 | B11: 872 | C11: (56.7) | D11: 665 | E11: (43.3) | F11: 0 | G11: (0.0) | H11: 0 | I11: (0.0) | J11: 1537 | K11: (5.5)
A12: 6 | B12: 835 | C12: (59.6) | D12: 566 | E12: (40.4) | F12: 0 | G12: (0.0) | H12: 0 | I12: (0.0) | J12: 1401 | K12: (5.0)
A13: 7 | B13: 646 | C13: (57.2) | D13: 484 | E13: (42.8) | F13: 0 | G13: (0.0) | H13: 0 | I13: (0.0) | J13: 1130 | K13: (4.0)
A14: 8 | B14: 612 | C14: (58.7) | D14: 430 | E14: (41.3) | F14: 0 | G14: (0.0) | H14: 0 | I14: (0.0) | J14: 1042 | K14: (3.7)
A15: 9 | B15: 528 | C15: (56.7) | D15: 403 | E15: (43.3) | F15: 0 | G15: (0.0) | H15: 0 | I15: (0.0) | J15: 931 | K15: (3.3)
A16: 10 | B16: 526 | C16: (55.7) | D16: 418 | E16: (44.3) | F16: 0 | G16: (0.0) | H16: 0 | I16: (0.0) | J16: 944 | K16: (3.4)
A17: 11 | B17: 489 | C17: (58.4) | D17: 349 | E17: (41.6) | F17: 0 | G17: (0.0) | H17: 0 | I17: (0.0) | J17: 838 | K17: (3.0)
A18: Grand Total | B18: 16398 | C18: (58.7) | D18: 11545 | E18: (41.3) | F18: 6 | G18: (0.0) | H18: 0 | I18: (0.0) | J18: 27949 | K18: (100.0)
A21: FIGURE 2 ADMISSIONS BY AGE (<1 YEAR) AND SEX, 2012 - 2014

Sheet 3
A1: TABLE 3 ADMISSIONS BY AGE, BY HEALTH ORGANISATION, 2012 - 2014
B3: AGE GROUP (YEARS)
A4: Year / Organisation | B4: <1 | D4: 1-4 | F4: 5-10 | H4: 11-15 | J4: Total
B5: n | C5: (%) | D5: n | E5: (%) | F5: n | G5: (%) | H5: n | I5: (%) | J5: n | K5: (%)
A6: 2012
A7: A | B7: 201 | C7: (32.5) | D7: 187 | E7: (30.2) | F7: 113 | G7: (18.3) | H7: 118 | I7: (19.1) | J7: 619 | K7: (3.1)
A8: B | B8: 54 | C8: (27.7) | D8: 82 | E8: (42.1) | F8: 26 | G8: (13.3) | H8: 33 | I8: (16.9) | J8: 195 | K8: (1.0)
A9: C | B9: 135 | C9: (42.9) | D9: 92 | E9: (29.2) | F9: 43 | G9: (13.7) | H9: 45 | I9: (14.3) | J9: 315 | K9: (1.6)
A10: D | B10: 309 | C10: (40.8) | D10: 235 | E10: (31.0) | F10: 108 | G10: (14.3) | H10: 105 | I10: (13.9) | J10: 757 | K10: (3.8)
A11: E1 | B11: 543 | C11: (57.9) | D11: 198 | E11: (21.1) | F11: 110 | G11: (11.7) | H11: 87 | I11: (9.3) | J11: 938 | K11: (4.7)
A12: E2 | B12: 505 | C12: (61.7) | D12: 173 | E12: (21.1) | F12: 80 | G12: (9.8) | H12: 61 | I12: (7.4) | J12: 819 | K12: (4.1)
A13: F | B13: 675 | C13: (53.8) | D13: 300 | E13: (23.9) | F13: 149 | G13: (11.9) | H13: 131 | I13: (10.4) | J13: 1255 | K13: (6.3)
A14: G | B14: 5 | C14: (26.3) | D14: 5 | E14: (26.3) | F14: 3 | G14: (15.8) | H14: 6 | I14: (31.6) | J14: 19 | K14: (0.1)
A15: H | B15: 197 | C15: (30.5) | D15: 186 | E15: (28.8) | F15: 149 | G15: (23.1) | H15: 113 | I15: (17.5) | J15: 645 | K15: (3.2)
A16: I | B16: 409 | C16: (46.8) | D16: 250 | E16: (28.6) | F16: 132 | G16: (15.1) | H16: 82 | I16: (9.4) | J16: 873 | K16: (4.4)
A17: K1K3 | B17: 244 | C17: (45.0) | D17: 135 | E17: (24.9) | F17: 75 | G17: (13.8) | H17: 88 | I17: (16.2) | J17: 542 | K17: (2.7)
A18: K2 | B18: 191 | C18: (59.7) | D18: 91 | E18: (28.4) | F18: 17 | G18: (5.3) | H18: 21 | I18: (6.6) | J18: 320 | K18: (1.6)
A19: L | B19: 129 | C19: (42.0) | D19: 84 | E19: (27.4) | F19: 44 | G19: (14.3) | H19: 50 | I19: (16.3) | J19: 307 | K19: (1.5)
A20: M | B20: 156 | C20: (36.0) | D20: 120 | E20: (27.7) | F20: 60 | G20: (13.9) | H20: 97 | I20: (22.4) | J20: 433 | K20: (2.2)
A21: N | B21: 198 | C21: (36.4) | D21: 194 | E21: (35.7) | F21: 70 | G21: (12.9) | H21: 82 | I21: (15.1) | J21: 544 | K21: (2.7)
A22: O | B22: 422 | C22: (64.0) | D22: 140 | E22: (21.2) | F22: 50 | G22: (7.6) | H22: 47 | I22: (7.1) | J22: 659 | K22: (3.3)
A23: P | B23: 712 | C23: (62.3) | D23: 218 | E23: (19.1) | F23: 125 | G23: (10.9) | H23: 88 | I23: (7.7) | J23: 1143 | K23: (5.7)
A24: Q | B24: 219 | C24: (43.7) | D24: 140 | E24: (27.9) | F24: 73 | G24: (14.6) | H24: 69 | I24: (13.8) | J24: 501 | K24: (2.5)
A25: R | B25: 438 | C25: (50.6) | D25: 197 | E25: (22.8) | F25: 127 | G25: (14.7) | H25: 103 | I25: (11.9) | J25: 865 | K25: (4.3)
A26: S | B26: 69 | C26: (42.3) | D26: 30 | E26: (18.4) | F26: 22 | G26: (13.5) | H26: 42 | I26: (25.8) | J26: 163 | K26: (0.8)
A27: T | B27: 184 | C27: (35.4) | D27: 134 | E27: (25.8) | F27: 102 | G27: (19.6) | H27: 99 | I27: (19.0) | J27: 519 | K27: (2.6)
A28: U | B28: 134 | C28: (39.6) | D28: 115 | E28: (34.0) | F28: 60 | G28: (17.8) | H28: 29 | I28: (8.6) | J28: 338 | K28: (1.7)
A29: V | B29: 744 | C29: (52.8) | D29: 346 | E29: (24.6) | F29: 166 | G29: (11.8) | H29: 153 | I29: (10.9) | J29: 1409 | K29: (7.1)
A30: W | B30: 365 | C30: (54.2) | D30: 172 | E30: (25.5) | F30: 78 | G30: (11.6) | H30: 59 | I30: (8.8) | J30: 674 | K30: (3.4)
A31: X | B31: 506 | C31: (56.9) | D31: 222 | E31: (24.9) | F31: 93 | G31: (10.4) | H31: 69 | I31: (7.8) | J31: 890 | K31: (4.5)
A32: Y | B32: 126 | C32: (28.6) | D32: 101 | E32: (23.0) | F32: 73 | G32: (16.6) | H32: 140 | I32: (31.8) | J32: 440 | K32: (2.2)
A33: Z | B33: 138 | C33: (39.1) | D33: 100 | E33: (28.3) | F33: 64 | G33: (18.1) | H33: 51 | I33: (14.4) | J33: 353 | K33: (1.8)
A34: ZA | B34: 404 | C34: (42.0) | D34: 315 | E34: (32.8) | F34: 163 | G34: (17.0) | H34: 79 | I34: (8.2) | J34: 961 | K34: (4.8)
A35: ZB | B35: 201 | C35: (44.8) | D35: 121 | E35: (26.9) | F35: 79 | G35: (17.6) | H35: 48 | I35: (10.7) | J35: 449 | K35: (2.2)
A36: ZC | B36: 612 | C36: (56.7) | D36: 261 | E36: (24.2) | F36: 112 | G36: (10.4) | H36: 94 | I36: (8.7) | J36: 1079 | K36: (5.4)
A37: ZD | B37: 241 | C37: (47.6) | D37: 136 | E37: (26.9) | F37: 84 | G37: (16.6) | H37: 45 | I37: (8.9) | J37: 506 | K37: (2.5)
A38: ZE | B38: 155 | C38: (36.0) | D38: 131 | E38: (30.4) | F38: 83 | G38: (19.3) | H38: 62 | I38: (14.4) | J38: 431 | K38: (2.2)
A39: Total | B39: 9621 | C39: (48.2) | D39: 5211 | E39: (26.1) | F39: 2733 | G39: (13.7) | H39: 2396 | I39: (12.0) | J39: 19961 | K39: (100.0)
A40: 2013
A41: A | B41: 226 | C41: (34.5) | D41: 209 | E41: (31.9) | F41: 106 | G41: (16.2) | H41: 115 | I41: (17.5) | J41: 656 | K41: (3.3)
A42: B | B42: 78 | C42: (31.8) | D42: 101 | E42: (41.2) | F42: 44 | G42: (18.0) | H42: 22 | I42: (9.0) | J42: 245 | K42: (1.2)
A43: C | B43: 118 | C43: (45.0) | D43: 69 | E43: (26.3) | F43: 41 | G43: (15.6) | H43: 34 | I43: (13.0) | J43: 262 | K43: (1.3)
A44: D | B44: 210 | C44: (33.1) | D44: 225 | E44: (35.4) | F44: 118 | G44: (18.6) | H44: 82 | I44: (12.9) | J44: 635 | K44: (3.2)
A45: E1 | B45: 535 | C45: (55.7) | D45: 214 | E45: (22.3) | F45: 108 | G45: (11.2) | H45: 104 | I45: (10.8) | J45: 961 | K45: (4.8)
A46: E2 | B46: 478 | C46: (59.4) | D46: 202 | E46: (25.1) | F46: 73 | G46: (9.1) | H46: 52 | I46: (6.5) | J46: 805 | K46: (4.0)
A47: F | B47: 667 | C47: (55.2) | D47: 272 | E47: (22.5) | F47: 136 | G47: (11.3) | H47: 133 | I47: (11.0) | J47: 1208 | K47: (6.1)
A48: G | B48: 1 | C48: (5.0) | D48: 8 | E48: (40.0) | F48: 4 | G48: (20.0) | H48: 7 | I48: (35.0) | J48: 20 | K48: (0.1)
A49: H | B49: 193 | C49: (30.0) | D49: 220 | E49: (34.2) | F49: 113 | G49: (17.5) | H49: 118 | I49: (18.3) | J49: 644 | K49: (3.2)
A50: I | B50: 376 | C50: (43.1) | D50: 260 | E50: (29.8) | F50: 132 | G50: (15.1) | H50: 104 | I50: (11.9) | J50: 872 | K50: (4.4)
A51: K1K3 | B51: 247 | C51: (46.2) | D51: 147 | E51: (27.5) | F51: 74 | G51: (13.8) | H51: 67 | I51: (12.5) | J51: 535 | K51: (2.7)
A52: K2 | B52: 193 | C52: (59.2) | D52: 72 | E52: (22.1) | F52: 42 | G52: (12.9) | H52: 19 | I52: (5.8) | J52: 326 | K52: (1.6)
A53: L | B53: 140 | C53: (45.6) | D53: 87 | E53: (28.3) | F53: 42 | G53: (13.7) | H53: 38 | I53: (12.4) | J53: 307 | K53: (1.5)
A54: M | B54: 115 | C54: (33.5) | D54: 99 | E54: (28.9) | F54: 51 | G54: (14.9) | H54: 78 | I54: (22.7) | J54: 343 | K54: (1.7)
A55: N | B55: 252 | C55: (32.2) | D55: 272 | E55: (34.7) | F55: 131 | G55: (16.7) | H55: 128 | I55: (16.3) | J55: 783 | K55: (3.9)
A56: O | B56: 370 | C56: (57.3) | D56: 169 | E56: (26.2) | F56: 67 | G56: (10.4) | H56: 40 | I56: (6.2) | J56: 646 | K56: (3.2)
A57: P | B57: 648 | C57: (60.6) | D57: 231 | E57: (21.6) | F57: 108 | G57: (10.1) | H57: 83 | I57: (7.8) | J57: 1070 | K57: (5.4)
A58: Q | B58: 204 | C58: (41.1) | D58: 141 | E58: (28.4) | F58: 80 | G58: (16.1) | H58: 71 | I58: (14.3) | J58: 496 | K58: (2.5)
A59: R | B59: 518 | C59: (54.2) | D59: 223 | E59: (23.3) | F59: 103 | G59: (10.8) | H59: 112 | I59: (11.7) | J59: 956 | K59: (4.8)
A60: S | B60: 53 | C60: (43.1) | D60: 28 | E60: (22.8) | F60: 15 | G60: (12.2) | H60: 27 | I60: (22.0) | J60: 123 | K60: (0.6)
A61: T | B61: 169 | C61: (31.9) | D61: 179 | E61: (33.8) | F61: 97 | G61: (18.3) | H61: 85 | I61: (16.0) | J61: 530 | K61: (2.7)
A62: U | B62: 129 | C62: (38.5) | D62: 125 | E62: (37.3) | F62: 50 | G62: (14.9) | H62: 31 | I62: (9.3) | J62: 335 | K62: (1.7)
A63: V | B63: 684 | C63: (52.5) | D63: 312 | E63: (24.0) | F63: 183 | G63: (14.1) | H63: 123 | I63: (9.4) | J63: 1302 | K63: (6.5)
A64: W | B64: 361 | C64: (54.5) | D64: 163 | E64: (24.6) | F64: 79 | G64: (11.9) | H64: 59 | I64: (8.9) | J64: 662 | K64: (3.3)
A65: X | B65: 416 | C65: (50.7) | D65: 233 | E65: (28.4) | F65: 103 | G65: (12.6) | H65: 68 | I65: (8.3) | J65: 820 | K65: (4.1)
A66: Y | B66: 117 | C66: (25.8) | D66: 105 | E66: (23.2) | F66: 68 | G66: (15.0) | H66: 163 | I66: (36.0) | J66: 453 | K66: (2.3)
A67: Z | B67: 120 | C67: (33.1) | D67: 120 | E67: (33.1) | F67: 62 | G67: (17.1) | H67: 60 | I67: (16.6) | J67: 362 | K67: (1.8)
A68: ZA | B68: 416 | C68: (39.6) | D68: 375 | E68: (35.7) | F68: 157 | G68: (14.9) | H68: 103 | I68: (9.8) | J68: 1051 | K68: (5.3)
A69: ZB | B69: 187 | C69: (43.1) | D69: 113 | E69: (26.0) | F69: 69 | G69: (15.9) | H69: 65 | I69: (15.0) | J69: 434 | K69: (2.2)
A70: ZC | B70: 580 | C70: (54.2) | D70: 261 | E70: (24.4) | F70: 125 | G70: (11.7) | H70: 105 | I70: (9.8) | J70: 1071 | K70: (5.4)
A71: ZD | B71: 241 | C71: (48.5) | D71: 128 | E71: (25.8) | F71: 71 | G71: (14.3) | H71: 57 | I71: (11.5) | J71: 497 | K71: (2.5)
A72: ZE | B72: 164 | C72: (34.7) | D72: 147 | E72: (31.1) | F72: 94 | G72: (19.9) | H72: 67 | I72: (14.2) | J72: 472 | K72: (2.4)
A73: ZF | B73: 10 | C73: (26.3) | D73: 18 | E73: (47.4) | F73: 6 | G73: (15.8) | H73: 4 | I73: (10.5) | J73: 38 | K73: (0.2)
A74: Total | B74: 9216 | C74: (46.3) | D74: 5528 | E74: (27.8) | F74: 2752 | G74: (13.8) | H74: 2424 | I74: (12.2) | J74: 19920 | K74: (100.0)
A75: 2014
A76: A | B76: 197 | C76: (30.4) | D76: 193 | E76: (29.8) | F76: 125 | G76: (19.3) | H76: 131 | I76: (20.2) | J76: 646 | K76: (3.3)
A77: B | B77: 117 | C77: (44.2) | D77: 97 | E77: (36.6) | F77: 32 | G77: (12.1) | H77: 19 | I77: (7.2) | J77: 265 | K77: (1.3)
A78: C | B78: 114 | C78: (38.3) | D78: 89 | E78: (29.9) | F78: 46 | G78: (15.4) | H78: 49 | I78: (16.4) | J78: 298 | K78: (1.5)
A79: D | B79: 270 | C79: (35.8) | D79: 213 | E79: (28.2) | F79: 157 | G79: (20.8) | H79: 115 | I79: (15.2) | J79: 755 | K79: (3.8)
A80: E1 | B80: 502 | C80: (53.6) | D80: 200 | E80: (21.3) | F80: 141 | G80: (15.0) | H80: 94 | I80: (10.0) | J80: 937 | K80: (4.7)
A81: E2 | B81: 417 | C81: (52.7) | D81: 213 | E81: (26.9) | F81: 91 | G81: (11.5) | H81: 71 | I81: (9.0) | J81: 792 | K81: (4.0)
A82: F | B82: 658 | C82: (52.3) | D82: 332 | E82: (26.4) | F82: 140 | G82: (11.1) | H82: 128 | I82: (10.2) | J82: 1258 | K82: (6.4)
A83: G | B83: 1 | C83: (8.3) | D83: 4 | E83: (33.3) | F83: 2 | G83: (16.7) | H83: 5 | I83: (41.7) | J83: 12 | K83: (0.1)
A84: H | B84: 177 | C84: (32.8) | D84: 153 | E84: (28.3) | F84: 110 | G84: (20.4) | H84: 98 | I84: (18.1) | J84: 538 | K84: (2.7)
A85: I | B85: 401 | C85: (50.4) | D85: 186 | E85: (23.4) | F85: 121 | G85: (15.2) | H85: 88 | I85: (11.1) | J85: 796 | K85: (4.0)
A86: K1K3 | B86: 255 | C86: (44.8) | D86: 156 | E86: (27.4) | F86: 80 | G86: (14.1) | H86: 78 | I86: (13.7) | J86: 569 | K86: (2.9)
A87: K2 | B87: 170 | C87: (59.4) | D87: 69 | E87: (24.1) | F87: 31 | G87: (10.8) | H87: 16 | I87: (5.6) | J87: 286 | K87: (1.4)
A88: L | B88: 124 | C88: (40.8) | D88: 80 | E88: (26.3) | F88: 51 | G88: (16.8) | H88: 49 | I88: (16.1) | J88: 304 | K88: (1.5)
A89: M | B89: 131 | C89: (32.3) | D89: 127 | E89: (31.4) | F89: 62 | G89: (15.3) | H89: 85 | I89: (21.0) | J89: 405 | K89: (2.0)
A90: N | B90: 211 | C90: (29.0) | D90: 277 | E90: (38.0) | F90: 110 | G90: (15.1) | H90: 130 | I90: (17.9) | J90: 728 | K90: (3.7)
A91: O | B91: 442 | C91: (64.3) | D91: 146 | E91: (21.3) | F91: 47 | G91: (6.8) | H91: 51 | I91: (7.4) | J91: 686 | K91: (3.5)
A92: P | B92: 601 | C92: (59.3) | D92: 215 | E92: (21.2) | F92: 110 | G92: (10.9) | H92: 87 | I92: (8.6) | J92: 1013 | K92: (5.1)
A93: Q | B93: 225 | C93: (43.5) | D93: 144 | E93: (27.9) | F93: 86 | G93: (16.6) | H93: 62 | I93: (12.0) | J93: 517 | K93: (2.6)
A94: R | B94: 496 | C94: (55.5) | D94: 200 | E94: (22.4) | F94: 97 | G94: (10.9) | H94: 100 | I94: (11.2) | J94: 893 | K94: (4.5)
A95: S | B95: 45 | C95: (34.1) | D95: 24 | E95: (18.2) | F95: 29 | G95: (22.0) | H95: 34 | I95: (25.8) | J95: 132 | K95: (0.7)
A96: T | B96: 154 | C96: (32.4) | D96: 165 | E96: (34.7) | F96: 80 | G96: (16.8) | H96: 76 | I96: (16.0) | J96: 475 | K96: (2.4)
A97: U | B97: 123 | C97: (37.8) | D97: 96 | E97: (29.5) | F97: 59 | G97: (18.2) | H97: 47 | I97: (14.5) | J97: 325 | K97: (1.6)
A98: V | B98: 642 | C98: (47.7) | D98: 348 | E98: (25.9) | F98: 213 | G98: (15.8) | H98: 142 | I98: (10.6) | J98: 1345 | K98: (6.8)
A99: W | B99: 343 | C99: (49.7) | D99: 179 | E99: (25.9) | F99: 108 | G99: (15.7) | H99: 60 | I99: (8.7) | J99: 690 | K99: (3.5)
A100: X | B100: 424 | C100: (54.4) | D100: 201 | E100: (25.8) | F100: 82 | G100: (10.5) | H100: 73 | I100: (9.4) | J100: 780 | K100: (3.9)
A101: Y | B101: 133 | C101: (35.1) | D101: 100 | E101: (26.4) | F101: 63 | G101: (16.6) | H101: 83 | I101: (21.9) | J101: 379 | K101: (1.9)
A102: Z | B102: 150 | C102: (34.7) | D102: 144 | E102: (33.3) | F102: 73 | G102: (16.9) | H102: 65 | I102: (15.0) | J102: 432 | K102: (2.2)
A103: ZA | B103: 413 | C103: (38.4) | D103: 350 | E103: (32.5) | F103: 195 | G103: (18.1) | H103: 118 | I103: (11.0) | J103: 1076 | K103: (5.4)
A104: ZB | B104: 202 | C104: (39.8) | D104: 133 | E104: (26.2) | F104: 99 | G104: (19.5) | H104: 73 | I104: (14.4) | J104: 507 | K104: (2.6)
A105: ZC | B105: 635 | C105: (62.3) | D105: 203 | E105: (19.9) | F105: 87 | G105: (8.5) | H105: 95 | I105: (9.3) | J105: 1020 | K105: (5.2)
A106: ZD | B106: 221 | C106: (46.7) | D106: 119 | E106: (25.2) | F106: 78 | G106: (16.5) | H106: 55 | I106: (11.6) | J106: 473 | K106: (2.4)
A107: ZE | B107: 94 | C107: (31.2) | D107: 93 | E107: (30.9) | F107: 63 | G107: (20.9) | H107: 51 | I107: (16.9) | J107: 301 | K107: (1.5)
A108: ZF | B108: 24 | C108: (19.5) | D108: 34 | E108: (27.6) | F108: 35 | G108: (28.5) | H108: 30 | I108: (24.4) | J108: 123 | K108: (0.6)
A109: Total | B109: 9112 | C109: (46.1) | D109: 5283 | E109: (26.7) | F109: 2903 | G109: (14.7) | H109: 2458 | I109: (12.4) | J109: 19756 | K109: (100.0)
A110: Grand
A111: Total | B111: 27949 | C111: (46.9) | D111: 16022 | E111: (26.9) | F111: 8388 | G111: (14.1) | H111: 7278 | I111: (12.2) | J111: 59637 | K111: (100.0)

Sheet 4
A1: TABLE 4 ADMISSIONS BY AGE (<1) BY HEALTH ORGANISATION, 2012 - 2014
B3: AGE GROUP (MONTHS)
A4: Year / Organisation | B4: <1 | D4: 1-2 | F4: 3-5 | H4: 6-11 | J4: Total
B5: n | C5: (%) | D5: n | E5: (%) | F5: n | G5: (%) | H5: n | I5: (%) | J5: n | K5: (%)
A6: 2012
A7: A | B7: 46 | C7: (22.9) | D7: 58 | E7: (28.9) | F7: 44 | G7: (21.9) | H7: 53 | I7: (26.4) | J7: 201 | K7: (2.1)
A8: B | B8: 10 | C8: (18.5) | D8: 19 | E8: (35.2) | F8: 7 | G8: (13.0) | H8: 18 | I8: (33.3) | J8: 54 | K8: (0.6)
A9: C | B9: 31 | C9: (23.0) | D9: 46 | E9: (34.1) | F9: 24 | G9: (17.8) | H9: 34 | I9: (25.2) | J9: 135 | K9: (1.4)
A10: D | B10: 57 | C10: (18.4) | D10: 104 | E10: (33.7) | F10: 76 | G10: (24.6) | H10: 72 | I10: (23.3) | J10: 309 | K10: (3.2)
A11: E1 | B11: 268 | C11: (49.4) | D11: 131 | E11: (24.1) | F11: 63 | G11: (11.6) | H11: 81 | I11: (14.9) | J11: 543 | K11: (5.6)
A12: E2 | B12: 192 | C12: (38.0) | D12: 76 | E12: (15.0) | F12: 128 | G12: (25.3) | H12: 109 | I12: (21.6) | J12: 505 | K12: (5.2)
A13: F | B13: 233 | C13: (34.5) | D13: 156 | E13: (23.1) | F13: 138 | G13: (20.4) | H13: 148 | I13: (21.9) | J13: 675 | K13: (7.0)
A14: G | B14: 2 | C14: (40.0) | D14: 2 | E14: (40.0) | F14: 0 | G14: (0.0) | H14: 1 | I14: (20.0) | J14: 5 | K14: (0.1)
A15: H | B15: 52 | C15: (26.4) | D15: 42 | E15: (21.3) | F15: 31 | G15: (15.7) | H15: 72 | I15: (36.5) | J15: 197 | K15: (2.0)
A16: I | B16: 101 | C16: (24.7) | D16: 131 | E16: (32.0) | F16: 89 | G16: (21.8) | H16: 88 | I16: (21.5) | J16: 409 | K16: (4.3)
A17: K1K3 | B17: 87 | C17: (35.7) | D17: 60 | E17: (24.6) | F17: 39 | G17: (16.0) | H17: 58 | I17: (23.8) | J17: 244 | K17: (2.5)
A18: K2 | B18: 73 | C18: (38.2) | D18: 44 | E18: (23.0) | F18: 20 | G18: (10.5) | H18: 54 | I18: (28.3) | J18: 191 | K18: (2.0)
A19: L | B19: 31 | C19: (24.0) | D19: 58 | E19: (45.0) | F19: 11 | G19: (8.5) | H19: 29 | I19: (22.5) | J19: 129 | K19: (1.3)
A20: M | B20: 37 | C20: (23.7) | D20: 49 | E20: (31.4) | F20: 36 | G20: (23.1) | H20: 34 | I20: (21.8) | J20: 156 | K20: (1.6)
A21: N | B21: 42 | C21: (21.2) | D21: 53 | E21: (26.8) | F21: 45 | G21: (22.7) | H21: 58 | I21: (29.3) | J21: 198 | K21: (2.1)
A22: O | B22: 162 | C22: (38.4) | D22: 65 | E22: (15.4) | F22: 90 | G22: (21.3) | H22: 105 | I22: (24.9) | J22: 422 | K22: (4.4)
A23: P | B23: 299 | C23: (42.0) | D23: 170 | E23: (23.9) | F23: 129 | G23: (18.1) | H23: 114 | I23: (16.0) | J23: 712 | K23: (7.4)
A24: Q | B24: 57 | C24: (26.0) | D24: 58 | E24: (26.5) | F24: 42 | G24: (19.2) | H24: 62 | I24: (28.3) | J24: 219 | K24: (2.3)
A25: R | B25: 174 | C25: (39.7) | D25: 103 | E25: (23.5) | F25: 91 | G25: (20.8) | H25: 70 | I25: (16.0) | J25: 438 | K25: (4.6)
A26: S | B26: 27 | C26: (39.1) | D26: 17 | E26: (24.6) | F26: 12 | G26: (17.4) | H26: 13 | I26: (18.8) | J26: 69 | K26: (0.7)
A27: T | B27: 31 | C27: (16.8) | D27: 53 | E27: (28.8) | F27: 38 | G27: (20.7) | H27: 62 | I27: (33.7) | J27: 184 | K27: (1.9)
A28: U | B28: 27 | C28: (20.1) | D28: 36 | E28: (26.9) | F28: 30 | G28: (22.4) | H28: 41 | I28: (30.6) | J28: 134 | K28: (1.4)
A29: V | B29: 288 | C29: (38.7) | D29: 158 | E29: (21.2) | F29: 142 | G29: (19.1) | H29: 156 | I29: (21.0) | J29: 744 | K29: (7.7)
A30: W | B30: 120 | C30: (32.9) | D30: 104 | E30: (28.5) | F30: 80 | G30: (21.9) | H30: 61 | I30: (16.7) | J30: 365 | K30: (3.8)
A31: X | B31: 212 | C31: (41.9) | D31: 110 | E31: (21.7) | F31: 63 | G31: (12.5) | H31: 121 | I31: (23.9) | J31: 506 | K31: (5.3)
A32: Y | B32: 51 | C32: (40.5) | D32: 34 | E32: (27.0) | F32: 20 | G32: (15.9) | H32: 21 | I32: (16.7) | J32: 126 | K32: (1.3)
A33: Z | B33: 32 | C33: (23.2) | D33: 34 | E33: (24.6) | F33: 28 | G33: (20.3) | H33: 44 | I33: (31.9) | J33: 138 | K33: (1.4)
A34: ZA | B34: 94 | C34: (23.3) | D34: 88 | E34: (21.8) | F34: 96 | G34: (23.8) | H34: 126 | I34: (31.2) | J34: 404 | K34: (4.2)
A35: ZB | B35: 64 | C35: (31.8) | D35: 56 | E35: (27.9) | F35: 35 | G35: (17.4) | H35: 46 | I35: (22.9) | J35: 201 | K35: (2.1)
A36: ZC | B36: 238 | C36: (38.9) | D36: 119 | E36: (19.4) | F36: 152 | G36: (24.8) | H36: 103 | I36: (16.8) | J36: 612 | K36: (6.4)
A37: ZD | B37: 88 | C37: (36.5) | D37: 74 | E37: (30.7) | F37: 28 | G37: (11.6) | H37: 51 | I37: (21.2) | J37: 241 | K37: (2.5)
A38: ZE | B38: 21 | C38: (13.5) | D38: 19 | E38: (12.3) | F38: 51 | G38: (32.9) | H38: 64 | I38: (41.3) | J38: 155 | K38: (1.6)
A39: Total | B39: 3247 | C39: (33.7) | D39: 2327 | E39: (24.2) | F39: 1878 | G39: (19.5) | H39: 2169 | I39: (22.5) | J39: 9621 | K39: (100.0)
A40: 2013
A41: A | B41: 63 | C41: (27.9) | D41: 47 | E41: (20.8) | F41: 39 | G41: (17.3) | H41: 77 | I41: (34.1) | J41: 226 | K41: (2.5)
A42: B | B42: 8 | C42: (10.3) | D42: 29 | E42: (37.2) | F42: 20 | G42: (25.6) | H42: 21 | I42: (26.9) | J42: 78 | K42: (0.8)
A43: C | B43: 30 | C43: (25.4) | D43: 31 | E43: (26.3) | F43: 23 | G43: (19.5) | H43: 34 | I43: (28.8) | J43: 118 | K43: (1.3)
A44: D | B44: 43 | C44: (20.5) | D44: 63 | E44: (30.0) | F44: 41 | G44: (19.5) | H44: 63 | I44: (30.0) | J44: 210 | K44: (2.3)
A45: E1 | B45: 226 | C45: (42.2) | D45: 133 | E45: (24.9) | F45: 86 | G45: (16.1) | H45: 90 | I45: (16.8) | J45: 535 | K45: (5.8)
A46: E2 | B46: 171 | C46: (35.8) | D46: 76 | E46: (15.9) | F46: 125 | G46: (26.2) | H46: 106 | I46: (22.2) | J46: 478 | K46: (5.2)
A47: F | B47: 231 | C47: (34.6) | D47: 136 | E47: (20.4) | F47: 155 | G47: (23.2) | H47: 145 | I47: (21.7) | J47: 667 | K47: (7.2)
A48: G | B48: 0 | C48: (0.0) | D48: 0 | E48: (0.0) | F48: 1 | G48: (100.0) | H48: 0 | I48: (0.0) | J48: 1 | K48: (0.0)
A49: H | B49: 43 | C49: (22.3) | D49: 45 | E49: (23.3) | F49: 29 | G49: (15.0) | H49: 76 | I49: (39.4) | J49: 193 | K49: (2.1)
A50: I | B50: 96 | C50: (25.5) | D50: 104 | E50: (27.7) | F50: 75 | G50: (19.9) | H50: 101 | I50: (26.9) | J50: 376 | K50: (4.1)
A51: K1K3 | B51: 92 | C51: (37.2) | D51: 61 | E51: (24.7) | F51: 47 | G51: (19.0) | H51: 47 | I51: (19.0) | J51: 247 | K51: (2.7)
A52: K2 | B52: 75 | C52: (38.9) | D52: 39 | E52: (20.2) | F52: 39 | G52: (20.2) | H52: 40 | I52: (20.7) | J52: 193 | K52: (2.1)
A53: L | B53: 34 | C53: (24.3) | D53: 42 | E53: (30.0) | F53: 26 | G53: (18.6) | H53: 38 | I53: (27.1) | J53: 140 | K53: (1.5)
A54: M | B54: 20 | C54: (17.4) | D54: 28 | E54: (24.3) | F54: 31 | G54: (27.0) | H54: 36 | I54: (31.3) | J54: 115 | K54: (1.2)
A55: N | B55: 54 | C55: (21.4) | D55: 61 | E55: (24.2) | F55: 58 | G55: (23.0) | H55: 79 | I55: (31.3) | J55: 252 | K55: (2.7)
A56: O | B56: 160 | C56: (43.2) | D56: 79 | E56: (21.4) | F56: 75 | G56: (20.3) | H56: 56 | I56: (15.1) | J56: 370 | K56: (4.0)
A57: P | B57: 257 | C57: (39.7) | D57: 120 | E57: (18.5) | F57: 131 | G57: (20.2) | H57: 140 | I57: (21.6) | J57: 648 | K57: (7.0)
A58: Q | B58: 50 | C58: (24.5) | D58: 63 | E58: (30.9) | F58: 44 | G58: (21.6) | H58: 47 | I58: (23.0) | J58: 204 | K58: (2.2)
A59: R | B59: 230 | C59: (44.4) | D59: 110 | E59: (21.2) | F59: 98 | G59: (18.9) | H59: 80 | I59: (15.4) | J59: 518 | K59: (5.6)
A60: S | B60: 15 | C60: (28.3) | D60: 16 | E60: (30.2) | F60: 9 | G60: (17.0) | H60: 13 | I60: (24.5) | J60: 53 | K60: (0.6)
A61: T | B61: 24 | C61: (14.2) | D61: 45 | E61: (26.6) | F61: 39 | G61: (23.1) | H61: 61 | I61: (36.1) | J61: 169 | K61: (1.8)
A62: U | B62: 19 | C62: (14.7) | D62: 39 | E62: (30.2) | F62: 30 | G62: (23.3) | H62: 41 | I62: (31.8) | J62: 129 | K62: (1.4)
A63: V | B63: 276 | C63: (40.4) | D63: 132 | E63: (19.3) | F63: 153 | G63: (22.4) | H63: 123 | I63: (18.0) | J63: 684 | K63: (7.4)
A64: W | B64: 115 | C64: (31.9) | D64: 75 | E64: (20.8) | F64: 84 | G64: (23.3) | H64: 87 | I64: (24.1) | J64: 361 | K64: (3.9)
A65: X | B65: 149 | C65: (35.8) | D65: 99 | E65: (23.8) | F65: 73 | G65: (17.5) | H65: 95 | I65: (22.8) | J65: 416 | K65: (4.5)
A66: Y | B66: 36 | C66: (30.8) | D66: 34 | E66: (29.1) | F66: 17 | G66: (14.5) | H66: 30 | I66: (25.6) | J66: 117 | K66: (1.3)
A67: Z | B67: 25 | C67: (20.8) | D67: 31 | E67: (25.8) | F67: 21 | G67: (17.5) | H67: 43 | I67: (35.8) | J67: 120 | K67: (1.3)
A68: ZA | B68: 86 | C68: (20.7) | D68: 92 | E68: (22.1) | F68: 123 | G68: (29.6) | H68: 115 | I68: (27.6) | J68: 416 | K68: (4.5)
A69: ZB | B69: 50 | C69: (26.7) | D69: 61 | E69: (32.6) | F69: 40 | G69: (21.4) | H69: 36 | I69: (19.3) | J69: 187 | K69: (2.0)
A70: ZC | B70: 235 | C70: (40.5) | D70: 113 | E70: (19.5) | F70: 129 | G70: (22.2) | H70: 103 | I70: (17.8) | J70: 580 | K70: (6.3)
A71: ZD | B71: 108 | C71: (44.8) | D71: 57 | E71: (23.7) | F71: 39 | G71: (16.2) | H71: 37 | I71: (15.4) | J71: 241 | K71: (2.6)
A72: ZE | B72: 23 | C72: (14.0) | D72: 27 | E72: (16.5) | F72: 44 | G72: (26.8) | H72: 70 | I72: (42.7) | J72: 164 | K72: (1.8)
A73: ZF | B73: 1 | C73: (10.0) | D73: 2 | E73: (20.0) | F73: 1 | G73: (10.0) | H73: 6 | I73: (60.0) | J73: 10 | K73: (0.1)
A74: Total | B74: 3045 | C74: (33.0) | D74: 2090 | E74: (22.7) | F74: 1945 | G74: (21.1) | H74: 2136 | I74: (23.2) | J74: 9216 | K74: (100.0)
A75: 2014
A76: A | B76: 49 | C76: (24.9) | D76: 50 | E76: (25.4) | F76: 51 | G76: (25.9) | H76: 47 | I76: (23.9) | J76: 197 | K76: (2.2)
A77: B | B77: 8 | C77: (6.8) | D77: 31 | E77: (26.5) | F77: 30 | G77: (25.6) | H77: 48 | I77: (41.0) | J77: 117 | K77: (1.3)
A78: C | B78: 33 | C78: (28.9) | D78: 35 | E78: (30.7) | F78: 22 | G78: (19.3) | H78: 24 | I78: (21.1) | J78: 114 | K78: (1.3)
A79: D | B79: 62 | C79: (23.0) | D79: 70 | E79: (25.9) | F79: 56 | G79: (20.7) | H79: 82 | I79: (30.4) | J79: 270 | K79: (3.0)
A80: E1 | B80: 217 | C80: (43.2) | D80: 124 | E80: (24.7) | F80: 87 | G80: (17.3) | H80: 74 | I80: (14.7) | J80: 502 | K80: (5.5)
A81: E2 | B81: 141 | C81: (33.8) | D81: 62 | E81: (14.9) | F81: 117 | G81: (28.1) | H81: 97 | I81: (23.3) | J81: 417 | K81: (4.6)
A82: F | B82: 239 | C82: (36.3) | D82: 139 | E82: (21.1) | F82: 145 | G82: (22.0) | H82: 135 | I82: (20.5) | J82: 658 | K82: (7.2)
A83: G | B83: 0 | C83: (0.0) | D83: 1 | E83: (100.0) | F83: 0 | G83: (0.0) | H83: 0 | I83: (0.0) | J83: 1 | K83: (0.0)
A84: H | B84: 35 | C84: (19.8) | D84: 50 | E84: (28.2) | F84: 40 | G84: (22.6) | H84: 52 | I84: (29.4) | J84: 177 | K84: (1.9)
A85: I | B85: 113 | C85: (28.2) | D85: 92 | E85: (22.9) | F85: 93 | G85: (23.2) | H85: 103 | I85: (25.7) | J85: 401 | K85: (4.4)
A86: K1K3 | B86: 88 | C86: (34.5) | D86: 69 | E86: (27.1) | F86: 62 | G86: (24.3) | H86: 36 | I86: (14.1) | J86: 255 | K86: (2.8)
A87: K2 | B87: 60 | C87: (35.3) | D87: 39 | E87: (22.9) | F87: 43 | G87: (25.3) | H87: 28 | I87: (16.5) | J87: 170 | K87: (1.9)
A88: L | B88: 30 | C88: (24.2) | D88: 53 | E88: (42.7) | F88: 24 | G88: (19.4) | H88: 17 | I88: (13.7) | J88: 124 | K88: (1.4)
A89: M | B89: 23 | C89: (17.6) | D89: 44 | E89: (33.6) | F89: 25 | G89: (19.1) | H89: 39 | I89: (29.8) | J89: 131 | K89: (1.4)
A90: N | B90: 42 | C90: (19.9) | D90: 64 | E90: (30.3) | F90: 43 | G90: (20.4) | H90: 62 | I90: (29.4) | J90: 211 | K90: (2.3)
A91: O | B91: 188 | C91: (42.5) | D91: 71 | E91: (16.1) | F91: 87 | G91: (19.7) | H91: 96 | I91: (21.7) | J91: 442 | K91: (4.9)
A92: P | B92: 225 | C92: (37.4) | D92: 147 | E92: (24.5) | F92: 124 | G92: (20.6) | H92: 105 | I92: (17.5) | J92: 601 | K92: (6.6)
A93: Q | B93: 60 | C93: (26.7) | D93: 68 | E93: (30.2) | F93: 35 | G93: (15.6) | H93: 62 | I93: (27.6) | J93: 225 | K93: (2.5)
A94: R | B94: 218 | C94: (44.0) | D94: 106 | E94: (21.4) | F94: 87 | G94: (17.5) | H94: 85 | I94: (17.1) | J94: 496 | K94: (5.4)
A95: S | B95: 14 | C95: (31.1) | D95: 15 | E95: (33.3) | F95: 5 | G95: (11.1) | H95: 11 | I95: (24.4) | J95: 45 | K95: (0.5)
A96: T | B96: 27 | C96: (17.5) | D96: 61 | E96: (39.6) | F96: 35 | G96: (22.7) | H96: 31 | I96: (20.1) | J96: 154 | K96: (1.7)
A97: U | B97: 35 | C97: (28.5) | D97: 31 | E97: (25.2) | F97: 22 | G97: (17.9) | H97: 35 | I97: (28.5) | J97: 123 | K97: (1.3)
A98: V | B98: 270 | C98: (42.1) | D98: 138 | E98: (21.5) | F98: 108 | G98: (16.8) | H98: 126 | I98: (19.6) | J98: 642 | K98: (7.0)
A99: W | B99: 114 | C99: (33.2) | D99: 77 | E99: (22.4) | F99: 83 | G99: (24.2) | H99: 69 | I99: (20.1) | J99: 343 | K99: (3.8)
A100: X | B100: 157 | C100: (37.0) | D100: 112 | E100: (26.4) | F100: 69 | G100: (16.3) | H100: 86 | I100: (20.3) | J100: 424 | K100: (4.7)
A101: Y | B101: 45 | C101: (33.8) | D101: 32 | E101: (24.1) | F101: 25 | G101: (18.8) | H101: 31 | I101: (23.3) | J101: 133 | K101: (1.5)
A102: Z | B102: 41 | C102: (27.3) | D102: 40 | E102: (26.7) | F102: 28 | G102: (18.7) | H102: 41 | I102: (27.3) | J102: 150 | K102: (1.6)
A103: ZA | B103: 91 | C103: (22.0) | D103: 75 | E103: (18.2) | F103: 100 | G103: (24.2) | H103: 147 | I103: (35.6) | J103: 413 | K103: (4.5)
A104: ZB | B104: 80 | C104: (39.6) | D104: 51 | E104: (25.2) | F104: 32 | G104: (15.8) | H104: 39 | I104: (19.3) | J104: 202 | K104: (2.2)
A105: ZC | B105: 274 | C105: (43.1) | D105: 139 | E105: (21.9) | F105: 126 | G105: (19.8) | H105: 96 | I105: (15.1) | J105: 635 | K105: (7.0)
A106: ZD | B106: 99 | C106: (44.8) | D106: 64 | E106: (29.0) | F106: 29 | G106: (13.1) | H106: 29 | I106: (13.1) | J106: 221 | K106: (2.4)
A107: ZE | B107: 8 | C107: (8.5) | D107: 19 | E107: (20.2) | F107: 26 | G107: (27.7) | H107: 41 | I107: (43.6) | J107: 94 | K107: (1.0)
A108: ZF | B108: 4 | C108: (16.7) | D108: 6 | E108: (25.0) | F108: 7 | G108: (29.2) | H108: 7 | I108: (29.2) | J108: 24 | K108: (0.3)
A109: Total | B109: 3090 | C109: (33.9) | D109: 2175 | E109: (23.9) | F109: 1866 | G109: (20.5) | H109: 1981 | I109: (21.7) | J109: 9112 | K109: (100.0)
A110: Grand
A111: Total | B111: 9382 | C111: (33.6) | D111: 6592 | E111: (23.6) | F111: 5689 | G111: (20.4) | H111: 6286 | I111: (22.5) | J111: 27949 | K111: (100.0)

Sheet 5
A1: TABLE 5 ADMISSIONS BY AGE (16+) BY HEALTH ORGANISATION, 2012 - 2014
B3: AGE GROUP (YEARS)
A4: Year / Organisation | B4: 16 | D4: 17-20 | F4: 21-25 | H4: 26+ | J4: Total
B5: n | C5: (%) | D5: n | E5: (%) | F5: n | G5: (%) | H5: n | I5: (%) | J5: n | K5: (%)
A6: 2012
A7: A | B7: 15 | C7: (83.3) | D7: 3 | E7: (16.7) | F7: 0 | G7: (0.0) | H7: 0 | I7: (0.0) | J7: 18 | K7: (4.0)
A8: B | B8: 5 | C8: (41.7) | D8: 7 | E8: (58.3) | F8: 0 | G8: (0.0) | H8: 0 | I8: (0.0) | J8: 12 | K8: (2.7)
A9: C | B9: 2 | C9: (50.0) | D9: 2 | E9: (50.0) | F9: 0 | G9: (0.0) | H9: 0 | I9: (0.0) | J9: 4 | K9: (0.9)
A10: D | B10: 10 | C10: (50.0) | D10: 10 | E10: (50.0) | F10: 0 | G10: (0.0) | H10: 0 | I10: (0.0) | J10: 20 | K10: (4.5)
A11: E1 | B11: 8 | C11: (88.9) | D11: 1 | E11: (11.1) | F11: 0 | G11: (0.0) | H11: 0 | I11: (0.0) | J11: 9 | K11: (2.0)
A12: E2 | B12: 9 | C12: (69.2) | D12: 4 | E12: (30.8) | F12: 0 | G12: (0.0) | H12: 0 | I12: (0.0) | J12: 13 | K12: (2.9)
A13: F | B13: 20 | C13: (62.5) | D13: 9 | E13: (28.1) | F13: 2 | G13: (6.3) | H13: 1 | I13: (3.1) | J13: 32 | K13: (7.1)
A14: G | B14: 1 | C14: (100.0) | D14: 0 | E14: (0.0) | F14: 0 | G14: (0.0) | H14: 0 | I14: (0.0) | J14: 1 | K14: (0.2)
A15: H | B15: 9 | C15: (56.3) | D15: 7 | E15: (43.8) | F15: 0 | G15: (0.0) | H15: 0 | I15: (0.0) | J15: 16 | K15: (3.6)
A16: I | B16: 2 | C16: (66.7) | D16: 1 | E16: (33.3) | F16: 0 | G16: (0.0) | H16: 0 | I16: (0.0) | J16: 3 | K16: (0.7)
A17: K1K3 | B17: 9 | C17: (60.0) | D17: 6 | E17: (40.0) | F17: 0 | G17: (0.0) | H17: 0 | I17: (0.0) | J17: 15 | K17: (3.3)
A18: K2 | B18: 4 | C18: (57.1) | D18: 3 | E18: (42.9) | F18: 0 | G18: (0.0) | H18: 0 | I18: (0.0) | J18: 7 | K18: (1.6)
A19: L | B19: 11 | C19: (73.3) | D19: 4 | E19: (26.7) | F19: 0 | G19: (0.0) | H19: 0 | I19: (0.0) | J19: 15 | K19: (3.3)
A20: M | B20: 12 | C20: (44.4) | D20: 15 | E20: (55.6) | F20: 0 | G20: (0.0) | H20: 0 | I20: (0.0) | J20: 27 | K20: (6.0)
A21: N | B21: 3 | C21: (42.9) | D21: 4 | E21: (57.1) | F21: 0 | G21: (0.0) | H21: 0 | I21: (0.0) | J21: 7 | K21: (1.6)
A22: O | B22: 0 | C22: (0.0) | D22: 1 | E22: (100.0) | F22: 0 | G22: (0.0) | H22: 0 | I22: (0.0) | J22: 1 | K22: (0.2)
A23: P | B23: 13 | C23: (39.4) | D23: 20 | E23: (60.6) | F23: 0 | G23: (0.0) | H23: 0 | I23: (0.0) | J23: 33 | K23: (7.3)
A24: Q | B24: 10 | C24: (90.9) | D24: 1 | E24: (9.1) | F24: 0 | G24: (0.0) | H24: 0 | I24: (0.0) | J24: 11 | K24: (2.4)
A25: R | B25: 25 | C25: (56.8) | D25: 19 | E25: (43.2) | F25: 0 | G25: (0.0) | H25: 0 | I25: (0.0) | J25: 44 | K25: (9.8)
A26: S | B26: 1 | C26: (20.0) | D26: 4 | E26: (80.0) | F26: 0 | G26: (0.0) | H26: 0 | I26: (0.0) | J26: 5 | K26: (1.1)
A27: T | B27: 8 | C27: (88.9) | D27: 1 | E27: (11.1) | F27: 0 | G27: (0.0) | H27: 0 | I27: (0.0) | J27: 9 | K27: (2.0)
A28: U | B28: 1 | C28: (33.3) | D28: 2 | E28: (66.7) | F28: 0 | G28: (0.0) | H28: 0 | I28: (0.0) | J28: 3 | K28: (0.7)
A29: V | B29: 29 | C29: (93.5) | D29: 2 | E29: (6.5) | F29: 0 | G29: (0.0) | H29: 0 | I29: (0.0) | J29: 31 | K29: (6.9)
A30: W | B30: 4 | C30: (50.0) | D30: 4 | E30: (50.0) | F30: 0 | G30: (0.0) | H30: 0 | I30: (0.0) | J30: 8 | K30: (1.8)
A31: X | B31: 4 | C31: (57.1) | D31: 2 | E31: (28.6) | F31: 1 | G31: (14.3) | H31: 0 | I31: (0.0) | J31: 7 | K31: (1.6)
A32: Y | B32: 39 | C32: (72.2) | D32: 15 | E32: (27.8) | F32: 0 | G32: (0.0) | H32: 0 | I32: (0.0) | J32: 54 | K32: (12.0)
A33: ZA | B33: 5 | C33: (55.6) | D33: 4 | E33: (44.4) | F33: 0 | G33: (0.0) | H33: 0 | I33: (0.0) | J33: 9 | K33: (2.0)
A34: ZB | B34: 1 | C34: (50.0) | D34: 1 | E34: (50.0) | F34: 0 | G34: (0.0) | H34: 0 | I34: (0.0) | J34: 2 | K34: (0.4)
A35: ZC | B35: 12 | C35: (70.6) | D35: 4 | E35: (23.5) | F35: 1 | G35: (5.9) | H35: 0 | I35: (0.0) | J35: 17 | K35: (3.8)
A36: ZD | B36: 6 | C36: (85.7) | D36: 1 | E36: (14.3) | F36: 0 | G36: (0.0) | H36: 0 | I36: (0.0) | J36: 7 | K36: (1.6)
A37: ZE | B37: 7 | C37: (77.8) | D37: 2 | E37: (22.2) | F37: 0 | G37: (0.0) | H37: 0 | I37: (0.0) | J37: 9 | K37: (2.0)
A38: Total | B38: 285 | C38: (63.5) | D38: 159 | E38: (35.4) | F38: 4 | G38: (0.9) | H38: 1 | I38: (0.2) | J38: 449 | K38: (100.0)
A39: 2013
A40: A | B40: 16 | C40: (64.0) | D40: 9 | E40: (36.0) | F40: 0 | G40: (0.0) | H40: 0 | I40: (0.0) | J40: 25 | K40: (5.0)
A41: B | B41: 5 | C41: (83.3) | D41: 1 | E41: (16.7) | F41: 0 | G41: (0.0) | H41: 0 | I41: (0.0) | J41: 6 | K41: (1.2)
A42: C | B42: 1 | C42: (50.0) | D42: 1 | E42: (50.0) | F42: 0 | G42: (0.0) | H42: 0 | I42: (0.0) | J42: 2 | K42: (0.4)
A43: D | B43: 9 | C43: (69.2) | D43: 4 | E43: (30.8) | F43: 0 | G43: (0.0) | H43: 0 | I43: (0.0) | J43: 13 | K43: (2.6)
A44: E1 | B44: 13 | C44: (54.2) | D44: 11 | E44: (45.8) | F44: 0 | G44: (0.0) | H44: 0 | I44: (0.0) | J44: 24 | K44: (4.8)
A45: E2 | B45: 11 | C45: (50.0) | D45: 11 | E45: (50.0) | F45: 0 | G45: (0.0) | H45: 0 | I45: (0.0) | J45: 22 | K45: (4.4)
A46: F | B46: 13 | C46: (50.0) | D46: 12 | E46: (46.2) | F46: 1 | G46: (3.8) | H46: 0 | I46: (0.0) | J46: 26 | K46: (5.2)
A47: H | B47: 7 | C47: (50.0) | D47: 7 | E47: (50.0) | F47: 0 | G47: (0.0) | H47: 0 | I47: (0.0) | J47: 14 | K47: (2.8)
A48: I | B48: 2 | C48: (66.7) | D48: 1 | E48: (33.3) | F48: 0 | G48: (0.0) | H48: 0 | I48: (0.0) | J48: 3 | K48: (0.6)
A49: K1K3 | B49: 14 | C49: (73.7) | D49: 5 | E49: (26.3) | F49: 0 | G49: (0.0) | H49: 0 | I49: (0.0) | J49: 19 | K49: (3.8)
A50: K2 | B50: 3 | C50: (50.0) | D50: 2 | E50: (33.3) | F50: 0 | G50: (0.0) | H50: 1 | I50: (16.7) | J50: 6 | K50: (1.2)
A51: L | B51: 9 | C51: (50.0) | D51: 9 | E51: (50.0) | F51: 0 | G51: (0.0) | H51: 0 | I51: (0.0) | J51: 18 | K51: (3.6)
A52: M | B52: 19 | C52: (65.5) | D52: 10 | E52: (34.5) | F52: 0 | G52: (0.0) | H52: 0 | I52: (0.0) | J52: 29 | K52: (5.8)
A53: N | B53: 8 | C53: (72.7) | D53: 3 | E53: (27.3) | F53: 0 | G53: (0.0) | H53: 0 | I53: (0.0) | J53: 11 | K53: (2.2)
A54: O | B54: 1 | C54: (100.0) | D54: 0 | E54: (0.0) | F54: 0 | G54: (0.0) | H54: 0 | I54: (0.0) | J54: 1 | K54: (0.2)
A55: P | B55: 9 | C55: (34.6) | D55: 15 | E55: (57.7) | F55: 2 | G55: (7.7) | H55: 0 | I55: (0.0) | J55: 26 | K55: (5.2)
A56: Q | B56: 8 | C56: (50.0) | D56: 8 | E56: (50.0) | F56: 0 | G56: (0.0) | H56: 0 | I56: (0.0) | J56: 16 | K56: (3.2)
A57: R | B57: 26 | C57: (66.7) | D57: 13 | E57: (33.3) | F57: 0 | G57: (0.0) | H57: 0 | I57: (0.0) | J57: 39 | K57: (7.8)
A58: S | B58: 8 | C58: (57.1) | D58: 6 | E58: (42.9) | F58: 0 | G58: (0.0) | H58: 0 | I58: (0.0) | J58: 14 | K58: (2.8)
A59: T | B59: 13 | C59: (76.5) | D59: 4 | E59: (23.5) | F59: 0 | G59: (0.0) | H59: 0 | I59: (0.0) | J59: 17 | K59: (3.4)
A60: U | B60: 2 | C60: (66.7) | D60: 1 | E60: (33.3) | F60: 0 | G60: (0.0) | H60: 0 | I60: (0.0) | J60: 3 | K60: (0.6)
A61: V | B61: 10 | C61: (47.6) | D61: 11 | E61: (52.4) | F61: 0 | G61: (0.0) | H61: 0 | I61: (0.0) | J61: 21 | K61: (4.2)
A62: W | B62: 6 | C62: (66.7) | D62: 3 | E62: (33.3) | F62: 0 | G62: (0.0) | H62: 0 | I62: (0.0) | J62: 9 | K62: (1.8)
A63: X | B63: 7 | C63: (41.2) | D63: 10 | E63: (58.8) | F63: 0 | G63: (0.0) | H63: 0 | I63: (0.0) | J63: 17 | K63: (3.4)
A64: Y | B64: 20 | C64: (46.5) | D64: 23 | E64: (53.5) | F64: 0 | G64: (0.0) | H64: 0 | I64: (0.0) | J64: 43 | K64: (8.6)
A65: Z | B65: 5 | C65: (100.0) | D65: 0 | E65: (0.0) | F65: 0 | G65: (0.0) | H65: 0 | I65: (0.0) | J65: 5 | K65: (1.0)
A66: ZA | B66: 9 | C66: (42.9) | D66: 12 | E66: (57.1) | F66: 0 | G66: (0.0) | H66: 0 | I66: (0.0) | J66: 21 | K66: (4.2)
A67: ZB | B67: 2 | C67: (28.6) | D67: 5 | E67: (71.4) | F67: 0 | G67: (0.0) | H67: 0 | I67: (0.0) | J67: 7 | K67: (1.4)
A68: ZC | B68: 14 | C68: (66.7) | D68: 7 | E68: (33.3) | F68: 0 | G68: (0.0) | H68: 0 | I68: (0.0) | J68: 21 | K68: (4.2)
A69: ZD | B69: 4 | C69: (66.7) | D69: 2 | E69: (33.3) | F69: 0 | G69: (0.0) | H69: 0 | I69: (0.0) | J69: 6 | K69: (1.2)
A70: ZE | B70: 8 | C70: (53.3) | D70: 6 | E70: (40.0) | F70: 1 | G70: (6.7) | H70: 0 | I70: (0.0) | J70: 15 | K70: (3.0)
A71: Total | B71: 282 | C71: (56.5) | D71: 212 | E71: (42.5) | F71: 4 | G71: (0.8) | H71: 1 | I71: (0.2) | J71: 499 | K71: (100.0)
A72: 2014
A73: A | B73: 8 | C73: (53.3) | D73: 7 | E73: (46.7) | F73: 0 | G73: (0.0) | H73: 0 | I73: (0.0) | J73: 15 | K73: (3.1)
A74: B | B74: 15 | C74: (75.0) | D74: 5 | E74: (25.0) | F74: 0 | G74: (0.0) | H74: 0 | I74: (0.0) | J74: 20 | K74: (4.1)
A75: C | B75: 1 | C75: (100.0) | D75: 0 | E75: (0.0) | F75: 0 | G75: (0.0) | H75: 0 | I75: (0.0) | J75: 1 | K75: (0.2)
A76: D | B76: 10 | C76: (58.8) | D76: 7 | E76: (41.2) | F76: 0 | G76: (0.0) | H76: 0 | I76: (0.0) | J76: 17 | K76: (3.5)
A77: E1 | B77: 15 | C77: (68.2) | D77: 6 | E77: (27.3) | F77: 1 | G77: (4.5) | H77: 0 | I77: (0.0) | J77: 22 | K77: (4.6)
A78: E2 | B78: 13 | C78: (68.4) | D78: 6 | E78: (31.6) | F78: 0 | G78: (0.0) | H78: 0 | I78: (0.0) | J78: 19 | K78: (3.9)
A79: F | B79: 15 | C79: (55.6) | D79: 12 | E79: (44.4) | F79: 0 | G79: (0.0) | H79: 0 | I79: (0.0) | J79: 27 | K79: (5.6)
A80: H | B80: 12 | C80: (66.7) | D80: 6 | E80: (33.3) | F80: 0 | G80: (0.0) | H80: 0 | I80: (0.0) | J80: 18 | K80: (3.7)
A81: I | B81: 5 | C81: (71.4) | D81: 2 | E81: (28.6) | F81: 0 | G81: (0.0) | H81: 0 | I81: (0.0) | J81: 7 | K81: (1.5)
A82: K1K3 | B82: 12 | C82: (44.4) | D82: 15 | E82: (55.6) | F82: 0 | G82: (0.0) | H82: 0 | I82: (0.0) | J82: 27 | K82: (5.6)
A83: K2 | B83: 7 | C83: (63.6) | D83: 4 | E83: (36.4) | F83: 0 | G83: (0.0) | H83: 0 | I83: (0.0) | J83: 11 | K83: (2.3)
A84: L | B84: 7 | C84: (46.7) | D84: 8 | E84: (53.3) | F84: 0 | G84: (0.0) | H84: 0 | I84: (0.0) | J84: 15 | K84: (3.1)
A85: M | B85: 6 | C85: (37.5) | D85: 10 | E85: (62.5) | F85: 0 | G85: (0.0) | H85: 0 | I85: (0.0) | J85: 16 | K85: (3.3)
A86: N | B86: 11 | C86: (64.7) | D86: 6 | E86: (35.3) | F86: 0 | G86: (0.0) | H86: 0 | I86: (0.0) | J86: 17 | K86: (3.5)
A87: O | B87: 3 | C87: (60.0) | D87: 2 | E87: (40.0) | F87: 0 | G87: (0.0) | H87: 0 | I87: (0.0) | J87: 5 | K87: (1.0)
A88: P | B88: 7 | C88: (43.8) | D88: 6 | E88: (37.5) | F88: 3 | G88: (18.8) | H88: 0 | I88: (0.0) | J88: 16 | K88: (3.3)
A89: Q | B89: 7 | C89: (87.5) | D89: 1 | E89: (12.5) | F89: 0 | G89: (0.0) | H89: 0 | I89: (0.0) | J89: 8 | K89: (1.7)
A90: R | B90: 20 | C90: (54.1) | D90: 17 | E90: (45.9) | F90: 0 | G90: (0.0) | H90: 0 | I90: (0.0) | J90: 37 | K90: (7.7)
A91: S | B91: 6 | C91: (75.0) | D91: 2 | E91: (25.0) | F91: 0 | G91: (0.0) | H91: 0 | I91: (0.0) | J91: 8 | K91: (1.7)
A92: T | B92: 14 | C92: (73.7) | D92: 5 | E92: (26.3) | F92: 0 | G92: (0.0) | H92: 0 | I92: (0.0) | J92: 19 | K92: (3.9)
A93: U | B93: 2 | C93: (50.0) | D93: 2 | E93: (50.0) | F93: 0 | G93: (0.0) | H93: 0 | I93: (0.0) | J93: 4 | K93: (0.8)
A94: V | B94: 15 | C94: (75.0) | D94: 5 | E94: (25.0) | F94: 0 | G94: (0.0) | H94: 0 | I94: (0.0) | J94: 20 | K94: (4.1)
A95: W | B95: 18 | C95: (81.8) | D95: 4 | E95: (18.2) | F95: 0 | G95: (0.0) | H95: 0 | I95: (0.0) | J95: 22 | K95: (4.6)
A96: X | B96: 2 | C96: (40.0) | D96: 3 | E96: (60.0) | F96: 0 | G96: (0.0) | H96: 0 | I96: (0.0) | J96: 5 | K96: (1.0)
A97: Y | B97: 10 | C97: (34.5) | D97: 19 | E97: (65.5) | F97: 0 | G97: (0.0) | H97: 0 | I97: (0.0) | J97: 29 | K97: (6.0)
A98: Z | B98: 7 | C98: (77.8) | D98: 2 | E98: (22.2) | F98: 0 | G98: (0.0) | H98: 0 | I98: (0.0) | J98: 9 | K98: (1.9)
A99: ZA | B99: 14 | C99: (51.9) | D99: 11 | E99: (40.7) | F99: 1 | G99: (3.7) | H99: 1 | I99: (3.7) | J99: 27 | K99: (5.6)
A100: ZB | B100: 4 | C100: (50.0) | D100: 4 | E100: (50.0) | F100: 0 | G100: (0.0) | H100: 0 | I100: (0.0) | J100: 8 | K100: (1.7)
A101: ZC | B101: 8 | C101: (72.7) | D101: 3 | E101: (27.3) | F101: 0 | G101: (0.0) | H101: 0 | I101: (0.0) | J101: 11 | K101: (2.3)
A102: ZD | B102: 3 | C102: (60.0) | D102: 2 | E102: (40.0) | F102: 0 | G102: (0.0) | H102: 0 | I102: (0.0) | J102: 5 | K102: (1.0)
A103: ZE | B103: 8 | C103: (50.0) | D103: 7 | E103: (43.8) | F103: 1 | G103: (6.3) | H103: 0 | I103: (0.0) | J103: 16 | K103: (3.3)
A104: ZF | B104: 0 | C104: (0.0) | D104: 1 | E104: (100.0) | F104: 0 | G104: (0.0) | H104: 0 | I104: (0.0) | J104: 1 | K104: (0.2)
A105: Total | B105: 285 | C105: (59.1) | D105: 190 | E105: (39.4) | F105: 6 | G105: (1.2) | H105: 1 | I105: (0.2) | J105: 482 | K105: (100.0)
A106: Grand
A107: Total | B107: 852 | C107: (59.6) | D107: 561 | E107: (39.2) | F107: 14 | G107: (1.0) | H107: 3 | I107: (0.2) | J107: 1430 | K107: (100.0)

Sheet 6
A1: TABLE 6 ADMISSIONS BY MONTH AND AGE, 2012 - 2014
B3: AGE GROUP (YEARS)
A4: Year / Month | B4: <1 | D4: 1-4 | F4: 5-10 | H4: 11-15 | J4: Total
B5: n | C5: (%) | D5: n | E5: (%) | F5: n | G5: (%) | H5: n | I5: (%) | J5: n | K5: (%)
A6: 2012
A7: 1 | B7: 884 | C7: (52.1) | D7: 413 | E7: (24.3) | F7: 190 | G7: (11.2) | H7: 211 | I7: (12.4) | J7: 1698 | K7: (8.5)
A8: 2 | B8: 832 | C8: (51.2) | D8: 416 | E8: (25.6) | F8: 193 | G8: (11.9) | H8: 185 | I8: (11.4) | J8: 1626 | K8: (8.1)
A9: 3 | B9: 806 | C9: (46.6) | D9: 474 | E9: (27.4) | F9: 239 | G9: (13.8) | H9: 211 | I9: (12.2) | J9: 1730 | K9: (8.7)
A10: 4 | B10: 793 | C10: (52.5) | D10: 375 | E10: (24.8) | F10: 183 | G10: (12.1) | H10: 159 | I10: (10.5) | J10: 1510 | K10: (7.6)
A11: 5 | B11: 802 | C11: (46.9) | D11: 446 | E11: (26.1) | F11: 264 | G11: (15.4) | H11: 198 | I11: (11.6) | J11: 1710 | K11: (8.6)
A12: 6 | B12: 693 | C12: (44.1) | D12: 445 | E12: (28.3) | F12: 253 | G12: (16.1) | H12: 179 | I12: (11.4) | J12: 1570 | K12: (7.9)
A13: 7 | B13: 714 | C13: (41.1) | D13: 479 | E13: (27.5) | F13: 293 | G13: (16.8) | H13: 253 | I13: (14.5) | J13: 1739 | K13: (8.7)
A14: 8 | B14: 714 | C14: (46.4) | D14: 395 | E14: (25.7) | F14: 202 | G14: (13.1) | H14: 228 | I14: (14.8) | J14: 1539 | K14: (7.7)
A15: 9 | B15: 676 | C15: (43.0) | D15: 441 | E15: (28.1) | F15: 244 | G15: (15.5) | H15: 211 | I15: (13.4) | J15: 1572 | K15: (7.9)
A16: 10 | B16: 836 | C16: (48.3) | D16: 447 | E16: (25.8) | F16: 241 | G16: (13.9) | H16: 206 | I16: (11.9) | J16: 1730 | K16: (8.7)
A17: 11 | B17: 957 | C17: (52.1) | D17: 467 | E17: (25.4) | F17: 219 | G17: (11.9) | H17: 192 | I17: (10.5) | J17: 1835 | K17: (9.2)
A18: 12 | B18: 914 | C18: (53.7) | D18: 413 | E18: (24.3) | F18: 212 | G18: (12.5) | H18: 163 | I18: (9.6) | J18: 1702 | K18: (8.5)
A19: Total | B19: 9621 | C19: (48.2) | D19: 5211 | E19: (26.1) | F19: 2733 | G19: (13.7) | H19: 2396 | I19: (12.0) | J19: 19961 | K19: (100.0)
A20: 2013
A21: 1 | B21: 821 | C21: (47.6) | D21: 479 | E21: (27.8) | F21: 233 | G21: (13.5) | H21: 190 | I21: (11.0) | J21: 1723 | K21: (8.6)
A22: 2 | B22: 739 | C22: (48.2) | D22: 421 | E22: (27.4) | F22: 206 | G22: (13.4) | H22: 168 | I22: (11.0) | J22: 1534 | K22: (7.7)
A23: 3 | B23: 809 | C23: (47.8) | D23: 464 | E23: (27.4) | F23: 215 | G23: (12.7) | H23: 205 | I23: (12.1) | J23: 1693 | K23: (8.5)
A24: 4 | B24: 757 | C24: (45.4) | D24: 467 | E24: (28.0) | F24: 237 | G24: (14.2) | H24: 206 | I24: (12.4) | J24: 1667 | K24: (8.4)
A25: 5 | B25: 740 | C25: (43.5) | D25: 480 | E25: (28.2) | F25: 247 | G25: (14.5) | H25: 236 | I25: (13.9) | J25: 1703 | K25: (8.5)
A26: 6 | B26: 640 | C26: (41.2) | D26: 457 | E26: (29.4) | F26: 248 | G26: (15.9) | H26: 210 | I26: (13.5) | J26: 1555 | K26: (7.8)
A27: 7 | B27: 696 | C27: (43.8) | D27: 461 | E27: (29.0) | F27: 239 | G27: (15.0) | H27: 194 | I27: (12.2) | J27: 1590 | K27: (8.0)
A28: 8 | B28: 645 | C28: (44.1) | D28: 423 | E28: (28.9) | F28: 223 | G28: (15.3) | H28: 171 | I28: (11.7) | J28: 1462 | K28: (7.3)
A29: 9 | B29: 692 | C29: (43.3) | D29: 455 | E29: (28.5) | F29: 242 | G29: (15.1) | H29: 210 | I29: (13.1) | J29: 1599 | K29: (8.0)
A30: 10 | B30: 754 | C30: (43.2) | D30: 516 | E30: (29.6) | F30: 225 | G30: (12.9) | H30: 251 | I30: (14.4) | J30: 1746 | K30: (8.8)
A31: 11 | B31: 837 | C31: (47.1) | D31: 471 | E31: (26.5) | F31: 244 | G31: (13.7) | H31: 224 | I31: (12.6) | J31: 1776 | K31: (8.9)
A32: 12 | B32: 1086 | C32: (58.0) | D32: 434 | E32: (23.2) | F32: 193 | G32: (10.3) | H32: 159 | I32: (8.5) | J32: 1872 | K32: (9.4)
A33: Total | B33: 9216 | C33: (46.3) | D33: 5528 | E33: (27.8) | F33: 2752 | G33: (13.8) | H33: 2424 | I33: (12.2) | J33: 19920 | K33: (100.0)
A34: 2014
A35: 1 | B35: 926 | C35: (51.6) | D35: 441 | E35: (24.6) | F35: 216 | G35: (12.0) | H35: 211 | I35: (11.8) | J35: 1794 | K35: (9.1)
A36: 2 | B36: 751 | C36: (45.3) | D36: 480 | E36: (29.0) | F36: 221 | G36: (13.3) | H36: 206 | I36: (12.4) | J36: 1658 | K36: (8.4)
A37: 3 | B37: 774 | C37: (46.0) | D37: 462 | E37: (27.5) | F37: 246 | G37: (14.6) | H37: 199 | I37: (11.8) | J37: 1681 | K37: (8.5)
A38: 4 | B38: 717 | C38: (44.3) | D38: 461 | E38: (28.5) | F38: 240 | G38: (14.8) | H38: 201 | I38: (12.4) | J38: 1619 | K38: (8.2)
A39: 5 | B39: 720 | C39: (45.7) | D39: 409 | E39: (25.9) | F39: 242 | G39: (15.3) | H39: 206 | I39: (13.1) | J39: 1577 | K39: (8.0)
A40: 6 | B40: 681 | C40: (42.6) | D40: 411 | E40: (25.7) | F40: 268 | G40: (16.8) | H40: 240 | I40: (15.0) | J40: 1600 | K40: (8.1)
A41: 7 | B41: 717 | C41: (43.0) | D41: 456 | E41: (27.3) | F41: 265 | G41: (15.9) | H41: 230 | I41: (13.8) | J41: 1668 | K41: (8.4)
A42: 8 | B42: 600 | C42: (42.5) | D42: 366 | E42: (25.9) | F42: 247 | G42: (17.5) | H42: 199 | I42: (14.1) | J42: 1412 | K42: (7.1)
A43: 9 | B43: 651 | C43: (42.6) | D43: 430 | E43: (28.1) | F43: 257 | G43: (16.8) | H43: 190 | I43: (12.4) | J43: 1528 | K43: (7.7)
A44: 10 | B44: 754 | C44: (44.5) | D44: 465 | E44: (27.5) | F44: 244 | G44: (14.4) | H44: 228 | I44: (13.5) | J44: 1691 | K44: (8.6)
A45: 11 | B45: 804 | C45: (47.6) | D45: 453 | E45: (26.8) | F45: 252 | G45: (14.9) | H45: 180 | I45: (10.7) | J45: 1689 | K45: (8.6)
A46: 12 | B46: 1017 | C46: (55.3) | D46: 449 | E46: (24.4) | F46: 205 | G46: (11.1) | H46: 168 | I46: (9.1) | J46: 1839 | K46: (9.3)
A47: Total | B47: 9112 | C47: (46.1) | D47: 5283 | E47: (26.7) | F47: 2903 | G47: (14.7) | H47: 2458 | I47: (12.4) | J47: 19756 | K47: (100.0)
A48: Grand
A49: Total | B49: 27949 | C49: (46.9) | D49: 16022 | E49: (26.9) | F49: 8388 | G49: (14.1) | H49: 7278 | I49: (12.2) | J49: 59637 | K49: (100.0)
A51: FIGURE 6 ADMISSIONS BY MONTH AND AGE, 2012 - 2014

Sheet 7
A1: TABLE 7 ADMISSIONS BY MONTH AND PRIMARY DIAGNOSTIC GROUP, 2012 - 2014
B3: DIAGNOSTIC GROUP
A4: Year / Month | B4: Blood / lymphatic | D4: Body wall and cavities | F4: Cardiovascular | H4: Endocrine / metabolic | J4: Gastro - intestinal | L4: Infection | N4: Multisystem | P4: Musculo - skeletal | R4: Neurological | T4: Oncology | V4: Other | X4: Respiratory | Z4: Trauma | AB4: Unknown | AD4: Total
B5: n | C5: (%) | D5: n | E5: (%) | F5: n | G5: (%) | H5: n | I5: (%) | J5: n | K5: (%) | L5: n | M5: (%) | N5: n | O5: (%) | P5: n | Q5: (%) | R5: n | S5: (%) | T5: n | U5: (%) | V5: n | W5: (%) | X5: n | Y5: (%) | Z5: n | AA5: (%) | AB5: n | AC5: (%) | AD5: n | AE5: (%)
A6: 2012
A7: 1 | B7: 11 | C7: (0.6) | D7: 36 | E7: (2.1) | F7: 472 | G7: (27.8) | H7: 43 | I7: (2.5) | J7: 91 | K7: (5.4) | L7: 103 | M7: (6.1) | N7: 3 | O7: (0.2) | P7: 60 | Q7: (3.5) | R7: 154 | S7: (9.1) | T7: 55 | U7: (3.2) | V7: 96 | W7: (5.7) | X7: 533 | Y7: (31.4) | Z7: 39 | AA7: (2.3) | AB7: 2 | AC7: (0.1) | AD7: 1698 | AE7: (8.5)
A8: 2 | B8: 14 | C8: (0.9) | D8: 29 | E8: (1.8) | F8: 482 | G8: (29.6) | H8: 47 | I8: (2.9) | J8: 97 | K8: (6.0) | L8: 78 | M8: (4.8) | N8: 3 | O8: (0.2) | P8: 60 | Q8: (3.7) | R8: 163 | S8: (10.0) | T8: 46 | U8: (2.8) | V8: 80 | W8: (4.9) | X8: 492 | Y8: (30.3) | Z8: 32 | AA8: (2.0) | AB8: 3 | AC8: (0.2) | AD8: 1626 | AE8: (8.1)
A9: 3 | B9: 15 | C9: (0.9) | D9: 17 | E9: (1.0) | F9: 518 | G9: (29.9) | H9: 44 | I9: (2.5) | J9: 119 | K9: (6.9) | L9: 78 | M9: (4.5) | N9: 8 | O9: (0.5) | P9: 63 | Q9: (3.6) | R9: 180 | S9: (10.4) | T9: 51 | U9: (2.9) | V9: 92 | W9: (5.3) | X9: 505 | Y9: (29.2) | Z9: 37 | AA9: (2.1) | AB9: 3 | AC9: (0.2) | AD9: 1730 | AE9: (8.7)
A10: 4 | B10: 14 | C10: (0.9) | D10: 29 | E10: (1.9) | F10: 463 | G10: (30.7) | H10: 40 | I10: (2.6) | J10: 116 | K10: (7.7) | L10: 91 | M10: (6.0) | N10: 3 | O10: (0.2) | P10: 46 | Q10: (3.0) | R10: 162 | S10: (10.7) | T10: 47 | U10: (3.1) | V10: 78 | W10: (5.2) | X10: 385 | Y10: (25.5) | Z10: 31 | AA10: (2.1) | AB10: 5 | AC10: (0.3) | AD10: 1510 | AE10: (7.6)
A11: 5 | B11: 18 | C11: (1.1) | D11: 30 | E11: (1.8) | F11: 516 | G11: (30.2) | H11: 32 | I11: (1.9) | J11: 113 | K11: (6.6) | L11: 77 | M11: (4.5) | N11: 8 | O11: (0.5) | P11: 61 | Q11: (3.6) | R11: 209 | S11: (12.2) | T11: 64 | U11: (3.7) | V11: 90 | W11: (5.3) | X11: 428 | Y11: (25.0) | Z11: 59 | AA11: (3.5) | AB11: 5 | AC11: (0.3) | AD11: 1710 | AE11: (8.6)
A12: 6 | B12: 14 | C12: (0.9) | D12: 30 | E12: (1.9) | F12: 472 | G12: (30.1) | H12: 30 | I12: (1.9) | J12: 118 | K12: (7.5) | L12: 69 | M12: (4.4) | N12: 6 | O12: (0.4) | P12: 64 | Q12: (4.1) | R12: 196 | S12: (12.5) | T12: 70 | U12: (4.5) | V12: 83 | W12: (5.3) | X12: 371 | Y12: (23.6) | Z12: 39 | AA12: (2.5) | AB12: 8 | AC12: (0.5) | AD12: 1570 | AE12: (7.9)
A13: 7 | B13: 21 | C13: (1.2) | D13: 34 | E13: (2.0) | F13: 509 | G13: (29.3) | H13: 38 | I13: (2.2) | J13: 124 | K13: (7.1) | L13: 61 | M13: (3.5) | N13: 4 | O13: (0.2) | P13: 82 | Q13: (4.7) | R13: 194 | S13: (11.2) | T13: 51 | U13: (2.9) | V13: 97 | W13: (5.6) | X13: 468 | Y13: (26.9) | Z13: 51 | AA13: (2.9) | AB13: 5 | AC13: (0.3) | AD13: 1739 | AE13: (8.7)
A14: 8 | B14: 14 | C14: (0.9) | D14: 21 | E14: (1.4) | F14: 502 | G14: (32.6) | H14: 48 | I14: (3.1) | J14: 110 | K14: (7.1) | L14: 74 | M14: (4.8) | N14: 9 | O14: (0.6) | P14: 84 | Q14: (5.5) | R14: 150 | S14: (9.7) | T14: 70 | U14: (4.5) | V14: 91 | W14: (5.9) | X14: 304 | Y14: (19.8) | Z14: 55 | AA14: (3.6) | AB14: 7 | AC14: (0.5) | AD14: 1539 | AE14: (7.7)
A15: 9 | B15: 20 | C15: (1.3) | D15: 32 | E15: (2.0) | F15: 472 | G15: (30.0) | H15: 33 | I15: (2.1) | J15: 119 | K15: (7.6) | L15: 61 | M15: (3.9) | N15: 12 | O15: (0.8) | P15: 80 | Q15: (5.1) | R15: 149 | S15: (9.5) | T15: 50 | U15: (3.2) | V15: 93 | W15: (5.9) | X15: 401 | Y15: (25.5) | Z15: 44 | AA15: (2.8) | AB15: 6 | AC15: (0.4) | AD15: 1572 | AE15: (7.9)
A16: 10 | B16: 17 | C16: (1.0) | D16: 37 | E16: (2.1) | F16: 548 | G16: (31.7) | H16: 45 | I16: (2.6) | J16: 103 | K16: (6.0) | L16: 69 | M16: (4.0) | N16: 4 | O16: (0.2) | P16: 95 | Q16: (5.5) | R16: 162 | S16: (9.4) | T16: 73 | U16: (4.2) | V16: 82 | W16: (4.7) | X16: 445 | Y16: (25.7) | Z16: 47 | AA16: (2.7) | AB16: 3 | AC16: (0.2) | AD16: 1730 | AE16: (8.7)
A17: 11 | B17: 18 | C17: (1.0) | D17: 29 | E17: (1.6) | F17: 476 | G17: (25.9) | H17: 44 | I17: (2.4) | J17: 95 | K17: (5.2) | L17: 87 | M17: (4.7) | N17: 2 | O17: (0.1) | P17: 77 | Q17: (4.2) | R17: 180 | S17: (9.8) | T17: 73 | U17: (4.0) | V17: 100 | W17: (5.4) | X17: 622 | Y17: (33.9) | Z17: 27 | AA17: (1.5) | AB17: 6 | AC17: (0.3) | AD17: 1836 | AE17: (9.2)
A18: 12 | B18: 12 | C18: (0.7) | D18: 24 | E18: (1.4) | F18: 395 | G18: (23.2) | H18: 48 | I18: (2.8) | J18: 78 | K18: (4.6) | L18: 115 | M18: (6.8) | N18: 2 | O18: (0.1) | P18: 44 | Q18: (2.6) | R18: 159 | S18: (9.3) | T18: 45 | U18: (2.6) | V18: 55 | W18: (3.2) | X18: 692 | Y18: (40.7) | Z18: 26 | AA18: (1.5) | AB18: 7 | AC18: (0.4) | AD18: 1702 | AE18: (8.5)
A19: Total | B19: 188 | C19: (0.9) | D19: 348 | E19: (1.7) | F19: 5825 | G19: (29.2) | H19: 492 | I19: (2.5) | J19: 1283 | K19: (6.4) | L19: 963 | M19: (4.8) | N19: 64 | O19: (0.3) | P19: 816 | Q19: (4.1) | R19: 2058 | S19: (10.3) | T19: 695 | U19: (3.5) | V19: 1037 | W19: (5.2) | X19: 5646 | Y19: (28.3) | Z19: 487 | AA19: (2.4) | AB19: 60 | AC19: (0.3) | AD19: 19962 | AE19: (100.0)
A20: 2013
A21: 1 | B21: 14 | C21: (0.8) | D21: 24 | E21: (1.4) | F21: 503 | G21: (29.2) | H21: 44 | I21: (2.6) | J21: 78 | K21: (4.5) | L21: 93 | M21: (5.4) | N21: 10 | O21: (0.6) | P21: 85 | Q21: (4.9) | R21: 160 | S21: (9.3) | T21: 76 | U21: (4.4) | V21: 72 | W21: (4.2) | X21: 530 | Y21: (30.8) | Z21: 27 | AA21: (1.6) | AB21: 7 | AC21: (0.4) | AD21: 1723 | AE21: (8.6)
A22: 2 | B22: 3 | C22: (0.2) | D22: 26 | E22: (1.7) | F22: 463 | G22: (30.2) | H22: 40 | I22: (2.6) | J22: 90 | K22: (5.9) | L22: 89 | M22: (5.8) | N22: 5 | O22: (0.3) | P22: 77 | Q22: (5.0) | R22: 176 | S22: (11.5) | T22: 41 | U22: (2.7) | V22: 72 | W22: (4.7) | X22: 424 | Y22: (27.6) | Z22: 23 | AA22: (1.5) | AB22: 5 | AC22: (0.3) | AD22: 1534 | AE22: (7.7)
A23: 3 | B23: 13 | C23: (0.8) | D23: 30 | E23: (1.8) | F23: 505 | G23: (29.8) | H23: 41 | I23: (2.4) | J23: 94 | K23: (5.6) | L23: 100 | M23: (5.9) | N23: 12 | O23: (0.7) | P23: 82 | Q23: (4.8) | R23: 180 | S23: (10.6) | T23: 49 | U23: (2.9) | V23: 76 | W23: (4.5) | X23: 469 | Y23: (27.7) | Z23: 37 | AA23: (2.2) | AB23: 5 | AC23: (0.3) | AD23: 1693 | AE23: (8.5)
A24: 4 | B24: 11 | C24: (0.7) | D24: 36 | E24: (2.2) | F24: 503 | G24: (30.2) | H24: 40 | I24: (2.4) | J24: 90 | K24: (5.4) | L24: 95 | M24: (5.7) | N24: 7 | O24: (0.4) | P24: 74 | Q24: (4.4) | R24: 199 | S24: (11.9) | T24: 70 | U24: (4.2) | V24: 88 | W24: (5.3) | X24: 423 | Y24: (25.4) | Z24: 28 | AA24: (1.7) | AB24: 3 | AC24: (0.2) | AD24: 1667 | AE24: (8.4)
A25: 5 | B25: 10 | C25: (0.6) | D25: 21 | E25: (1.2) | F25: 548 | G25: (32.2) | H25: 51 | I25: (3.0) | J25: 94 | K25: (5.5) | L25: 88 | M25: (5.2) | N25: 11 | O25: (0.6) | P25: 94 | Q25: (5.5) | R25: 180 | S25: (10.6) | T25: 67 | U25: (3.9) | V25: 94 | W25: (5.5) | X25: 395 | Y25: (23.2) | Z25: 43 | AA25: (2.5) | AB25: 7 | AC25: (0.4) | AD25: 1703 | AE25: (8.5)
A26: 6 | B26: 16 | C26: (1.0) | D26: 23 | E26: (1.5) | F26: 481 | G26: (30.9) | H26: 33 | I26: (2.1) | J26: 85 | K26: (5.5) | L26: 64 | M26: (4.1) | N26: 10 | O26: (0.6) | P26: 74 | Q26: (4.8) | R26: 180 | S26: (11.6) | T26: 59 | U26: (3.8) | V26: 96 | W26: (6.2) | X26: 380 | Y26: (24.4) | Z26: 49 | AA26: (3.2) | AB26: 5 | AC26: (0.3) | AD26: 1555 | AE26: (7.8)
A27: 7 | B27: 16 | C27: (1.0) | D27: 31 | E27: (1.9) | F27: 518 | G27: (32.6) | H27: 29 | I27: (1.8) | J27: 100 | K27: (6.3) | L27: 69 | M27: (4.3) | N27: 13 | O27: (0.8) | P27: 82 | Q27: (5.2) | R27: 179 | S27: (11.3) | T27: 44 | U27: (2.8) | V27: 111 | W27: (7.0) | X27: 344 | Y27: (21.6) | Z27: 50 | AA27: (3.1) | AB27: 4 | AC27: (0.3) | AD27: 1590 | AE27: (8.0)
A28: 8 | B28: 13 | C28: (0.9) | D28: 29 | E28: (2.0) | F28: 492 | G28: (33.7) | H28: 34 | I28: (2.3) | J28: 102 | K28: (7.0) | L28: 59 | M28: (4.0) | N28: 5 | O28: (0.3) | P28: 69 | Q28: (4.7) | R28: 165 | S28: (11.3) | T28: 49 | U28: (3.4) | V28: 90 | W28: (6.2) | X28: 295 | Y28: (20.2) | Z28: 57 | AA28: (3.9) | AB28: 3 | AC28: (0.2) | AD28: 1462 | AE28: (7.3)
A29: 9 | B29: 26 | C29: (1.6) | D29: 22 | E29: (1.4) | F29: 547 | G29: (34.2) | H29: 40 | I29: (2.5) | J29: 95 | K29: (5.9) | L29: 61 | M29: (3.8) | N29: 5 | O29: (0.3) | P29: 77 | Q29: (4.8) | R29: 146 | S29: (9.1) | T29: 61 | U29: (3.8) | V29: 102 | W29: (6.4) | X29: 366 | Y29: (22.9) | Z29: 49 | AA29: (3.1) | AB29: 2 | AC29: (0.1) | AD29: 1599 | AE29: (8.0)
A30: 10 | B30: 18 | C30: (1.0) | D30: 29 | E30: (1.7) | F30: 542 | G30: (31.0) | H30: 39 | I30: (2.2) | J30: 108 | K30: (6.2) | L30: 89 | M30: (5.1) | N30: 4 | O30: (0.2) | P30: 92 | Q30: (5.3) | R30: 167 | S30: (9.6) | T30: 67 | U30: (3.8) | V30: 110 | W30: (6.3) | X30: 441 | Y30: (25.3) | Z30: 37 | AA30: (2.1) | AB30: 3 | AC30: (0.2) | AD30: 1746 | AE30: (8.8)
A31: 11 | B31: 13 | C31: (0.7) | D31: 38 | E31: (2.1) | F31: 475 | G31: (26.7) | H31: 38 | I31: (2.1) | J31: 78 | K31: (4.4) | L31: 92 | M31: (5.2) | N31: 6 | O31: (0.3) | P31: 101 | Q31: (5.7) | R31: 171 | S31: (9.6) | T31: 51 | U31: (2.9) | V31: 77 | W31: (4.3) | X31: 606 | Y31: (34.1) | Z31: 25 | AA31: (1.4) | AB31: 5 | AC31: (0.3) | AD31: 1776 | AE31: (8.9)
A32: 12 | B32: 13 | C32: (0.7) | D32: 25 | E32: (1.3) | F32: 425 | G32: (22.7) | H32: 44 | I32: (2.4) | J32: 79 | K32: (4.2) | L32: 88 | M32: (4.7) | N32: 4 | O32: (0.2) | P32: 52 | Q32: (2.8) | R32: 178 | S32: (9.5) | T32: 27 | U32: (1.4) | V32: 80 | W32: (4.3) | X32: 830 | Y32: (44.3) | Z32: 25 | AA32: (1.3) | AB32: 2 | AC32: (0.1) | AD32: 1872 | AE32: (9.4)
A33: Total | B33: 166 | C33: (0.8) | D33: 334 | E33: (1.7) | F33: 6002 | G33: (30.1) | H33: 473 | I33: (2.4) | J33: 1093 | K33: (5.5) | L33: 987 | M33: (5.0) | N33: 92 | O33: (0.5) | P33: 959 | Q33: (4.8) | R33: 2081 | S33: (10.4) | T33: 661 | U33: (3.3) | V33: 1068 | W33: (5.4) | X33: 5503 | Y33: (27.6) | Z33: 450 | AA33: (2.3) | AB33: 51 | AC33: (0.3) | AD33: 19920 | AE33: (100.0)
A34: 2014
A35: 1 | B35: 14 | C35: (0.8) | D35: 33 | E35: (1.8) | F35: 523 | G35: (29.2) | H35: 39 | I35: (2.2) | J35: 89 | K35: (5.0) | L35: 94 | M35: (5.2) | N35: 4 | O35: (0.2) | P35: 77 | Q35: (4.3) | R35: 171 | S35: (9.5) | T35: 59 | U35: (3.3) | V35: 106 | W35: (5.9) | X35: 551 | Y35: (30.7) | Z35: 30 | AA35: (1.7) | AB35: 4 | AC35: (0.2) | AD35: 1794 | AE35: (9.1)
A36: 2 | B36: 16 | C36: (1.0) | D36: 25 | E36: (1.5) | F36: 487 | G36: (29.4) | H36: 41 | I36: (2.5) | J36: 86 | K36: (5.2) | L36: 81 | M36: (4.9) | N36: 2 | O36: (0.1) | P36: 71 | Q36: (4.3) | R36: 161 | S36: (9.7) | T36: 49 | U36: (3.0) | V36: 113 | W36: (6.8) | X36: 492 | Y36: (29.7) | Z36: 29 | AA36: (1.7) | AB36: 5 | AC36: (0.3) | AD36: 1658 | AE36: (8.4)
A37: 3 | B37: 13 | C37: (0.8) | D37: 31 | E37: (1.8) | F37: 521 | G37: (31.0) | H37: 40 | I37: (2.4) | J37: 91 | K37: (5.4) | L37: 98 | M37: (5.8) | N37: 5 | O37: (0.3) | P37: 85 | Q37: (5.1) | R37: 162 | S37: (9.6) | T37: 53 | U37: (3.2) | V37: 107 | W37: (6.4) | X37: 450 | Y37: (26.8) | Z37: 22 | AA37: (1.3) | AB37: 3 | AC37: (0.2) | AD37: 1681 | AE37: (8.5)
A38: 4 | B38: 23 | C38: (1.4) | D38: 24 | E38: (1.5) | F38: 453 | G38: (28.0) | H38: 49 | I38: (3.0) | J38: 99 | K38: (6.1) | L38: 80 | M38: (4.9) | N38: 5 | O38: (0.3) | P38: 62 | Q38: (3.8) | R38: 173 | S38: (10.7) | T38: 57 | U38: (3.5) | V38: 99 | W38: (6.1) | X38: 453 | Y38: (28.0) | Z38: 40 | AA38: (2.5) | AB38: 2 | AC38: (0.1) | AD38: 1619 | AE38: (8.2)
A39: 5 | B39: 13 | C39: (0.8) | D39: 34 | E39: (2.2) | F39: 449 | G39: (28.5) | H39: 30 | I39: (1.9) | J39: 111 | K39: (7.0) | L39: 90 | M39: (5.7) | N39: 6 | O39: (0.4) | P39: 73 | Q39: (4.6) | R39: 195 | S39: (12.4) | T39: 49 | U39: (3.1) | V39: 91 | W39: (5.8) | X39: 405 | Y39: (25.7) | Z39: 29 | AA39: (1.8) | AB39: 2 | AC39: (0.1) | AD39: 1577 | AE39: (8.0)
A40: 6 | B40: 20 | C40: (1.3) | D40: 35 | E40: (2.2) | F40: 503 | G40: (31.4) | H40: 38 | I40: (2.4) | J40: 96 | K40: (6.0) | L40: 73 | M40: (4.6) | N40: 6 | O40: (0.4) | P40: 84 | Q40: (5.3) | R40: 176 | S40: (11.0) | T40: 64 | U40: (4.0) | V40: 100 | W40: (6.3) | X40: 340 | Y40: (21.3) | Z40: 63 | AA40: (3.9) | AB40: 2 | AC40: (0.1) | AD40: 1600 | AE40: (8.1)
A41: 7 | B41: 17 | C41: (1.0) | D41: 32 | E41: (1.9) | F41: 521 | G41: (31.2) | H41: 45 | I41: (2.7) | J41: 114 | K41: (6.8) | L41: 72 | M41: (4.3) | N41: 4 | O41: (0.2) | P41: 71 | Q41: (4.3) | R41: 214 | S41: (12.8) | T41: 70 | U41: (4.2) | V41: 109 | W41: (6.5) | X41: 355 | Y41: (21.3) | Z41: 42 | AA41: (2.5) | AB41: 2 | AC41: (0.1) | AD41: 1668 | AE41: (8.4)
A42: 8 | B42: 20 | C42: (1.4) | D42: 25 | E42: (1.8) | F42: 479 | G42: (33.9) | H42: 36 | I42: (2.5) | J42: 97 | K42: (6.9) | L42: 64 | M42: (4.5) | N42: 7 | O42: (0.5) | P42: 56 | Q42: (4.0) | R42: 172 | S42: (12.2) | T42: 56 | U42: (4.0) | V42: 95 | W42: (6.7) | X42: 251 | Y42: (17.8) | Z42: 49 | AA42: (3.5) | AB42: 5 | AC42: (0.4) | AD42: 1412 | AE42: (7.1)
A43: 9 | B43: 16 | C43: (1.0) | D43: 32 | E43: (2.1) | F43: 487 | G43: (31.9) | H43: 36 | I43: (2.4) | J43: 110 | K43: (7.2) | L43: 61 | M43: (4.0) | N43: 6 | O43: (0.4) | P43: 68 | Q43: (4.4) | R43: 166 | S43: (10.9) | T43: 54 | U43: (3.5) | V43: 99 | W43: (6.5) | X43: 354 | Y43: (23.2) | Z43: 38 | AA43: (2.5) | AB43: 2 | AC43: (0.1) | AD43: 1529 | AE43: (7.7)
A44: 10 | B44: 19 | C44: (1.1) | D44: 36 | E44: (2.1) | F44: 507 | G44: (29.9) | H44: 38 | I44: (2.2) | J44: 122 | K44: (7.2) | L44: 78 | M44: (4.6) | N44: 1 | O44: (0.1) | P44: 76 | Q44: (4.5) | R44: 199 | S44: (11.8) | T44: 52 | U44: (3.1) | V44: 93 | W44: (5.5) | X44: 439 | Y44: (25.9) | Z44: 29 | AA44: (1.7) | AB44: 4 | AC44: (0.2) | AD44: 1693 | AE44: (8.6)
A45: 11 | B45: 13 | C45: (0.8) | D45: 32 | E45: (1.9) | F45: 437 | G45: (25.9) | H45: 43 | I45: (2.5) | J45: 86 | K45: (5.1) | L45: 93 | M45: (5.5) | N45: 2 | O45: (0.1) | P45: 68 | Q45: (4.0) | R45: 153 | S45: (9.1) | T45: 52 | U45: (3.1) | V45: 79 | W45: (4.7) | X45: 608 | Y45: (36.0) | Z45: 20 | AA45: (1.2) | AB45: 4 | AC45: (0.2) | AD45: 1690 | AE45: (8.6)
A46: 12 | B46: 5 | C46: (0.3) | D46: 14 | E46: (0.8) | F46: 378 | G46: (20.6) | H46: 52 | I46: (2.8) | J46: 60 | K46: (3.3) | L46: 112 | M46: (6.1) | N46: 4 | O46: (0.2) | P46: 29 | Q46: (1.6) | R46: 141 | S46: (7.7) | T46: 50 | U46: (2.7) | V46: 62 | W46: (3.4) | X46: 902 | Y46: (49.0) | Z46: 27 | AA46: (1.5) | AB46: 3 | AC46: (0.2) | AD46: 1839 | AE46: (9.3)
A47: Total | B47: 189 | C47: (1.0) | D47: 353 | E47: (1.8) | F47: 5745 | G47: (29.1) | H47: 487 | I47: (2.5) | J47: 1161 | K47: (5.9) | L47: 996 | M47: (5.0) | N47: 52 | O47: (0.3) | P47: 820 | Q47: (4.1) | R47: 2083 | S47: (10.5) | T47: 665 | U47: (3.4) | V47: 1153 | W47: (5.8) | X47: 5600 | Y47: (28.3) | Z47: 418 | AA47: (2.1) | AB47: 38 | AC47: (0.2) | AD47: 19760 | AE47: (100.0)
A48: Grand
A49: Total | B49: 543 | C49: (0.9) | D49: 1035 | E49: (1.7) | F49: 17572 | G49: (29.5) | H49: 1452 | I49: (2.4) | J49: 3537 | K49: (5.9) | L49: 2946 | M49: (4.9) | N49: 208 | O49: (0.3) | P49: 2595 | Q49: (4.4) | R49: 6222 | S49: (10.4) | T49: 2021 | U49: (3.4) | V49: 3258 | W49: (5.5) | X49: 16749 | Y49: (28.1) | Z49: 1355 | AA49: (2.3) | AB49: 149 | AC49: (0.2) | AD49: 59642 | AE49: (100.0)
A51: FIGURE 7 ADMISSIONS BY MONTH AND PRIMARY DIAGNOSTIC GROUP, 2012 - 2014

Sheet 8
A1: TABLE 8 RESPIRATORY ADMISSIONS BY MONTH AND AGE, 2012 - 2014
B3: AGE GROUP (YEARS)
A4: Year / Month | B4: <1 | D4: 1-4 | F4: 5-10 | H4: 11-15 | J4: Total
B5: n | C5: (%) | D5: n | E5: (%) | F5: n | G5: (%) | H5: n | I5: (%) | J5: n | K5: (%)
A6: 2012
A7: 1 | B7: 336 | C7: (63.0) | D7: 116 | E7: (21.8) | F7: 43 | G7: (8.1) | H7: 38 | I7: (7.1) | J7: 533 | K7: (9.4)
A8: 2 | B8: 278 | C8: (56.5) | D8: 131 | E8: (26.6) | F8: 44 | G8: (8.9) | H8: 39 | I8: (7.9) | J8: 492 | K8: (8.7)
A9: 3 | B9: 243 | C9: (48.1) | D9: 151 | E9: (29.9) | F9: 63 | G9: (12.5) | H9: 48 | I9: (9.5) | J9: 505 | K9: (8.9)
A10: 4 | B10: 202 | C10: (52.5) | D10: 113 | E10: (29.4) | F10: 49 | G10: (12.7) | H10: 21 | I10: (5.5) | J10: 385 | K10: (6.8)
A11: 5 | B11: 183 | C11: (42.8) | D11: 150 | E11: (35.0) | F11: 61 | G11: (14.3) | H11: 34 | I11: (7.9) | J11: 428 | K11: (7.6)
A12: 6 | B12: 152 | C12: (41.0) | D12: 140 | E12: (37.7) | F12: 50 | G12: (13.5) | H12: 29 | I12: (7.8) | J12: 371 | K12: (6.6)
A13: 7 | B13: 178 | C13: (38.0) | D13: 165 | E13: (35.3) | F13: 83 | G13: (17.7) | H13: 42 | I13: (9.0) | J13: 468 | K13: (8.3)
A14: 8 | B14: 148 | C14: (48.7) | D14: 92 | E14: (30.3) | F14: 36 | G14: (11.8) | H14: 28 | I14: (9.2) | J14: 304 | K14: (5.4)
A15: 9 | B15: 161 | C15: (40.1) | D15: 145 | E15: (36.2) | F15: 67 | G15: (16.7) | H15: 28 | I15: (7.0) | J15: 401 | K15: (7.1)
A16: 10 | B16: 235 | C16: (52.8) | D16: 140 | E16: (31.5) | F16: 42 | G16: (9.4) | H16: 28 | I16: (6.3) | J16: 445 | K16: (7.9)
A17: 11 | B17: 408 | C17: (65.6) | D17: 146 | E17: (23.5) | F17: 41 | G17: (6.6) | H17: 27 | I17: (4.3) | J17: 622 | K17: (11.0)
A18: 12 | B18: 459 | C18: (66.3) | D18: 147 | E18: (21.2) | F18: 59 | G18: (8.5) | H18: 27 | I18: (3.9) | J18: 692 | K18: (12.3)
A19: Total | B19: 2983 | C19: (52.8) | D19: 1636 | E19: (29.0) | F19: 638 | G19: (11.3) | H19: 389 | I19: (6.9) | J19: 5646 | K19: (100.0)
A20: 2013
A21: 1 | B21: 271 | C21: (51.1) | D21: 165 | E21: (31.1) | F21: 64 | G21: (12.1) | H21: 30 | I21: (5.7) | J21: 530 | K21: (9.6)
A22: 2 | B22: 215 | C22: (50.7) | D22: 116 | E22: (27.4) | F22: 63 | G22: (14.9) | H22: 30 | I22: (7.1) | J22: 424 | K22: (7.7)
A23: 3 | B23: 244 | C23: (52.0) | D23: 135 | E23: (28.8) | F23: 55 | G23: (11.7) | H23: 35 | I23: (7.5) | J23: 469 | K23: (8.5)
A24: 4 | B24: 218 | C24: (51.5) | D24: 133 | E24: (31.4) | F24: 45 | G24: (10.6) | H24: 27 | I24: (6.4) | J24: 423 | K24: (7.7)
A25: 5 | B25: 174 | C25: (44.1) | D25: 133 | E25: (33.7) | F25: 53 | G25: (13.4) | H25: 35 | I25: (8.9) | J25: 395 | K25: (7.2)
A26: 6 | B26: 169 | C26: (44.5) | D26: 120 | E26: (31.6) | F26: 54 | G26: (14.2) | H26: 37 | I26: (9.7) | J26: 380 | K26: (6.9)
A27: 7 | B27: 141 | C27: (41.0) | D27: 128 | E27: (37.2) | F27: 47 | G27: (13.7) | H27: 28 | I27: (8.1) | J27: 344 | K27: (6.3)
A28: 8 | B28: 140 | C28: (47.5) | D28: 88 | E28: (29.8) | F28: 44 | G28: (14.9) | H28: 23 | I28: (7.8) | J28: 295 | K28: (5.4)
A29: 9 | B29: 148 | C29: (40.4) | D29: 122 | E29: (33.3) | F29: 57 | G29: (15.6) | H29: 39 | I29: (10.7) | J29: 366 | K29: (6.7)
A30: 10 | B30: 183 | C30: (41.5) | D30: 161 | E30: (36.5) | F30: 49 | G30: (11.1) | H30: 48 | I30: (10.9) | J30: 441 | K30: (8.0)
A31: 11 | B31: 321 | C31: (53.0) | D31: 188 | E31: (31.0) | F31: 59 | G31: (9.7) | H31: 38 | I31: (6.3) | J31: 606 | K31: (11.0)
A32: 12 | B32: 575 | C32: (69.3) | D32: 169 | E32: (20.4) | F32: 58 | G32: (7.0) | H32: 28 | I32: (3.4) | J32: 830 | K32: (15.1)
A33: Total | B33: 2799 | C33: (50.9) | D33: 1658 | E33: (30.1) | F33: 648 | G33: (11.8) | H33: 398 | I33: (7.2) | J33: 5503 | K33: (100.0)
A34: 2014
A35: 1 | B35: 331 | C35: (60.1) | D35: 140 | E35: (25.4) | F35: 49 | G35: (8.9) | H35: 31 | I35: (5.6) | J35: 551 | K35: (9.8)
A36: 2 | B36: 237 | C36: (48.2) | D36: 152 | E36: (30.9) | F36: 68 | G36: (13.8) | H36: 35 | I36: (7.1) | J36: 492 | K36: (8.8)
A37: 3 | B37: 214 | C37: (47.6) | D37: 142 | E37: (31.6) | F37: 66 | G37: (14.7) | H37: 28 | I37: (6.2) | J37: 450 | K37: (8.0)
A38: 4 | B38: 226 | C38: (49.9) | D38: 149 | E38: (32.9) | F38: 47 | G38: (10.4) | H38: 31 | I38: (6.8) | J38: 453 | K38: (8.1)
A39: 5 | B39: 176 | C39: (43.5) | D39: 127 | E39: (31.4) | F39: 63 | G39: (15.6) | H39: 39 | I39: (9.6) | J39: 405 | K39: (7.2)
A40: 6 | B40: 132 | C40: (38.8) | D40: 111 | E40: (32.6) | F40: 57 | G40: (16.8) | H40: 40 | I40: (11.8) | J40: 340 | K40: (6.1)
A41: 7 | B41: 155 | C41: (43.7) | D41: 118 | E41: (33.2) | F41: 50 | G41: (14.1) | H41: 32 | I41: (9.0) | J41: 355 | K41: (6.3)
A42: 8 | B42: 103 | C42: (41.0) | D42: 85 | E42: (33.9) | F42: 38 | G42: (15.1) | H42: 25 | I42: (10.0) | J42: 251 | K42: (4.5)
A43: 9 | B43: 145 | C43: (41.0) | D43: 112 | E43: (31.6) | F43: 64 | G43: (18.1) | H43: 32 | I43: (9.0) | J43: 353 | K43: (6.3)
A44: 10 | B44: 177 | C44: (40.3) | D44: 141 | E44: (32.1) | F44: 64 | G44: (14.6) | H44: 57 | I44: (13.0) | J44: 439 | K44: (7.8)
A45: 11 | B45: 328 | C45: (53.9) | D45: 168 | E45: (27.6) | F45: 66 | G45: (10.9) | H45: 46 | I45: (7.6) | J45: 608 | K45: (10.9)
A46: 12 | B46: 576 | C46: (63.9) | D46: 220 | E46: (24.4) | F46: 61 | G46: (6.8) | H46: 45 | I46: (5.0) | J46: 902 | K46: (16.1)
A47: Total | B47: 2800 | C47: (50.0) | D47: 1665 | E47: (29.7) | F47: 693 | G47: (12.4) | H47: 441 | I47: (7.9) | J47: 5699 | K47: (100.0)
A48: Grand
A49: Total | B49: 8582 | C49: (51.2) | D49: 4959 | E49: (29.6) | F49: 1979 | G49: (11.8) | H49: 1228 | I49: (7.3) | J49: 16748 | K49: (100.0)
A51: FIGURE 8 RESPIRATORY ADMISSIONS BY MONTH AND AGE, 2012 - 2014

Sheet 9
A1: TABLE 9 ADMISSIONS BY MONTH, BY HEALTH ORGANISATION, 2012 - 2014
B3: MONTH
A4: Year / Organisation | B4: January | D4: February | F4: March | H4: April | J4: May | L4: June | N4: July | P4: August | R4: September | T4: October | V4: November | X4: December | Z4: Total
B5: n | C5: (%) | D5: n | E5: (%) | F5: n | G5: (%) | H5: n | I5: (%) | J5: n | K5: (%) | L5: n | M5: (%) | N5: n | O5: (%) | P5: n | Q5: (%) | R5: n | S5: (%) | T5: n | U5: (%) | V5: n | W5: (%) | X5: n | Y5: (%) | Z5: n | AA5: (%)
A6: 2012
A7: A | B7: 63 | C7: (10.2) | D7: 46 | E7: (7.4) | F7: 48 | G7: (7.8) | H7: 54 | I7: (8.7) | J7: 44 | K7: (7.1) | L7: 49 | M7: (7.9) | N7: 46 | O7: (7.4) | P7: 63 | Q7: (10.2) | R7: 42 | S7: (6.8) | T7: 47 | U7: (7.6) | V7: 58 | W7: (9.4) | X7: 59 | Y7: (9.5) | Z7: 619 | AA7: (3.1)
A8: B | B8: 11 | C8: (5.6) | D8: 10 | E8: (5.1) | F8: 13 | G8: (6.7) | H8: 14 | I8: (7.2) | J8: 9 | K8: (4.6) | L8: 11 | M8: (5.6) | N8: 25 | O8: (12.8) | P8: 8 | Q8: (4.1) | R8: 24 | S8: (12.3) | T8: 26 | U8: (13.3) | V8: 27 | W8: (13.8) | X8: 17 | Y8: (8.7) | Z8: 195 | AA8: (1.0)
A9: C | B9: 26 | C9: (8.3) | D9: 27 | E9: (8.6) | F9: 28 | G9: (8.9) | H9: 27 | I9: (8.6) | J9: 25 | K9: (7.9) | L9: 24 | M9: (7.6) | N9: 30 | O9: (9.5) | P9: 19 | Q9: (6.0) | R9: 22 | S9: (7.0) | T9: 28 | U9: (8.9) | V9: 32 | W9: (10.2) | X9: 27 | Y9: (8.6) | Z9: 315 | AA9: (1.6)
A10: D | B10: 63 | C10: (8.3) | D10: 68 | E10: (9.0) | F10: 76 | G10: (10.0) | H10: 70 | I10: (9.2) | J10: 61 | K10: (8.1) | L10: 56 | M10: (7.4) | N10: 63 | O10: (8.3) | P10: 49 | Q10: (6.5) | R10: 61 | S10: (8.1) | T10: 67 | U10: (8.9) | V10: 70 | W10: (9.2) | X10: 53 | Y10: (7.0) | Z10: 757 | AA10: (3.8)
A11: E1 | B11: 91 | C11: (9.7) | D11: 87 | E11: (9.3) | F11: 83 | G11: (8.8) | H11: 75 | I11: (8.0) | J11: 83 | K11: (8.8) | L11: 81 | M11: (8.6) | N11: 76 | O11: (8.1) | P11: 66 | Q11: (7.0) | R11: 68 | S11: (7.2) | T11: 79 | U11: (8.4) | V11: 75 | W11: (8.0) | X11: 74 | Y11: (7.9) | Z11: 938 | AA11: (4.7)
A12: E2 | B12: 63 | C12: (7.7) | D12: 66 | E12: (8.1) | F12: 65 | G12: (7.9) | H12: 69 | I12: (8.4) | J12: 78 | K12: (9.5) | L12: 64 | M12: (7.8) | N12: 71 | O12: (8.7) | P12: 76 | Q12: (9.3) | R12: 63 | S12: (7.7) | T12: 76 | U12: (9.3) | V12: 65 | W12: (7.9) | X12: 63 | Y12: (7.7) | Z12: 819 | AA12: (4.1)
A13: F | B13: 114 | C13: (9.1) | D13: 100 | E13: (8.0) | F13: 104 | G13: (8.3) | H13: 96 | I13: (7.6) | J13: 128 | K13: (10.2) | L13: 100 | M13: (8.0) | N13: 98 | O13: (7.8) | P13: 84 | Q13: (6.7) | R13: 90 | S13: (7.2) | T13: 119 | U13: (9.5) | V13: 125 | W13: (10.0) | X13: 97 | Y13: (7.7) | Z13: 1255 | AA13: (6.3)
A14: G | B14: 2 | C14: (10.5) | D14: 3 | E14: (15.8) | F14: 2 | G14: (10.5) | H14: 1 | I14: (5.3) | J14: 1 | K14: (5.3) | L14: 0 | M14: (0.0) | N14: 0 | O14: (0.0) | P14: 3 | Q14: (15.8) | R14: 3 | S14: (15.8) | T14: 2 | U14: (10.5) | V14: 1 | W14: (5.3) | X14: 1 | Y14: (5.3) | Z14: 19 | AA14: (0.1)
A15: H | B15: 49 | C15: (7.6) | D15: 46 | E15: (7.1) | F15: 63 | G15: (9.8) | H15: 46 | I15: (7.1) | J15: 51 | K15: (7.9) | L15: 50 | M15: (7.8) | N15: 62 | O15: (9.6) | P15: 48 | Q15: (7.4) | R15: 39 | S15: (6.0) | T15: 55 | U15: (8.5) | V15: 68 | W15: (10.5) | X15: 68 | Y15: (10.5) | Z15: 645 | AA15: (3.2)
A16: I | B16: 81 | C16: (9.3) | D16: 73 | E16: (8.4) | F16: 88 | G16: (10.1) | H16: 68 | I16: (7.8) | J16: 76 | K16: (8.7) | L16: 60 | M16: (6.9) | N16: 71 | O16: (8.1) | P16: 72 | Q16: (8.2) | R16: 64 | S16: (7.3) | T16: 72 | U16: (8.2) | V16: 76 | W16: (8.7) | X16: 72 | Y16: (8.2) | Z16: 873 | AA16: (4.4)
A17: K1K3 | B17: 40 | C17: (7.4) | D17: 39 | E17: (7.2) | F17: 32 | G17: (5.9) | H17: 47 | I17: (8.7) | J17: 52 | K17: (9.6) | L17: 44 | M17: (8.1) | N17: 53 | O17: (9.8) | P17: 42 | Q17: (7.7) | R17: 43 | S17: (7.9) | T17: 49 | U17: (9.0) | V17: 59 | W17: (10.9) | X17: 42 | Y17: (7.7) | Z17: 542 | AA17: (2.7)
A18: K2 | B18: 23 | C18: (7.2) | D18: 35 | E18: (10.9) | F18: 34 | G18: (10.6) | H18: 34 | I18: (10.6) | J18: 28 | K18: (8.8) | L18: 26 | M18: (8.1) | N18: 20 | O18: (6.3) | P18: 21 | Q18: (6.6) | R18: 25 | S18: (7.8) | T18: 24 | U18: (7.5) | V18: 28 | W18: (8.8) | X18: 22 | Y18: (6.9) | Z18: 320 | AA18: (1.6)
A19: L | B19: 24 | C19: (7.8) | D19: 32 | E19: (10.4) | F19: 29 | G19: (9.4) | H19: 23 | I19: (7.5) | J19: 34 | K19: (11.1) | L19: 17 | M19: (5.5) | N19: 23 | O19: (7.5) | P19: 17 | Q19: (5.5) | R19: 15 | S19: (4.9) | T19: 31 | U19: (10.1) | V19: 32 | W19: (10.4) | X19: 30 | Y19: (9.8) | Z19: 307 | AA19: (1.5)
A20: M | B20: 40 | C20: (9.2) | D20: 41 | E20: (9.5) | F20: 50 | G20: (11.5) | H20: 28 | I20: (6.5) | J20: 42 | K20: (9.7) | L20: 28 | M20: (6.5) | N20: 33 | O20: (7.6) | P20: 29 | Q20: (6.7) | R20: 34 | S20: (7.9) | T20: 25 | U20: (5.8) | V20: 44 | W20: (10.2) | X20: 39 | Y20: (9.0) | Z20: 433 | AA20: (2.2)
A21: N | B21: 25 | C21: (4.6) | D21: 15 | E21: (2.8) | F21: 24 | G21: (4.4) | H21: 20 | I21: (3.7) | J21: 17 | K21: (3.1) | L21: 56 | M21: (10.3) | N21: 67 | O21: (12.3) | P21: 55 | Q21: (10.1) | R21: 75 | S21: (13.8) | T21: 59 | U21: (10.8) | V21: 67 | W21: (12.3) | X21: 64 | Y21: (11.8) | Z21: 544 | AA21: (2.7)
A22: O | B22: 55 | C22: (8.3) | D22: 46 | E22: (7.0) | F22: 49 | G22: (7.4) | H22: 39 | I22: (5.9) | J22: 56 | K22: (8.5) | L22: 61 | M22: (9.3) | N22: 62 | O22: (9.4) | P22: 66 | Q22: (10.0) | R22: 47 | S22: (7.1) | T22: 68 | U22: (10.3) | V22: 62 | W22: (9.4) | X22: 48 | Y22: (7.3) | Z22: 659 | AA22: (3.3)
A23: P | B23: 117 | C23: (10.2) | D23: 102 | E23: (8.9) | F23: 111 | G23: (9.7) | H23: 69 | I23: (6.0) | J23: 102 | K23: (8.9) | L23: 84 | M23: (7.3) | N23: 110 | O23: (9.6) | P23: 92 | Q23: (8.0) | R23: 86 | S23: (7.5) | T23: 91 | U23: (8.0) | V23: 84 | W23: (7.3) | X23: 95 | Y23: (8.3) | Z23: 1143 | AA23: (5.7)
A24: Q | B24: 48 | C24: (9.6) | D24: 37 | E24: (7.4) | F24: 42 | G24: (8.4) | H24: 35 | I24: (7.0) | J24: 43 | K24: (8.6) | L24: 38 | M24: (7.6) | N24: 42 | O24: (8.4) | P24: 27 | Q24: (5.4) | R24: 31 | S24: (6.2) | T24: 43 | U24: (8.6) | V24: 56 | W24: (11.2) | X24: 59 | Y24: (11.8) | Z24: 501 | AA24: (2.5)
A25: R | B25: 76 | C25: (8.8) | D25: 68 | E25: (7.9) | F25: 63 | G25: (7.3) | H25: 79 | I25: (9.1) | J25: 87 | K25: (10.1) | L25: 59 | M25: (6.8) | N25: 75 | O25: (8.7) | P25: 77 | Q25: (8.9) | R25: 64 | S25: (7.4) | T25: 71 | U25: (8.2) | V25: 77 | W25: (8.9) | X25: 69 | Y25: (8.0) | Z25: 865 | AA25: (4.3)
A26: S | B26: 26 | C26: (16.0) | D26: 21 | E26: (12.9) | F26: 17 | G26: (10.4) | H26: 9 | I26: (5.5) | J26: 12 | K26: (7.4) | L26: 9 | M26: (5.5) | N26: 9 | O26: (5.5) | P26: 7 | Q26: (4.3) | R26: 10 | S26: (6.1) | T26: 13 | U26: (8.0) | V26: 14 | W26: (8.6) | X26: 16 | Y26: (9.8) | Z26: 163 | AA26: (0.8)
A27: T | B27: 32 | C27: (6.2) | D27: 54 | E27: (10.4) | F27: 57 | G27: (11.0) | H27: 41 | I27: (7.9) | J27: 44 | K27: (8.5) | L27: 46 | M27: (8.8) | N27: 45 | O27: (8.7) | P27: 38 | Q27: (7.3) | R27: 28 | S27: (5.4) | T27: 44 | U27: (8.5) | V27: 49 | W27: (9.4) | X27: 42 | Y27: (8.1) | Z27: 520 | AA27: (2.6)
A28: U | B28: 18 | C28: (5.3) | D28: 27 | E28: (8.0) | F28: 26 | G28: (7.7) | H28: 27 | I28: (8.0) | J28: 29 | K28: (8.6) | L28: 28 | M28: (8.3) | N28: 32 | O28: (9.5) | P28: 28 | Q28: (8.3) | R28: 26 | S28: (7.7) | T28: 32 | U28: (9.5) | V28: 32 | W28: (9.5) | X28: 33 | Y28: (9.8) | Z28: 338 | AA28: (1.7)
A29: V | B29: 124 | C29: (8.8) | D29: 101 | E29: (7.2) | F29: 98 | G29: (7.0) | H29: 103 | I29: (7.3) | J29: 98 | K29: (7.0) | L29: 114 | M29: (8.1) | N29: 118 | O29: (8.4) | P29: 130 | Q29: (9.2) | R29: 133 | S29: (9.4) | T29: 139 | U29: (9.9) | V29: 123 | W29: (8.7) | X29: 128 | Y29: (9.1) | Z29: 1409 | AA29: (7.1)
A30: W | B30: 68 | C30: (10.1) | D30: 63 | E30: (9.3) | F30: 65 | G30: (9.6) | H30: 50 | I30: (7.4) | J30: 58 | K30: (8.6) | L30: 52 | M30: (7.7) | N30: 57 | O30: (8.5) | P30: 34 | Q30: (5.0) | R30: 52 | S30: (7.7) | T30: 52 | U30: (7.7) | V30: 57 | W30: (8.5) | X30: 66 | Y30: (9.8) | Z30: 674 | AA30: (3.4)
A31: X | B31: 69 | C31: (7.8) | D31: 75 | E31: (8.4) | F31: 88 | G31: (9.9) | H31: 71 | I31: (8.0) | J31: 80 | K31: (9.0) | L31: 71 | M31: (8.0) | N31: 75 | O31: (8.4) | P31: 63 | Q31: (7.1) | R31: 81 | S31: (9.1) | T31: 65 | U31: (7.3) | V31: 77 | W31: (8.7) | X31: 75 | Y31: (8.4) | Z31: 890 | AA31: (4.5)
A32: Y | B32: 28 | C32: (6.4) | D32: 38 | E32: (8.6) | F32: 46 | G32: (10.5) | H32: 30 | I32: (6.8) | J32: 32 | K32: (7.3) | L32: 43 | M32: (9.8) | N32: 48 | O32: (10.9) | P32: 34 | Q32: (7.7) | R32: 34 | S32: (7.7) | T32: 41 | U32: (9.3) | V32: 35 | W32: (8.0) | X32: 31 | Y32: (7.0) | Z32: 440 | AA32: (2.2)
A33: Z | B33: 26 | C33: (7.4) | D33: 27 | E33: (7.6) | F33: 26 | G33: (7.4) | H33: 31 | I33: (8.8) | J33: 30 | K33: (8.5) | L33: 26 | M33: (7.4) | N33: 34 | O33: (9.6) | P33: 33 | Q33: (9.3) | R33: 32 | S33: (9.1) | T33: 19 | U33: (5.4) | V33: 40 | W33: (11.3) | X33: 29 | Y33: (8.2) | Z33: 353 | AA33: (1.8)
A34: ZA | B34: 87 | C34: (9.1) | D34: 85 | E34: (8.8) | F34: 92 | G34: (9.6) | H34: 66 | I34: (6.9) | J34: 89 | K34: (9.3) | L34: 71 | M34: (7.4) | N34: 69 | O34: (7.2) | P34: 83 | Q34: (8.6) | R34: 78 | S34: (8.1) | T34: 76 | U34: (7.9) | V34: 84 | W34: (8.7) | X34: 81 | Y34: (8.4) | Z34: 961 | AA34: (4.8)
A35: ZB | B35: 51 | C35: (11.4) | D35: 36 | E35: (8.0) | F35: 40 | G35: (8.9) | H35: 44 | I35: (9.8) | J35: 41 | K35: (9.1) | L35: 29 | M35: (6.5) | N35: 33 | O35: (7.3) | P35: 24 | Q35: (5.3) | R35: 41 | S35: (9.1) | T35: 40 | U35: (8.9) | V35: 38 | W35: (8.5) | X35: 32 | Y35: (7.1) | Z35: 449 | AA35: (2.2)
A36: ZC | B36: 86 | C36: (8.0) | D36: 85 | E36: (7.9) | F36: 99 | G36: (9.2) | H36: 81 | I36: (7.5) | J36: 89 | K36: (8.2) | L36: 98 | M36: (9.1) | N36: 100 | O36: (9.3) | P36: 83 | Q36: (7.7) | R36: 84 | S36: (7.8) | T36: 90 | U36: (8.3) | V36: 96 | W36: (8.9) | X36: 88 | Y36: (8.2) | Z36: 1079 | AA36: (5.4)
A37: ZD | B37: 51 | C37: (10.1) | D37: 50 | E37: (9.9) | F37: 42 | G37: (8.3) | H37: 35 | I37: (6.9) | J37: 38 | K37: (7.5) | L37: 34 | M37: (6.7) | N37: 42 | O37: (8.3) | P37: 34 | Q37: (6.7) | R37: 39 | S37: (7.7) | T37: 48 | U37: (9.5) | V37: 50 | W37: (9.9) | X37: 43 | Y37: (8.5) | Z37: 506 | AA37: (2.5)
A38: ZE | B38: 21 | C38: (4.9) | D38: 23 | E38: (5.3) | F38: 30 | G38: (7.0) | H38: 28 | I38: (6.5) | J38: 53 | K38: (12.3) | L38: 41 | M38: (9.5) | N38: 50 | O38: (11.6) | P38: 34 | Q38: (7.9) | R38: 38 | S38: (8.8) | T38: 39 | U38: (9.0) | V38: 35 | W38: (8.1) | X38: 39 | Y38: (9.0) | Z38: 431 | AA38: (2.2)
A39: Total | B39: 1698 | C39: (8.5) | D39: 1626 | E39: (8.1) | F39: 1730 | G39: (8.7) | H39: 1510 | I39: (7.6) | J39: 1710 | K39: (8.6) | L39: 1570 | M39: (7.9) | N39: 1739 | O39: (8.7) | P39: 1539 | Q39: (7.7) | R39: 1572 | S39: (7.9) | T39: 1730 | U39: (8.7) | V39: 1836 | W39: (9.2) | X39: 1702 | Y39: (8.5) | Z39: 19962 | AA39: (100.0)
A40: 2013
A41: A | B41: 44 | C41: (6.7) | D41: 43 | E41: (6.6) | F41: 64 | G41: (9.8) | H41: 54 | I41: (8.2) | J41: 52 | K41: (7.9) | L41: 59 | M41: (9.0) | N41: 50 | O41: (7.6) | P41: 45 | Q41: (6.9) | R41: 49 | S41: (7.5) | T41: 59 | U41: (9.0) | V41: 72 | W41: (11.0) | X41: 65 | Y41: (9.9) | Z41: 656 | AA41: (3.3)
A42: B | B42: 22 | C42: (9.0) | D42: 10 | E42: (4.1) | F42: 16 | G42: (6.5) | H42: 18 | I42: (7.3) | J42: 11 | K42: (4.5) | L42: 11 | M42: (4.5) | N42: 14 | O42: (5.7) | P42: 4 | Q42: (1.6) | R42: 28 | S42: (11.4) | T42: 23 | U42: (9.4) | V42: 36 | W42: (14.7) | X42: 52 | Y42: (21.2) | Z42: 245 | AA42: (1.2)
A43: C | B43: 20 | C43: (7.6) | D43: 25 | E43: (9.5) | F43: 25 | G43: (9.5) | H43: 27 | I43: (10.3) | J43: 28 | K43: (10.7) | L43: 17 | M43: (6.5) | N43: 20 | O43: (7.6) | P43: 18 | Q43: (6.9) | R43: 10 | S43: (3.8) | T43: 23 | U43: (8.8) | V43: 22 | W43: (8.4) | X43: 27 | Y43: (10.3) | Z43: 262 | AA43: (1.3)
A44: D | B44: 68 | C44: (10.7) | D44: 48 | E44: (7.6) | F44: 68 | G44: (10.7) | H44: 55 | I44: (8.7) | J44: 56 | K44: (8.8) | L44: 44 | M44: (6.9) | N44: 51 | O44: (8.0) | P44: 48 | Q44: (7.6) | R44: 48 | S44: (7.6) | T44: 38 | U44: (6.0) | V44: 62 | W44: (9.8) | X44: 49 | Y44: (7.7) | Z44: 635 | AA44: (3.2)
A45: E1 | B45: 86 | C45: (8.9) | D45: 85 | E45: (8.8) | F45: 87 | G45: (9.1) | H45: 73 | I45: (7.6) | J45: 83 | K45: (8.6) | L45: 73 | M45: (7.6) | N45: 72 | O45: (7.5) | P45: 78 | Q45: (8.1) | R45: 70 | S45: (7.3) | T45: 80 | U45: (8.3) | V45: 80 | W45: (8.3) | X45: 94 | Y45: (9.8) | Z45: 961 | AA45: (4.8)
A46: E2 | B46: 63 | C46: (7.8) | D46: 57 | E46: (7.1) | F46: 64 | G46: (8.0) | H46: 59 | I46: (7.3) | J46: 74 | K46: (9.2) | L46: 66 | M46: (8.2) | N46: 69 | O46: (8.6) | P46: 67 | Q46: (8.3) | R46: 68 | S46: (8.4) | T46: 76 | U46: (9.4) | V46: 79 | W46: (9.8) | X46: 63 | Y46: (7.8) | Z46: 805 | AA46: (4.0)
A47: F | B47: 118 | C47: (9.8) | D47: 90 | E47: (7.5) | F47: 105 | G47: (8.7) | H47: 105 | I47: (8.7) | J47: 112 | K47: (9.3) | L47: 93 | M47: (7.7) | N47: 103 | O47: (8.5) | P47: 76 | Q47: (6.3) | R47: 106 | S47: (8.8) | T47: 101 | U47: (8.4) | V47: 88 | W47: (7.3) | X47: 111 | Y47: (9.2) | Z47: 1208 | AA47: (6.1)
A48: G | B48: 3 | C48: (15.0) | D48: 2 | E48: (10.0) | F48: 3 | G48: (15.0) | H48: 1 | I48: (5.0) | J48: 3 | K48: (15.0) | L48: 1 | M48: (5.0) | N48: 0 | O48: (0.0) | P48: 0 | Q48: (0.0) | R48: 0 | S48: (0.0) | T48: 4 | U48: (20.0) | V48: 2 | W48: (10.0) | X48: 1 | Y48: (5.0) | Z48: 20 | AA48: (0.1)
A49: H | B49: 42 | C49: (6.5) | D49: 53 | E49: (8.2) | F49: 47 | G49: (7.3) | H49: 55 | I49: (8.5) | J49: 59 | K49: (9.2) | L49: 54 | M49: (8.4) | N49: 60 | O49: (9.3) | P49: 45 | Q49: (7.0) | R49: 52 | S49: (8.1) | T49: 62 | U49: (9.6) | V49: 51 | W49: (7.9) | X49: 64 | Y49: (9.9) | Z49: 644 | AA49: (3.2)
A50: I | B50: 91 | C50: (10.4) | D50: 73 | E50: (8.4) | F50: 70 | G50: (8.0) | H50: 56 | I50: (6.4) | J50: 75 | K50: (8.6) | L50: 56 | M50: (6.4) | N50: 58 | O50: (6.7) | P50: 66 | Q50: (7.6) | R50: 72 | S50: (8.3) | T50: 74 | U50: (8.5) | V50: 92 | W50: (10.6) | X50: 89 | Y50: (10.2) | Z50: 872 | AA50: (4.4)
A51: K1K3 | B51: 42 | C51: (7.9) | D51: 42 | E51: (7.9) | F51: 44 | G51: (8.2) | H51: 34 | I51: (6.4) | J51: 41 | K51: (7.7) | L51: 51 | M51: (9.5) | N51: 56 | O51: (10.5) | P51: 36 | Q51: (6.7) | R51: 39 | S51: (7.3) | T51: 41 | U51: (7.7) | V51: 53 | W51: (9.9) | X51: 56 | Y51: (10.5) | Z51: 535 | AA51: (2.7)
A52: K2 | B52: 27 | C52: (8.3) | D52: 27 | E52: (8.3) | F52: 33 | G52: (10.1) | H52: 30 | I52: (9.2) | J52: 24 | K52: (7.4) | L52: 23 | M52: (7.1) | N52: 24 | O52: (7.4) | P52: 28 | Q52: (8.6) | R52: 33 | S52: (10.1) | T52: 26 | U52: (8.0) | V52: 26 | W52: (8.0) | X52: 25 | Y52: (7.7) | Z52: 326 | AA52: (1.6)
A53: L | B53: 29 | C53: (9.4) | D53: 23 | E53: (7.5) | F53: 27 | G53: (8.8) | H53: 25 | I53: (8.1) | J53: 23 | K53: (7.5) | L53: 24 | M53: (7.8) | N53: 12 | O53: (3.9) | P53: 23 | Q53: (7.5) | R53: 21 | S53: (6.8) | T53: 30 | U53: (9.8) | V53: 32 | W53: (10.4) | X53: 38 | Y53: (12.4) | Z53: 307 | AA53: (1.5)
A54: M | B54: 36 | C54: (10.5) | D54: 34 | E54: (9.9) | F54: 31 | G54: (9.0) | H54: 34 | I54: (9.9) | J54: 33 | K54: (9.6) | L54: 30 | M54: (8.7) | N54: 26 | O54: (7.6) | P54: 16 | Q54: (4.7) | R54: 11 | S54: (3.2) | T54: 29 | U54: (8.5) | V54: 32 | W54: (9.3) | X54: 31 | Y54: (9.0) | Z54: 343 | AA54: (1.7)
A55: N | B55: 62 | C55: (7.9) | D55: 60 | E55: (7.7) | F55: 65 | G55: (8.3) | H55: 58 | I55: (7.4) | J55: 62 | K55: (7.9) | L55: 51 | M55: (6.5) | N55: 73 | O55: (9.3) | P55: 57 | Q55: (7.3) | R55: 77 | S55: (9.8) | T55: 77 | U55: (9.8) | V55: 69 | W55: (8.8) | X55: 72 | Y55: (9.2) | Z55: 783 | AA55: (3.9)
A56: O | B56: 57 | C56: (8.8) | D56: 33 | E56: (5.1) | F56: 44 | G56: (6.8) | H56: 61 | I56: (9.4) | J56: 53 | K56: (8.2) | L56: 46 | M56: (7.1) | N56: 66 | O56: (10.2) | P56: 73 | Q56: (11.3) | R56: 53 | S56: (8.2) | T56: 57 | U56: (8.8) | V56: 54 | W56: (8.4) | X56: 49 | Y56: (7.6) | Z56: 646 | AA56: (3.2)
A57: P | B57: 102 | C57: (9.5) | D57: 99 | E57: (9.3) | F57: 95 | G57: (8.9) | H57: 78 | I57: (7.3) | J57: 87 | K57: (8.1) | L57: 79 | M57: (7.4) | N57: 71 | O57: (6.6) | P57: 80 | Q57: (7.5) | R57: 84 | S57: (7.9) | T57: 87 | U57: (8.1) | V57: 108 | W57: (10.1) | X57: 100 | Y57: (9.3) | Z57: 1070 | AA57: (5.4)
A58: Q | B58: 34 | C58: (6.9) | D58: 48 | E58: (9.7) | F58: 34 | G58: (6.9) | H58: 44 | I58: (8.9) | J58: 50 | K58: (10.1) | L58: 37 | M58: (7.5) | N58: 40 | O58: (8.1) | P58: 33 | Q58: (6.7) | R58: 39 | S58: (7.9) | T58: 46 | U58: (9.3) | V58: 44 | W58: (8.9) | X58: 47 | Y58: (9.5) | Z58: 496 | AA58: (2.5)
A59: R | B59: 71 | C59: (7.4) | D59: 73 | E59: (7.6) | F59: 85 | G59: (8.9) | H59: 90 | I59: (9.4) | J59: 64 | K59: (6.7) | L59: 75 | M59: (7.8) | N59: 81 | O59: (8.5) | P59: 64 | Q59: (6.7) | R59: 78 | S59: (8.2) | T59: 87 | U59: (9.1) | V59: 89 | W59: (9.3) | X59: 99 | Y59: (10.4) | Z59: 956 | AA59: (4.8)
A60: S | B60: 13 | C60: (10.6) | D60: 6 | E60: (4.9) | F60: 11 | G60: (8.9) | H60: 16 | I60: (13.0) | J60: 13 | K60: (10.6) | L60: 9 | M60: (7.3) | N60: 9 | O60: (7.3) | P60: 3 | Q60: (2.4) | R60: 12 | S60: (9.8) | T60: 10 | U60: (8.1) | V60: 6 | W60: (4.9) | X60: 15 | Y60: (12.2) | Z60: 123 | AA60: (0.6)
A61: T | B61: 49 | C61: (9.2) | D61: 38 | E61: (7.2) | F61: 39 | G61: (7.4) | H61: 40 | I61: (7.5) | J61: 37 | K61: (7.0) | L61: 45 | M61: (8.5) | N61: 45 | O61: (8.5) | P61: 45 | Q61: (8.5) | R61: 50 | S61: (9.4) | T61: 46 | U61: (8.7) | V61: 48 | W61: (9.1) | X61: 48 | Y61: (9.1) | Z61: 530 | AA61: (2.7)
A62: U | B62: 31 | C62: (9.3) | D62: 24 | E62: (7.2) | F62: 27 | G62: (8.1) | H62: 26 | I62: (7.8) | J62: 20 | K62: (6.0) | L62: 26 | M62: (7.8) | N62: 29 | O62: (8.7) | P62: 24 | Q62: (7.2) | R62: 22 | S62: (6.6) | T62: 29 | U62: (8.7) | V62: 38 | W62: (11.3) | X62: 39 | Y62: (11.6) | Z62: 335 | AA62: (1.7)
A63: V | B63: 107 | C63: (8.2) | D63: 101 | E63: (7.8) | F63: 133 | G63: (10.2) | H63: 125 | I63: (9.6) | J63: 130 | K63: (10.0) | L63: 117 | M63: (9.0) | N63: 94 | O63: (7.2) | P63: 86 | Q63: (6.6) | R63: 101 | S63: (7.8) | T63: 112 | U63: (8.6) | V63: 90 | W63: (6.9) | X63: 106 | Y63: (8.1) | Z63: 1302 | AA63: (6.5)
A64: W | B64: 61 | C64: (9.2) | D64: 51 | E64: (7.7) | F64: 62 | G64: (9.4) | H64: 50 | I64: (7.6) | J64: 57 | K64: (8.6) | L64: 66 | M64: (10.0) | N64: 47 | O64: (7.1) | P64: 44 | Q64: (6.6) | R64: 49 | S64: (7.4) | T64: 60 | U64: (9.1) | V64: 51 | W64: (7.7) | X64: 64 | Y64: (9.7) | Z64: 662 | AA64: (3.3)
A65: X | B65: 63 | C65: (7.7) | D65: 67 | E65: (8.2) | F65: 74 | G65: (9.0) | H65: 77 | I65: (9.4) | J65: 67 | K65: (8.2) | L65: 57 | M65: (7.0) | N65: 63 | O65: (7.7) | P65: 69 | Q65: (8.4) | R65: 67 | S65: (8.2) | T65: 71 | U65: (8.7) | V65: 62 | W65: (7.6) | X65: 83 | Y65: (10.1) | Z65: 820 | AA65: (4.1)
A66: Y | B66: 40 | C66: (8.8) | D66: 36 | E66: (7.9) | F66: 32 | G66: (7.1) | H66: 43 | I66: (9.5) | J66: 39 | K66: (8.6) | L66: 35 | M66: (7.7) | N66: 29 | O66: (6.4) | P66: 30 | Q66: (6.6) | R66: 44 | S66: (9.7) | T66: 47 | U66: (10.4) | V66: 43 | W66: (9.5) | X66: 35 | Y66: (7.7) | Z66: 453 | AA66: (2.3)
A67: Z | B67: 28 | C67: (7.7) | D67: 24 | E67: (6.6) | F67: 29 | G67: (8.0) | H67: 33 | I67: (9.1) | J67: 31 | K67: (8.6) | L67: 24 | M67: (6.6) | N67: 30 | O67: (8.3) | P67: 24 | Q67: (6.6) | R67: 34 | S67: (9.4) | T67: 32 | U67: (8.8) | V67: 33 | W67: (9.1) | X67: 40 | Y67: (11.0) | Z67: 362 | AA67: (1.8)
A68: ZA | B68: 82 | C68: (7.8) | D68: 78 | E68: (7.4) | F68: 71 | G68: (6.8) | H68: 84 | I68: (8.0) | J68: 97 | K68: (9.2) | L68: 82 | M68: (7.8) | N68: 75 | O68: (7.1) | P68: 77 | Q68: (7.3) | R68: 102 | S68: (9.7) | T68: 105 | U68: (10.0) | V68: 106 | W68: (10.1) | X68: 92 | Y68: (8.8) | Z68: 1051 | AA68: (5.3)
A69: ZB | B69: 43 | C69: (9.9) | D69: 40 | E69: (9.2) | F69: 38 | G69: (8.8) | H69: 32 | I69: (7.4) | J69: 29 | K69: (6.7) | L69: 31 | M69: (7.1) | N69: 37 | O69: (8.5) | P69: 33 | Q69: (7.6) | R69: 29 | S69: (6.7) | T69: 46 | U69: (10.6) | V69: 42 | W69: (9.7) | X69: 34 | Y69: (7.8) | Z69: 434 | AA69: (2.2)
A70: ZC | B70: 103 | C70: (9.6) | D70: 76 | E70: (7.1) | F70: 86 | G70: (8.0) | H70: 96 | I70: (9.0) | J70: 102 | K70: (9.5) | L70: 88 | M70: (8.2) | N70: 95 | O70: (8.9) | P70: 83 | Q70: (7.7) | R70: 78 | S70: (7.3) | T70: 94 | U70: (8.8) | V70: 83 | W70: (7.7) | X70: 87 | Y70: (8.1) | Z70: 1071 | AA70: (5.4)
A71: ZD | B71: 45 | C71: (9.1) | D71: 47 | E71: (9.5) | F71: 43 | G71: (8.7) | H71: 42 | I71: (8.5) | J71: 43 | K71: (8.7) | L71: 34 | M71: (6.8) | N71: 43 | O71: (8.7) | P71: 46 | Q71: (9.3) | R71: 30 | S71: (6.0) | T71: 41 | U71: (8.2) | V71: 27 | W71: (5.4) | X71: 56 | Y71: (11.3) | Z71: 497 | AA71: (2.5)
A72: ZE | B72: 41 | C72: (8.7) | D72: 21 | E72: (4.4) | F72: 41 | G72: (8.7) | H72: 46 | I72: (9.7) | J72: 48 | K72: (10.2) | L72: 50 | M72: (10.6) | N72: 48 | O72: (10.2) | P72: 41 | Q72: (8.7) | R72: 43 | S72: (9.1) | T72: 30 | U72: (6.4) | V72: 35 | W72: (7.4) | X72: 28 | Y72: (5.9) | Z72: 472 | AA72: (2.4)
A73: ZF | B73: 0 | C73: (0.0) | D73: 0 | E73: (0.0) | F73: 0 | G73: (0.0) | H73: 0 | I73: (0.0) | J73: 0 | K73: (0.0) | L73: 1 | M73: (2.6) | N73: 0 | O73: (0.0) | P73: 0 | Q73: (0.0) | R73: 0 | S73: (0.0) | T73: 3 | U73: (7.9) | V73: 21 | W73: (55.3) | X73: 13 | Y73: (34.2) | Z73: 38 | AA73: (0.2)
A74: Total | B74: 1723 | C74: (8.6) | D74: 1534 | E74: (7.7) | F74: 1693 | G74: (8.5) | H74: 1667 | I74: (8.4) | J74: 1703 | K74: (8.5) | L74: 1555 | M74: (7.8) | N74: 1590 | O74: (8.0) | P74: 1462 | Q74: (7.3) | R74: 1599 | S74: (8.0) | T74: 1746 | U74: (8.8) | V74: 1776 | W74: (8.9) | X74: 1872 | Y74: (9.4) | Z74: 19920 | AA74: (100.0)
A75: 2014
A76: A | B76: 58 | C76: (9.0) | D76: 56 | E76: (8.7) | F76: 57 | G76: (8.8) | H76: 51 | I76: (7.9) | J76: 52 | K76: (8.0) | L76: 47 | M76: (7.3) | N76: 53 | O76: (8.2) | P76: 49 | Q76: (7.6) | R76: 52 | S76: (8.0) | T76: 50 | U76: (7.7) | V76: 60 | W76: (9.3) | X76: 62 | Y76: (9.6) | Z76: 647 | AA76: (3.3)
A77: B | B77: 23 | C77: (8.7) | D77: 14 | E77: (5.3) | F77: 13 | G77: (4.9) | H77: 7 | I77: (2.6) | J77: 18 | K77: (6.8) | L77: 10 | M77: (3.8) | N77: 15 | O77: (5.7) | P77: 14 | Q77: (5.3) | R77: 17 | S77: (6.4) | T77: 33 | U77: (12.5) | V77: 50 | W77: (18.9) | X77: 51 | Y77: (19.2) | Z77: 265 | AA77: (1.3)
A78: C | B78: 29 | C78: (9.7) | D78: 30 | E78: (10.1) | F78: 24 | G78: (8.1) | H78: 31 | I78: (10.4) | J78: 31 | K78: (10.4) | L78: 21 | M78: (7.0) | N78: 24 | O78: (8.1) | P78: 18 | Q78: (6.0) | R78: 18 | S78: (6.0) | T78: 23 | U78: (7.7) | V78: 18 | W78: (6.0) | X78: 31 | Y78: (10.4) | Z78: 298 | AA78: (1.5)
A79: D | B79: 52 | C79: (6.9) | D79: 65 | E79: (8.6) | F79: 57 | G79: (7.5) | H79: 58 | I79: (7.7) | J79: 60 | K79: (7.9) | L79: 79 | M79: (10.5) | N79: 71 | O79: (9.4) | P79: 58 | Q79: (7.7) | R79: 62 | S79: (8.2) | T79: 81 | U79: (10.7) | V79: 53 | W79: (7.0) | X79: 59 | Y79: (7.8) | Z79: 755 | AA79: (3.8)
A80: E1 | B80: 64 | C80: (6.8) | D80: 77 | E80: (8.2) | F80: 68 | G80: (7.3) | H80: 68 | I80: (7.3) | J80: 76 | K80: (8.1) | L80: 77 | M80: (8.2) | N80: 92 | O80: (9.8) | P80: 72 | Q80: (7.7) | R80: 81 | S80: (8.6) | T80: 94 | U80: (10.0) | V80: 81 | W80: (8.6) | X80: 87 | Y80: (9.3) | Z80: 937 | AA80: (4.7)
A81: E2 | B81: 67 | C81: (8.5) | D81: 66 | E81: (8.3) | F81: 61 | G81: (7.7) | H81: 59 | I81: (7.4) | J81: 53 | K81: (6.7) | L81: 73 | M81: (9.2) | N81: 69 | O81: (8.7) | P81: 64 | Q81: (8.1) | R81: 75 | S81: (9.5) | T81: 73 | U81: (9.2) | V81: 67 | W81: (8.5) | X81: 65 | Y81: (8.2) | Z81: 792 | AA81: (4.0)
A82: F | B82: 108 | C82: (8.6) | D82: 107 | E82: (8.5) | F82: 113 | G82: (9.0) | H82: 91 | I82: (7.2) | J82: 116 | K82: (9.2) | L82: 105 | M82: (8.3) | N82: 98 | O82: (7.8) | P82: 88 | Q82: (7.0) | R82: 99 | S82: (7.9) | T82: 107 | U82: (8.5) | V82: 111 | W82: (8.8) | X82: 115 | Y82: (9.1) | Z82: 1258 | AA82: (6.4)
A83: G | B83: 0 | C83: (0.0) | D83: 0 | E83: (0.0) | F83: 3 | G83: (25.0) | H83: 4 | I83: (33.3) | J83: 0 | K83: (0.0) | L83: 0 | M83: (0.0) | N83: 2 | O83: (16.7) | P83: 1 | Q83: (8.3) | R83: 2 | S83: (16.7) | T83: 0 | U83: (0.0) | V83: 0 | W83: (0.0) | X83: 0 | Y83: (0.0) | Z83: 12 | AA83: (0.1)
A84: H | B84: 41 | C84: (7.6) | D84: 38 | E84: (7.0) | F84: 48 | G84: (8.9) | H84: 42 | I84: (7.8) | J84: 40 | K84: (7.4) | L84: 50 | M84: (9.3) | N84: 33 | O84: (6.1) | P84: 27 | Q84: (5.0) | R84: 57 | S84: (10.6) | T84: 52 | U84: (9.6) | V84: 58 | W84: (10.7) | X84: 54 | Y84: (10.0) | Z84: 540 | AA84: (2.7)
A85: I | B85: 87 | C85: (10.9) | D85: 63 | E85: (7.9) | F85: 64 | G85: (8.0) | H85: 70 | I85: (8.8) | J85: 55 | K85: (6.9) | L85: 75 | M85: (9.4) | N85: 68 | O85: (8.5) | P85: 55 | Q85: (6.9) | R85: 57 | S85: (7.2) | T85: 54 | U85: (6.8) | V85: 72 | W85: (9.0) | X85: 76 | Y85: (9.5) | Z85: 796 | AA85: (4.0)
A86: K1K3 | B86: 66 | C86: (11.6) | D86: 49 | E86: (8.6) | F86: 43 | G86: (7.6) | H86: 44 | I86: (7.7) | J86: 37 | K86: (6.5) | L86: 53 | M86: (9.3) | N86: 50 | O86: (8.8) | P86: 35 | Q86: (6.2) | R86: 49 | S86: (8.6) | T86: 45 | U86: (7.9) | V86: 43 | W86: (7.6) | X86: 55 | Y86: (9.7) | Z86: 569 | AA86: (2.9)
A87: K2 | B87: 22 | C87: (7.7) | D87: 20 | E87: (7.0) | F87: 18 | G87: (6.3) | H87: 22 | I87: (7.7) | J87: 24 | K87: (8.4) | L87: 22 | M87: (7.7) | N87: 29 | O87: (10.1) | P87: 30 | Q87: (10.5) | R87: 23 | S87: (8.0) | T87: 26 | U87: (9.1) | V87: 22 | W87: (7.7) | X87: 28 | Y87: (9.8) | Z87: 286 | AA87: (1.4)
A88: L | B88: 22 | C88: (7.2) | D88: 34 | E88: (11.2) | F88: 28 | G88: (9.2) | H88: 28 | I88: (9.2) | J88: 18 | K88: (5.9) | L88: 26 | M88: (8.6) | N88: 24 | O88: (7.9) | P88: 18 | Q88: (5.9) | R88: 14 | S88: (4.6) | T88: 20 | U88: (6.6) | V88: 28 | W88: (9.2) | X88: 44 | Y88: (14.5) | Z88: 304 | AA88: (1.5)
A89: M | B89: 26 | C89: (6.4) | D89: 24 | E89: (5.9) | F89: 24 | G89: (5.9) | H89: 29 | I89: (7.2) | J89: 37 | K89: (9.1) | L89: 37 | M89: (9.1) | N89: 34 | O89: (8.4) | P89: 23 | Q89: (5.7) | R89: 25 | S89: (6.2) | T89: 45 | U89: (11.1) | V89: 48 | W89: (11.9) | X89: 53 | Y89: (13.1) | Z89: 405 | AA89: (2.0)
A90: N | B90: 72 | C90: (9.9) | D90: 61 | E90: (8.4) | F90: 62 | G90: (8.5) | H90: 63 | I90: (8.7) | J90: 59 | K90: (8.1) | L90: 68 | M90: (9.3) | N90: 50 | O90: (6.9) | P90: 46 | Q90: (6.3) | R90: 65 | S90: (8.9) | T90: 54 | U90: (7.4) | V90: 56 | W90: (7.7) | X90: 72 | Y90: (9.9) | Z90: 728 | AA90: (3.7)
A91: O | B91: 63 | C91: (9.2) | D91: 52 | E91: (7.6) | F91: 65 | G91: (9.5) | H91: 53 | I91: (7.7) | J91: 62 | K91: (9.0) | L91: 62 | M91: (9.0) | N91: 54 | O91: (7.9) | P91: 48 | Q91: (7.0) | R91: 59 | S91: (8.6) | T91: 61 | U91: (8.9) | V91: 59 | W91: (8.6) | X91: 49 | Y91: (7.1) | Z91: 687 | AA91: (3.5)
A92: P | B92: 90 | C92: (8.9) | D92: 78 | E92: (7.7) | F92: 95 | G92: (9.4) | H92: 79 | I92: (7.8) | J92: 90 | K92: (8.9) | L92: 78 | M92: (7.7) | N92: 84 | O92: (8.3) | P92: 73 | Q92: (7.2) | R92: 84 | S92: (8.3) | T92: 82 | U92: (8.1) | V92: 88 | W92: (8.7) | X92: 92 | Y92: (9.1) | Z92: 1013 | AA92: (5.1)
A93: Q | B93: 42 | C93: (8.1) | D93: 41 | E93: (7.9) | F93: 40 | G93: (7.7) | H93: 50 | I93: (9.7) | J93: 44 | K93: (8.5) | L93: 27 | M93: (5.2) | N93: 36 | O93: (7.0) | P93: 41 | Q93: (7.9) | R93: 42 | S93: (8.1) | T93: 44 | U93: (8.5) | V93: 49 | W93: (9.5) | X93: 61 | Y93: (11.8) | Z93: 517 | AA93: (2.6)
A94: R | B94: 89 | C94: (10.0) | D94: 64 | E94: (7.2) | F94: 75 | G94: (8.4) | H94: 77 | I94: (8.6) | J94: 72 | K94: (8.1) | L94: 74 | M94: (8.3) | N94: 77 | O94: (8.6) | P94: 68 | Q94: (7.6) | R94: 66 | S94: (7.4) | T94: 72 | U94: (8.1) | V94: 75 | W94: (8.4) | X94: 84 | Y94: (9.4) | Z94: 893 | AA94: (4.5)
A95: S | B95: 12 | C95: (9.1) | D95: 11 | E95: (8.3) | F95: 9 | G95: (6.8) | H95: 6 | I95: (4.5) | J95: 7 | K95: (5.3) | L95: 13 | M95: (9.8) | N95: 10 | O95: (7.6) | P95: 5 | Q95: (3.8) | R95: 8 | S95: (6.1) | T95: 14 | U95: (10.6) | V95: 15 | W95: (11.4) | X95: 22 | Y95: (16.7) | Z95: 132 | AA95: (0.7)
A96: T | B96: 48 | C96: (10.1) | D96: 49 | E96: (10.3) | F96: 47 | G96: (9.9) | H96: 37 | I96: (7.8) | J96: 34 | K96: (7.2) | L96: 33 | M96: (6.9) | N96: 34 | O96: (7.2) | P96: 32 | Q96: (6.7) | R96: 28 | S96: (5.9) | T96: 35 | U96: (7.4) | V96: 48 | W96: (10.1) | X96: 50 | Y96: (10.5) | Z96: 475 | AA96: (2.4)
A97: U | B97: 29 | C97: (8.9) | D97: 26 | E97: (8.0) | F97: 28 | G97: (8.6) | H97: 31 | I97: (9.5) | J97: 25 | K97: (7.7) | L97: 13 | M97: (4.0) | N97: 23 | O97: (7.1) | P97: 17 | Q97: (5.2) | R97: 33 | S97: (10.2) | T97: 28 | U97: (8.6) | V97: 30 | W97: (9.2) | X97: 42 | Y97: (12.9) | Z97: 325 | AA97: (1.6)
A98: V | B98: 124 | C98: (9.2) | D98: 126 | E98: (9.4) | F98: 107 | G98: (8.0) | H98: 124 | I98: (9.2) | J98: 82 | K98: (6.1) | L98: 99 | M98: (7.4) | N98: 141 | O98: (10.5) | P98: 103 | Q98: (7.7) | R98: 107 | S98: (8.0) | T98: 122 | U98: (9.1) | V98: 117 | W98: (8.7) | X98: 93 | Y98: (6.9) | Z98: 1345 | AA98: (6.8)
A99: W | B99: 65 | C99: (9.4) | D99: 49 | E99: (7.1) | F99: 57 | G99: (8.3) | H99: 47 | I99: (6.8) | J99: 55 | K99: (8.0) | L99: 59 | M99: (8.6) | N99: 58 | O99: (8.4) | P99: 59 | Q99: (8.6) | R99: 55 | S99: (8.0) | T99: 59 | U99: (8.6) | V99: 54 | W99: (7.8) | X99: 73 | Y99: (10.6) | Z99: 690 | AA99: (3.5)
A100: X | B100: 69 | C100: (8.8) | D100: 66 | E100: (8.5) | F100: 78 | G100: (10.0) | H100: 73 | I100: (9.4) | J100: 72 | K100: (9.2) | L100: 65 | M100: (8.3) | N100: 62 | O100: (7.9) | P100: 60 | Q100: (7.7) | R100: 54 | S100: (6.9) | T100: 74 | U100: (9.5) | V100: 56 | W100: (7.2) | X100: 51 | Y100: (6.5) | Z100: 780 | AA100: (3.9)
A101: Y | B101: 39 | C101: (10.3) | D101: 34 | E101: (9.0) | F101: 42 | G101: (11.1) | H101: 35 | I101: (9.2) | J101: 39 | K101: (10.3) | L101: 29 | M101: (7.7) | N101: 26 | O101: (6.9) | P101: 23 | Q101: (6.1) | R101: 24 | S101: (6.3) | T101: 26 | U101: (6.9) | V101: 30 | W101: (7.9) | X101: 32 | Y101: (8.4) | Z101: 379 | AA101: (1.9)
A102: Z | B102: 41 | C102: (9.5) | D102: 29 | E102: (6.7) | F102: 51 | G102: (11.8) | H102: 35 | I102: (8.1) | J102: 35 | K102: (8.1) | L102: 39 | M102: (9.0) | N102: 39 | O102: (9.0) | P102: 23 | Q102: (5.3) | R102: 19 | S102: (4.4) | T102: 44 | U102: (10.2) | V102: 38 | W102: (8.8) | X102: 39 | Y102: (9.0) | Z102: 432 | AA102: (2.2)
A103: ZA | B103: 100 | C103: (9.3) | D103: 102 | E103: (9.5) | F103: 93 | G103: (8.6) | H103: 99 | I103: (9.2) | J103: 95 | K103: (8.8) | L103: 79 | M103: (7.3) | N103: 100 | O103: (9.3) | P103: 75 | Q103: (7.0) | R103: 74 | S103: (6.9) | T103: 79 | U103: (7.3) | V103: 84 | W103: (7.8) | X103: 96 | Y103: (8.9) | Z103: 1076 | AA103: (5.4)
A104: ZB | B104: 56 | C104: (11.0) | D104: 50 | E104: (9.9) | F104: 38 | G104: (7.5) | H104: 36 | I104: (7.1) | J104: 38 | K104: (7.5) | L104: 40 | M104: (7.9) | N104: 47 | O104: (9.3) | P104: 36 | Q104: (7.1) | R104: 43 | S104: (8.5) | T104: 41 | U104: (8.1) | V104: 30 | W104: (5.9) | X104: 52 | Y104: (10.3) | Z104: 507 | AA104: (2.6)
A105: ZC | B105: 107 | C105: (10.5) | D105: 94 | E105: (9.2) | F105: 92 | G105: (9.0) | H105: 97 | I105: (9.5) | J105: 75 | K105: (7.4) | L105: 61 | M105: (6.0) | N105: 84 | O105: (8.2) | P105: 86 | Q105: (8.4) | R105: 73 | S105: (7.2) | T105: 92 | U105: (9.0) | V105: 79 | W105: (7.7) | X105: 80 | Y105: (7.8) | Z105: 1020 | AA105: (5.2)
A106: ZD | B106: 49 | C106: (10.4) | D106: 37 | E106: (7.8) | F106: 39 | G106: (8.2) | H106: 32 | I106: (6.8) | J106: 42 | K106: (8.9) | L106: 42 | M106: (8.9) | N106: 45 | O106: (9.5) | P106: 35 | Q106: (7.4) | R106: 36 | S106: (7.6) | T106: 31 | U106: (6.6) | V106: 41 | W106: (8.7) | X106: 44 | Y106: (9.3) | Z106: 473 | AA106: (2.4)
A107: ZE | B107: 22 | C107: (7.3) | D107: 36 | E107: (12.0) | F107: 29 | G107: (9.6) | H107: 31 | I107: (10.3) | J107: 26 | K107: (8.6) | L107: 31 | M107: (10.3) | N107: 23 | O107: (7.6) | P107: 22 | Q107: (7.3) | R107: 18 | S107: (6.0) | T107: 22 | U107: (7.3) | V107: 20 | W107: (6.6) | X107: 21 | Y107: (7.0) | Z107: 301 | AA107: (1.5)
A108: ZF | B108: 12 | C108: (9.8) | D108: 10 | E108: (8.1) | F108: 13 | G108: (10.6) | H108: 10 | I108: (8.1) | J108: 8 | K108: (6.5) | L108: 13 | M108: (10.6) | N108: 13 | O108: (10.6) | P108: 8 | Q108: (6.5) | R108: 10 | S108: (8.1) | T108: 10 | U108: (8.1) | V108: 10 | W108: (8.1) | X108: 6 | Y108: (4.9) | Z108: 123 | AA108: (0.6)
A109: Total | B109: 1794 | C109: (9.1) | D109: 1658 | E109: (8.4) | F109: 1681 | G109: (8.5) | H109: 1619 | I109: (8.2) | J109: 1577 | K109: (8.0) | L109: 1600 | M109: (8.1) | N109: 1668 | O109: (8.4) | P109: 1412 | Q109: (7.1) | R109: 1529 | S109: (7.7) | T109: 1693 | U109: (8.6) | V109: 1690 | W109: (8.6) | X109: 1839 | Y109: (9.3) | Z109: 19760 | AA109: (100.0)
A110: Grand
A111: Total | B111: 5215 | C111: (8.7) | D111: 4818 | E111: (8.1) | F111: 5104 | G111: (8.6) | H111: 4796 | I111: (8.0) | J111: 4990 | K111: (8.4) | L111: 4725 | M111: (7.9) | N111: 4997 | O111: (8.4) | P111: 4413 | Q111: (7.4) | R111: 4700 | S111: (7.9) | T111: 5169 | U111: (8.7) | V111: 5302 | W111: (8.9) | X111: 5413 | Y111: (9.1) | Z111: 59642 | AA111: (100.0)

Sheet 10
A1: TABLE 10 ADMISSIONS BY COUNTRY / NHS COMMISSIONING REGION (NHSCR) AND YEAR, 2012 - 2014
B2: YEAR
A3: Country / NHSCR | B3: 2012 | D3: 2013 | F3: 2014 | H3: Total
B4: n | C4: (%) | D4: n | E4: (%) | F4: n | G4: (%) | H4: n | I4: (%)
A6: England
A7: London | B7: 3099 | C7: 15.52449654 | D7: 3020 | E7: 15.16064257 | F7: 2978 | G7: 15.0708502 | H7: 9097 | I7: 15.25267429
A8: Midlands and East of England | B8: 4640 | C8: 23.24416391 | D8: 4370 | E8: 21.937751 | F8: 4484 | G8: 22.69230769 | H8: 13494 | I8: 22.62499581
A9: North of England | B9: 4130 | C9: 20.68930969 | D9: 3960 | E9: 19.87951807 | F9: 3901 | G9: 19.74190283 | H9: 11991 | I9: 20.10495959
A10: South of England | B10: 3245 | C10: 16.25588618 | D10: 3561 | E10: 17.87650602 | F10: 3461 | G10: 17.51518219 | H10: 10267 | I10: 17.21437913
A11: Total | B11: 15114 | C11: 75.71385633 | D11: 14911 | E11: 74.85441767 | F11: 14824 | G11: 75.02024291 | H11: 44849 | I11: 75.19700882
A13: Wales | B13: 602 | C13: 3.015729887 | D13: 526 | E13: 2.640562249 | F13: 559 | G13: 2.828947368 | H13: 1687 | I13: 2.828543644
A15: Scotland | B15: 1421 | C15: 7.118525198 | D15: 1518 | E15: 7.620481928 | F15: 1465 | G15: 7.413967611 | H15: 4404 | I15: 7.384058214
A17: Northern Ireland | B17: 558 | C17: 2.795311091 | D17: 575 | E17: 2.886546185 | F17: 689 | G17: 3.486842105 | H17: 1822 | I17: 3.054894202
A19: Republic of Ireland | B19: 1569 | C19: 7.859933874 | D19: 1553 | E19: 7.796184739 | F19: 1502 | G19: 7.601214575 | H19: 4624 | I19: 7.752925791
A21: Channel Islands | B21: 19 | C21: 0.0951808436 | D21: 28 | E21: 0.140562249 | F21: 20 | G21: 0.1012145749 | H21: 67 | I21: 0.1123369438
A23: Isle of Man | B23: 13 | C23: 0.0651237351 | D23: 19 | E23: 0.0953815261 | F23: 9 | G23: 0.0455465587 | H23: 41 | I23: 0.0687435029
A25: Missing | B25: 73 | C25: 0.3656948202 | D25: 62 | E25: 0.3112449799 | F25: 119 | G25: 0.6022267206 | H25: 254 | I25: 0.4258743838
A27: Out of Area | B27: 593 | C27: 2.970644224 | D27: 728 | E27: 3.654618474 | F27: 573 | G27: 2.899797571 | H27: 1894 | I27: 3.1756145
A29: Grand Total | B29: 19962 | C29: 100 | D29: 19920 | E29: 100 | F29: 19760 | G29: 100 | H29: 59642 | I29: 100

Sheet Figure 10
A1: FIGURE 10 MAP SHOWING NHS AREA TEAM / HEALTH ORGANISATION / COUNTY BOUNDARIES
A3: Figure 10 shows the new Health Geography of England, with 4 NHS Commissioning Regions (NHSCR), 25 NHS area teams (NHSATs: the three London teams have already merged) and more than 200 Clinical Commissioning Groups (CCGs; not shown), which replaced the old structure of SHAs and PCTs in April 2013. Maps in this report are presented by CR and CCG.
A5: Wales comprises a single health authority split into 7 Local Health Boards which are responsible for primary care.
A6: Scotland is split into 14 Health Boards which are responsible for primary care.
A7: Northern Ireland now has 1 Health and Social Care Board with 5 Trusts.
A8: For the Republic of Ireland, counties are shown.
A9: These areas are marked by codes on the map.
C13: FIGURE 10 KEY
C15: England | F15: Republic of Ireland | I15: Scotland
C16: Code | D16: NHSAT | F16: Code | G16: County | I16: Code | J16: Health Board
C17: Q44 | D17: Cheshire, Warrington and Wirral | F17: 01 | G17: Carlow | I17: SA9 | J17: Ayrshire & Arran
C18: Q45 | D18: Durham, Darlington and Tees | F18: 02 | G18: Dublin | I18: SB9 | J18: Borders
C19: Q46 | D19: Greater Manchester | F19: 03 | G19: Kildare | I19: SF9 | J19: Fife
C20: Q47 | D20: Lancashire | F20: 04 | G20: Kilkenny | I20: SJ9 | J20: Greater Glasgow & Clyde
C21: Q48 | D21: Merseyside | F21: 05 | G21: Laois | I21: SK9 | J21: Highland
C22: Q49 | D22: Cumbria, Northumberland, Tyne and Wear | F22: 06 | G22: Longford | I22: SL9 | J22: Lanarkshire
C23: Q50 | D23: North Yorkshire and Humber | F23: 07 | G23: Louth | I23: SN9 | J23: Grampian
C24: Q51 | D24: South Yorkshire and Bassetlaw | F24: 08 | G24: Meath | I24: SR9 | J24: Orkney
C25: Q52 | D25: West Yorkshire | F25: 09 | G25: Offaly | I25: SS9 | J25: Lothian
C26: Q53 | D26: Arden, Herefordshire and Worcestershire | F26: 10 | G26: Westmeath | I26: ST9 | J26: Tayside
C27: Q54 | D27: Birmingham and the Black Country | F27: 11 | G27: Wexford | I27: SV9 | J27: Forth Valley
C28: Q55 | D28: Derbyshire and Nottinghamshire | F28: 12 | G28: Wicklow | I28: SW9 | J28: Western Isles
C29: Q56 | D29: East Anglia | F29: 13 | G29: Clare | I29: SY9 | J29: Dumfries and Galloway
C30: Q57 | D30: Essex | F30: 14 | G30: Cork | I30: SZ9 | J30: Shetland
C31: Q58 | D31: Hertfordshire and the South Midlands | F31: 15 | G31: Kerry
C32: Q59 | D32: Leicestershire and Lincolnshire | F32: 16 | G32: Limerick | I32: Wales
C33: Q60 | D33: Shropshire and Staffordshire | F33: 17 | G33: Tipperary | I33: Code | J33: Health Board
C34: Q64 | D34: Bath, Gloucestershire, Swindon and Wiltshire | F34: 18 | G34: Waterford | I34: 7A1 | J34: Betsi Cadwaladr University
C35: Q65 | D35: Bristol, North Somerset, Somerset and South Gloucestershire | F35: 19 | G35: Galway | I35: 7A2 | J35: Hywel Dda
C36: Q66 | D36: Devon, Cornwall and Isles of Scilly | F36: 20 | G36: Leitrim | I36: 7A3 | J36: Abertawe Bro Morgannwg University
C37: Q67 | D37: Kent and Medway | F37: 21 | G37: Mayo | I37: 7A4 | J37: Cardiff and Vale University
C38: Q68 | D38: Surrey and Sussex | F38: 22 | G38: Roscommon | I38: 7A5 | J38: Cwm Taf
C39: Q69 | D39: Thames Valley | F39: 23 | G39: Sligo | I39: 7A6 | J39: Aneurin Bevan
C40: Q70 | D40: Wessex | F40: 24 | G40: Cavan | I40: 7A7 | J40: Powys Teaching
C41: Q71 | D41: London | F41: 25 | G41: Donegal
F42: 26 | G42: Monaghan | I42: C00 | J42: Channel Isles
F44: Northern Ireland | I44: M00 | J44: Isle of Man
F45: Code | G45: HSCT
F46: ZC1 | G46: Belfast
F47: ZC2 | G47: Northern
F48: ZC3 | G48: Southern
F49: ZC4 | G49: South Eastern
F50: ZC5 | G50: Western
C75: Contains National Statistics data © Crown copyright and database right 2015 Contains Ordnance Survey data © Crown copyright and database right 2015

Sheet 11
A1: TABLE 11 ADMISSIONS BY PREDICTED MORTALITY RISK GROUP, BY HEALTH ORGANISATION, 2012 - 2014
A3: Year / Organisation | B3: PIM2 (RECALIBRATED) GROUP
B4: <1% | D4: 1-<5% | F4: 5-<15% | H4: 15-<30% | J4: 30%+ | L4: Total
B5: n | C5: (%) | D5: n | E5: (%) | F5: n | G5: (%) | H5: n | I5: (%) | J5: n | K5: (%) | L5: n | M5: (%)
A6: 2012
A7: A | B7: 299 | C7: (48.3) | D7: 279 | E7: (45.1) | F7: 28 | G7: (4.5) | H7: 9 | I7: (1.5) | J7: 4 | K7: (0.6) | L7: 619 | M7: (3.1)
A8: B | B8: 127 | C8: (65.1) | D8: 61 | E8: (31.3) | F8: 7 | G8: (3.6) | H8: 0 | I8: (0.0) | J8: 0 | K8: (0.0) | L8: 195 | M8: (1.0)
A9: C | B9: 113 | C9: (35.9) | D9: 133 | E9: (42.2) | F9: 60 | G9: (19.0) | H9: 5 | I9: (1.6) | J9: 4 | K9: (1.3) | L9: 315 | M9: (1.6)
A10: D | B10: 256 | C10: (33.8) | D10: 330 | E10: (43.6) | F10: 137 | G10: (18.1) | H10: 22 | I10: (2.9) | J10: 12 | K10: (1.6) | L10: 757 | M10: (3.8)
A11: E1 | B11: 215 | C11: (22.9) | D11: 403 | E11: (43.0) | F11: 265 | G11: (28.3) | H11: 41 | I11: (4.4) | J11: 14 | K11: (1.5) | L11: 938 | M11: (4.7)
A12: E2 | B12: 357 | C12: (43.6) | D12: 322 | E12: (39.3) | F12: 107 | G12: (13.1) | H12: 21 | I12: (2.6) | J12: 12 | K12: (1.5) | L12: 819 | M12: (4.1)
A13: F | B13: 494 | C13: (39.4) | D13: 577 | E13: (46.0) | F13: 139 | G13: (11.1) | H13: 25 | I13: (2.0) | J13: 20 | K13: (1.6) | L13: 1255 | M13: (6.3)
A14: G | B14: 2 | C14: (10.5) | D14: 13 | E14: (68.4) | F14: 4 | G14: (21.1) | H14: 0 | I14: (0.0) | J14: 0 | K14: (0.0) | L14: 19 | M14: (0.1)
A15: H | B15: 170 | C15: (26.4) | D15: 344 | E15: (53.3) | F15: 95 | G15: (14.7) | H15: 19 | I15: (2.9) | J15: 17 | K15: (2.6) | L15: 645 | M15: (3.2)
A16: I | B16: 426 | C16: (48.8) | D16: 307 | E16: (35.2) | F16: 107 | G16: (12.3) | H16: 20 | I16: (2.3) | J16: 13 | K16: (1.5) | L16: 873 | M16: (4.4)
A17: K1K3 | B17: 228 | C17: (42.1) | D17: 242 | E17: (44.6) | F17: 59 | G17: (10.9) | H17: 8 | I17: (1.5) | J17: 5 | K17: (0.9) | L17: 542 | M17: (2.7)
A18: K2 | B18: 113 | C18: (35.3) | D18: 129 | E18: (40.3) | F18: 56 | G18: (17.5) | H18: 18 | I18: (5.6) | J18: 4 | K18: (1.3) | L18: 320 | M18: (1.6)
A19: L | B19: 90 | C19: (29.3) | D19: 147 | E19: (47.9) | F19: 57 | G19: (18.6) | H19: 11 | I19: (3.6) | J19: 2 | K19: (0.7) | L19: 307 | M19: (1.5)
A20: M | B20: 145 | C20: (33.5) | D20: 211 | E20: (48.7) | F20: 59 | G20: (13.6) | H20: 10 | I20: (2.3) | J20: 8 | K20: (1.8) | L20: 433 | M20: (2.2)
A21: N | B21: 250 | C21: (46.0) | D21: 234 | E21: (43.0) | F21: 51 | G21: (9.4) | H21: 3 | I21: (0.6) | J21: 6 | K21: (1.1) | L21: 544 | M21: (2.7)
A22: O | B22: 257 | C22: (39.0) | D22: 322 | E22: (48.9) | F22: 68 | G22: (10.3) | H22: 10 | I22: (1.5) | J22: 2 | K22: (0.3) | L22: 659 | M22: (3.3)
A23: P | B23: 299 | C23: (26.2) | D23: 551 | E23: (48.2) | F23: 239 | G23: (20.9) | H23: 37 | I23: (3.2) | J23: 17 | K23: (1.5) | L23: 1143 | M23: (5.7)
A24: Q | B24: 157 | C24: (31.3) | D24: 254 | E24: (50.7) | F24: 73 | G24: (14.6) | H24: 9 | I24: (1.8) | J24: 8 | K24: (1.6) | L24: 501 | M24: (2.5)
A25: R | B25: 325 | C25: (37.6) | D25: 398 | E25: (46.0) | F25: 110 | G25: (12.7) | H25: 17 | I25: (2.0) | J25: 15 | K25: (1.7) | L25: 865 | M25: (4.3)
A26: S | B26: 67 | C26: (41.1) | D26: 83 | E26: (50.9) | F26: 10 | G26: (6.1) | H26: 2 | I26: (1.2) | J26: 1 | K26: (0.6) | L26: 163 | M26: (0.8)
A27: T | B27: 229 | C27: (44.0) | D27: 204 | E27: (39.2) | F27: 62 | G27: (11.9) | H27: 18 | I27: (3.5) | J27: 7 | K27: (1.3) | L27: 520 | M27: (2.6)
A28: U | B28: 59 | C28: (17.5) | D28: 144 | E28: (42.6) | F28: 107 | G28: (31.7) | H28: 20 | I28: (5.9) | J28: 8 | K28: (2.4) | L28: 338 | M28: (1.7)
A29: V | B29: 336 | C29: (23.8) | D29: 701 | E29: (49.8) | F29: 279 | G29: (19.8) | H29: 62 | I29: (4.4) | J29: 31 | K29: (2.2) | L29: 1409 | M29: (7.1)
A30: W | B30: 228 | C30: (33.8) | D30: 283 | E30: (42.0) | F30: 126 | G30: (18.7) | H30: 23 | I30: (3.4) | J30: 14 | K30: (2.1) | L30: 674 | M30: (3.4)
A31: X | B31: 280 | C31: (31.5) | D31: 428 | E31: (48.1) | F31: 154 | G31: (17.3) | H31: 22 | I31: (2.5) | J31: 6 | K31: (0.7) | L31: 890 | M31: (4.5)
A32: Y | B32: 251 | C32: (57.0) | D32: 144 | E32: (32.7) | F32: 36 | G32: (8.2) | H32: 3 | I32: (0.7) | J32: 6 | K32: (1.4) | L32: 440 | M32: (2.2)
A33: Z | B33: 112 | C33: (31.7) | D33: 207 | E33: (58.6) | F33: 29 | G33: (8.2) | H33: 3 | I33: (0.8) | J33: 2 | K33: (0.6) | L33: 353 | M33: (1.8)
A34: ZA | B34: 570 | C34: (59.3) | D34: 314 | E34: (32.7) | F34: 60 | G34: (6.2) | H34: 9 | I34: (0.9) | J34: 8 | K34: (0.8) | L34: 961 | M34: (4.8)
A35: ZB | B35: 215 | C35: (47.9) | D35: 181 | E35: (40.3) | F35: 38 | G35: (8.5) | H35: 9 | I35: (2.0) | J35: 6 | K35: (1.3) | L35: 449 | M35: (2.2)
A36: ZC | B36: 416 | C36: (38.6) | D36: 462 | E36: (42.8) | F36: 157 | G36: (14.6) | H36: 33 | I36: (3.1) | J36: 11 | K36: (1.0) | L36: 1079 | M36: (5.4)
A37: ZD | B37: 173 | C37: (34.2) | D37: 222 | E37: (43.9) | F37: 95 | G37: (18.8) | H37: 15 | I37: (3.0) | J37: 1 | K37: (0.2) | L37: 506 | M37: (2.5)
A38: ZE | B38: 259 | C38: (60.1) | D38: 145 | E38: (33.6) | F38: 23 | G38: (5.3) | H38: 4 | I38: (0.9) | J38: 0 | K38: (0.0) | L38: 431 | M38: (2.2)
A39: Total | B39: 7518 | C39: (37.7) | D39: 8775 | E39: (44.0) | F39: 2897 | G39: (14.5) | H39: 508 | I39: (2.5) | J39: 264 | K39: (1.3) | L39: 19962 | M39: (100.0)
A40: 2013
A41: A | B41: 333 | C41: (50.8) | D41: 268 | E41: (40.9) | F41: 41 | G41: (6.3) | H41: 5 | I41: (0.8) | J41: 9 | K41: (1.4) | L41: 656 | M41: (3.3)
A42: B | B42: 161 | C42: (65.7) | D42: 75 | E42: (30.6) | F42: 9 | G42: (3.7) | H42: 0 | I42: (0.0) | J42: 0 | K42: (0.0) | L42: 245 | M42: (1.2)
A43: C | B43: 76 | C43: (29.0) | D43: 115 | E43: (43.9) | F43: 62 | G43: (23.7) | H43: 7 | I43: (2.7) | J43: 2 | K43: (0.8) | L43: 262 | M43: (1.3)
A44: D | B44: 119 | C44: (18.7) | D44: 378 | E44: (59.5) | F44: 110 | G44: (17.3) | H44: 15 | I44: (2.4) | J44: 13 | K44: (2.0) | L44: 635 | M44: (3.2)
A45: E1 | B45: 263 | C45: (27.4) | D45: 443 | E45: (46.1) | F45: 204 | G45: (21.2) | H45: 32 | I45: (3.3) | J45: 19 | K45: (2.0) | L45: 961 | M45: (4.8)
A46: E2 | B46: 393 | C46: (48.8) | D46: 277 | E46: (34.4) | F46: 96 | G46: (11.9) | H46: 32 | I46: (4.0) | J46: 7 | K46: (0.9) | L46: 805 | M46: (4.0)
A47: F | B47: 483 | C47: (40.0) | D47: 538 | E47: (44.5) | F47: 144 | G47: (11.9) | H47: 30 | I47: (2.5) | J47: 13 | K47: (1.1) | L47: 1208 | M47: (6.1)
A48: G | B48: 0 | C48: (0.0) | D48: 16 | E48: (80.0) | F48: 4 | G48: (20.0) | H48: 0 | I48: (0.0) | J48: 0 | K48: (0.0) | L48: 20 | M48: (0.1)
A49: H | B49: 223 | C49: (34.6) | D49: 311 | E49: (48.3) | F49: 82 | G49: (12.7) | H49: 16 | I49: (2.5) | J49: 12 | K49: (1.9) | L49: 644 | M49: (3.2)
A50: I | B50: 429 | C50: (49.2) | D50: 291 | E50: (33.4) | F50: 101 | G50: (11.6) | H50: 33 | I50: (3.8) | J50: 18 | K50: (2.1) | L50: 872 | M50: (4.4)
A51: K1K3 | B51: 229 | C51: (42.8) | D51: 228 | E51: (42.6) | F51: 60 | G51: (11.2) | H51: 8 | I51: (1.5) | J51: 10 | K51: (1.9) | L51: 535 | M51: (2.7)
A52: K2 | B52: 106 | C52: (32.5) | D52: 141 | E52: (43.3) | F52: 56 | G52: (17.2) | H52: 16 | I52: (4.9) | J52: 7 | K52: (2.1) | L52: 326 | M52: (1.6)
A53: L | B53: 93 | C53: (30.3) | D53: 157 | E53: (51.1) | F53: 50 | G53: (16.3) | H53: 5 | I53: (1.6) | J53: 2 | K53: (0.7) | L53: 307 | M53: (1.5)
A54: M | B54: 109 | C54: (31.8) | D54: 156 | E54: (45.5) | F54: 67 | G54: (19.5) | H54: 5 | I54: (1.5) | J54: 6 | K54: (1.7) | L54: 343 | M54: (1.7)
A55: N | B55: 418 | C55: (53.4) | D55: 320 | E55: (40.9) | F55: 37 | G55: (4.7) | H55: 2 | I55: (0.3) | J55: 6 | K55: (0.8) | L55: 783 | M55: (3.9)
A56: O | B56: 279 | C56: (43.2) | D56: 281 | E56: (43.5) | F56: 68 | G56: (10.5) | H56: 11 | I56: (1.7) | J56: 7 | K56: (1.1) | L56: 646 | M56: (3.2)
A57: P | B57: 346 | C57: (32.3) | D57: 431 | E57: (40.3) | F57: 232 | G57: (21.7) | H57: 40 | I57: (3.7) | J57: 21 | K57: (2.0) | L57: 1070 | M57: (5.4)
A58: Q | B58: 169 | C58: (34.1) | D58: 254 | E58: (51.2) | F58: 56 | G58: (11.3) | H58: 9 | I58: (1.8) | J58: 8 | K58: (1.6) | L58: 496 | M58: (2.5)
A59: R | B59: 325 | C59: (34.0) | D59: 432 | E59: (45.2) | F59: 145 | G59: (15.2) | H59: 34 | I59: (3.6) | J59: 20 | K59: (2.1) | L59: 956 | M59: (4.8)
A60: S | B60: 51 | C60: (41.5) | D60: 60 | E60: (48.8) | F60: 11 | G60: (8.9) | H60: 1 | I60: (0.8) | J60: 0 | K60: (0.0) | L60: 123 | M60: (0.6)
A61: T | B61: 238 | C61: (44.9) | D61: 196 | E61: (37.0) | F61: 79 | G61: (14.9) | H61: 11 | I61: (2.1) | J61: 6 | K61: (1.1) | L61: 530 | M61: (2.7)
A62: U | B62: 64 | C62: (19.1) | D62: 156 | E62: (46.6) | F62: 101 | G62: (30.1) | H62: 9 | I62: (2.7) | J62: 5 | K62: (1.5) | L62: 335 | M62: (1.7)
A63: V | B63: 280 | C63: (21.5) | D63: 609 | E63: (46.8) | F63: 330 | G63: (25.3) | H63: 55 | I63: (4.2) | J63: 28 | K63: (2.2) | L63: 1302 | M63: (6.5)
A64: W | B64: 208 | C64: (31.4) | D64: 293 | E64: (44.3) | F64: 119 | G64: (18.0) | H64: 25 | I64: (3.8) | J64: 17 | K64: (2.6) | L64: 662 | M64: (3.3)
A65: X | B65: 282 | C65: (34.4) | D65: 396 | E65: (48.3) | F65: 118 | G65: (14.4) | H65: 13 | I65: (1.6) | J65: 11 | K65: (1.3) | L65: 820 | M65: (4.1)
A66: Y | B66: 273 | C66: (60.3) | D66: 149 | E66: (32.9) | F66: 25 | G66: (5.5) | H66: 2 | I66: (0.4) | J66: 4 | K66: (0.9) | L66: 453 | M66: (2.3)
A67: Z | B67: 138 | C67: (38.1) | D67: 197 | E67: (54.4) | F67: 18 | G67: (5.0) | H67: 4 | I67: (1.1) | J67: 5 | K67: (1.4) | L67: 362 | M67: (1.8)
A68: ZA | B68: 606 | C68: (57.7) | D68: 378 | E68: (36.0) | F68: 55 | G68: (5.2) | H68: 10 | I68: (1.0) | J68: 2 | K68: (0.2) | L68: 1051 | M68: (5.3)
A69: ZB | B69: 189 | C69: (43.5) | D69: 190 | E69: (43.8) | F69: 44 | G69: (10.1) | H69: 8 | I69: (1.8) | J69: 3 | K69: (0.7) | L69: 434 | M69: (2.2)
A70: ZC | B70: 399 | C70: (37.3) | D70: 451 | E70: (42.1) | F70: 179 | G70: (16.7) | H70: 32 | I70: (3.0) | J70: 10 | K70: (0.9) | L70: 1071 | M70: (5.4)
A71: ZD | B71: 183 | C71: (36.8) | D71: 227 | E71: (45.7) | F71: 67 | G71: (13.5) | H71: 15 | I71: (3.0) | J71: 5 | K71: (1.0) | L71: 497 | M71: (2.5)
A72: ZE | B72: 309 | C72: (65.5) | D72: 134 | E72: (28.4) | F72: 21 | G72: (4.4) | H72: 2 | I72: (0.4) | J72: 6 | K72: (1.3) | L72: 472 | M72: (2.4)
A73: ZF | B73: 17 | C73: (44.7) | D73: 17 | E73: (44.7) | F73: 4 | G73: (10.5) | H73: 0 | I73: (0.0) | J73: 0 | K73: (0.0) | L73: 38 | M73: (0.2)
A74: Total | B74: 7791 | C74: (39.1) | D74: 8565 | E74: (43.0) | F74: 2795 | G74: (14.0) | H74: 487 | I74: (2.4) | J74: 282 | K74: (1.4) | L74: 19920 | M74: (100.0)
A75: 2014
A76: A | B76: 295 | C76: (45.6) | D76: 299 | E76: (46.2) | F76: 43 | G76: (6.6) | H76: 6 | I76: (0.9) | J76: 4 | K76: (0.6) | L76: 647 | M76: (3.3)
A77: B | B77: 200 | C77: (75.5) | D77: 61 | E77: (23.0) | F77: 3 | G77: (1.1) | H77: 1 | I77: (0.4) | J77: 0 | K77: (0.0) | L77: 265 | M77: (1.3)
A78: C | B78: 103 | C78: (34.6) | D78: 125 | E78: (41.9) | F78: 53 | G78: (17.8) | H78: 7 | I78: (2.3) | J78: 10 | K78: (3.4) | L78: 298 | M78: (1.5)
A79: D | B79: 237 | C79: (31.4) | D79: 375 | E79: (49.7) | F79: 110 | G79: (14.6) | H79: 18 | I79: (2.4) | J79: 15 | K79: (2.0) | L79: 755 | M79: (3.8)
A80: E1 | B80: 245 | C80: (26.1) | D80: 426 | E80: (45.5) | F80: 213 | G80: (22.7) | H80: 35 | I80: (3.7) | J80: 18 | K80: (1.9) | L80: 937 | M80: (4.7)
A81: E2 | B81: 382 | C81: (48.2) | D81: 300 | E81: (37.9) | F81: 76 | G81: (9.6) | H81: 23 | I81: (2.9) | J81: 11 | K81: (1.4) | L81: 792 | M81: (4.0)
A82: F | B82: 700 | C82: (55.6) | D82: 496 | E82: (39.4) | F82: 55 | G82: (4.4) | H82: 3 | I82: (0.2) | J82: 4 | K82: (0.3) | L82: 1258 | M82: (6.4)
A83: G | B83: 0 | C83: (0.0) | D83: 10 | E83: (83.3) | F83: 1 | G83: (8.3) | H83: 1 | I83: (8.3) | J83: 0 | K83: (0.0) | L83: 12 | M83: (0.1)
A84: H | B84: 208 | C84: (38.5) | D84: 262 | E84: (48.5) | F84: 53 | G84: (9.8) | H84: 11 | I84: (2.0) | J84: 6 | K84: (1.1) | L84: 540 | M84: (2.7)
A85: I | B85: 384 | C85: (48.2) | D85: 276 | E85: (34.7) | F85: 93 | G85: (11.7) | H85: 27 | I85: (3.4) | J85: 16 | K85: (2.0) | L85: 796 | M85: (4.0)
A86: K1K3 | B86: 234 | C86: (41.1) | D86: 254 | E86: (44.6) | F86: 64 | G86: (11.2) | H86: 11 | I86: (1.9) | J86: 6 | K86: (1.1) | L86: 569 | M86: (2.9)
A87: K2 | B87: 81 | C87: (28.3) | D87: 137 | E87: (47.9) | F87: 50 | G87: (17.5) | H87: 10 | I87: (3.5) | J87: 8 | K87: (2.8) | L87: 286 | M87: (1.4)
A88: L | B88: 82 | C88: (27.0) | D88: 156 | E88: (51.3) | F88: 55 | G88: (18.1) | H88: 6 | I88: (2.0) | J88: 5 | K88: (1.6) | L88: 304 | M88: (1.5)
A89: M | B89: 168 | C89: (41.5) | D89: 176 | E89: (43.5) | F89: 53 | G89: (13.1) | H89: 2 | I89: (0.5) | J89: 6 | K89: (1.5) | L89: 405 | M89: (2.0)
A90: N | B90: 398 | C90: (54.7) | D90: 262 | E90: (36.0) | F90: 58 | G90: (8.0) | H90: 3 | I90: (0.4) | J90: 7 | K90: (1.0) | L90: 728 | M90: (3.7)
A91: O | B91: 261 | C91: (38.0) | D91: 322 | E91: (46.9) | F91: 93 | G91: (13.5) | H91: 8 | I91: (1.2) | J91: 3 | K91: (0.4) | L91: 687 | M91: (3.5)
A92: P | B92: 349 | C92: (34.5) | D92: 431 | E92: (42.5) | F92: 192 | G92: (19.0) | H92: 30 | I92: (3.0) | J92: 11 | K92: (1.1) | L92: 1013 | M92: (5.1)
A93: Q | B93: 157 | C93: (30.4) | D93: 246 | E93: (47.6) | F93: 95 | G93: (18.4) | H93: 13 | I93: (2.5) | J93: 6 | K93: (1.2) | L93: 517 | M93: (2.6)
A94: R | B94: 300 | C94: (33.6) | D94: 420 | E94: (47.0) | F94: 132 | G94: (14.8) | H94: 27 | I94: (3.0) | J94: 14 | K94: (1.6) | L94: 893 | M94: (4.5)
A95: S | B95: 64 | C95: (48.5) | D95: 53 | E95: (40.2) | F95: 12 | G95: (9.1) | H95: 2 | I95: (1.5) | J95: 1 | K95: (0.8) | L95: 132 | M95: (0.7)
A96: T | B96: 210 | C96: (44.2) | D96: 198 | E96: (41.7) | F96: 53 | G96: (11.2) | H96: 8 | I96: (1.7) | J96: 6 | K96: (1.3) | L96: 475 | M96: (2.4)
A97: U | B97: 76 | C97: (23.4) | D97: 163 | E97: (50.2) | F97: 75 | G97: (23.1) | H97: 4 | I97: (1.2) | J97: 7 | K97: (2.2) | L97: 325 | M97: (1.6)
A98: V | B98: 200 | C98: (14.9) | D98: 690 | E98: (51.3) | F98: 356 | G98: (26.5) | H98: 73 | I98: (5.4) | J98: 26 | K98: (1.9) | L98: 1345 | M98: (6.8)
A99: W | B99: 239 | C99: (34.6) | D99: 305 | E99: (44.2) | F99: 105 | G99: (15.2) | H99: 23 | I99: (3.3) | J99: 18 | K99: (2.6) | L99: 690 | M99: (3.5)
A100: X | B100: 273 | C100: (35.0) | D100: 382 | E100: (49.0) | F100: 104 | G100: (13.3) | H100: 16 | I100: (2.1) | J100: 5 | K100: (0.6) | L100: 780 | M100: (3.9)
A101: Y | B101: 207 | C101: (54.6) | D101: 138 | E101: (36.4) | F101: 33 | G101: (8.7) | H101: 0 | I101: (0.0) | J101: 1 | K101: (0.3) | L101: 379 | M101: (1.9)
A102: Z | B102: 167 | C102: (38.7) | D102: 218 | E102: (50.5) | F102: 39 | G102: (9.0) | H102: 3 | I102: (0.7) | J102: 5 | K102: (1.2) | L102: 432 | M102: (2.2)
A103: ZA | B103: 634 | C103: (58.9) | D103: 384 | E103: (35.7) | F103: 47 | G103: (4.4) | H103: 4 | I103: (0.4) | J103: 7 | K103: (0.7) | L103: 1076 | M103: (5.4)
A104: ZB | B104: 209 | C104: (41.2) | D104: 242 | E104: (47.7) | F104: 47 | G104: (9.3) | H104: 3 | I104: (0.6) | J104: 6 | K104: (1.2) | L104: 507 | M104: (2.6)
A105: ZC | B105: 393 | C105: (38.5) | D105: 382 | E105: (37.5) | F105: 175 | G105: (17.2) | H105: 42 | I105: (4.1) | J105: 28 | K105: (2.7) | L105: 1020 | M105: (5.2)
A106: ZD | B106: 177 | C106: (37.4) | D106: 236 | E106: (49.9) | F106: 46 | G106: (9.7) | H106: 9 | I106: (1.9) | J106: 5 | K106: (1.1) | L106: 473 | M106: (2.4)
A107: ZE | B107: 211 | C107: (70.1) | D107: 80 | E107: (26.6) | F107: 9 | G107: (3.0) | H107: 1 | I107: (0.3) | J107: 0 | K107: (0.0) | L107: 301 | M107: (1.5)
A108: ZF | B108: 82 | C108: (66.7) | D108: 31 | E108: (25.2) | F108: 10 | G108: (8.1) | H108: 0 | I108: (0.0) | J108: 0 | K108: (0.0) | L108: 123 | M108: (0.6)
A109: Total | B109: 7926 | C109: (40.1) | D109: 8536 | E109: (43.2) | F109: 2603 | G109: (13.2) | H109: 430 | I109: (2.2) | J109: 265 | K109: (1.3) | L109: 19760 | M109: (100.0)
A110: Grand
A111: Total | B111: 23235 | C111: (39.0) | D111: 25876 | E111: (43.4) | F111: 8295 | G111: (13.9) | H111: 1425 | I111: (2.4) | J111: 811 | K111: (1.4) | L111: 59642 | M111: (100.0)

Sheet 12
A1: TABLE 12 ADMISSIONS BY ADMISSION TYPE AND AGE, 2012 - 2014
B3: AGE GROUP (YEARS)
A4: Admission Type | B4: <1 | D4: 1-4 | F4: 5-10 | H4: 11-15 | J4: Total
B5: n | C5: (%) | D5: n | E5: (%) | F5: n | G5: (%) | H5: n | I5: (%) | J5: n | K5: (%)
A6: Planned - following surgery | B6: 8529 | C6: (41.3) | D6: 5899 | E6: (28.5) | F6: 3155 | G6: (15.3) | H6: 3079 | I6: (14.9) | J6: 20662 | K6: (34.6)
A7: Unplanned - following surgery | B7: 1065 | C7: (36.8) | D7: 808 | E7: (27.9) | F7: 580 | G7: (20.0) | H7: 442 | I7: (15.3) | J7: 2895 | K7: (4.9)
A8: Planned - other | B8: 2503 | C8: (63.9) | D8: 745 | E8: (19.0) | F8: 375 | G8: (9.6) | H8: 289 | I8: (7.4) | J8: 3912 | K8: (6.6)
A9: Unplanned - other | B9: 15817 | C9: (49.3) | D9: 8530 | E9: (26.6) | F9: 4260 | G9: (13.3) | H9: 3447 | I9: (10.8) | J9: 32054 | K9: (53.7)
A10: Unknown | B10: 35 | C10: (30.7) | D10: 40 | E10: (35.1) | F10: 18 | G10: (15.8) | H10: 21 | I10: (18.4) | J10: 114 | K10: (0.2)
A11: Total | B11: 27949 | C11: (46.9) | D11: 16022 | E11: (26.9) | F11: 8388 | G11: (14.1) | H11: 7278 | I11: (12.2) | J11: 59637 | K11: (100.0)
A13: FIGURE 12 ADMISSIONS BY ADMISSION TYPE AND AGE, 2012 - 2014

Sheet 13
A1: TABLE 13 ADMISSIONS BY ADMISSION TYPE, BY HEALTH ORGANISATION, 2012 - 2014
B3: ADMISSION TYPE
A4: Year / Organisation | B4: Planned - following surgery | D4: Unplanned - following surgery | F4: Planned - other | H4: Unplanned - other | J4: Unknown | L4: Total
B5: n | C5: (%) | D5: n | E5: (%) | F5: n | G5: (%) | H5: n | I5: (%) | J5: n | K5: (%) | L5: n | M5: (%)
A6: 2012
A7: A | B7: 185 | C7: (29.9) | D7: 45 | E7: (7.3) | F7: 69 | G7: (11.1) | H7: 320 | I7: (51.7) | J7: 0 | K7: (0.0) | L7: 619 | M7: (3.1)
A8: B | B8: 2 | C8: (1.0) | D8: 1 | E8: (0.5) | F8: 8 | G8: (4.1) | H8: 175 | I8: (89.7) | J8: 9 | K8: (4.6) | L8: 195 | M8: (1.0)
A9: C | B9: 70 | C9: (22.2) | D9: 21 | E9: (6.7) | F9: 4 | G9: (1.3) | H9: 220 | I9: (69.8) | J9: 0 | K9: (0.0) | L9: 315 | M9: (1.6)
A10: D | B10: 185 | C10: (24.4) | D10: 41 | E10: (5.4) | F10: 13 | G10: (1.7) | H10: 518 | I10: (68.4) | J10: 0 | K10: (0.0) | L10: 757 | M10: (3.8)
A11: E1 | B11: 160 | C11: (17.1) | D11: 59 | E11: (6.3) | F11: 100 | G11: (10.7) | H11: 619 | I11: (66.0) | J11: 0 | K11: (0.0) | L11: 938 | M11: (4.7)
A12: E2 | B12: 503 | C12: (61.4) | D12: 12 | E12: (1.5) | F12: 65 | G12: (7.9) | H12: 239 | I12: (29.2) | J12: 0 | K12: (0.0) | L12: 819 | M12: (4.1)
A13: F | B13: 492 | C13: (39.2) | D13: 23 | E13: (1.8) | F13: 94 | G13: (7.5) | H13: 646 | I13: (51.5) | J13: 0 | K13: (0.0) | L13: 1255 | M13: (6.3)
A14: G | B14: 0 | C14: (0.0) | D14: 2 | E14: (10.5) | F14: 0 | G14: (0.0) | H14: 17 | I14: (89.5) | J14: 0 | K14: (0.0) | L14: 19 | M14: (0.1)
A15: H | B15: 128 | C15: (19.8) | D15: 67 | E15: (10.4) | F15: 44 | G15: (6.8) | H15: 404 | I15: (62.6) | J15: 2 | K15: (0.3) | L15: 645 | M15: (3.2)
A16: I | B16: 409 | C16: (46.8) | D16: 53 | E16: (6.1) | F16: 65 | G16: (7.4) | H16: 346 | I16: (39.6) | J16: 0 | K16: (0.0) | L16: 873 | M16: (4.4)
A17: K1K3 | B17: 162 | C17: (29.9) | D17: 45 | E17: (8.3) | F17: 22 | G17: (4.1) | H17: 313 | I17: (57.7) | J17: 0 | K17: (0.0) | L17: 542 | M17: (2.7)
A18: K2 | B18: 195 | C18: (60.9) | D18: 6 | E18: (1.9) | F18: 30 | G18: (9.4) | H18: 89 | I18: (27.8) | J18: 0 | K18: (0.0) | L18: 320 | M18: (1.6)
A19: L | B19: 24 | C19: (7.8) | D19: 5 | E19: (1.6) | F19: 20 | G19: (6.5) | H19: 257 | I19: (83.7) | J19: 1 | K19: (0.3) | L19: 307 | M19: (1.5)
A20: M | B20: 85 | C20: (19.6) | D20: 28 | E20: (6.5) | F20: 4 | G20: (0.9) | H20: 316 | I20: (73.0) | J20: 0 | K20: (0.0) | L20: 433 | M20: (2.2)
A21: N | B21: 196 | C21: (36.0) | D21: 41 | E21: (7.5) | F21: 11 | G21: (2.0) | H21: 277 | I21: (50.9) | J21: 19 | K21: (3.5) | L21: 544 | M21: (2.7)
A22: O | B22: 377 | C22: (57.2) | D22: 2 | E22: (0.3) | F22: 155 | G22: (23.5) | H22: 125 | I22: (19.0) | J22: 0 | K22: (0.0) | L22: 659 | M22: (3.3)
A23: P | B23: 404 | C23: (35.3) | D23: 60 | E23: (5.2) | F23: 17 | G23: (1.5) | H23: 662 | I23: (57.9) | J23: 0 | K23: (0.0) | L23: 1143 | M23: (5.7)
A24: Q | B24: 78 | C24: (15.6) | D24: 28 | E24: (5.6) | F24: 20 | G24: (4.0) | H24: 375 | I24: (74.9) | J24: 0 | K24: (0.0) | L24: 501 | M24: (2.5)
A25: R | B25: 335 | C25: (38.7) | D25: 43 | E25: (5.0) | F25: 37 | G25: (4.3) | H25: 450 | I25: (52.0) | J25: 0 | K25: (0.0) | L25: 865 | M25: (4.3)
A26: S | B26: 13 | C26: (8.0) | D26: 7 | E26: (4.3) | F26: 4 | G26: (2.5) | H26: 139 | I26: (85.3) | J26: 0 | K26: (0.0) | L26: 163 | M26: (0.8)
A27: T | B27: 160 | C27: (30.8) | D27: 28 | E27: (5.4) | F27: 13 | G27: (2.5) | H27: 317 | I27: (61.0) | J27: 2 | K27: (0.4) | L27: 520 | M27: (2.6)
A28: U | B28: 16 | C28: (4.7) | D28: 13 | E28: (3.8) | F28: 10 | G28: (3.0) | H28: 299 | I28: (88.5) | J28: 0 | K28: (0.0) | L28: 338 | M28: (1.7)
A29: V | B29: 446 | C29: (31.7) | D29: 69 | E29: (4.9) | F29: 60 | G29: (4.3) | H29: 834 | I29: (59.2) | J29: 0 | K29: (0.0) | L29: 1409 | M29: (7.1)
A30: W | B30: 271 | C30: (40.2) | D30: 22 | E30: (3.3) | F30: 22 | G30: (3.3) | H30: 359 | I30: (53.3) | J30: 0 | K30: (0.0) | L30: 674 | M30: (3.4)
A31: X | B31: 243 | C31: (27.3) | D31: 22 | E31: (2.5) | F31: 112 | G31: (12.6) | H31: 513 | I31: (57.6) | J31: 0 | K31: (0.0) | L31: 890 | M31: (4.5)
A32: Y | B32: 220 | C32: (50.0) | D32: 22 | E32: (5.0) | F32: 10 | G32: (2.3) | H32: 188 | I32: (42.7) | J32: 0 | K32: (0.0) | L32: 440 | M32: (2.2)
A33: Z | B33: 30 | C33: (8.5) | D33: 18 | E33: (5.1) | F33: 30 | G33: (8.5) | H33: 267 | I33: (75.6) | J33: 8 | K33: (2.3) | L33: 353 | M33: (1.8)
A34: ZA | B34: 496 | C34: (51.6) | D34: 69 | E34: (7.2) | F34: 19 | G34: (2.0) | H34: 376 | I34: (39.1) | J34: 1 | K34: (0.1) | L34: 961 | M34: (4.8)
A35: ZB | B35: 119 | C35: (26.5) | D35: 35 | E35: (7.8) | F35: 10 | G35: (2.2) | H35: 285 | I35: (63.5) | J35: 0 | K35: (0.0) | L35: 449 | M35: (2.2)
A36: ZC | B36: 475 | C36: (44.0) | D36: 37 | E36: (3.4) | F36: 164 | G36: (15.2) | H36: 403 | I36: (37.3) | J36: 0 | K36: (0.0) | L36: 1079 | M36: (5.4)
A37: ZD | B37: 93 | C37: (18.4) | D37: 47 | E37: (9.3) | F37: 62 | G37: (12.3) | H37: 304 | I37: (60.1) | J37: 0 | K37: (0.0) | L37: 506 | M37: (2.5)
A38: ZE | B38: 276 | C38: (64.0) | D38: 6 | E38: (1.4) | F38: 125 | G38: (29.0) | H38: 24 | I38: (5.6) | J38: 0 | K38: (0.0) | L38: 431 | M38: (2.2)
A39: Total | B39: 6848 | C39: (34.3) | D39: 977 | E39: (4.9) | F39: 1419 | G39: (7.1) | H39: 10676 | I39: (53.5) | J39: 42 | K39: (0.2) | L39: 19962 | M39: (100.0)
A40: 2013
A41: A | B41: 169 | C41: (25.8) | D41: 44 | E41: (6.7) | F41: 87 | G41: (13.3) | H41: 355 | I41: (54.1) | J41: 1 | K41: (0.2) | L41: 656 | M41: (3.3)
A42: B | B42: 5 | C42: (2.0) | D42: 3 | E42: (1.2) | F42: 10 | G42: (4.1) | H42: 225 | I42: (91.8) | J42: 2 | K42: (0.8) | L42: 245 | M42: (1.2)
A43: C | B43: 41 | C43: (15.6) | D43: 11 | E43: (4.2) | F43: 5 | G43: (1.9) | H43: 205 | I43: (78.2) | J43: 0 | K43: (0.0) | L43: 262 | M43: (1.3)
A44: D | B44: 115 | C44: (18.1) | D44: 28 | E44: (4.4) | F44: 16 | G44: (2.5) | H44: 476 | I44: (75.0) | J44: 0 | K44: (0.0) | L44: 635 | M44: (3.2)
A45: E1 | B45: 201 | C45: (20.9) | D45: 63 | E45: (6.6) | F45: 117 | G45: (12.2) | H45: 580 | I45: (60.4) | J45: 0 | K45: (0.0) | L45: 961 | M45: (4.8)
A46: E2 | B46: 528 | C46: (65.6) | D46: 16 | E46: (2.0) | F46: 44 | G46: (5.5) | H46: 217 | I46: (27.0) | J46: 0 | K46: (0.0) | L46: 805 | M46: (4.0)
A47: F | B47: 501 | C47: (41.5) | D47: 29 | E47: (2.4) | F47: 85 | G47: (7.0) | H47: 593 | I47: (49.1) | J47: 0 | K47: (0.0) | L47: 1208 | M47: (6.1)
A48: G | B48: 0 | C48: (0.0) | D48: 1 | E48: (5.0) | F48: 0 | G48: (0.0) | H48: 19 | I48: (95.0) | J48: 0 | K48: (0.0) | L48: 20 | M48: (0.1)
A49: H | B49: 148 | C49: (23.0) | D49: 43 | E49: (6.7) | F49: 45 | G49: (7.0) | H49: 408 | I49: (63.4) | J49: 0 | K49: (0.0) | L49: 644 | M49: (3.2)
A50: I | B50: 415 | C50: (47.6) | D50: 67 | E50: (7.7) | F50: 45 | G50: (5.2) | H50: 345 | I50: (39.6) | J50: 0 | K50: (0.0) | L50: 872 | M50: (4.4)
A51: K1K3 | B51: 160 | C51: (29.9) | D51: 54 | E51: (10.1) | F51: 18 | G51: (3.4) | H51: 303 | I51: (56.6) | J51: 0 | K51: (0.0) | L51: 535 | M51: (2.7)
A52: K2 | B52: 189 | C52: (58.0) | D52: 7 | E52: (2.1) | F52: 36 | G52: (11.0) | H52: 94 | I52: (28.8) | J52: 0 | K52: (0.0) | L52: 326 | M52: (1.6)
A53: L | B53: 25 | C53: (8.1) | D53: 6 | E53: (2.0) | F53: 12 | G53: (3.9) | H53: 264 | I53: (86.0) | J53: 0 | K53: (0.0) | L53: 307 | M53: (1.5)
A54: M | B54: 72 | C54: (21.0) | D54: 30 | E54: (8.7) | F54: 2 | G54: (0.6) | H54: 239 | I54: (69.7) | J54: 0 | K54: (0.0) | L54: 343 | M54: (1.7)
A55: N | B55: 315 | C55: (40.2) | D55: 46 | E55: (5.9) | F55: 23 | G55: (2.9) | H55: 389 | I55: (49.7) | J55: 10 | K55: (1.3) | L55: 783 | M55: (3.9)
A56: O | B56: 399 | C56: (61.8) | D56: 2 | E56: (0.3) | F56: 50 | G56: (7.7) | H56: 195 | I56: (30.2) | J56: 0 | K56: (0.0) | L56: 646 | M56: (3.2)
A57: P | B57: 411 | C57: (38.4) | D57: 34 | E57: (3.2) | F57: 24 | G57: (2.2) | H57: 601 | I57: (56.2) | J57: 0 | K57: (0.0) | L57: 1070 | M57: (5.4)
A58: Q | B58: 57 | C58: (11.5) | D58: 45 | E58: (9.1) | F58: 13 | G58: (2.6) | H58: 381 | I58: (76.8) | J58: 0 | K58: (0.0) | L58: 496 | M58: (2.5)
A59: R | B59: 337 | C59: (35.3) | D59: 34 | E59: (3.6) | F59: 26 | G59: (2.7) | H59: 559 | I59: (58.5) | J59: 0 | K59: (0.0) | L59: 956 | M59: (4.8)
A60: S | B60: 9 | C60: (7.3) | D60: 2 | E60: (1.6) | F60: 4 | G60: (3.3) | H60: 108 | I60: (87.8) | J60: 0 | K60: (0.0) | L60: 123 | M60: (0.6)
A61: T | B61: 166 | C61: (31.3) | D61: 34 | E61: (6.4) | F61: 9 | G61: (1.7) | H61: 320 | I61: (60.4) | J61: 1 | K61: (0.2) | L61: 530 | M61: (2.7)
A62: U | B62: 24 | C62: (7.2) | D62: 12 | E62: (3.6) | F62: 6 | G62: (1.8) | H62: 293 | I62: (87.5) | J62: 0 | K62: (0.0) | L62: 335 | M62: (1.7)
A63: V | B63: 386 | C63: (29.6) | D63: 57 | E63: (4.4) | F63: 46 | G63: (3.5) | H63: 813 | I63: (62.4) | J63: 0 | K63: (0.0) | L63: 1302 | M63: (6.5)
A64: W | B64: 253 | C64: (38.2) | D64: 11 | E64: (1.7) | F64: 33 | G64: (5.0) | H64: 365 | I64: (55.1) | J64: 0 | K64: (0.0) | L64: 662 | M64: (3.3)
A65: X | B65: 242 | C65: (29.5) | D65: 30 | E65: (3.7) | F65: 129 | G65: (15.7) | H65: 419 | I65: (51.1) | J65: 0 | K65: (0.0) | L65: 820 | M65: (4.1)
A66: Y | B66: 242 | C66: (53.4) | D66: 13 | E66: (2.9) | F66: 8 | G66: (1.8) | H66: 190 | I66: (41.9) | J66: 0 | K66: (0.0) | L66: 453 | M66: (2.3)
A67: Z | B67: 28 | C67: (7.7) | D67: 32 | E67: (8.8) | F67: 9 | G67: (2.5) | H67: 291 | I67: (80.4) | J67: 2 | K67: (0.6) | L67: 362 | M67: (1.8)
A68: ZA | B68: 520 | C68: (49.5) | D68: 96 | E68: (9.1) | F68: 21 | G68: (2.0) | H68: 413 | I68: (39.3) | J68: 1 | K68: (0.1) | L68: 1051 | M68: (5.3)
A69: ZB | B69: 138 | C69: (31.8) | D69: 36 | E69: (8.3) | F69: 15 | G69: (3.5) | H69: 245 | I69: (56.5) | J69: 0 | K69: (0.0) | L69: 434 | M69: (2.2)
A70: ZC | B70: 458 | C70: (42.8) | D70: 33 | E70: (3.1) | F70: 136 | G70: (12.7) | H70: 444 | I70: (41.5) | J70: 0 | K70: (0.0) | L70: 1071 | M70: (5.4)
A71: ZD | B71: 133 | C71: (26.8) | D71: 13 | E71: (2.6) | F71: 17 | G71: (3.4) | H71: 334 | I71: (67.2) | J71: 0 | K71: (0.0) | L71: 497 | M71: (2.5)
A72: ZE | B72: 329 | C72: (69.7) | D72: 6 | E72: (1.3) | F72: 95 | G72: (20.1) | H72: 41 | I72: (8.7) | J72: 1 | K72: (0.2) | L72: 472 | M72: (2.4)
A73: ZF | B73: 11 | C73: (28.9) | D73: 6 | E73: (15.8) | F73: 7 | G73: (18.4) | H73: 14 | I73: (36.8) | J73: 0 | K73: (0.0) | L73: 38 | M73: (0.2)
A74: Total | B74: 7027 | C74: (35.3) | D74: 944 | E74: (4.7) | F74: 1193 | G74: (6.0) | H74: 10738 | I74: (53.9) | J74: 18 | K74: (0.1) | L74: 19920 | M74: (100.0)
A75: 2014
A76: A | B76: 162 | C76: (25.0) | D76: 59 | E76: (9.1) | F76: 47 | G76: (7.3) | H76: 379 | I76: (58.6) | J76: 0 | K76: (0.0) | L76: 647 | M76: (3.3)
A77: B | B77: 2 | C77: (0.8) | D77: 2 | E77: (0.8) | F77: 11 | G77: (4.2) | H77: 247 | I77: (93.2) | J77: 3 | K77: (1.1) | L77: 265 | M77: (1.3)
A78: C | B78: 47 | C78: (15.8) | D78: 29 | E78: (9.7) | F78: 4 | G78: (1.3) | H78: 218 | I78: (73.2) | J78: 0 | K78: (0.0) | L78: 298 | M78: (1.5)
A79: D | B79: 199 | C79: (26.4) | D79: 47 | E79: (6.2) | F79: 40 | G79: (5.3) | H79: 469 | I79: (62.1) | J79: 0 | K79: (0.0) | L79: 755 | M79: (3.8)
A80: E1 | B80: 179 | C80: (19.1) | D80: 56 | E80: (6.0) | F80: 171 | G80: (18.2) | H80: 531 | I80: (56.7) | J80: 0 | K80: (0.0) | L80: 937 | M80: (4.7)
A81: E2 | B81: 515 | C81: (65.0) | D81: 17 | E81: (2.1) | F81: 81 | G81: (10.2) | H81: 179 | I81: (22.6) | J81: 0 | K81: (0.0) | L81: 792 | M81: (4.0)
A82: F | B82: 535 | C82: (42.5) | D82: 28 | E82: (2.2) | F82: 99 | G82: (7.9) | H82: 596 | I82: (47.4) | J82: 0 | K82: (0.0) | L82: 1258 | M82: (6.4)
A83: G | B83: 0 | C83: (0.0) | D83: 0 | E83: (0.0) | F83: 0 | G83: (0.0) | H83: 12 | I83: (100.0) | J83: 0 | K83: (0.0) | L83: 12 | M83: (0.1)
A84: H | B84: 130 | C84: (24.1) | D84: 44 | E84: (8.1) | F84: 47 | G84: (8.7) | H84: 319 | I84: (59.1) | J84: 0 | K84: (0.0) | L84: 540 | M84: (2.7)
A85: I | B85: 400 | C85: (50.3) | D85: 42 | E85: (5.3) | F85: 23 | G85: (2.9) | H85: 331 | I85: (41.6) | J85: 0 | K85: (0.0) | L85: 796 | M85: (4.0)
A86: K1K3 | B86: 167 | C86: (29.3) | D86: 61 | E86: (10.7) | F86: 14 | G86: (2.5) | H86: 327 | I86: (57.5) | J86: 0 | K86: (0.0) | L86: 569 | M86: (2.9)
A87: K2 | B87: 146 | C87: (51.0) | D87: 7 | E87: (2.4) | F87: 35 | G87: (12.2) | H87: 98 | I87: (34.3) | J87: 0 | K87: (0.0) | L87: 286 | M87: (1.4)
A88: L | B88: 27 | C88: (8.9) | D88: 10 | E88: (3.3) | F88: 18 | G88: (5.9) | H88: 249 | I88: (81.9) | J88: 0 | K88: (0.0) | L88: 304 | M88: (1.5)
A89: M | B89: 80 | C89: (19.8) | D89: 26 | E89: (6.4) | F89: 6 | G89: (1.5) | H89: 256 | I89: (63.2) | J89: 37 | K89: (9.1) | L89: 405 | M89: (2.0)
A90: N | B90: 251 | C90: (34.5) | D90: 38 | E90: (5.2) | F90: 11 | G90: (1.5) | H90: 423 | I90: (58.1) | J90: 5 | K90: (0.7) | L90: 728 | M90: (3.7)
A91: O | B91: 389 | C91: (56.6) | D91: 1 | E91: (0.1) | F91: 56 | G91: (8.2) | H91: 241 | I91: (35.1) | J91: 0 | K91: (0.0) | L91: 687 | M91: (3.5)
A92: P | B92: 415 | C92: (41.0) | D92: 29 | E92: (2.9) | F92: 15 | G92: (1.5) | H92: 554 | I92: (54.7) | J92: 0 | K92: (0.0) | L92: 1013 | M92: (5.1)
A93: Q | B93: 74 | C93: (14.3) | D93: 35 | E93: (6.8) | F93: 29 | G93: (5.6) | H93: 379 | I93: (73.3) | J93: 0 | K93: (0.0) | L93: 517 | M93: (2.6)
A94: R | B94: 295 | C94: (33.0) | D94: 29 | E94: (3.2) | F94: 35 | G94: (3.9) | H94: 534 | I94: (59.8) | J94: 0 | K94: (0.0) | L94: 893 | M94: (4.5)
A95: S | B95: 16 | C95: (12.1) | D95: 4 | E95: (3.0) | F95: 2 | G95: (1.5) | H95: 110 | I95: (83.3) | J95: 0 | K95: (0.0) | L95: 132 | M95: (0.7)
A96: T | B96: 129 | C96: (27.2) | D96: 20 | E96: (4.2) | F96: 2 | G96: (0.4) | H96: 323 | I96: (68.0) | J96: 1 | K96: (0.2) | L96: 475 | M96: (2.4)
A97: U | B97: 20 | C97: (6.2) | D97: 7 | E97: (2.2) | F97: 3 | G97: (0.9) | H97: 295 | I97: (90.8) | J97: 0 | K97: (0.0) | L97: 325 | M97: (1.6)
A98: V | B98: 403 | C98: (30.0) | D98: 112 | E98: (8.3) | F98: 48 | G98: (3.6) | H98: 782 | I98: (58.1) | J98: 0 | K98: (0.0) | L98: 1345 | M98: (6.8)
A99: W | B99: 277 | C99: (40.1) | D99: 37 | E99: (5.4) | F99: 17 | G99: (2.5) | H99: 358 | I99: (51.9) | J99: 1 | K99: (0.1) | L99: 690 | M99: (3.5)
A100: X | B100: 232 | C100: (29.7) | D100: 21 | E100: (2.7) | F100: 193 | G100: (24.7) | H100: 334 | I100: (42.8) | J100: 0 | K100: (0.0) | L100: 780 | M100: (3.9)
A101: Y | B101: 163 | C101: (43.0) | D101: 20 | E101: (5.3) | F101: 3 | G101: (0.8) | H101: 193 | I101: (50.9) | J101: 0 | K101: (0.0) | L101: 379 | M101: (1.9)
A102: Z | B102: 46 | C102: (10.6) | D102: 22 | E102: (5.1) | F102: 23 | G102: (5.3) | H102: 338 | I102: (78.2) | J102: 3 | K102: (0.7) | L102: 432 | M102: (2.2)
A103: ZA | B103: 532 | C103: (49.4) | D103: 50 | E103: (4.6) | F103: 20 | G103: (1.9) | H103: 471 | I103: (43.8) | J103: 3 | K103: (0.3) | L103: 1076 | M103: (5.4)
A104: ZB | B104: 139 | C104: (27.4) | D104: 34 | E104: (6.7) | F104: 23 | G104: (4.5) | H104: 311 | I104: (61.3) | J104: 0 | K104: (0.0) | L104: 507 | M104: (2.6)
A105: ZC | B105: 426 | C105: (41.8) | D105: 45 | E105: (4.4) | F105: 156 | G105: (15.3) | H105: 393 | I105: (38.5) | J105: 0 | K105: (0.0) | L105: 1020 | M105: (5.2)
A106: ZD | B106: 113 | C106: (23.9) | D106: 34 | E106: (7.2) | F106: 8 | G106: (1.7) | H106: 318 | I106: (67.2) | J106: 0 | K106: (0.0) | L106: 473 | M106: (2.4)
A107: ZE | B107: 211 | C107: (70.1) | D107: 5 | E107: (1.7) | F107: 47 | G107: (15.6) | H107: 37 | I107: (12.3) | J107: 1 | K107: (0.3) | L107: 301 | M107: (1.5)
A108: ZF | B108: 68 | C108: (55.3) | D108: 3 | E108: (2.4) | F108: 15 | G108: (12.2) | H108: 37 | I108: (30.1) | J108: 0 | K108: (0.0) | L108: 123 | M108: (0.6)
A109: Total | B109: 6788 | C109: (34.4) | D109: 974 | E109: (4.9) | F109: 1302 | G109: (6.6) | H109: 10642 | I109: (53.9) | J109: 54 | K109: (0.3) | L109: 19760 | M109: (100.0)
A110: Grand
A111: Total | B111: 20663 | C111: (34.6) | D111: 2895 | E111: (4.9) | F111: 3914 | G111: (6.6) | H111: 32056 | I111: (53.7) | J111: 114 | K111: (0.2) | L111: 59642 | M111: (100.0)
A113: FIGURE 13 ADMISSIONS BY ADMISSION TYPE, BY HEALTH ORGANISATION, 2012 - 2014

Sheet 14
A1: TABLE 14 ADMISSIONS BY SOURCE OF ADMISSION (ADMISSION TYPE UNPLANNED - OTHER), BY HEALTH ORGANISATION, 2012 - 2014
B3: ADMISSION SOURCE
A4: Year / Organisation | B4: Same hospital | D4: Other hospital | F4: Clinic | H4: Home | J4: Unknown | L4: Total
B5: n | C5: (%) | D5: n | E5: (%) | F5: n | G5: (%) | H5: n | I5: (%) | J5: n | K5: (%) | L5: n | M5: (%)
A6: 2012
A7: A | B7: 155 | C7: (48.4) | D7: 162 | E7: (50.6) | F7: 0 | G7: (0.0) | H7: 2 | I7: (0.6) | J7: 1 | K7: (0.3) | L7: 320 | M7: (3.0)
A8: B | B8: 172 | C8: (98.3) | D8: 1 | E8: (0.6) | F8: 0 | G8: (0.0) | H8: 2 | I8: (1.1) | J8: 0 | K8: (0.0) | L8: 175 | M8: (1.6)
A9: C | B9: 87 | C9: (39.5) | D9: 133 | E9: (60.5) | F9: 0 | G9: (0.0) | H9: 0 | I9: (0.0) | J9: 0 | K9: (0.0) | L9: 220 | M9: (2.1)
A10: D | B10: 234 | C10: (45.2) | D10: 284 | E10: (54.8) | F10: 0 | G10: (0.0) | H10: 0 | I10: (0.0) | J10: 0 | K10: (0.0) | L10: 518 | M10: (4.9)
A11: E1 | B11: 128 | C11: (20.7) | D11: 490 | E11: (79.2) | F11: 0 | G11: (0.0) | H11: 1 | I11: (0.2) | J11: 0 | K11: (0.0) | L11: 619 | M11: (5.8)
A12: E2 | B12: 81 | C12: (33.9) | D12: 156 | E12: (65.3) | F12: 0 | G12: (0.0) | H12: 2 | I12: (0.8) | J12: 0 | K12: (0.0) | L12: 239 | M12: (2.2)
A13: F | B13: 169 | C13: (26.2) | D13: 477 | E13: (73.8) | F13: 0 | G13: (0.0) | H13: 0 | I13: (0.0) | J13: 0 | K13: (0.0) | L13: 646 | M13: (6.1)
A14: G | B14: 17 | C14: (100.0) | D14: 0 | E14: (0.0) | F14: 0 | G14: (0.0) | H14: 0 | I14: (0.0) | J14: 0 | K14: (0.0) | L14: 17 | M14: (0.2)
A15: H | B15: 222 | C15: (55.0) | D15: 167 | E15: (41.3) | F15: 12 | G15: (3.0) | H15: 2 | I15: (0.5) | J15: 1 | K15: (0.2) | L15: 404 | M15: (3.8)
A16: I | B16: 165 | C16: (47.7) | D16: 181 | E16: (52.3) | F16: 0 | G16: (0.0) | H16: 0 | I16: (0.0) | J16: 0 | K16: (0.0) | L16: 346 | M16: (3.2)
A17: K1K3 | B17: 161 | C17: (51.4) | D17: 152 | E17: (48.6) | F17: 0 | G17: (0.0) | H17: 0 | I17: (0.0) | J17: 0 | K17: (0.0) | L17: 313 | M17: (2.9)
A18: K2 | B18: 56 | C18: (62.9) | D18: 33 | E18: (37.1) | F18: 0 | G18: (0.0) | H18: 0 | I18: (0.0) | J18: 0 | K18: (0.0) | L18: 89 | M18: (0.8)
A19: L | B19: 79 | C19: (30.7) | D19: 171 | E19: (66.5) | F19: 0 | G19: (0.0) | H19: 7 | I19: (2.7) | J19: 0 | K19: (0.0) | L19: 257 | M19: (2.4)
A20: M | B20: 187 | C20: (59.2) | D20: 129 | E20: (40.8) | F20: 0 | G20: (0.0) | H20: 0 | I20: (0.0) | J20: 0 | K20: (0.0) | L20: 316 | M20: (3.0)
A21: N | B21: 155 | C21: (56.0) | D21: 121 | E21: (43.7) | F21: 0 | G21: (0.0) | H21: 1 | I21: (0.4) | J21: 0 | K21: (0.0) | L21: 277 | M21: (2.6)
A22: O | B22: 63 | C22: (50.4) | D22: 60 | E22: (48.0) | F22: 2 | G22: (1.6) | H22: 0 | I22: (0.0) | J22: 0 | K22: (0.0) | L22: 125 | M22: (1.2)
A23: P | B23: 307 | C23: (46.4) | D23: 354 | E23: (53.5) | F23: 0 | G23: (0.0) | H23: 1 | I23: (0.2) | J23: 0 | K23: (0.0) | L23: 662 | M23: (6.2)
A24: Q | B24: 240 | C24: (64.0) | D24: 134 | E24: (35.7) | F24: 0 | G24: (0.0) | H24: 1 | I24: (0.3) | J24: 0 | K24: (0.0) | L24: 375 | M24: (3.5)
A25: R | B25: 148 | C25: (32.9) | D25: 301 | E25: (66.9) | F25: 1 | G25: (0.2) | H25: 0 | I25: (0.0) | J25: 0 | K25: (0.0) | L25: 450 | M25: (4.2)
A26: S | B26: 96 | C26: (69.1) | D26: 38 | E26: (27.3) | F26: 0 | G26: (0.0) | H26: 5 | I26: (3.6) | J26: 0 | K26: (0.0) | L26: 139 | M26: (1.3)
A27: T | B27: 140 | C27: (44.2) | D27: 175 | E27: (55.2) | F27: 0 | G27: (0.0) | H27: 2 | I27: (0.6) | J27: 0 | K27: (0.0) | L27: 317 | M27: (3.0)
A28: U | B28: 71 | C28: (23.7) | D28: 228 | E28: (76.3) | F28: 0 | G28: (0.0) | H28: 0 | I28: (0.0) | J28: 0 | K28: (0.0) | L28: 299 | M28: (2.8)
A29: V | B29: 526 | C29: (63.1) | D29: 308 | E29: (36.9) | F29: 0 | G29: (0.0) | H29: 0 | I29: (0.0) | J29: 0 | K29: (0.0) | L29: 834 | M29: (7.8)
A30: W | B30: 161 | C30: (44.8) | D30: 197 | E30: (54.9) | F30: 0 | G30: (0.0) | H30: 1 | I30: (0.3) | J30: 0 | K30: (0.0) | L30: 359 | M30: (3.4)
A31: X | B31: 265 | C31: (51.7) | D31: 245 | E31: (47.8) | F31: 2 | G31: (0.4) | H31: 1 | I31: (0.2) | J31: 0 | K31: (0.0) | L31: 513 | M31: (4.8)
A32: Y | B32: 86 | C32: (45.7) | D32: 102 | E32: (54.3) | F32: 0 | G32: (0.0) | H32: 0 | I32: (0.0) | J32: 0 | K32: (0.0) | L32: 188 | M32: (1.8)
A33: Z | B33: 179 | C33: (67.0) | D33: 77 | E33: (28.8) | F33: 0 | G33: (0.0) | H33: 3 | I33: (1.1) | J33: 8 | K33: (3.0) | L33: 267 | M33: (2.5)
A34: ZA | B34: 261 | C34: (69.4) | D34: 114 | E34: (30.3) | F34: 0 | G34: (0.0) | H34: 0 | I34: (0.0) | J34: 1 | K34: (0.3) | L34: 376 | M34: (3.5)
A35: ZB | B35: 155 | C35: (54.4) | D35: 130 | E35: (45.6) | F35: 0 | G35: (0.0) | H35: 0 | I35: (0.0) | J35: 0 | K35: (0.0) | L35: 285 | M35: (2.7)
A36: ZC | B36: 278 | C36: (69.0) | D36: 123 | E36: (30.5) | F36: 0 | G36: (0.0) | H36: 2 | I36: (0.5) | J36: 0 | K36: (0.0) | L36: 403 | M36: (3.8)
A37: ZD | B37: 119 | C37: (39.1) | D37: 185 | E37: (60.9) | F37: 0 | G37: (0.0) | H37: 0 | I37: (0.0) | J37: 0 | K37: (0.0) | L37: 304 | M37: (2.8)
A38: ZE | B38: 15 | C38: (62.5) | D38: 5 | E38: (20.8) | F38: 1 | G38: (4.2) | H38: 3 | I38: (12.5) | J38: 0 | K38: (0.0) | L38: 24 | M38: (0.2)
A39: Total | B39: 5178 | C39: (48.5) | D39: 5433 | E39: (50.9) | F39: 18 | G39: (0.2) | H39: 36 | I39: (0.3) | J39: 11 | K39: (0.1) | L39: 10676 | M39: (100.0)
A40: 2013
A41: A | B41: 174 | C41: (49.0) | D41: 178 | E41: (50.1) | F41: 1 | G41: (0.3) | H41: 2 | I41: (0.6) | J41: 0 | K41: (0.0) | L41: 355 | M41: (3.3)
A42: B | B42: 215 | C42: (95.6) | D42: 3 | E42: (1.3) | F42: 0 | G42: (0.0) | H42: 4 | I42: (1.8) | J42: 3 | K42: (1.3) | L42: 225 | M42: (2.1)
A43: C | B43: 86 | C43: (42.0) | D43: 119 | E43: (58.0) | F43: 0 | G43: (0.0) | H43: 0 | I43: (0.0) | J43: 0 | K43: (0.0) | L43: 205 | M43: (1.9)
A44: D | B44: 247 | C44: (51.9) | D44: 229 | E44: (48.1) | F44: 0 | G44: (0.0) | H44: 0 | I44: (0.0) | J44: 0 | K44: (0.0) | L44: 476 | M44: (4.4)
A45: E1 | B45: 137 | C45: (23.6) | D45: 443 | E45: (76.4) | F45: 0 | G45: (0.0) | H45: 0 | I45: (0.0) | J45: 0 | K45: (0.0) | L45: 580 | M45: (5.4)
A46: E2 | B46: 80 | C46: (36.9) | D46: 134 | E46: (61.8) | F46: 0 | G46: (0.0) | H46: 3 | I46: (1.4) | J46: 0 | K46: (0.0) | L46: 217 | M46: (2.0)
A47: F | B47: 190 | C47: (32.0) | D47: 403 | E47: (68.0) | F47: 0 | G47: (0.0) | H47: 0 | I47: (0.0) | J47: 0 | K47: (0.0) | L47: 593 | M47: (5.5)
A48: G | B48: 19 | C48: (100.0) | D48: 0 | E48: (0.0) | F48: 0 | G48: (0.0) | H48: 0 | I48: (0.0) | J48: 0 | K48: (0.0) | L48: 19 | M48: (0.2)
A49: H | B49: 222 | C49: (54.4) | D49: 176 | E49: (43.1) | F49: 2 | G49: (0.5) | H49: 8 | I49: (2.0) | J49: 0 | K49: (0.0) | L49: 408 | M49: (3.8)
A50: I | B50: 143 | C50: (41.4) | D50: 200 | E50: (58.0) | F50: 1 | G50: (0.3) | H50: 1 | I50: (0.3) | J50: 0 | K50: (0.0) | L50: 345 | M50: (3.2)
A51: K1K3 | B51: 151 | C51: (49.8) | D51: 152 | E51: (50.2) | F51: 0 | G51: (0.0) | H51: 0 | I51: (0.0) | J51: 0 | K51: (0.0) | L51: 303 | M51: (2.8)
A52: K2 | B52: 66 | C52: (70.2) | D52: 28 | E52: (29.8) | F52: 0 | G52: (0.0) | H52: 0 | I52: (0.0) | J52: 0 | K52: (0.0) | L52: 94 | M52: (0.9)
A53: L | B53: 90 | C53: (34.1) | D53: 169 | E53: (64.0) | F53: 0 | G53: (0.0) | H53: 5 | I53: (1.9) | J53: 0 | K53: (0.0) | L53: 264 | M53: (2.5)
A54: M | B54: 145 | C54: (60.7) | D54: 94 | E54: (39.3) | F54: 0 | G54: (0.0) | H54: 0 | I54: (0.0) | J54: 0 | K54: (0.0) | L54: 239 | M54: (2.2)
A55: N | B55: 225 | C55: (57.8) | D55: 161 | E55: (41.4) | F55: 0 | G55: (0.0) | H55: 2 | I55: (0.5) | J55: 1 | K55: (0.3) | L55: 389 | M55: (3.6)
A56: O | B56: 58 | C56: (29.7) | D56: 136 | E56: (69.7) | F56: 0 | G56: (0.0) | H56: 1 | I56: (0.5) | J56: 0 | K56: (0.0) | L56: 195 | M56: (1.8)
A57: P | B57: 281 | C57: (46.8) | D57: 320 | E57: (53.2) | F57: 0 | G57: (0.0) | H57: 0 | I57: (0.0) | J57: 0 | K57: (0.0) | L57: 601 | M57: (5.6)
A58: Q | B58: 232 | C58: (60.9) | D58: 146 | E58: (38.3) | F58: 0 | G58: (0.0) | H58: 3 | I58: (0.8) | J58: 0 | K58: (0.0) | L58: 381 | M58: (3.5)
A59: R | B59: 163 | C59: (29.2) | D59: 396 | E59: (70.8) | F59: 0 | G59: (0.0) | H59: 0 | I59: (0.0) | J59: 0 | K59: (0.0) | L59: 559 | M59: (5.2)
A60: S | B60: 85 | C60: (78.7) | D60: 23 | E60: (21.3) | F60: 0 | G60: (0.0) | H60: 0 | I60: (0.0) | J60: 0 | K60: (0.0) | L60: 108 | M60: (1.0)
A61: T | B61: 143 | C61: (44.7) | D61: 176 | E61: (55.0) | F61: 0 | G61: (0.0) | H61: 1 | I61: (0.3) | J61: 0 | K61: (0.0) | L61: 320 | M61: (3.0)
A62: U | B62: 71 | C62: (24.2) | D62: 221 | E62: (75.4) | F62: 0 | G62: (0.0) | H62: 1 | I62: (0.3) | J62: 0 | K62: (0.0) | L62: 293 | M62: (2.7)
A63: V | B63: 548 | C63: (67.4) | D63: 265 | E63: (32.6) | F63: 0 | G63: (0.0) | H63: 0 | I63: (0.0) | J63: 0 | K63: (0.0) | L63: 813 | M63: (7.6)
A64: W | B64: 135 | C64: (37.0) | D64: 229 | E64: (62.7) | F64: 0 | G64: (0.0) | H64: 1 | I64: (0.3) | J64: 0 | K64: (0.0) | L64: 365 | M64: (3.4)
A65: X | B65: 223 | C65: (53.2) | D65: 195 | E65: (46.5) | F65: 1 | G65: (0.2) | H65: 0 | I65: (0.0) | J65: 0 | K65: (0.0) | L65: 419 | M65: (3.9)
A66: Y | B66: 92 | C66: (48.4) | D66: 97 | E66: (51.1) | F66: 0 | G66: (0.0) | H66: 1 | I66: (0.5) | J66: 0 | K66: (0.0) | L66: 190 | M66: (1.8)
A67: Z | B67: 193 | C67: (66.3) | D67: 95 | E67: (32.6) | F67: 0 | G67: (0.0) | H67: 1 | I67: (0.3) | J67: 2 | K67: (0.7) | L67: 291 | M67: (2.7)
A68: ZA | B68: 292 | C68: (70.7) | D68: 120 | E68: (29.1) | F68: 0 | G68: (0.0) | H68: 1 | I68: (0.2) | J68: 0 | K68: (0.0) | L68: 413 | M68: (3.8)
A69: ZB | B69: 129 | C69: (52.7) | D69: 116 | E69: (47.3) | F69: 0 | G69: (0.0) | H69: 0 | I69: (0.0) | J69: 0 | K69: (0.0) | L69: 245 | M69: (2.3)
A70: ZC | B70: 297 | C70: (66.9) | D70: 146 | E70: (32.9) | F70: 0 | G70: (0.0) | H70: 1 | I70: (0.2) | J70: 0 | K70: (0.0) | L70: 444 | M70: (4.1)
A71: ZD | B71: 126 | C71: (37.7) | D71: 208 | E71: (62.3) | F71: 0 | G71: (0.0) | H71: 0 | I71: (0.0) | J71: 0 | K71: (0.0) | L71: 334 | M71: (3.1)
A72: ZE | B72: 33 | C72: (80.5) | D72: 5 | E72: (12.2) | F72: 2 | G72: (4.9) | H72: 1 | I72: (2.4) | J72: 0 | K72: (0.0) | L72: 41 | M72: (0.4)
A73: ZF | B73: 13 | C73: (92.9) | D73: 1 | E73: (7.1) | F73: 0 | G73: (0.0) | H73: 0 | I73: (0.0) | J73: 0 | K73: (0.0) | L73: 14 | M73: (0.1)
A74: Total | B74: 5304 | C74: (49.4) | D74: 5384 | E74: (50.1) | F74: 7 | G74: (0.1) | H74: 37 | I74: (0.3) | J74: 6 | K74: (0.1) | L74: 10738 | M74: (100.0)
A75: 2014
A76: A | B76: 189 | C76: (49.9) | D76: 187 | E76: (49.3) | F76: 1 | G76: (0.3) | H76: 2 | I76: (0.5) | J76: 0 | K76: (0.0) | L76: 379 | M76: (3.6)
A77: B | B77: 242 | C77: (98.0) | D77: 5 | E77: (2.0) | F77: 0 | G77: (0.0) | H77: 0 | I77: (0.0) | J77: 0 | K77: (0.0) | L77: 247 | M77: (2.3)
A78: C | B78: 94 | C78: (43.1) | D78: 124 | E78: (56.9) | F78: 0 | G78: (0.0) | H78: 0 | I78: (0.0) | J78: 0 | K78: (0.0) | L78: 218 | M78: (2.0)
A79: D | B79: 270 | C79: (57.6) | D79: 199 | E79: (42.4) | F79: 0 | G79: (0.0) | H79: 0 | I79: (0.0) | J79: 0 | K79: (0.0) | L79: 469 | M79: (4.4)
A80: E1 | B80: 132 | C80: (24.9) | D80: 399 | E80: (75.1) | F80: 0 | G80: (0.0) | H80: 0 | I80: (0.0) | J80: 0 | K80: (0.0) | L80: 531 | M80: (5.0)
A81: E2 | B81: 58 | C81: (32.4) | D81: 114 | E81: (63.7) | F81: 0 | G81: (0.0) | H81: 7 | I81: (3.9) | J81: 0 | K81: (0.0) | L81: 179 | M81: (1.7)
A82: F | B82: 188 | C82: (31.5) | D82: 408 | E82: (68.5) | F82: 0 | G82: (0.0) | H82: 0 | I82: (0.0) | J82: 0 | K82: (0.0) | L82: 596 | M82: (5.6)
A83: G | B83: 12 | C83: (100.0) | D83: 0 | E83: (0.0) | F83: 0 | G83: (0.0) | H83: 0 | I83: (0.0) | J83: 0 | K83: (0.0) | L83: 12 | M83: (0.1)
A84: H | B84: 182 | C84: (57.1) | D84: 124 | E84: (38.9) | F84: 3 | G84: (0.9) | H84: 10 | I84: (3.1) | J84: 0 | K84: (0.0) | L84: 319 | M84: (3.0)
A85: I | B85: 142 | C85: (42.9) | D85: 189 | E85: (57.1) | F85: 0 | G85: (0.0) | H85: 0 | I85: (0.0) | J85: 0 | K85: (0.0) | L85: 331 | M85: (3.1)
A86: K1K3 | B86: 161 | C86: (49.2) | D86: 166 | E86: (50.8) | F86: 0 | G86: (0.0) | H86: 0 | I86: (0.0) | J86: 0 | K86: (0.0) | L86: 327 | M86: (3.1)
A87: K2 | B87: 55 | C87: (56.1) | D87: 42 | E87: (42.9) | F87: 1 | G87: (1.0) | H87: 0 | I87: (0.0) | J87: 0 | K87: (0.0) | L87: 98 | M87: (0.9)
A88: L | B88: 67 | C88: (26.9) | D88: 180 | E88: (72.3) | F88: 0 | G88: (0.0) | H88: 1 | I88: (0.4) | J88: 1 | K88: (0.4) | L88: 249 | M88: (2.3)
A89: M | B89: 174 | C89: (68.0) | D89: 82 | E89: (32.0) | F89: 0 | G89: (0.0) | H89: 0 | I89: (0.0) | J89: 0 | K89: (0.0) | L89: 256 | M89: (2.4)
A90: N | B90: 228 | C90: (53.9) | D90: 194 | E90: (45.9) | F90: 0 | G90: (0.0) | H90: 1 | I90: (0.2) | J90: 0 | K90: (0.0) | L90: 423 | M90: (4.0)
A91: O | B91: 61 | C91: (25.3) | D91: 175 | E91: (72.6) | F91: 1 | G91: (0.4) | H91: 4 | I91: (1.7) | J91: 0 | K91: (0.0) | L91: 241 | M91: (2.3)
A92: P | B92: 250 | C92: (45.1) | D92: 303 | E92: (54.7) | F92: 0 | G92: (0.0) | H92: 1 | I92: (0.2) | J92: 0 | K92: (0.0) | L92: 554 | M92: (5.2)
A93: Q | B93: 250 | C93: (66.0) | D93: 127 | E93: (33.5) | F93: 0 | G93: (0.0) | H93: 2 | I93: (0.5) | J93: 0 | K93: (0.0) | L93: 379 | M93: (3.6)
A94: R | B94: 163 | C94: (30.5) | D94: 371 | E94: (69.5) | F94: 0 | G94: (0.0) | H94: 0 | I94: (0.0) | J94: 0 | K94: (0.0) | L94: 534 | M94: (5.0)
A95: S | B95: 96 | C95: (87.3) | D95: 14 | E95: (12.7) | F95: 0 | G95: (0.0) | H95: 0 | I95: (0.0) | J95: 0 | K95: (0.0) | L95: 110 | M95: (1.0)
A96: T | B96: 127 | C96: (39.3) | D96: 196 | E96: (60.7) | F96: 0 | G96: (0.0) | H96: 0 | I96: (0.0) | J96: 0 | K96: (0.0) | L96: 323 | M96: (3.0)
A97: U | B97: 58 | C97: (19.7) | D97: 237 | E97: (80.3) | F97: 0 | G97: (0.0) | H97: 0 | I97: (0.0) | J97: 0 | K97: (0.0) | L97: 295 | M97: (2.8)
A98: V | B98: 496 | C98: (63.4) | D98: 285 | E98: (36.4) | F98: 0 | G98: (0.0) | H98: 0 | I98: (0.0) | J98: 1 | K98: (0.1) | L98: 782 | M98: (7.3)
A99: W | B99: 165 | C99: (46.1) | D99: 193 | E99: (53.9) | F99: 0 | G99: (0.0) | H99: 0 | I99: (0.0) | J99: 0 | K99: (0.0) | L99: 358 | M99: (3.4)
A100: X | B100: 199 | C100: (59.6) | D100: 133 | E100: (39.8) | F100: 1 | G100: (0.3) | H100: 1 | I100: (0.3) | J100: 0 | K100: (0.0) | L100: 334 | M100: (3.1)
A101: Y | B101: 94 | C101: (48.7) | D101: 99 | E101: (51.3) | F101: 0 | G101: (0.0) | H101: 0 | I101: (0.0) | J101: 0 | K101: (0.0) | L101: 193 | M101: (1.8)
A102: Z | B102: 214 | C102: (63.3) | D102: 120 | E102: (35.5) | F102: 0 | G102: (0.0) | H102: 4 | I102: (1.2) | J102: 0 | K102: (0.0) | L102: 338 | M102: (3.2)
A103: ZA | B103: 304 | C103: (64.5) | D103: 167 | E103: (35.5) | F103: 0 | G103: (0.0) | H103: 0 | I103: (0.0) | J103: 0 | K103: (0.0) | L103: 471 | M103: (4.4)
A104: ZB | B104: 171 | C104: (55.0) | D104: 139 | E104: (44.7) | F104: 1 | G104: (0.3) | H104: 0 | I104: (0.0) | J104: 0 | K104: (0.0) | L104: 311 | M104: (2.9)
A105: ZC | B105: 281 | C105: (71.5) | D105: 112 | E105: (28.5) | F105: 0 | G105: (0.0) | H105: 0 | I105: (0.0) | J105: 0 | K105: (0.0) | L105: 393 | M105: (3.7)
A106: ZD | B106: 103 | C106: (32.4) | D106: 215 | E106: (67.6) | F106: 0 | G106: (0.0) | H106: 0 | I106: (0.0) | J106: 0 | K106: (0.0) | L106: 318 | M106: (3.0)
A107: ZE | B107: 30 | C107: (81.1) | D107: 5 | E107: (13.5) | F107: 0 | G107: (0.0) | H107: 2 | I107: (5.4) | J107: 0 | K107: (0.0) | L107: 37 | M107: (0.3)
A108: ZF | B108: 31 | C108: (83.8) | D108: 5 | E108: (13.5) | F108: 0 | G108: (0.0) | H108: 1 | I108: (2.7) | J108: 0 | K108: (0.0) | L108: 37 | M108: (0.3)
A109: Total | B109: 5287 | C109: (49.7) | D109: 5309 | E109: (49.9) | F109: 8 | G109: (0.1) | H109: 36 | I109: (0.3) | J109: 2 | K109: (0.0) | L109: 10642 | M109: (100.0)
A110: Grand
A111: Total | B111: 15769 | C111: (49.2) | D111: 16126 | E111: (50.3) | F111: 33 | G111: (0.1) | H111: 109 | I111: (0.3) | J111: 19 | K111: (0.1) | L111: 32056 | M111: (100.0)
A113: FIGURE 14 ADMISSIONS BY SOURCE OF ADMISSION (ADMISSION TYPE UNPLANNED - OTHER), BY HEALTH ORGANISATION, 2012 - 2014

Sheet 15
A1: TABLE 15 ADMISSIONS BY CARE AREA ADMITTED FROM (ADMISSION TYPE UNPLANNED -OTHER; ADMITTED FROM HOSPITAL), BY HEALTH ORGANISATION, 2012 - 2014
B3: CARE AREA
A4: Year / Organisation | B4: Accident & emergency | D4: HDU (step - up / step - down unit) | F4: ICU / PICU / NICU | H4: Other intermediate care area (not ICU / PICU / NICU) | J4: Recovery only | L4: Theatre and recovery | N4: Ward | P4: X-ray, endoscopy, CT scanner or similar | R4: Unknown | T4: Total
B5: n | C5: (%) | D5: n | E5: (%) | F5: n | G5: (%) | H5: n | I5: (%) | J5: n | K5: (%) | L5: n | M5: (%) | N5: n | O5: (%) | P5: n | Q5: (%) | R5: n | S5: (%) | T5: n | U5: (%)
A6: 2012
A7: A | B7: 128 | C7: (40.4) | D7: 2 | E7: (0.6) | F7: 32 | G7: (10.1) | H7: 4 | I7: (1.3) | J7: 0 | K7: (0.0) | L7: 8 | M7: (2.5) | N7: 131 | O7: (41.3) | P7: 2 | Q7: (0.6) | R7: 10 | S7: (3.2) | T7: 317 | U7: (3.0)
A8: B | B8: 134 | C8: (77.5) | D8: 0 | E8: (0.0) | F8: 1 | G8: (0.6) | H8: 0 | I8: (0.0) | J8: 0 | K8: (0.0) | L8: 0 | M8: (0.0) | N8: 37 | O8: (21.4) | P8: 0 | Q8: (0.0) | R8: 1 | S8: (0.6) | T8: 173 | U8: (1.6)
A9: C | B9: 50 | C9: (22.7) | D9: 54 | E9: (24.5) | F9: 30 | G9: (13.6) | H9: 3 | I9: (1.4) | J9: 3 | K9: (1.4) | L9: 49 | M9: (22.3) | N9: 29 | O9: (13.2) | P9: 2 | Q9: (0.9) | R9: 0 | S9: (0.0) | T9: 220 | U9: (2.1)
A10: D | B10: 232 | C10: (44.8) | D10: 85 | E10: (16.4) | F10: 11 | G10: (2.1) | H10: 7 | I10: (1.4) | J10: 2 | K10: (0.4) | L10: 30 | M10: (5.8) | N10: 148 | O10: (28.6) | P10: 2 | Q10: (0.4) | R10: 1 | S10: (0.2) | T10: 518 | U10: (4.9)
A11: E1 | B11: 141 | C11: (22.8) | D11: 28 | E11: (4.5) | F11: 263 | G11: (42.6) | H11: 1 | I11: (0.2) | J11: 0 | K11: (0.0) | L11: 33 | M11: (5.3) | N11: 149 | O11: (24.1) | P11: 3 | Q11: (0.5) | R11: 0 | S11: (0.0) | T11: 618 | U11: (5.8)
A12: E2 | B12: 14 | C12: (5.9) | D12: 35 | E12: (14.8) | F12: 138 | G12: (58.2) | H12: 1 | I12: (0.4) | J12: 0 | K12: (0.0) | L12: 1 | M12: (0.4) | N12: 47 | O12: (19.8) | P12: 0 | Q12: (0.0) | R12: 1 | S12: (0.4) | T12: 237 | U12: (2.2)
A13: F | B13: 250 | C13: (38.7) | D13: 42 | E13: (6.5) | F13: 44 | G13: (6.8) | H13: 0 | I13: (0.0) | J13: 0 | K13: (0.0) | L13: 20 | M13: (3.1) | N13: 281 | O13: (43.5) | P13: 9 | Q13: (1.4) | R13: 0 | S13: (0.0) | T13: 646 | U13: (6.1)
A14: G | B14: 6 | C14: (35.3) | D14: 8 | E14: (47.1) | F14: 0 | G14: (0.0) | H14: 0 | I14: (0.0) | J14: 0 | K14: (0.0) | L14: 1 | M14: (5.9) | N14: 1 | O14: (5.9) | P14: 1 | Q14: (5.9) | R14: 0 | S14: (0.0) | T14: 17 | U14: (0.2)
A15: H | B15: 179 | C15: (46.0) | D15: 2 | E15: (0.5) | F15: 24 | G15: (6.2) | H15: 5 | I15: (1.3) | J15: 2 | K15: (0.5) | L15: 35 | M15: (9.0) | N15: 138 | O15: (35.5) | P15: 4 | Q15: (1.0) | R15: 0 | S15: (0.0) | T15: 389 | U15: (3.7)
A16: I | B16: 114 | C16: (32.9) | D16: 3 | E16: (0.9) | F16: 22 | G16: (6.4) | H16: 1 | I16: (0.3) | J16: 3 | K16: (0.9) | L16: 41 | M16: (11.8) | N16: 160 | O16: (46.2) | P16: 2 | Q16: (0.6) | R16: 0 | S16: (0.0) | T16: 346 | U16: (3.3)
A17: K1K3 | B17: 119 | C17: (38.0) | D17: 0 | E17: (0.0) | F17: 40 | G17: (12.8) | H17: 2 | I17: (0.6) | J17: 3 | K17: (1.0) | L17: 34 | M17: (10.9) | N17: 109 | O17: (34.8) | P17: 6 | Q17: (1.9) | R17: 0 | S17: (0.0) | T17: 313 | U17: (2.9)
A18: K2 | B18: 6 | C18: (6.7) | D18: 35 | E18: (39.3) | F18: 23 | G18: (25.8) | H18: 0 | I18: (0.0) | J18: 0 | K18: (0.0) | L18: 2 | M18: (2.2) | N18: 21 | O18: (23.6) | P18: 2 | Q18: (2.2) | R18: 0 | S18: (0.0) | T18: 89 | U18: (0.8)
A19: L | B19: 77 | C19: (30.8) | D19: 12 | E19: (4.8) | F19: 8 | G19: (3.2) | H19: 6 | I19: (2.4) | J19: 0 | K19: (0.0) | L19: 4 | M19: (1.6) | N19: 142 | O19: (56.8) | P19: 1 | Q19: (0.4) | R19: 0 | S19: (0.0) | T19: 250 | U19: (2.4)
A20: M | B20: 138 | C20: (43.7) | D20: 29 | E20: (9.2) | F20: 14 | G20: (4.4) | H20: 3 | I20: (0.9) | J20: 2 | K20: (0.6) | L20: 12 | M20: (3.8) | N20: 109 | O20: (34.5) | P20: 7 | Q20: (2.2) | R20: 2 | S20: (0.6) | T20: 316 | U20: (3.0)
A21: N | B21: 108 | C21: (39.1) | D21: 11 | E21: (4.0) | F21: 17 | G21: (6.2) | H21: 1 | I21: (0.4) | J21: 0 | K21: (0.0) | L21: 33 | M21: (12.0) | N21: 84 | O21: (30.4) | P21: 0 | Q21: (0.0) | R21: 22 | S21: (8.0) | T21: 276 | U21: (2.6)
A22: O | B22: 4 | C22: (3.3) | D22: 5 | E22: (4.1) | F22: 21 | G22: (17.1) | H22: 22 | I22: (17.9) | J22: 0 | K22: (0.0) | L22: 2 | M22: (1.6) | N22: 60 | O22: (48.8) | P22: 9 | Q22: (7.3) | R22: 0 | S22: (0.0) | T22: 123 | U22: (1.2)
A23: P | B23: 174 | C23: (26.3) | D23: 101 | E23: (15.3) | F23: 147 | G23: (22.2) | H23: 4 | I23: (0.6) | J23: 0 | K23: (0.0) | L23: 27 | M23: (4.1) | N23: 200 | O23: (30.3) | P23: 8 | Q23: (1.2) | R23: 0 | S23: (0.0) | T23: 661 | U23: (6.2)
A24: Q | B24: 141 | C24: (37.7) | D24: 51 | E24: (13.6) | F24: 22 | G24: (5.9) | H24: 14 | I24: (3.7) | J24: 3 | K24: (0.8) | L24: 29 | M24: (7.8) | N24: 101 | O24: (27.0) | P24: 12 | Q24: (3.2) | R24: 1 | S24: (0.3) | T24: 374 | U24: (3.5)
A25: R | B25: 86 | C25: (19.2) | D25: 73 | E25: (16.3) | F25: 113 | G25: (25.2) | H25: 9 | I25: (2.0) | J25: 9 | K25: (2.0) | L25: 42 | M25: (9.4) | N25: 111 | O25: (24.7) | P25: 5 | Q25: (1.1) | R25: 1 | S25: (0.2) | T25: 449 | U25: (4.2)
A26: S | B26: 31 | C26: (23.1) | D26: 4 | E26: (3.0) | F26: 3 | G26: (2.2) | H26: 28 | I26: (20.9) | J26: 0 | K26: (0.0) | L26: 12 | M26: (9.0) | N26: 55 | O26: (41.0) | P26: 1 | Q26: (0.7) | R26: 0 | S26: (0.0) | T26: 134 | U26: (1.3)
A27: T | B27: 148 | C27: (47.0) | D27: 3 | E27: (1.0) | F27: 15 | G27: (4.8) | H27: 4 | I27: (1.3) | J27: 0 | K27: (0.0) | L27: 18 | M27: (5.7) | N27: 127 | O27: (40.3) | P27: 0 | Q27: (0.0) | R27: 0 | S27: (0.0) | T27: 315 | U27: (3.0)
A28: U | B28: 149 | C28: (49.8) | D28: 8 | E28: (2.7) | F28: 17 | G28: (5.7) | H28: 0 | I28: (0.0) | J28: 1 | K28: (0.3) | L28: 5 | M28: (1.7) | N28: 119 | O28: (39.8) | P28: 0 | Q28: (0.0) | R28: 0 | S28: (0.0) | T28: 299 | U28: (2.8)
A29: V | B29: 206 | C29: (24.7) | D29: 15 | E29: (1.8) | F29: 159 | G29: (19.1) | H29: 0 | I29: (0.0) | J29: 0 | K29: (0.0) | L29: 94 | M29: (11.3) | N29: 339 | O29: (40.6) | P29: 0 | Q29: (0.0) | R29: 21 | S29: (2.5) | T29: 834 | U29: (7.9)
A30: W | B30: 74 | C30: (20.7) | D30: 41 | E30: (11.5) | F30: 99 | G30: (27.7) | H30: 11 | I30: (3.1) | J30: 1 | K30: (0.3) | L30: 18 | M30: (5.0) | N30: 103 | O30: (28.8) | P30: 0 | Q30: (0.0) | R30: 11 | S30: (3.1) | T30: 358 | U30: (3.4)
A31: X | B31: 148 | C31: (29.0) | D31: 38 | E31: (7.5) | F31: 164 | G31: (32.2) | H31: 32 | I31: (6.3) | J31: 1 | K31: (0.2) | L31: 8 | M31: (1.6) | N31: 111 | O31: (21.8) | P31: 7 | Q31: (1.4) | R31: 1 | S31: (0.2) | T31: 510 | U31: (4.8)
A32: Y | B32: 66 | C32: (35.1) | D32: 48 | E32: (25.5) | F32: 22 | G32: (11.7) | H32: 4 | I32: (2.1) | J32: 0 | K32: (0.0) | L32: 11 | M32: (5.9) | N32: 37 | O32: (19.7) | P32: 0 | Q32: (0.0) | R32: 0 | S32: (0.0) | T32: 188 | U32: (1.8)
A33: Z | B33: 151 | C33: (59.0) | D33: 1 | E33: (0.4) | F33: 11 | G33: (4.3) | H33: 0 | I33: (0.0) | J33: 1 | K33: (0.4) | L33: 12 | M33: (4.7) | N33: 71 | O33: (27.7) | P33: 6 | Q33: (2.3) | R33: 3 | S33: (1.2) | T33: 256 | U33: (2.4)
A34: ZA | B34: 160 | C34: (42.7) | D34: 1 | E34: (0.3) | F34: 42 | G34: (11.2) | H34: 43 | I34: (11.5) | J34: 0 | K34: (0.0) | L34: 17 | M34: (4.5) | N34: 100 | O34: (26.7) | P34: 6 | Q34: (1.6) | R34: 6 | S34: (1.6) | T34: 375 | U34: (3.5)
A35: ZB | B35: 127 | C35: (44.6) | D35: 1 | E35: (0.4) | F35: 13 | G35: (4.6) | H35: 1 | I35: (0.4) | J35: 0 | K35: (0.0) | L35: 34 | M35: (11.9) | N35: 107 | O35: (37.5) | P35: 0 | Q35: (0.0) | R35: 2 | S35: (0.7) | T35: 285 | U35: (2.7)
A36: ZC | B36: 103 | C36: (25.7) | D36: 9 | E36: (2.2) | F36: 82 | G36: (20.4) | H36: 8 | I36: (2.0) | J36: 1 | K36: (0.2) | L36: 3 | M36: (0.7) | N36: 186 | O36: (46.4) | P36: 9 | Q36: (2.2) | R36: 0 | S36: (0.0) | T36: 401 | U36: (3.8)
A37: ZD | B37: 129 | C37: (42.4) | D37: 12 | E37: (3.9) | F37: 67 | G37: (22.0) | H37: 9 | I37: (3.0) | J37: 1 | K37: (0.3) | L37: 6 | M37: (2.0) | N37: 77 | O37: (25.3) | P37: 3 | Q37: (1.0) | R37: 0 | S37: (0.0) | T37: 304 | U37: (2.9)
A38: ZE | B38: 0 | C38: (0.0) | D38: 0 | E38: (0.0) | F38: 1 | G38: (5.0) | H38: 1 | I38: (5.0) | J38: 1 | K38: (5.0) | L38: 1 | M38: (5.0) | N38: 14 | O38: (70.0) | P38: 1 | Q38: (5.0) | R38: 1 | S38: (5.0) | T38: 20 | U38: (0.2)
A39: Total | B39: 3593 | C39: (33.9) | D39: 757 | E39: (7.1) | F39: 1665 | G39: (15.7) | H39: 224 | I39: (2.1) | J39: 34 | K39: (0.3) | L39: 642 | M39: (6.1) | N39: 3504 | O39: (33.0) | P39: 108 | Q39: (1.0) | R39: 84 | S39: (0.8) | T39: 10611 | U39: (100.0)
A40: 2013
A41: A | B41: 162 | C41: (46.0) | D41: 4 | E41: (1.1) | F41: 34 | G41: (9.7) | H41: 1 | I41: (0.3) | J41: 1 | K41: (0.3) | L41: 7 | M41: (2.0) | N41: 132 | O41: (37.5) | P41: 1 | Q41: (0.3) | R41: 10 | S41: (2.8) | T41: 352 | U41: (3.3)
A42: B | B42: 166 | C42: (76.1) | D42: 0 | E42: (0.0) | F42: 1 | G42: (0.5) | H42: 0 | I42: (0.0) | J42: 0 | K42: (0.0) | L42: 1 | M42: (0.5) | N42: 49 | O42: (22.5) | P42: 0 | Q42: (0.0) | R42: 1 | S42: (0.5) | T42: 218 | U42: (2.0)
A43: C | B43: 58 | C43: (28.3) | D43: 44 | E43: (21.5) | F43: 33 | G43: (16.1) | H43: 4 | I43: (2.0) | J43: 3 | K43: (1.5) | L43: 49 | M43: (23.9) | N43: 14 | O43: (6.8) | P43: 0 | Q43: (0.0) | R43: 0 | S43: (0.0) | T43: 205 | U43: (1.9)
A44: D | B44: 284 | C44: (59.7) | D44: 47 | E44: (9.9) | F44: 5 | G44: (1.1) | H44: 0 | I44: (0.0) | J44: 0 | K44: (0.0) | L44: 10 | M44: (2.1) | N44: 128 | O44: (26.9) | P44: 1 | Q44: (0.2) | R44: 1 | S44: (0.2) | T44: 476 | U44: (4.5)
A45: E1 | B45: 134 | C45: (23.1) | D45: 35 | E45: (6.0) | F45: 182 | G45: (31.4) | H45: 0 | I45: (0.0) | J45: 2 | K45: (0.3) | L45: 35 | M45: (6.0) | N45: 189 | O45: (32.6) | P45: 2 | Q45: (0.3) | R45: 1 | S45: (0.2) | T45: 580 | U45: (5.4)
A46: E2 | B46: 8 | C46: (3.7) | D46: 37 | E46: (17.3) | F46: 113 | G46: (52.8) | H46: 1 | I46: (0.5) | J46: 0 | K46: (0.0) | L46: 2 | M46: (0.9) | N46: 49 | O46: (22.9) | P46: 3 | Q46: (1.4) | R46: 1 | S46: (0.5) | T46: 214 | U46: (2.0)
A47: F | B47: 217 | C47: (36.6) | D47: 40 | E47: (6.7) | F47: 41 | G47: (6.9) | H47: 1 | I47: (0.2) | J47: 2 | K47: (0.3) | L47: 25 | M47: (4.2) | N47: 251 | O47: (42.3) | P47: 15 | Q47: (2.5) | R47: 1 | S47: (0.2) | T47: 593 | U47: (5.5)
A48: G | B48: 9 | C48: (47.4) | D48: 3 | E48: (15.8) | F48: 0 | G48: (0.0) | H48: 0 | I48: (0.0) | J48: 0 | K48: (0.0) | L48: 2 | M48: (10.5) | N48: 1 | O48: (5.3) | P48: 4 | Q48: (21.1) | R48: 0 | S48: (0.0) | T48: 19 | U48: (0.2)
A49: H | B49: 156 | C49: (39.2) | D49: 6 | E49: (1.5) | F49: 23 | G49: (5.8) | H49: 5 | I49: (1.3) | J49: 2 | K49: (0.5) | L49: 60 | M49: (15.1) | N49: 145 | O49: (36.4) | P49: 0 | Q49: (0.0) | R49: 1 | S49: (0.3) | T49: 398 | U49: (3.7)
A50: I | B50: 123 | C50: (35.9) | D50: 0 | E50: (0.0) | F50: 21 | G50: (6.1) | H50: 0 | I50: (0.0) | J50: 1 | K50: (0.3) | L50: 29 | M50: (8.5) | N50: 166 | O50: (48.4) | P50: 3 | Q50: (0.9) | R50: 0 | S50: (0.0) | T50: 343 | U50: (3.2)
A51: K1K3 | B51: 101 | C51: (33.3) | D51: 0 | E51: (0.0) | F51: 35 | G51: (11.6) | H51: 4 | I51: (1.3) | J51: 2 | K51: (0.7) | L51: 51 | M51: (16.8) | N51: 107 | O51: (35.3) | P51: 3 | Q51: (1.0) | R51: 0 | S51: (0.0) | T51: 303 | U51: (2.8)
A52: K2 | B52: 0 | C52: (0.0) | D52: 47 | E52: (50.0) | F52: 24 | G52: (25.5) | H52: 0 | I52: (0.0) | J52: 0 | K52: (0.0) | L52: 4 | M52: (4.3) | N52: 13 | O52: (13.8) | P52: 6 | Q52: (6.4) | R52: 0 | S52: (0.0) | T52: 94 | U52: (0.9)
A53: L | B53: 99 | C53: (38.2) | D53: 18 | E53: (6.9) | F53: 9 | G53: (3.5) | H53: 1 | I53: (0.4) | J53: 0 | K53: (0.0) | L53: 3 | M53: (1.2) | N53: 127 | O53: (49.0) | P53: 2 | Q53: (0.8) | R53: 0 | S53: (0.0) | T53: 259 | U53: (2.4)
A54: M | B54: 70 | C54: (29.3) | D54: 41 | E54: (17.2) | F54: 13 | G54: (5.4) | H54: 20 | I54: (8.4) | J54: 6 | K54: (2.5) | L54: 6 | M54: (2.5) | N54: 71 | O54: (29.7) | P54: 6 | Q54: (2.5) | R54: 6 | S54: (2.5) | T54: 239 | U54: (2.2)
A55: N | B55: 163 | C55: (42.2) | D55: 9 | E55: (2.3) | F55: 11 | G55: (2.8) | H55: 6 | I55: (1.6) | J55: 2 | K55: (0.5) | L55: 46 | M55: (11.9) | N55: 127 | O55: (32.9) | P55: 1 | Q55: (0.3) | R55: 21 | S55: (5.4) | T55: 386 | U55: (3.6)
A56: O | B56: 17 | C56: (8.8) | D56: 1 | E56: (0.5) | F56: 58 | G56: (29.9) | H56: 44 | I56: (22.7) | J56: 3 | K56: (1.5) | L56: 4 | M56: (2.1) | N56: 63 | O56: (32.5) | P56: 4 | Q56: (2.1) | R56: 0 | S56: (0.0) | T56: 194 | U56: (1.8)
A57: P | B57: 152 | C57: (25.3) | D57: 134 | E57: (22.3) | F57: 115 | G57: (19.1) | H57: 1 | I57: (0.2) | J57: 0 | K57: (0.0) | L57: 18 | M57: (3.0) | N57: 171 | O57: (28.5) | P57: 10 | Q57: (1.7) | R57: 0 | S57: (0.0) | T57: 601 | U57: (5.6)
A58: Q | B58: 148 | C58: (39.2) | D58: 66 | E58: (17.5) | F58: 20 | G58: (5.3) | H58: 26 | I58: (6.9) | J58: 1 | K58: (0.3) | L58: 32 | M58: (8.5) | N58: 81 | O58: (21.4) | P58: 2 | Q58: (0.5) | R58: 2 | S58: (0.5) | T58: 378 | U58: (3.5)
A59: R | B59: 121 | C59: (21.6) | D59: 83 | E59: (14.8) | F59: 134 | G59: (24.0) | H59: 7 | I59: (1.3) | J59: 4 | K59: (0.7) | L59: 54 | M59: (9.7) | N59: 144 | O59: (25.8) | P59: 12 | Q59: (2.1) | R59: 0 | S59: (0.0) | T59: 559 | U59: (5.2)
A60: S | B60: 36 | C60: (33.3) | D60: 3 | E60: (2.8) | F60: 0 | G60: (0.0) | H60: 19 | I60: (17.6) | J60: 0 | K60: (0.0) | L60: 8 | M60: (7.4) | N60: 42 | O60: (38.9) | P60: 0 | Q60: (0.0) | R60: 0 | S60: (0.0) | T60: 108 | U60: (1.0)
A61: T | B61: 165 | C61: (51.7) | D61: 10 | E61: (3.1) | F61: 7 | G61: (2.2) | H61: 0 | I61: (0.0) | J61: 1 | K61: (0.3) | L61: 14 | M61: (4.4) | N61: 120 | O61: (37.6) | P61: 0 | Q61: (0.0) | R61: 2 | S61: (0.6) | T61: 319 | U61: (3.0)
A62: U | B62: 162 | C62: (55.5) | D62: 9 | E62: (3.1) | F62: 6 | G62: (2.1) | H62: 3 | I62: (1.0) | J62: 0 | K62: (0.0) | L62: 6 | M62: (2.1) | N62: 106 | O62: (36.3) | P62: 0 | Q62: (0.0) | R62: 0 | S62: (0.0) | T62: 292 | U62: (2.7)
A63: V | B63: 180 | C63: (22.1) | D63: 10 | E63: (1.2) | F63: 101 | G63: (12.4) | H63: 0 | I63: (0.0) | J63: 0 | K63: (0.0) | L63: 100 | M63: (12.3) | N63: 357 | O63: (43.9) | P63: 0 | Q63: (0.0) | R63: 65 | S63: (8.0) | T63: 813 | U63: (7.6)
A64: W | B64: 92 | C64: (25.3) | D64: 60 | E64: (16.5) | F64: 122 | G64: (33.5) | H64: 8 | I64: (2.2) | J64: 1 | K64: (0.3) | L64: 18 | M64: (4.9) | N64: 55 | O64: (15.1) | P64: 0 | Q64: (0.0) | R64: 8 | S64: (2.2) | T64: 364 | U64: (3.4)
A65: X | B65: 107 | C65: (25.6) | D65: 46 | E65: (11.0) | F65: 113 | G65: (27.0) | H65: 26 | I65: (6.2) | J65: 5 | K65: (1.2) | L65: 7 | M65: (1.7) | N65: 108 | O65: (25.8) | P65: 2 | Q65: (0.5) | R65: 4 | S65: (1.0) | T65: 418 | U65: (3.9)
A66: Y | B66: 75 | C66: (39.7) | D66: 21 | E66: (11.1) | F66: 23 | G66: (12.2) | H66: 3 | I66: (1.6) | J66: 0 | K66: (0.0) | L66: 11 | M66: (5.8) | N66: 49 | O66: (25.9) | P66: 5 | Q66: (2.6) | R66: 2 | S66: (1.1) | T66: 189 | U66: (1.8)
A67: Z | B67: 142 | C67: (49.3) | D67: 0 | E67: (0.0) | F67: 4 | G67: (1.4) | H67: 1 | I67: (0.3) | J67: 1 | K67: (0.3) | L67: 7 | M67: (2.4) | N67: 129 | O67: (44.8) | P67: 1 | Q67: (0.3) | R67: 3 | S67: (1.0) | T67: 288 | U67: (2.7)
A68: ZA | B68: 198 | C68: (48.1) | D68: 0 | E68: (0.0) | F68: 17 | G68: (4.1) | H68: 29 | I68: (7.0) | J68: 1 | K68: (0.2) | L68: 10 | M68: (2.4) | N68: 150 | O68: (36.4) | P68: 6 | Q68: (1.5) | R68: 1 | S68: (0.2) | T68: 412 | U68: (3.9)
A69: ZB | B69: 83 | C69: (33.9) | D69: 0 | E69: (0.0) | F69: 8 | G69: (3.3) | H69: 0 | I69: (0.0) | J69: 0 | K69: (0.0) | L69: 48 | M69: (19.6) | N69: 105 | O69: (42.9) | P69: 1 | Q69: (0.4) | R69: 0 | S69: (0.0) | T69: 245 | U69: (2.3)
A70: ZC | B70: 105 | C70: (23.7) | D70: 6 | E70: (1.4) | F70: 92 | G70: (20.8) | H70: 13 | I70: (2.9) | J70: 2 | K70: (0.5) | L70: 6 | M70: (1.4) | N70: 207 | O70: (46.7) | P70: 10 | Q70: (2.3) | R70: 2 | S70: (0.5) | T70: 443 | U70: (4.1)
A71: ZD | B71: 137 | C71: (41.0) | D71: 24 | E71: (7.2) | F71: 66 | G71: (19.8) | H71: 10 | I71: (3.0) | J71: 0 | K71: (0.0) | L71: 9 | M71: (2.7) | N71: 81 | O71: (24.3) | P71: 7 | Q71: (2.1) | R71: 0 | S71: (0.0) | T71: 334 | U71: (3.1)
A72: ZE | B72: 0 | C72: (0.0) | D72: 2 | E72: (5.3) | F72: 4 | G72: (10.5) | H72: 3 | I72: (7.9) | J72: 0 | K72: (0.0) | L72: 1 | M72: (2.6) | N72: 28 | O72: (73.7) | P72: 0 | Q72: (0.0) | R72: 0 | S72: (0.0) | T72: 38 | U72: (0.4)
A73: ZF | B73: 1 | C73: (7.1) | D73: 0 | E73: (0.0) | F73: 0 | G73: (0.0) | H73: 2 | I73: (14.3) | J73: 0 | K73: (0.0) | L73: 0 | M73: (0.0) | N73: 11 | O73: (78.6) | P73: 0 | Q73: (0.0) | R73: 0 | S73: (0.0) | T73: 14 | U73: (0.1)
A74: Total | B74: 3671 | C74: (34.3) | D74: 806 | E74: (7.5) | F74: 1435 | G74: (13.4) | H74: 238 | I74: (2.2) | J74: 40 | K74: (0.4) | L74: 683 | M74: (6.4) | N74: 3576 | O74: (33.5) | P74: 107 | Q74: (1.0) | R74: 132 | S74: (1.2) | T74: 10688 | U74: (100.0)
A75: 2014
A76: A | B76: 172 | C76: (45.7) | D76: 8 | E76: (2.1) | F76: 57 | G76: (15.2) | H76: 2 | I76: (0.5) | J76: 0 | K76: (0.0) | L76: 4 | M76: (1.1) | N76: 131 | O76: (34.8) | P76: 0 | Q76: (0.0) | R76: 2 | S76: (0.5) | T76: 376 | U76: (3.5)
A77: B | B77: 185 | C77: (74.9) | D77: 0 | E77: (0.0) | F77: 1 | G77: (0.4) | H77: 0 | I77: (0.0) | J77: 0 | K77: (0.0) | L77: 0 | M77: (0.0) | N77: 61 | O77: (24.7) | P77: 0 | Q77: (0.0) | R77: 0 | S77: (0.0) | T77: 247 | U77: (2.3)
A78: C | B78: 65 | C78: (29.8) | D78: 32 | E78: (14.7) | F78: 32 | G78: (14.7) | H78: 3 | I78: (1.4) | J78: 2 | K78: (0.9) | L78: 61 | M78: (28.0) | N78: 21 | O78: (9.6) | P78: 2 | Q78: (0.9) | R78: 0 | S78: (0.0) | T78: 218 | U78: (2.1)
A79: D | B79: 193 | C79: (41.2) | D79: 89 | E79: (19.0) | F79: 10 | G79: (2.1) | H79: 2 | I79: (0.4) | J79: 1 | K79: (0.2) | L79: 13 | M79: (2.8) | N79: 158 | O79: (33.7) | P79: 3 | Q79: (0.6) | R79: 0 | S79: (0.0) | T79: 469 | U79: (4.4)
A80: E1 | B80: 148 | C80: (27.9) | D80: 26 | E80: (4.9) | F80: 151 | G80: (28.4) | H80: 1 | I80: (0.2) | J80: 1 | K80: (0.2) | L80: 42 | M80: (7.9) | N80: 154 | O80: (29.0) | P80: 3 | Q80: (0.6) | R80: 5 | S80: (0.9) | T80: 531 | U80: (5.0)
A81: E2 | B81: 21 | C81: (12.2) | D81: 20 | E81: (11.6) | F81: 81 | G81: (47.1) | H81: 1 | I81: (0.6) | J81: 0 | K81: (0.0) | L81: 1 | M81: (0.6) | N81: 44 | O81: (25.6) | P81: 2 | Q81: (1.2) | R81: 2 | S81: (1.2) | T81: 172 | U81: (1.6)
A82: F | B82: 179 | C82: (30.0) | D82: 49 | E82: (8.2) | F82: 92 | G82: (15.4) | H82: 7 | I82: (1.2) | J82: 3 | K82: (0.5) | L82: 26 | M82: (4.4) | N82: 228 | O82: (38.3) | P82: 11 | Q82: (1.8) | R82: 1 | S82: (0.2) | T82: 596 | U82: (5.6)
A83: G | B83: 8 | C83: (66.7) | D83: 2 | E83: (16.7) | F83: 0 | G83: (0.0) | H83: 0 | I83: (0.0) | J83: 0 | K83: (0.0) | L83: 1 | M83: (8.3) | N83: 0 | O83: (0.0) | P83: 1 | Q83: (8.3) | R83: 0 | S83: (0.0) | T83: 12 | U83: (0.1)
A84: H | B84: 144 | C84: (47.1) | D84: 4 | E84: (1.3) | F84: 13 | G84: (4.2) | H84: 5 | I84: (1.6) | J84: 0 | K84: (0.0) | L84: 20 | M84: (6.5) | N84: 120 | O84: (39.2) | P84: 0 | Q84: (0.0) | R84: 0 | S84: (0.0) | T84: 306 | U84: (2.9)
A85: I | B85: 93 | C85: (28.1) | D85: 0 | E85: (0.0) | F85: 16 | G85: (4.8) | H85: 0 | I85: (0.0) | J85: 0 | K85: (0.0) | L85: 29 | M85: (8.8) | N85: 178 | O85: (53.8) | P85: 15 | Q85: (4.5) | R85: 0 | S85: (0.0) | T85: 331 | U85: (3.1)
A86: K1K3 | B86: 119 | C86: (36.4) | D86: 0 | E86: (0.0) | F86: 38 | G86: (11.6) | H86: 2 | I86: (0.6) | J86: 4 | K86: (1.2) | L86: 54 | M86: (16.5) | N86: 107 | O86: (32.7) | P86: 3 | Q86: (0.9) | R86: 0 | S86: (0.0) | T86: 327 | U86: (3.1)
A87: K2 | B87: 3 | C87: (3.1) | D87: 37 | E87: (38.1) | F87: 32 | G87: (33.0) | H87: 4 | I87: (4.1) | J87: 0 | K87: (0.0) | L87: 1 | M87: (1.0) | N87: 17 | O87: (17.5) | P87: 3 | Q87: (3.1) | R87: 0 | S87: (0.0) | T87: 97 | U87: (0.9)
A88: L | B88: 103 | C88: (41.7) | D88: 26 | E88: (10.5) | F88: 17 | G88: (6.9) | H88: 0 | I88: (0.0) | J88: 0 | K88: (0.0) | L88: 2 | M88: (0.8) | N88: 91 | O88: (36.8) | P88: 1 | Q88: (0.4) | R88: 7 | S88: (2.8) | T88: 247 | U88: (2.3)
A89: M | B89: 82 | C89: (32.0) | D89: 57 | E89: (22.3) | F89: 7 | G89: (2.7) | H89: 24 | I89: (9.4) | J89: 5 | K89: (2.0) | L89: 15 | M89: (5.9) | N89: 61 | O89: (23.8) | P89: 4 | Q89: (1.6) | R89: 1 | S89: (0.4) | T89: 256 | U89: (2.4)
A90: N | B90: 185 | C90: (43.8) | D90: 10 | E90: (2.4) | F90: 24 | G90: (5.7) | H90: 5 | I90: (1.2) | J90: 12 | K90: (2.8) | L90: 31 | M90: (7.3) | N90: 128 | O90: (30.3) | P90: 1 | Q90: (0.2) | R90: 26 | S90: (6.2) | T90: 422 | U90: (4.0)
A91: O | B91: 43 | C91: (18.2) | D91: 2 | E91: (0.8) | F91: 70 | G91: (29.7) | H91: 42 | I91: (17.8) | J91: 1 | K91: (0.4) | L91: 6 | M91: (2.5) | N91: 68 | O91: (28.8) | P91: 3 | Q91: (1.3) | R91: 1 | S91: (0.4) | T91: 236 | U91: (2.2)
A92: P | B92: 154 | C92: (27.8) | D92: 78 | E92: (14.1) | F92: 116 | G92: (21.0) | H92: 0 | I92: (0.0) | J92: 2 | K92: (0.4) | L92: 16 | M92: (2.9) | N92: 178 | O92: (32.2) | P92: 9 | Q92: (1.6) | R92: 0 | S92: (0.0) | T92: 553 | U92: (5.2)
A93: Q | B93: 136 | C93: (36.1) | D93: 68 | E93: (18.0) | F93: 12 | G93: (3.2) | H93: 15 | I93: (4.0) | J93: 1 | K93: (0.3) | L93: 24 | M93: (6.4) | N93: 120 | O93: (31.8) | P93: 1 | Q93: (0.3) | R93: 0 | S93: (0.0) | T93: 377 | U93: (3.6)
A94: R | B94: 114 | C94: (21.3) | D94: 80 | E94: (15.0) | F94: 122 | G94: (22.8) | H94: 8 | I94: (1.5) | J94: 7 | K94: (1.3) | L94: 70 | M94: (13.1) | N94: 125 | O94: (23.4) | P94: 7 | Q94: (1.3) | R94: 1 | S94: (0.2) | T94: 534 | U94: (5.0)
A95: S | B95: 38 | C95: (34.5) | D95: 7 | E95: (6.4) | F95: 0 | G95: (0.0) | H95: 11 | I95: (10.0) | J95: 0 | K95: (0.0) | L95: 8 | M95: (7.3) | N95: 46 | O95: (41.8) | P95: 0 | Q95: (0.0) | R95: 0 | S95: (0.0) | T95: 110 | U95: (1.0)
A96: T | B96: 159 | C96: (49.2) | D96: 17 | E96: (5.3) | F96: 11 | G96: (3.4) | H96: 1 | I96: (0.3) | J96: 0 | K96: (0.0) | L96: 6 | M96: (1.9) | N96: 128 | O96: (39.6) | P96: 0 | Q96: (0.0) | R96: 1 | S96: (0.3) | T96: 323 | U96: (3.0)
A97: U | B97: 174 | C97: (59.0) | D97: 14 | E97: (4.7) | F97: 5 | G97: (1.7) | H97: 0 | I97: (0.0) | J97: 0 | K97: (0.0) | L97: 7 | M97: (2.4) | N97: 95 | O97: (32.2) | P97: 0 | Q97: (0.0) | R97: 0 | S97: (0.0) | T97: 295 | U97: (2.8)
A98: V | B98: 200 | C98: (25.6) | D98: 7 | E98: (0.9) | F98: 122 | G98: (15.6) | H98: 0 | I98: (0.0) | J98: 0 | K98: (0.0) | L98: 41 | M98: (5.2) | N98: 337 | O98: (43.1) | P98: 0 | Q98: (0.0) | R98: 74 | S98: (9.5) | T98: 781 | U98: (7.4)
A99: W | B99: 91 | C99: (25.4) | D99: 60 | E99: (16.8) | F99: 88 | G99: (24.6) | H99: 5 | I99: (1.4) | J99: 0 | K99: (0.0) | L99: 27 | M99: (7.5) | N99: 76 | O99: (21.2) | P99: 1 | Q99: (0.3) | R99: 10 | S99: (2.8) | T99: 358 | U99: (3.4)
A100: X | B100: 107 | C100: (32.2) | D100: 32 | E100: (9.6) | F100: 77 | G100: (23.2) | H100: 23 | I100: (6.9) | J100: 3 | K100: (0.9) | L100: 7 | M100: (2.1) | N100: 78 | O100: (23.5) | P100: 5 | Q100: (1.5) | R100: 0 | S100: (0.0) | T100: 332 | U100: (3.1)
A101: Y | B101: 51 | C101: (26.4) | D101: 43 | E101: (22.3) | F101: 25 | G101: (13.0) | H101: 4 | I101: (2.1) | J101: 1 | K101: (0.5) | L101: 20 | M101: (10.4) | N101: 47 | O101: (24.4) | P101: 2 | Q101: (1.0) | R101: 0 | S101: (0.0) | T101: 193 | U101: (1.8)
A102: Z | B102: 176 | C102: (52.7) | D102: 0 | E102: (0.0) | F102: 13 | G102: (3.9) | H102: 1 | I102: (0.3) | J102: 2 | K102: (0.6) | L102: 13 | M102: (3.9) | N102: 122 | O102: (36.5) | P102: 1 | Q102: (0.3) | R102: 6 | S102: (1.8) | T102: 334 | U102: (3.2)
A103: ZA | B103: 219 | C103: (46.5) | D103: 1 | E103: (0.2) | F103: 30 | G103: (6.4) | H103: 71 | I103: (15.1) | J103: 1 | K103: (0.2) | L103: 7 | M103: (1.5) | N103: 134 | O103: (28.5) | P103: 3 | Q103: (0.6) | R103: 5 | S103: (1.1) | T103: 471 | U103: (4.4)
A104: ZB | B104: 123 | C104: (39.7) | D104: 1 | E104: (0.3) | F104: 17 | G104: (5.5) | H104: 2 | I104: (0.6) | J104: 1 | K104: (0.3) | L104: 45 | M104: (14.5) | N104: 120 | O104: (38.7) | P104: 1 | Q104: (0.3) | R104: 0 | S104: (0.0) | T104: 310 | U104: (2.9)
A105: ZC | B105: 104 | C105: (26.5) | D105: 5 | E105: (1.3) | F105: 69 | G105: (17.6) | H105: 7 | I105: (1.8) | J105: 1 | K105: (0.3) | L105: 5 | M105: (1.3) | N105: 190 | O105: (48.3) | P105: 10 | Q105: (2.5) | R105: 2 | S105: (0.5) | T105: 393 | U105: (3.7)
A106: ZD | B106: 116 | C106: (36.5) | D106: 13 | E106: (4.1) | F106: 87 | G106: (27.4) | H106: 6 | I106: (1.9) | J106: 1 | K106: (0.3) | L106: 7 | M106: (2.2) | N106: 81 | O106: (25.5) | P106: 7 | Q106: (2.2) | R106: 0 | S106: (0.0) | T106: 318 | U106: (3.0)
A107: ZE | B107: 0 | C107: (0.0) | D107: 1 | E107: (2.9) | F107: 4 | G107: (11.4) | H107: 1 | I107: (2.9) | J107: 1 | K107: (2.9) | L107: 1 | M107: (2.9) | N107: 27 | O107: (77.1) | P107: 0 | Q107: (0.0) | R107: 0 | S107: (0.0) | T107: 35 | U107: (0.3)
A108: ZF | B108: 1 | C108: (2.8) | D108: 0 | E108: (0.0) | F108: 4 | G108: (11.1) | H108: 5 | I108: (13.9) | J108: 0 | K108: (0.0) | L108: 3 | M108: (8.3) | N108: 23 | O108: (63.9) | P108: 0 | Q108: (0.0) | R108: 0 | S108: (0.0) | T108: 36 | U108: (0.3)
A109: Total | B109: 3706 | C109: (35.0) | D109: 789 | E109: (7.4) | F109: 1443 | G109: (13.6) | H109: 258 | I109: (2.4) | J109: 50 | K109: (0.5) | L109: 613 | M109: (5.8) | N109: 3494 | O109: (33.0) | P109: 99 | Q109: (0.9) | R109: 144 | S109: (1.4) | T109: 10596 | U109: (100.0)
A110: Grand
A111: Total | B111: 10970 | C111: (34.4) | D111: 2352 | E111: (7.4) | F111: 4543 | G111: (14.2) | H111: 720 | I111: (2.3) | J111: 124 | K111: (0.4) | L111: 1938 | M111: (6.1) | N111: 10574 | O111: (33.2) | P111: 314 | Q111: (1.0) | R111: 360 | S111: (1.1) | T111: 31895 | U111: (100.0)
A113: FIGURE 15 ADMISSIONS BY CARE AREA ADMITTED FROM (ADMISSION TYPE UNPLANNED -OTHER; ADMITTED FROM HOSPITAL), BY HEALTH ORGANISATION, 2012 - 2014

Sheet 16
A1: TABLE 16 ADMISSIONS BY PRIMARY DIAGNOSTIC GROUP AND AGE, 2012 - 2014
B3: AGE GROUP (YEARS)
A4: Diagnostic Group | B4: <1 | D4: 1-4 | F4: 5-10 | H4: 11-15 | J4: Total
B5: n | C5: (%) | D5: n | E5: (%) | F5: n | G5: (%) | H5: n | I5: (%) | J5: n | K5: (%)
A6: Blood / lymphatic | B6: 102 | C6: (18.8) | D6: 169 | E6: (31.1) | F6: 154 | G6: (28.4) | H6: 118 | I6: (21.7) | J6: 543 | K6: (0.9)
A7: Body wall and cavities | B7: 880 | C7: (85.0) | D7: 106 | E7: (10.2) | F7: 29 | G7: (2.8) | H7: 20 | I7: (1.9) | J7: 1035 | K7: (1.7)
A8: Cardiovascular | B8: 10817 | C8: (61.6) | D8: 3839 | E8: (21.8) | F8: 1810 | G8: (10.3) | H8: 1105 | I8: (6.3) | J8: 17571 | K8: (29.5)
A9: Endocrine / metabolic | B9: 501 | C9: (34.5) | D9: 394 | E9: (27.1) | F9: 248 | G9: (17.1) | H9: 309 | I9: (21.3) | J9: 1452 | K9: (2.4)
A10: Gastrointestinal | B10: 2109 | C10: (59.6) | D10: 672 | E10: (19.0) | F10: 385 | G10: (10.9) | H10: 371 | I10: (10.5) | J10: 3537 | K10: (5.9)
A11: Infection | B11: 1450 | C11: (49.2) | D11: 851 | E11: (28.9) | F11: 358 | G11: (12.2) | H11: 287 | I11: (9.7) | J11: 2946 | K11: (4.9)
A12: Multisystem | B12: 119 | C12: (57.2) | D12: 50 | E12: (24.0) | F12: 22 | G12: (10.6) | H12: 17 | I12: (8.2) | J12: 208 | K12: (0.3)
A13: Musculoskeletal | B13: 178 | C13: (6.9) | D13: 455 | E13: (17.5) | F13: 487 | G13: (18.8) | H13: 1475 | I13: (56.8) | J13: 2595 | K13: (4.4)
A14: Neurological | B14: 1640 | C14: (26.4) | D14: 2294 | E14: (36.9) | F14: 1390 | G14: (22.3) | H14: 898 | I14: (14.4) | J14: 6222 | K14: (10.4)
A15: Oncology | B15: 308 | C15: (15.2) | D15: 721 | E15: (35.7) | F15: 597 | G15: (29.5) | H15: 394 | I15: (19.5) | J15: 2020 | K15: (3.4)
A16: Respiratory | B16: 8582 | C16: (51.2) | D16: 4959 | E16: (29.6) | F16: 1979 | G16: (11.8) | H16: 1228 | I16: (7.3) | J16: 16748 | K16: (28.1)
A17: Trauma | B17: 120 | C17: (8.9) | D17: 452 | E17: (33.4) | F17: 375 | G17: (27.7) | H17: 408 | I17: (30.1) | J17: 1355 | K17: (2.3)
A18: Other | B18: 1101 | C18: (33.8) | D18: 1005 | E18: (30.8) | F18: 522 | G18: (16.0) | H18: 630 | I18: (19.3) | J18: 3258 | K18: (5.5)
A19: Unknown | B19: 42 | C19: (28.2) | D19: 55 | E19: (36.9) | F19: 32 | G19: (21.5) | H19: 18 | I19: (12.1) | J19: 147 | K19: (0.2)
A20: Total | B20: 27949 | C20: (46.9) | D20: 16022 | E20: (26.9) | F20: 8388 | G20: (14.1) | H20: 7278 | I20: (12.2) | J20: 59637 | K20: (100.0)
A23: FIGURE 16 ADMISSIONS BY PRIMARY DIAGNOSTIC GROUP, 2012 - 2014

Sheet 17
A1: TABLE 17 ADMISSIONS BY PRIMARY DIAGNOSTIC GROUP AND AGE (16+ YEARS), 2012 - 2014
B3: AGE GROUP (YEARS)
A4: Diagnostic Group | B4: 16 | D4: 17-20 | F4: 21-25 | H4: 26+ | J4: Total
B5: n | C5: (%) | D5: n | E5: (%) | F5: n | G5: (%) | H5: n | I5: (%) | J5: n | K5: (%)
A6: Blood / lymphatic | B6: 4 | C6: (44.4) | D6: 4 | E6: (44.4) | F6: 1 | G6: (11.1) | H6: 0 | I6: (0.0) | J6: 9 | K6: (0.6)
A7: Body wall and cavities | B7: 2 | C7: (66.7) | D7: 0 | E7: (0.0) | F7: 0 | G7: (0.0) | H7: 1 | I7: (33.3) | J7: 3 | K7: (0.2)
A8: Cardiovascular | B8: 158 | C8: (62.2) | D8: 93 | E8: (36.6) | F8: 2 | G8: (0.8) | H8: 1 | I8: (0.4) | J8: 254 | K8: (17.8)
A9: Endocrine / metabolic | B9: 50 | C9: (69.4) | D9: 22 | E9: (30.6) | F9: 0 | G9: (0.0) | H9: 0 | I9: (0.0) | J9: 72 | K9: (5.0)
A10: Gastrointestinal | B10: 32 | C10: (65.3) | D10: 17 | E10: (34.7) | F10: 0 | G10: (0.0) | H10: 0 | I10: (0.0) | J10: 49 | K10: (3.4)
A11: Infection | B11: 25 | C11: (47.2) | D11: 26 | E11: (49.1) | F11: 2 | G11: (3.8) | H11: 0 | I11: (0.0) | J11: 53 | K11: (3.7)
A12: Multisystem | B12: 2 | C12: (66.7) | D12: 1 | E12: (33.3) | F12: 0 | G12: (0.0) | H12: 0 | I12: (0.0) | J12: 3 | K12: (0.2)
A13: Musculoskeletal | B13: 264 | C13: (60.1) | D13: 171 | E13: (39.0) | F13: 3 | G13: (0.7) | H13: 1 | I13: (0.2) | J13: 439 | K13: (30.7)
A14: Neurological | B14: 80 | C14: (63.0) | D14: 45 | E14: (35.4) | F14: 2 | G14: (1.6) | H14: 0 | I14: (0.0) | J14: 127 | K14: (8.9)
A15: Oncology | B15: 42 | C15: (60.0) | D15: 28 | E15: (40.0) | F15: 0 | G15: (0.0) | H15: 0 | I15: (0.0) | J15: 70 | K15: (4.9)
A16: Respiratory | B16: 118 | C16: (52.7) | D16: 102 | E16: (45.5) | F16: 4 | G16: (1.8) | H16: 0 | I16: (0.0) | J16: 224 | K16: (15.7)
A17: Trauma | B17: 26 | C17: (74.3) | D17: 9 | E17: (25.7) | F17: 0 | G17: (0.0) | H17: 0 | I17: (0.0) | J17: 35 | K17: (2.4)
A18: Other | B18: 49 | C18: (53.8) | D18: 42 | E18: (46.2) | F18: 0 | G18: (0.0) | H18: 0 | I18: (0.0) | J18: 91 | K18: (6.4)
A19: Unknown | B19: 0 | C19: (0.0) | D19: 1 | E19: (100.0) | F19: 0 | G19: (0.0) | H19: 0 | I19: (0.0) | J19: 1 | K19: (0.1)
A20: Total | B20: 852 | C20: (59.6) | D20: 561 | E20: (39.2) | F20: 14 | G20: (1.0) | H20: 3 | I20: (0.2) | J20: 1430 | K20: (100.0)
A23: FIGURE 17 ADMISSIONS BY PRIMARY DIAGNOSTIC GROUP AND AGE (16+ YEARS), 2012 - 2014

Sheet 18
A1: TABLE 18 ADMISSIONS BY PRIMARY DIAGNOSTIC GROUP BY HEALTH ORGANISATION, 2012 - 2014
B3: DIAGNOSTIC GROUP
A4: Year / Organisation | B4: Blood / lymphatic | D4: Body wall and cavities | F4: Cardio - vascular | H4: Endocrine / metabolic | J4: Gastro - intestinal | L4: Infection | N4: Multi- system | P4: Musculo -skeletal | R4: Neuro -logical | T4: Oncology | V4: Respiratory | X4: Trauma | Z4: Other* | AB4: Unknown | AD4: Total
B5: n | C5: (%) | D5: n | E5: (%) | F5: n | G5: (%) | H5: n | I5: (%) | J5: n | K5: (%) | L5: n | M5: (%) | N5: n | O5: (%) | P5: n | Q5: (%) | R5: n | S5: (%) | T5: n | U5: (%) | V5: n | W5: (%) | X5: n | Y5: (%) | Z5: n | AA5: (%) | AB5: n | AC5: (%) | AD5: n | AE5: (%)
A6: 2012
A7: A | B7: 7 | C7: (1.1) | D7: 7 | E7: (1.1) | F7: 24 | G7: (3.9) | H7: 14 | I7: (2.3) | J7: 57 | K7: (9.2) | L7: 16 | M7: (2.6) | N7: 2 | O7: (0.3) | P7: 34 | Q7: (5.5) | R7: 85 | S7: (13.7) | T7: 67 | U7: (10.8) | V7: 228 | W7: (36.8) | X7: 29 | Y7: (4.7) | Z7: 46 | AA7: (7.4) | AB7: 3 | AC7: (0.5) | AD7: 619 | AE7: (3.1)
A8: B | B8: 0 | C8: (0.0) | D8: 0 | E8: (0.0) | F8: 1 | G8: (0.5) | H8: 16 | I8: (8.2) | J8: 5 | K8: (2.6) | L8: 17 | M8: (8.7) | N8: 0 | O8: (0.0) | P8: 4 | Q8: (2.1) | R8: 3 | S8: (1.5) | T8: 0 | U8: (0.0) | V8: 146 | W8: (74.9) | X8: 0 | Y8: (0.0) | Z8: 3 | AA8: (1.5) | AB8: 0 | AC8: (0.0) | AD8: 195 | AE8: (1.0)
A9: C | B9: 2 | C9: (0.6) | D9: 3 | E9: (1.0) | F9: 16 | G9: (5.1) | H9: 9 | I9: (2.9) | J9: 15 | K9: (4.8) | L9: 32 | M9: (10.2) | N9: 0 | O9: (0.0) | P9: 17 | Q9: (5.4) | R9: 50 | S9: (15.9) | T9: 15 | U9: (4.8) | V9: 136 | W9: (43.2) | X9: 11 | Y9: (3.5) | Z9: 9 | AA9: (2.9) | AB9: 0 | AC9: (0.0) | AD9: 315 | AE9: (1.6)
A10: D | B10: 4 | C10: (0.5) | D10: 18 | E10: (2.4) | F10: 44 | G10: (5.8) | H10: 26 | I10: (3.4) | J10: 64 | K10: (8.5) | L10: 62 | M10: (8.2) | N10: 1 | O10: (0.1) | P10: 26 | Q10: (3.4) | R10: 124 | S10: (16.4) | T10: 24 | U10: (3.2) | V10: 291 | W10: (38.4) | X10: 34 | Y10: (4.5) | Z10: 35 | AA10: (4.6) | AB10: 4 | AC10: (0.5) | AD10: 757 | AE10: (3.8)
A11: E1 | B11: 11 | C11: (1.2) | D11: 41 | E11: (4.4) | F11: 86 | G11: (9.2) | H11: 29 | I11: (3.1) | J11: 136 | K11: (14.5) | L11: 32 | M11: (3.4) | N11: 1 | O11: (0.1) | P11: 32 | Q11: (3.4) | R11: 142 | S11: (15.1) | T11: 37 | U11: (3.9) | V11: 286 | W11: (30.5) | X11: 33 | Y11: (3.5) | Z11: 72 | AA11: (7.7) | AB11: 0 | AC11: (0.0) | AD11: 938 | AE11: (4.7)
A12: E2 | B12: 2 | C12: (0.2) | D12: 6 | E12: (0.7) | F12: 685 | G12: (83.6) | H12: 5 | I12: (0.6) | J12: 3 | K12: (0.4) | L12: 5 | M12: (0.6) | N12: 1 | O12: (0.1) | P12: 4 | Q12: (0.5) | R12: 2 | S12: (0.2) | T12: 1 | U12: (0.1) | V12: 103 | W12: (12.6) | X12: 0 | Y12: (0.0) | Z12: 2 | AA12: (0.2) | AB12: 0 | AC12: (0.0) | AD12: 819 | AE12: (4.1)
A13: F | B13: 0 | C13: (0.0) | D13: 5 | E13: (0.4) | F13: 550 | G13: (43.8) | H13: 21 | I13: (1.7) | J13: 39 | K13: (3.1) | L13: 59 | M13: (4.7) | N13: 1 | O13: (0.1) | P13: 76 | Q13: (6.1) | R13: 89 | S13: (7.1) | T13: 0 | U13: (0.0) | V13: 370 | W13: (29.5) | X13: 9 | Y13: (0.7) | Z13: 31 | AA13: (2.5) | AB13: 5 | AC13: (0.4) | AD13: 1255 | AE13: (6.3)
A14: G | B14: 1 | C14: (5.3) | D14: 0 | E14: (0.0) | F14: 0 | G14: (0.0) | H14: 0 | I14: (0.0) | J14: 1 | K14: (5.3) | L14: 3 | M14: (15.8) | N14: 0 | O14: (0.0) | P14: 0 | Q14: (0.0) | R14: 5 | S14: (26.3) | T14: 0 | U14: (0.0) | V14: 4 | W14: (21.1) | X14: 0 | Y14: (0.0) | Z14: 5 | AA14: (26.3) | AB14: 0 | AC14: (0.0) | AD14: 19 | AE14: (0.1)
A15: H | B15: 13 | C15: (2.0) | D15: 4 | E15: (0.6) | F15: 7 | G15: (1.1) | H15: 36 | I15: (5.6) | J15: 79 | K15: (12.2) | L15: 30 | M15: (4.7) | N15: 0 | O15: (0.0) | P15: 4 | Q15: (0.6) | R15: 116 | S15: (18.0) | T15: 45 | U15: (7.0) | V15: 131 | W15: (20.3) | X15: 21 | Y15: (3.3) | Z15: 149 | AA15: (23.1) | AB15: 10 | AC15: (1.6) | AD15: 645 | AE15: (3.2)
A16: I | B16: 2 | C16: (0.2) | D16: 8 | E16: (0.9) | F16: 342 | G16: (39.2) | H16: 22 | I16: (2.5) | J16: 59 | K16: (6.8) | L16: 41 | M16: (4.7) | N16: 2 | O16: (0.2) | P16: 20 | Q16: (2.3) | R16: 69 | S16: (7.9) | T16: 42 | U16: (4.8) | V16: 226 | W16: (25.9) | X16: 17 | Y16: (1.9) | Z16: 23 | AA16: (2.6) | AB16: 0 | AC16: (0.0) | AD16: 873 | AE16: (4.4)
A17: K1K3 | B17: 10 | C17: (1.8) | D17: 28 | E17: (5.2) | F17: 17 | G17: (3.1) | H17: 19 | I17: (3.5) | J17: 60 | K17: (11.1) | L17: 40 | M17: (7.4) | N17: 1 | O17: (0.2) | P17: 14 | Q17: (2.6) | R17: 89 | S17: (16.4) | T17: 47 | U17: (8.7) | V17: 163 | W17: (30.1) | X17: 25 | Y17: (4.6) | Z17: 29 | AA17: (5.4) | AB17: 0 | AC17: (0.0) | AD17: 542 | AE17: (2.7)
A18: K2 | B18: 2 | C18: (0.6) | D18: 3 | E18: (0.9) | F18: 253 | G18: (79.1) | H18: 3 | I18: (0.9) | J18: 4 | K18: (1.3) | L18: 13 | M18: (4.1) | N18: 0 | O18: (0.0) | P18: 1 | Q18: (0.3) | R18: 3 | S18: (0.9) | T18: 2 | U18: (0.6) | V18: 33 | W18: (10.3) | X18: 1 | Y18: (0.3) | Z18: 2 | AA18: (0.6) | AB18: 0 | AC18: (0.0) | AD18: 320 | AE18: (1.6)
A19: L | B19: 1 | C19: (0.3) | D19: 3 | E19: (1.0) | F19: 13 | G19: (4.2) | H19: 14 | I19: (4.6) | J19: 4 | K19: (1.3) | L19: 32 | M19: (10.4) | N19: 0 | O19: (0.0) | P19: 23 | Q19: (7.5) | R19: 45 | S19: (14.7) | T19: 1 | U19: (0.3) | V19: 156 | W19: (50.8) | X19: 3 | Y19: (1.0) | Z19: 11 | AA19: (3.6) | AB19: 1 | AC19: (0.3) | AD19: 307 | AE19: (1.5)
A20: M | B20: 10 | C20: (2.3) | D20: 1 | E20: (0.2) | F20: 16 | G20: (3.7) | H20: 22 | I20: (5.1) | J20: 13 | K20: (3.0) | L20: 31 | M20: (7.2) | N20: 1 | O20: (0.2) | P20: 36 | Q20: (8.3) | R20: 53 | S20: (12.2) | T20: 18 | U20: (4.2) | V20: 165 | W20: (38.1) | X20: 24 | Y20: (5.5) | Z20: 43 | AA20: (9.9) | AB20: 0 | AC20: (0.0) | AD20: 433 | AE20: (2.2)
A21: N | B21: 7 | C21: (1.3) | D21: 18 | E21: (3.3) | F21: 12 | G21: (2.2) | H21: 20 | I21: (3.7) | J21: 50 | K21: (9.2) | L21: 25 | M21: (4.6) | N21: 6 | O21: (1.1) | P21: 96 | Q21: (17.6) | R21: 57 | S21: (10.5) | T21: 27 | U21: (5.0) | V21: 178 | W21: (32.7) | X21: 15 | Y21: (2.8) | Z21: 32 | AA21: (5.9) | AB21: 1 | AC21: (0.2) | AD21: 544 | AE21: (2.7)
A22: O | B22: 1 | C22: (0.2) | D22: 3 | E22: (0.5) | F22: 530 | G22: (80.4) | H22: 1 | I22: (0.2) | J22: 16 | K22: (2.4) | L22: 10 | M22: (1.5) | N22: 2 | O22: (0.3) | P22: 2 | Q22: (0.3) | R22: 6 | S22: (0.9) | T22: 4 | U22: (0.6) | V22: 77 | W22: (11.7) | X22: 0 | Y22: (0.0) | Z22: 3 | AA22: (0.5) | AB22: 4 | AC22: (0.6) | AD22: 659 | AE22: (3.3)
A23: P | B23: 10 | C23: (0.9) | D23: 34 | E23: (3.0) | F23: 479 | G23: (41.9) | H23: 9 | I23: (0.8) | J23: 65 | K23: (5.7) | L23: 47 | M23: (4.1) | N23: 9 | O23: (0.8) | P23: 22 | Q23: (1.9) | R23: 119 | S23: (10.4) | T23: 26 | U23: (2.3) | V23: 257 | W23: (22.5) | X23: 24 | Y23: (2.1) | Z23: 42 | AA23: (3.7) | AB23: 0 | AC23: (0.0) | AD23: 1143 | AE23: (5.7)
A24: Q | B24: 6 | C24: (1.2) | D24: 14 | E24: (2.8) | F24: 29 | G24: (5.8) | H24: 17 | I24: (3.4) | J24: 32 | K24: (6.4) | L24: 39 | M24: (7.8) | N24: 2 | O24: (0.4) | P24: 13 | Q24: (2.6) | R24: 77 | S24: (15.4) | T24: 20 | U24: (4.0) | V24: 219 | W24: (43.7) | X24: 14 | Y24: (2.8) | Z24: 19 | AA24: (3.8) | AB24: 0 | AC24: (0.0) | AD24: 501 | AE24: (2.5)
A25: R | B25: 9 | C25: (1.0) | D25: 14 | E25: (1.6) | F25: 281 | G25: (32.5) | H25: 24 | I25: (2.8) | J25: 72 | K25: (8.3) | L25: 35 | M25: (4.0) | N25: 0 | O25: (0.0) | P25: 46 | Q25: (5.3) | R25: 99 | S25: (11.4) | T25: 15 | U25: (1.7) | V25: 230 | W25: (26.6) | X25: 11 | Y25: (1.3) | Z25: 25 | AA25: (2.9) | AB25: 4 | AC25: (0.5) | AD25: 865 | AE25: (4.3)
A26: S | B26: 1 | C26: (0.6) | D26: 0 | E26: (0.0) | F26: 2 | G26: (1.2) | H26: 16 | I26: (9.8) | J26: 3 | K26: (1.8) | L26: 11 | M26: (6.7) | N26: 0 | O26: (0.0) | P26: 10 | Q26: (6.1) | R26: 26 | S26: (16.0) | T26: 0 | U26: (0.0) | V26: 81 | W26: (49.7) | X26: 6 | Y26: (3.7) | Z26: 7 | AA26: (4.3) | AB26: 0 | AC26: (0.0) | AD26: 163 | AE26: (0.8)
A27: T | B27: 6 | C27: (1.2) | D27: 7 | E27: (1.3) | F27: 18 | G27: (3.5) | H27: 14 | I27: (2.7) | J27: 55 | K27: (10.6) | L27: 36 | M27: (6.9) | N27: 0 | O27: (0.0) | P27: 25 | Q27: (4.8) | R27: 83 | S27: (16.0) | T27: 57 | U27: (11.0) | V27: 184 | W27: (35.4) | X27: 17 | Y27: (3.3) | Z27: 17 | AA27: (3.3) | AB27: 1 | AC27: (0.2) | AD27: 520 | AE27: (2.6)
A28: U | B28: 12 | C28: (3.6) | D28: 0 | E28: (0.0) | F28: 22 | G28: (6.5) | H28: 20 | I28: (5.9) | J28: 13 | K28: (3.8) | L28: 29 | M28: (8.6) | N28: 0 | O28: (0.0) | P28: 1 | Q28: (0.3) | R28: 69 | S28: (20.4) | T28: 0 | U28: (0.0) | V28: 153 | W28: (45.3) | X28: 10 | Y28: (3.0) | Z28: 6 | AA28: (1.8) | AB28: 3 | AC28: (0.9) | AD28: 338 | AE28: (1.7)
A29: V | B29: 15 | C29: (1.1) | D29: 33 | E29: (2.3) | F29: 590 | G29: (41.9) | H29: 38 | I29: (2.7) | J29: 130 | K29: (9.2) | L29: 45 | M29: (3.2) | N29: 8 | O29: (0.6) | P29: 18 | Q29: (1.3) | R29: 114 | S29: (8.1) | T29: 47 | U29: (3.3) | V29: 240 | W29: (17.0) | X29: 39 | Y29: (2.8) | Z29: 92 | AA29: (6.5) | AB29: 0 | AC29: (0.0) | AD29: 1409 | AE29: (7.1)
A30: W | B30: 4 | C30: (0.6) | D30: 5 | E30: (0.7) | F30: 364 | G30: (54.0) | H30: 9 | I30: (1.3) | J30: 18 | K30: (2.7) | L30: 21 | M30: (3.1) | N30: 2 | O30: (0.3) | P30: 2 | Q30: (0.3) | R30: 61 | S30: (9.1) | T30: 14 | U30: (2.1) | V30: 152 | W30: (22.6) | X30: 5 | Y30: (0.7) | Z30: 14 | AA30: (2.1) | AB30: 3 | AC30: (0.4) | AD30: 674 | AE30: (3.4)
A31: X | B31: 5 | C31: (0.6) | D31: 27 | E31: (3.0) | F31: 349 | G31: (39.2) | H31: 12 | I31: (1.3) | J31: 46 | K31: (5.2) | L31: 53 | M31: (6.0) | N31: 8 | O31: (0.9) | P31: 7 | Q31: (0.8) | R31: 69 | S31: (7.8) | T31: 9 | U31: (1.0) | V31: 259 | W31: (29.1) | X31: 15 | Y31: (1.7) | Z31: 29 | AA31: (3.3) | AB31: 2 | AC31: (0.2) | AD31: 890 | AE31: (4.5)
A32: Y | B32: 7 | C32: (1.6) | D32: 9 | E32: (2.0) | F32: 15 | G32: (3.4) | H32: 7 | I32: (1.6) | J32: 26 | K32: (5.9) | L32: 31 | M32: (7.0) | N32: 8 | O32: (1.8) | P32: 115 | Q32: (26.1) | R32: 46 | S32: (10.5) | T32: 18 | U32: (4.1) | V32: 120 | W32: (27.3) | X32: 25 | Y32: (5.7) | Z32: 13 | AA32: (3.0) | AB32: 0 | AC32: (0.0) | AD32: 440 | AE32: (2.2)
A33: Z | B33: 11 | C33: (3.1) | D33: 6 | E33: (1.7) | F33: 9 | G33: (2.5) | H33: 4 | I33: (1.1) | J33: 26 | K33: (7.4) | L33: 23 | M33: (6.5) | N33: 0 | O33: (0.0) | P33: 0 | Q33: (0.0) | R33: 42 | S33: (11.9) | T33: 0 | U33: (0.0) | V33: 164 | W33: (46.5) | X33: 31 | Y33: (8.8) | Z33: 23 | AA33: (6.5) | AB33: 14 | AC33: (4.0) | AD33: 353 | AE33: (1.8)
A34: ZA | B34: 6 | C34: (0.6) | D34: 8 | E34: (0.8) | F34: 252 | G34: (26.2) | H34: 10 | I34: (1.0) | J34: 44 | K34: (4.6) | L34: 49 | M34: (5.1) | N34: 3 | O34: (0.3) | P34: 38 | Q34: (4.0) | R34: 88 | S34: (9.2) | T34: 39 | U34: (4.1) | V34: 283 | W34: (29.4) | X34: 25 | Y34: (2.6) | Z34: 114 | AA34: (11.9) | AB34: 2 | AC34: (0.2) | AD34: 961 | AE34: (4.8)
A35: ZB | B35: 6 | C35: (1.3) | D35: 5 | E35: (1.1) | F35: 35 | G35: (7.8) | H35: 19 | I35: (4.2) | J35: 29 | K35: (6.5) | L35: 19 | M35: (4.2) | N35: 1 | O35: (0.2) | P35: 33 | Q35: (7.3) | R35: 62 | S35: (13.8) | T35: 23 | U35: (5.1) | V35: 170 | W35: (37.9) | X35: 12 | Y35: (2.7) | Z35: 35 | AA35: (7.8) | AB35: 0 | AC35: (0.0) | AD35: 449 | AE35: (2.2)
A36: ZC | B36: 10 | C36: (0.9) | D36: 23 | E36: (2.1) | F36: 480 | G36: (44.5) | H36: 16 | I36: (1.5) | J36: 70 | K36: (6.5) | L36: 39 | M36: (3.6) | N36: 1 | O36: (0.1) | P36: 34 | Q36: (3.2) | R36: 47 | S36: (4.4) | T36: 43 | U36: (4.0) | V36: 256 | W36: (23.7) | X36: 12 | Y36: (1.1) | Z36: 48 | AA36: (4.4) | AB36: 0 | AC36: (0.0) | AD36: 1079 | AE36: (5.4)
A37: ZD | B37: 3 | C37: (0.6) | D37: 13 | E37: (2.6) | F37: 10 | G37: (2.0) | H37: 16 | I37: (3.2) | J37: 43 | K37: (8.5) | L37: 30 | M37: (5.9) | N37: 4 | O37: (0.8) | P37: 26 | Q37: (5.1) | R37: 96 | S37: (19.0) | T37: 33 | U37: (6.5) | V37: 173 | W37: (34.2) | X37: 18 | Y37: (3.6) | Z37: 39 | AA37: (7.7) | AB37: 2 | AC37: (0.4) | AD37: 506 | AE37: (2.5)
A38: ZE | B38: 4 | C38: (0.9) | D38: 2 | E38: (0.5) | F38: 294 | G38: (68.2) | H38: 4 | I38: (0.9) | J38: 6 | K38: (1.4) | L38: 8 | M38: (1.9) | N38: 0 | O38: (0.0) | P38: 37 | Q38: (8.6) | R38: 22 | S38: (5.1) | T38: 21 | U38: (4.9) | V38: 12 | W38: (2.8) | X38: 1 | Y38: (0.2) | Z38: 19 | AA38: (4.4) | AB38: 1 | AC38: (0.2) | AD38: 431 | AE38: (2.2)
A39: Total | B39: 188 | C39: (0.9) | D39: 348 | E39: (1.7) | F39: 5825 | G39: (29.2) | H39: 492 | I39: (2.5) | J39: 1283 | K39: (6.4) | L39: 963 | M39: (4.8) | N39: 64 | O39: (0.3) | P39: 816 | Q39: (4.1) | R39: 2058 | S39: (10.3) | T39: 695 | U39: (3.5) | V39: 5646 | W39: (28.3) | X39: 487 | Y39: (2.4) | Z39: 1037 | AA39: (5.2) | AB39: 60 | AC39: (0.3) | AD39: 19962 | AE39: (100.0)
A40: 2013
A41: A | B41: 2 | C41: (0.3) | D41: 9 | E41: (1.4) | F41: 23 | G41: (3.5) | H41: 13 | I41: (2.0) | J41: 46 | K41: (7.0) | L41: 16 | M41: (2.4) | N41: 2 | O41: (0.3) | P41: 43 | Q41: (6.6) | R41: 97 | S41: (14.8) | T41: 51 | U41: (7.8) | V41: 258 | W41: (39.3) | X41: 30 | Y41: (4.6) | Z41: 60 | AA41: (9.1) | AB41: 6 | AC41: (0.9) | AD41: 656 | AE41: (3.3)
A42: B | B42: 0 | C42: (0.0) | D42: 1 | E42: (0.4) | F42: 2 | G42: (0.8) | H42: 11 | I42: (4.5) | J42: 4 | K42: (1.6) | L42: 22 | M42: (9.0) | N42: 2 | O42: (0.8) | P42: 3 | Q42: (1.2) | R42: 5 | S42: (2.0) | T42: 0 | U42: (0.0) | V42: 191 | W42: (78.0) | X42: 0 | Y42: (0.0) | Z42: 3 | AA42: (1.2) | AB42: 1 | AC42: (0.4) | AD42: 245 | AE42: (1.2)
A43: C | B43: 1 | C43: (0.4) | D43: 2 | E43: (0.8) | F43: 21 | G43: (8.0) | H43: 4 | I43: (1.5) | J43: 13 | K43: (5.0) | L43: 31 | M43: (11.8) | N43: 0 | O43: (0.0) | P43: 17 | Q43: (6.5) | R43: 44 | S43: (16.8) | T43: 8 | U43: (3.1) | V43: 102 | W43: (38.9) | X43: 12 | Y43: (4.6) | Z43: 7 | AA43: (2.7) | AB43: 0 | AC43: (0.0) | AD43: 262 | AE43: (1.3)
A44: D | B44: 14 | C44: (2.2) | D44: 8 | E44: (1.3) | F44: 45 | G44: (7.1) | H44: 31 | I44: (4.9) | J44: 43 | K44: (6.8) | L44: 76 | M44: (12.0) | N44: 2 | O44: (0.3) | P44: 19 | Q44: (3.0) | R44: 90 | S44: (14.2) | T44: 18 | U44: (2.8) | V44: 207 | W44: (32.6) | X44: 18 | Y44: (2.8) | Z44: 63 | AA44: (9.9) | AB44: 1 | AC44: (0.2) | AD44: 635 | AE44: (3.2)
A45: E1 | B45: 5 | C45: (0.5) | D45: 29 | E45: (3.0) | F45: 75 | G45: (7.8) | H45: 35 | I45: (3.6) | J45: 105 | K45: (10.9) | L45: 41 | M45: (4.3) | N45: 6 | O45: (0.6) | P45: 54 | Q45: (5.6) | R45: 163 | S45: (17.0) | T45: 42 | U45: (4.4) | V45: 338 | W45: (35.2) | X45: 17 | Y45: (1.8) | Z45: 51 | AA45: (5.3) | AB45: 0 | AC45: (0.0) | AD45: 961 | AE45: (4.8)
A46: E2 | B46: 0 | C46: (0.0) | D46: 5 | E46: (0.6) | F46: 687 | G46: (85.3) | H46: 1 | I46: (0.1) | J46: 9 | K46: (1.1) | L46: 5 | M46: (0.6) | N46: 0 | O46: (0.0) | P46: 2 | Q46: (0.2) | R46: 4 | S46: (0.5) | T46: 5 | U46: (0.6) | V46: 85 | W46: (10.6) | X46: 0 | Y46: (0.0) | Z46: 2 | AA46: (0.2) | AB46: 0 | AC46: (0.0) | AD46: 805 | AE46: (4.0)
A47: F | B47: 3 | C47: (0.2) | D47: 8 | E47: (0.7) | F47: 564 | G47: (46.7) | H47: 17 | I47: (1.4) | J47: 44 | K47: (3.6) | L47: 63 | M47: (5.2) | N47: 1 | O47: (0.1) | P47: 68 | Q47: (5.6) | R47: 73 | S47: (6.0) | T47: 2 | U47: (0.2) | V47: 320 | W47: (26.5) | X47: 11 | Y47: (0.9) | Z47: 34 | AA47: (2.8) | AB47: 0 | AC47: (0.0) | AD47: 1208 | AE47: (6.1)
A48: G | B48: 0 | C48: (0.0) | D48: 0 | E48: (0.0) | F48: 0 | G48: (0.0) | H48: 1 | I48: (5.0) | J48: 0 | K48: (0.0) | L48: 2 | M48: (10.0) | N48: 0 | O48: (0.0) | P48: 0 | Q48: (0.0) | R48: 10 | S48: (50.0) | T48: 0 | U48: (0.0) | V48: 2 | W48: (10.0) | X48: 1 | Y48: (5.0) | Z48: 4 | AA48: (20.0) | AB48: 0 | AC48: (0.0) | AD48: 20 | AE48: (0.1)
A49: H | B49: 12 | C49: (1.9) | D49: 4 | E49: (0.6) | F49: 11 | G49: (1.7) | H49: 26 | I49: (4.0) | J49: 45 | K49: (7.0) | L49: 19 | M49: (3.0) | N49: 0 | O49: (0.0) | P49: 2 | Q49: (0.3) | R49: 83 | S49: (12.9) | T49: 28 | U49: (4.3) | V49: 161 | W49: (25.0) | X49: 20 | Y49: (3.1) | Z49: 228 | AA49: (35.4) | AB49: 5 | AC49: (0.8) | AD49: 644 | AE49: (3.2)
A50: I | B50: 4 | C50: (0.5) | D50: 6 | E50: (0.7) | F50: 393 | G50: (45.1) | H50: 19 | I50: (2.2) | J50: 41 | K50: (4.7) | L50: 38 | M50: (4.4) | N50: 1 | O50: (0.1) | P50: 15 | Q50: (1.7) | R50: 78 | S50: (8.9) | T50: 19 | U50: (2.2) | V50: 204 | W50: (23.4) | X50: 19 | Y50: (2.2) | Z50: 31 | AA50: (3.6) | AB50: 4 | AC50: (0.5) | AD50: 872 | AE50: (4.4)
A51: K1K3 | B51: 6 | C51: (1.1) | D51: 35 | E51: (6.5) | F51: 8 | G51: (1.5) | H51: 11 | I51: (2.1) | J51: 49 | K51: (9.2) | L51: 24 | M51: (4.5) | N51: 2 | O51: (0.4) | P51: 11 | Q51: (2.1) | R51: 88 | S51: (16.4) | T51: 44 | U51: (8.2) | V51: 204 | W51: (38.1) | X51: 18 | Y51: (3.4) | Z51: 35 | AA51: (6.5) | AB51: 0 | AC51: (0.0) | AD51: 535 | AE51: (2.7)
A52: K2 | B52: 0 | C52: (0.0) | D52: 2 | E52: (0.6) | F52: 273 | G52: (83.7) | H52: 1 | I52: (0.3) | J52: 4 | K52: (1.2) | L52: 8 | M52: (2.5) | N52: 0 | O52: (0.0) | P52: 0 | Q52: (0.0) | R52: 3 | S52: (0.9) | T52: 0 | U52: (0.0) | V52: 34 | W52: (10.4) | X52: 1 | Y52: (0.3) | Z52: 0 | AA52: (0.0) | AB52: 0 | AC52: (0.0) | AD52: 326 | AE52: (1.6)
A53: L | B53: 1 | C53: (0.3) | D53: 0 | E53: (0.0) | F53: 13 | G53: (4.2) | H53: 11 | I53: (3.6) | J53: 8 | K53: (2.6) | L53: 21 | M53: (6.8) | N53: 0 | O53: (0.0) | P53: 18 | Q53: (5.9) | R53: 72 | S53: (23.5) | T53: 0 | U53: (0.0) | V53: 149 | W53: (48.5) | X53: 6 | Y53: (2.0) | Z53: 5 | AA53: (1.6) | AB53: 3 | AC53: (1.0) | AD53: 307 | AE53: (1.5)
A54: M | B54: 3 | C54: (0.9) | D54: 1 | E54: (0.3) | F54: 16 | G54: (4.7) | H54: 15 | I54: (4.4) | J54: 14 | K54: (4.1) | L54: 28 | M54: (8.2) | N54: 0 | O54: (0.0) | P54: 33 | Q54: (9.6) | R54: 45 | S54: (13.1) | T54: 13 | U54: (3.8) | V54: 116 | W54: (33.8) | X54: 27 | Y54: (7.9) | Z54: 30 | AA54: (8.7) | AB54: 2 | AC54: (0.6) | AD54: 343 | AE54: (1.7)
A55: N | B55: 12 | C55: (1.5) | D55: 30 | E55: (3.8) | F55: 25 | G55: (3.2) | H55: 26 | I55: (3.3) | J55: 41 | K55: (5.2) | L55: 35 | M55: (4.5) | N55: 7 | O55: (0.9) | P55: 164 | Q55: (20.9) | R55: 93 | S55: (11.9) | T55: 35 | U55: (4.5) | V55: 236 | W55: (30.1) | X55: 27 | Y55: (3.4) | Z55: 52 | AA55: (6.6) | AB55: 0 | AC55: (0.0) | AD55: 783 | AE55: (3.9)
A56: O | B56: 0 | C56: (0.0) | D56: 0 | E56: (0.0) | F56: 557 | G56: (86.2) | H56: 1 | I56: (0.2) | J56: 10 | K56: (1.5) | L56: 9 | M56: (1.4) | N56: 0 | O56: (0.0) | P56: 1 | Q56: (0.2) | R56: 2 | S56: (0.3) | T56: 4 | U56: (0.6) | V56: 52 | W56: (8.0) | X56: 0 | Y56: (0.0) | Z56: 7 | AA56: (1.1) | AB56: 3 | AC56: (0.5) | AD56: 646 | AE56: (3.2)
A57: P | B57: 4 | C57: (0.4) | D57: 37 | E57: (3.5) | F57: 506 | G57: (47.3) | H57: 14 | I57: (1.3) | J57: 46 | K57: (4.3) | L57: 46 | M57: (4.3) | N57: 20 | O57: (1.9) | P57: 22 | Q57: (2.1) | R57: 96 | S57: (9.0) | T57: 18 | U57: (1.7) | V57: 218 | W57: (20.4) | X57: 27 | Y57: (2.5) | Z57: 16 | AA57: (1.5) | AB57: 0 | AC57: (0.0) | AD57: 1070 | AE57: (5.4)
A58: Q | B58: 6 | C58: (1.2) | D58: 14 | E58: (2.8) | F58: 15 | G58: (3.0) | H58: 19 | I58: (3.8) | J58: 27 | K58: (5.4) | L58: 42 | M58: (8.5) | N58: 1 | O58: (0.2) | P58: 12 | Q58: (2.4) | R58: 71 | S58: (14.3) | T58: 15 | U58: (3.0) | V58: 232 | W58: (46.8) | X58: 19 | Y58: (3.8) | Z58: 23 | AA58: (4.6) | AB58: 0 | AC58: (0.0) | AD58: 496 | AE58: (2.5)
A59: R | B59: 3 | C59: (0.3) | D59: 11 | E59: (1.2) | F59: 338 | G59: (35.4) | H59: 19 | I59: (2.0) | J59: 86 | K59: (9.0) | L59: 43 | M59: (4.5) | N59: 1 | O59: (0.1) | P59: 46 | Q59: (4.8) | R59: 109 | S59: (11.4) | T59: 25 | U59: (2.6) | V59: 237 | W59: (24.8) | X59: 13 | Y59: (1.4) | Z59: 22 | AA59: (2.3) | AB59: 3 | AC59: (0.3) | AD59: 956 | AE59: (4.8)
A60: S | B60: 1 | C60: (0.8) | D60: 1 | E60: (0.8) | F60: 2 | G60: (1.6) | H60: 9 | I60: (7.3) | J60: 0 | K60: (0.0) | L60: 3 | M60: (2.4) | N60: 0 | O60: (0.0) | P60: 9 | Q60: (7.3) | R60: 17 | S60: (13.8) | T60: 0 | U60: (0.0) | V60: 72 | W60: (58.5) | X60: 8 | Y60: (6.5) | Z60: 1 | AA60: (0.8) | AB60: 0 | AC60: (0.0) | AD60: 123 | AE60: (0.6)
A61: T | B61: 10 | C61: (1.9) | D61: 8 | E61: (1.5) | F61: 8 | G61: (1.5) | H61: 10 | I61: (1.9) | J61: 53 | K61: (10.0) | L61: 39 | M61: (7.4) | N61: 0 | O61: (0.0) | P61: 29 | Q61: (5.5) | R61: 79 | S61: (14.9) | T61: 56 | U61: (10.6) | V61: 202 | W61: (38.1) | X61: 18 | Y61: (3.4) | Z61: 18 | AA61: (3.4) | AB61: 0 | AC61: (0.0) | AD61: 530 | AE61: (2.7)
A62: U | B62: 15 | C62: (4.5) | D62: 0 | E62: (0.0) | F62: 13 | G62: (3.9) | H62: 13 | I62: (3.9) | J62: 11 | K62: (3.3) | L62: 30 | M62: (9.0) | N62: 0 | O62: (0.0) | P62: 1 | Q62: (0.3) | R62: 81 | S62: (24.2) | T62: 0 | U62: (0.0) | V62: 153 | W62: (45.7) | X62: 6 | Y62: (1.8) | Z62: 9 | AA62: (2.7) | AB62: 3 | AC62: (0.9) | AD62: 335 | AE62: (1.7)
A63: V | B63: 13 | C63: (1.0) | D63: 25 | E63: (1.9) | F63: 542 | G63: (41.6) | H63: 39 | I63: (3.0) | J63: 92 | K63: (7.1) | L63: 57 | M63: (4.4) | N63: 20 | O63: (1.5) | P63: 30 | Q63: (2.3) | R63: 109 | S63: (8.4) | T63: 46 | U63: (3.5) | V63: 203 | W63: (15.6) | X63: 31 | Y63: (2.4) | Z63: 95 | AA63: (7.3) | AB63: 0 | AC63: (0.0) | AD63: 1302 | AE63: (6.5)
A64: W | B64: 6 | C64: (0.9) | D64: 2 | E64: (0.3) | F64: 354 | G64: (53.5) | H64: 10 | I64: (1.5) | J64: 10 | K64: (1.5) | L64: 34 | M64: (5.1) | N64: 0 | O64: (0.0) | P64: 0 | Q64: (0.0) | R64: 69 | S64: (10.4) | T64: 14 | U64: (2.1) | V64: 144 | W64: (21.8) | X64: 5 | Y64: (0.8) | Z64: 14 | AA64: (2.1) | AB64: 0 | AC64: (0.0) | AD64: 662 | AE64: (3.3)
A65: X | B65: 3 | C65: (0.4) | D65: 13 | E65: (1.6) | F65: 376 | G65: (45.9) | H65: 17 | I65: (2.1) | J65: 47 | K65: (5.7) | L65: 45 | M65: (5.5) | N65: 6 | O65: (0.7) | P65: 11 | Q65: (1.3) | R65: 50 | S65: (6.1) | T65: 9 | U65: (1.1) | V65: 195 | W65: (23.8) | X65: 13 | Y65: (1.6) | Z65: 24 | AA65: (2.9) | AB65: 11 | AC65: (1.3) | AD65: 820 | AE65: (4.1)
A66: Y | B66: 2 | C66: (0.4) | D66: 12 | E66: (2.6) | F66: 14 | G66: (3.1) | H66: 7 | I66: (1.5) | J66: 16 | K66: (3.5) | L66: 23 | M66: (5.1) | N66: 5 | O66: (1.1) | P66: 147 | Q66: (32.5) | R66: 47 | S66: (10.4) | T66: 27 | U66: (6.0) | V66: 113 | W66: (24.9) | X66: 24 | Y66: (5.3) | Z66: 16 | AA66: (3.5) | AB66: 0 | AC66: (0.0) | AD66: 453 | AE66: (2.3)
A67: Z | B67: 13 | C67: (3.6) | D67: 0 | E67: (0.0) | F67: 8 | G67: (2.2) | H67: 9 | I67: (2.5) | J67: 19 | K67: (5.2) | L67: 25 | M67: (6.9) | N67: 0 | O67: (0.0) | P67: 7 | Q67: (1.9) | R67: 46 | S67: (12.7) | T67: 3 | U67: (0.8) | V67: 197 | W67: (54.4) | X67: 15 | Y67: (4.1) | Z67: 15 | AA67: (4.1) | AB67: 5 | AC67: (1.4) | AD67: 362 | AE67: (1.8)
A68: ZA | B68: 9 | C68: (0.9) | D68: 11 | E68: (1.0) | F68: 277 | G68: (26.4) | H68: 19 | I68: (1.8) | J68: 53 | K68: (5.0) | L68: 48 | M68: (4.6) | N68: 3 | O68: (0.3) | P68: 38 | Q68: (3.6) | R68: 134 | S68: (12.7) | T68: 33 | U68: (3.1) | V68: 288 | W68: (27.4) | X68: 28 | Y68: (2.7) | Z68: 108 | AA68: (10.3) | AB68: 2 | AC68: (0.2) | AD68: 1051 | AE68: (5.3)
A69: ZB | B69: 1 | C69: (0.2) | D69: 12 | E69: (2.8) | F69: 29 | G69: (6.7) | H69: 23 | I69: (5.3) | J69: 30 | K69: (6.9) | L69: 26 | M69: (6.0) | N69: 1 | O69: (0.2) | P69: 33 | Q69: (7.6) | R69: 72 | S69: (16.6) | T69: 31 | U69: (7.1) | V69: 142 | W69: (32.7) | X69: 11 | Y69: (2.5) | Z69: 23 | AA69: (5.3) | AB69: 0 | AC69: (0.0) | AD69: 434 | AE69: (2.2)
A70: ZC | B70: 6 | C70: (0.6) | D70: 22 | E70: (2.1) | F70: 457 | G70: (42.7) | H70: 19 | I70: (1.8) | J70: 71 | K70: (6.6) | L70: 51 | M70: (4.8) | N70: 4 | O70: (0.4) | P70: 40 | Q70: (3.7) | R70: 37 | S70: (3.5) | T70: 52 | U70: (4.9) | V70: 257 | W70: (24.0) | X70: 12 | Y70: (1.1) | Z70: 43 | AA70: (4.0) | AB70: 0 | AC70: (0.0) | AD70: 1071 | AE70: (5.4)
A71: ZD | B71: 6 | C71: (1.2) | D71: 23 | E71: (4.6) | F71: 8 | G71: (1.6) | H71: 20 | I71: (4.0) | J71: 46 | K71: (9.3) | L71: 34 | M71: (6.8) | N71: 5 | O71: (1.0) | P71: 35 | Q71: (7.0) | R71: 88 | S71: (17.7) | T71: 30 | U71: (6.0) | V71: 163 | W71: (32.8) | X71: 12 | Y71: (2.4) | Z71: 25 | AA71: (5.0) | AB71: 2 | AC71: (0.4) | AD71: 497 | AE71: (2.5)
A72: ZE | B72: 4 | C72: (0.8) | D72: 2 | E72: (0.4) | F72: 339 | G72: (71.8) | H72: 1 | I72: (0.2) | J72: 8 | K72: (1.7) | L72: 0 | M72: (0.0) | N72: 3 | O72: (0.6) | P72: 42 | Q72: (8.9) | R72: 21 | S72: (4.4) | T72: 33 | U72: (7.0) | V72: 15 | W72: (3.2) | X72: 1 | Y72: (0.2) | Z72: 3 | AA72: (0.6) | AB72: 0 | AC72: (0.0) | AD72: 472 | AE72: (2.4)
A73: ZF | B73: 1 | C73: (2.6) | D73: 1 | E73: (2.6) | F73: 3 | G73: (7.9) | H73: 2 | I73: (5.3) | J73: 2 | K73: (5.3) | L73: 3 | M73: (7.9) | N73: 0 | O73: (0.0) | P73: 7 | Q73: (18.4) | R73: 5 | S73: (13.2) | T73: 0 | U73: (0.0) | V73: 13 | W73: (34.2) | X73: 0 | Y73: (0.0) | Z73: 1 | AA73: (2.6) | AB73: 0 | AC73: (0.0) | AD73: 38 | AE73: (0.2)
A74: Total | B74: 166 | C74: (0.8) | D74: 334 | E74: (1.7) | F74: 6002 | G74: (30.1) | H74: 473 | I74: (2.4) | J74: 1093 | K74: (5.5) | L74: 987 | M74: (5.0) | N74: 92 | O74: (0.5) | P74: 959 | Q74: (4.8) | R74: 2081 | S74: (10.4) | T74: 661 | U74: (3.3) | V74: 5503 | W74: (27.6) | X74: 450 | Y74: (2.3) | Z74: 1068 | AA74: (5.4) | AB74: 51 | AC74: (0.3) | AD74: 19920 | AE74: (100.0)
A75: 2014
A76: A | B76: 3 | C76: (0.5) | D76: 8 | E76: (1.2) | F76: 19 | G76: (2.9) | H76: 11 | I76: (1.7) | J76: 33 | K76: (5.1) | L76: 29 | M76: (4.5) | N76: 0 | O76: (0.0) | P76: 34 | Q76: (5.3) | R76: 92 | S76: (14.2) | T76: 53 | U76: (8.2) | V76: 238 | W76: (36.8) | X76: 24 | Y76: (3.7) | Z76: 103 | AA76: (15.9) | AB76: 0 | AC76: (0.0) | AD76: 647 | AE76: (3.3)
A77: B | B77: 0 | C77: (0.0) | D77: 0 | E77: (0.0) | F77: 2 | G77: (0.8) | H77: 12 | I77: (4.5) | J77: 2 | K77: (0.8) | L77: 19 | M77: (7.2) | N77: 1 | O77: (0.4) | P77: 5 | Q77: (1.9) | R77: 6 | S77: (2.3) | T77: 0 | U77: (0.0) | V77: 217 | W77: (81.9) | X77: 0 | Y77: (0.0) | Z77: 1 | AA77: (0.4) | AB77: 0 | AC77: (0.0) | AD77: 265 | AE77: (1.3)
A78: C | B78: 2 | C78: (0.7) | D78: 1 | E78: (0.3) | F78: 18 | G78: (6.0) | H78: 4 | I78: (1.3) | J78: 14 | K78: (4.7) | L78: 20 | M78: (6.7) | N78: 0 | O78: (0.0) | P78: 21 | Q78: (7.0) | R78: 49 | S78: (16.4) | T78: 9 | U78: (3.0) | V78: 130 | W78: (43.6) | X78: 13 | Y78: (4.4) | Z78: 17 | AA78: (5.7) | AB78: 0 | AC78: (0.0) | AD78: 298 | AE78: (1.5)
A79: D | B79: 12 | C79: (1.6) | D79: 15 | E79: (2.0) | F79: 38 | G79: (5.0) | H79: 43 | I79: (5.7) | J79: 81 | K79: (10.7) | L79: 57 | M79: (7.5) | N79: 1 | O79: (0.1) | P79: 36 | Q79: (4.8) | R79: 104 | S79: (13.8) | T79: 29 | U79: (3.8) | V79: 273 | W79: (36.2) | X79: 15 | Y79: (2.0) | Z79: 50 | AA79: (6.6) | AB79: 1 | AC79: (0.1) | AD79: 755 | AE79: (3.8)
A80: E1 | B80: 8 | C80: (0.9) | D80: 46 | E80: (4.9) | F80: 63 | G80: (6.7) | H80: 47 | I80: (5.0) | J80: 106 | K80: (11.3) | L80: 27 | M80: (2.9) | N80: 6 | O80: (0.6) | P80: 41 | Q80: (4.4) | R80: 143 | S80: (15.3) | T80: 54 | U80: (5.8) | V80: 295 | W80: (31.5) | X80: 17 | Y80: (1.8) | Z80: 84 | AA80: (9.0) | AB80: 0 | AC80: (0.0) | AD80: 937 | AE80: (4.7)
A81: E2 | B81: 1 | C81: (0.1) | D81: 5 | E81: (0.6) | F81: 676 | G81: (85.4) | H81: 1 | I81: (0.1) | J81: 2 | K81: (0.3) | L81: 3 | M81: (0.4) | N81: 0 | O81: (0.0) | P81: 4 | Q81: (0.5) | R81: 3 | S81: (0.4) | T81: 2 | U81: (0.3) | V81: 92 | W81: (11.6) | X81: 0 | Y81: (0.0) | Z81: 3 | AA81: (0.4) | AB81: 0 | AC81: (0.0) | AD81: 792 | AE81: (4.0)
A82: F | B82: 6 | C82: (0.5) | D82: 4 | E82: (0.3) | F82: 577 | G82: (45.9) | H82: 19 | I82: (1.5) | J82: 37 | K82: (2.9) | L82: 57 | M82: (4.5) | N82: 0 | O82: (0.0) | P82: 71 | Q82: (5.6) | R82: 87 | S82: (6.9) | T82: 2 | U82: (0.2) | V82: 349 | W82: (27.7) | X82: 3 | Y82: (0.2) | Z82: 44 | AA82: (3.5) | AB82: 2 | AC82: (0.2) | AD82: 1258 | AE82: (6.4)
A83: G | B83: 0 | C83: (0.0) | D83: 0 | E83: (0.0) | F83: 0 | G83: (0.0) | H83: 1 | I83: (8.3) | J83: 1 | K83: (8.3) | L83: 0 | M83: (0.0) | N83: 0 | O83: (0.0) | P83: 0 | Q83: (0.0) | R83: 6 | S83: (50.0) | T83: 0 | U83: (0.0) | V83: 0 | W83: (0.0) | X83: 2 | Y83: (16.7) | Z83: 2 | AA83: (16.7) | AB83: 0 | AC83: (0.0) | AD83: 12 | AE83: (0.1)
A84: H | B84: 10 | C84: (1.9) | D84: 2 | E84: (0.4) | F84: 9 | G84: (1.7) | H84: 25 | I84: (4.6) | J84: 60 | K84: (11.1) | L84: 29 | M84: (5.4) | N84: 0 | O84: (0.0) | P84: 3 | Q84: (0.6) | R84: 92 | S84: (17.0) | T84: 31 | U84: (5.7) | V84: 136 | W84: (25.2) | X84: 17 | Y84: (3.1) | Z84: 105 | AA84: (19.4) | AB84: 21 | AC84: (3.9) | AD84: 540 | AE84: (2.7)
A85: I | B85: 9 | C85: (1.1) | D85: 9 | E85: (1.1) | F85: 389 | G85: (48.9) | H85: 15 | I85: (1.9) | J85: 33 | K85: (4.1) | L85: 33 | M85: (4.1) | N85: 1 | O85: (0.1) | P85: 4 | Q85: (0.5) | R85: 64 | S85: (8.0) | T85: 12 | U85: (1.5) | V85: 184 | W85: (23.1) | X85: 12 | Y85: (1.5) | Z85: 28 | AA85: (3.5) | AB85: 3 | AC85: (0.4) | AD85: 796 | AE85: (4.0)
A86: K1K3 | B86: 7 | C86: (1.2) | D86: 25 | E86: (4.4) | F86: 23 | G86: (4.0) | H86: 6 | I86: (1.1) | J86: 73 | K86: (12.8) | L86: 32 | M86: (5.6) | N86: 2 | O86: (0.4) | P86: 7 | Q86: (1.2) | R86: 107 | S86: (18.8) | T86: 44 | U86: (7.7) | V86: 181 | W86: (31.8) | X86: 24 | Y86: (4.2) | Z86: 37 | AA86: (6.5) | AB86: 1 | AC86: (0.2) | AD86: 569 | AE86: (2.9)
A87: K2 | B87: 2 | C87: (0.7) | D87: 5 | E87: (1.7) | F87: 224 | G87: (78.3) | H87: 4 | I87: (1.4) | J87: 2 | K87: (0.7) | L87: 9 | M87: (3.1) | N87: 0 | O87: (0.0) | P87: 0 | Q87: (0.0) | R87: 3 | S87: (1.0) | T87: 4 | U87: (1.4) | V87: 31 | W87: (10.8) | X87: 1 | Y87: (0.3) | Z87: 1 | AA87: (0.3) | AB87: 0 | AC87: (0.0) | AD87: 286 | AE87: (1.4)
A88: L | B88: 3 | C88: (1.0) | D88: 1 | E88: (0.3) | F88: 16 | G88: (5.3) | H88: 8 | I88: (2.6) | J88: 7 | K88: (2.3) | L88: 27 | M88: (8.9) | N88: 2 | O88: (0.7) | P88: 25 | Q88: (8.2) | R88: 38 | S88: (12.5) | T88: 2 | U88: (0.7) | V88: 157 | W88: (51.6) | X88: 4 | Y88: (1.3) | Z88: 14 | AA88: (4.6) | AB88: 0 | AC88: (0.0) | AD88: 304 | AE88: (1.5)
A89: M | B89: 5 | C89: (1.2) | D89: 1 | E89: (0.2) | F89: 9 | G89: (2.2) | H89: 11 | I89: (2.7) | J89: 13 | K89: (3.2) | L89: 51 | M89: (12.6) | N89: 2 | O89: (0.5) | P89: 35 | Q89: (8.6) | R89: 84 | S89: (20.7) | T89: 15 | U89: (3.7) | V89: 121 | W89: (29.9) | X89: 14 | Y89: (3.5) | Z89: 39 | AA89: (9.6) | AB89: 5 | AC89: (1.2) | AD89: 405 | AE89: (2.0)
A90: N | B90: 1 | C90: (0.1) | D90: 8 | E90: (1.1) | F90: 28 | G90: (3.8) | H90: 28 | I90: (3.8) | J90: 29 | K90: (4.0) | L90: 43 | M90: (5.9) | N90: 3 | O90: (0.4) | P90: 126 | Q90: (17.3) | R90: 105 | S90: (14.4) | T90: 37 | U90: (5.1) | V90: 237 | W90: (32.6) | X90: 21 | Y90: (2.9) | Z90: 62 | AA90: (8.5) | AB90: 0 | AC90: (0.0) | AD90: 728 | AE90: (3.7)
A91: O | B91: 0 | C91: (0.0) | D91: 3 | E91: (0.4) | F91: 586 | G91: (85.3) | H91: 0 | I91: (0.0) | J91: 6 | K91: (0.9) | L91: 6 | M91: (0.9) | N91: 0 | O91: (0.0) | P91: 4 | Q91: (0.6) | R91: 0 | S91: (0.0) | T91: 4 | U91: (0.6) | V91: 65 | W91: (9.5) | X91: 0 | Y91: (0.0) | Z91: 13 | AA91: (1.9) | AB91: 0 | AC91: (0.0) | AD91: 687 | AE91: (3.5)
A92: P | B92: 6 | C92: (0.6) | D92: 29 | E92: (2.9) | F92: 439 | G92: (43.3) | H92: 14 | I92: (1.4) | J92: 61 | K92: (6.0) | L92: 65 | M92: (6.4) | N92: 2 | O92: (0.2) | P92: 11 | Q92: (1.1) | R92: 70 | S92: (6.9) | T92: 16 | U92: (1.6) | V92: 247 | W92: (24.4) | X92: 25 | Y92: (2.5) | Z92: 28 | AA92: (2.8) | AB92: 0 | AC92: (0.0) | AD92: 1013 | AE92: (5.1)
A93: Q | B93: 2 | C93: (0.4) | D93: 13 | E93: (2.5) | F93: 20 | G93: (3.9) | H93: 28 | I93: (5.4) | J93: 31 | K93: (6.0) | L93: 28 | M93: (5.4) | N93: 0 | O93: (0.0) | P93: 16 | Q93: (3.1) | R93: 76 | S93: (14.7) | T93: 5 | U93: (1.0) | V93: 274 | W93: (53.0) | X93: 8 | Y93: (1.5) | Z93: 16 | AA93: (3.1) | AB93: 0 | AC93: (0.0) | AD93: 517 | AE93: (2.6)
A94: R | B94: 8 | C94: (0.9) | D94: 16 | E94: (1.8) | F94: 289 | G94: (32.4) | H94: 22 | I94: (2.5) | J94: 84 | K94: (9.4) | L94: 44 | M94: (4.9) | N94: 1 | O94: (0.1) | P94: 29 | Q94: (3.2) | R94: 113 | S94: (12.7) | T94: 22 | U94: (2.5) | V94: 222 | W94: (24.9) | X94: 12 | Y94: (1.3) | Z94: 31 | AA94: (3.5) | AB94: 0 | AC94: (0.0) | AD94: 893 | AE94: (4.5)
A95: S | B95: 0 | C95: (0.0) | D95: 0 | E95: (0.0) | F95: 4 | G95: (3.0) | H95: 9 | I95: (6.8) | J95: 0 | K95: (0.0) | L95: 2 | M95: (1.5) | N95: 0 | O95: (0.0) | P95: 16 | Q95: (12.1) | R95: 15 | S95: (11.4) | T95: 0 | U95: (0.0) | V95: 75 | W95: (56.8) | X95: 6 | Y95: (4.5) | Z95: 5 | AA95: (3.8) | AB95: 0 | AC95: (0.0) | AD95: 132 | AE95: (0.7)
A96: T | B96: 8 | C96: (1.7) | D96: 1 | E96: (0.2) | F96: 8 | G96: (1.7) | H96: 7 | I96: (1.5) | J96: 35 | K96: (7.4) | L96: 50 | M96: (10.5) | N96: 0 | O96: (0.0) | P96: 19 | Q96: (4.0) | R96: 82 | S96: (17.3) | T96: 40 | U96: (8.4) | V96: 188 | W96: (39.6) | X96: 9 | Y96: (1.9) | Z96: 28 | AA96: (5.9) | AB96: 0 | AC96: (0.0) | AD96: 475 | AE96: (2.4)
A97: U | B97: 11 | C97: (3.4) | D97: 0 | E97: (0.0) | F97: 22 | G97: (6.8) | H97: 17 | I97: (5.2) | J97: 8 | K97: (2.5) | L97: 25 | M97: (7.7) | N97: 0 | O97: (0.0) | P97: 2 | Q97: (0.6) | R97: 55 | S97: (16.9) | T97: 2 | U97: (0.6) | V97: 166 | W97: (51.1) | X97: 4 | Y97: (1.2) | Z97: 12 | AA97: (3.7) | AB97: 1 | AC97: (0.3) | AD97: 325 | AE97: (1.6)
A98: V | B98: 22 | C98: (1.6) | D98: 27 | E98: (2.0) | F98: 569 | G98: (42.3) | H98: 34 | I98: (2.5) | J98: 113 | K98: (8.4) | L98: 56 | M98: (4.2) | N98: 8 | O98: (0.6) | P98: 37 | Q98: (2.8) | R98: 127 | S98: (9.4) | T98: 52 | U98: (3.9) | V98: 201 | W98: (14.9) | X98: 36 | Y98: (2.7) | Z98: 63 | AA98: (4.7) | AB98: 0 | AC98: (0.0) | AD98: 1345 | AE98: (6.8)
A99: W | B99: 5 | C99: (0.7) | D99: 5 | E99: (0.7) | F99: 344 | G99: (49.9) | H99: 7 | I99: (1.0) | J99: 15 | K99: (2.2) | L99: 25 | M99: (3.6) | N99: 1 | O99: (0.1) | P99: 8 | Q99: (1.2) | R99: 83 | S99: (12.0) | T99: 14 | U99: (2.0) | V99: 154 | W99: (22.3) | X99: 18 | Y99: (2.6) | Z99: 11 | AA99: (1.6) | AB99: 0 | AC99: (0.0) | AD99: 690 | AE99: (3.5)
A100: X | B100: 5 | C100: (0.6) | D100: 21 | E100: (2.7) | F100: 407 | G100: (52.2) | H100: 10 | I100: (1.3) | J100: 40 | K100: (5.1) | L100: 42 | M100: (5.4) | N100: 4 | O100: (0.5) | P100: 8 | Q100: (1.0) | R100: 52 | S100: (6.7) | T100: 6 | U100: (0.8) | V100: 154 | W100: (19.7) | X100: 5 | Y100: (0.6) | Z100: 25 | AA100: (3.2) | AB100: 1 | AC100: (0.1) | AD100: 780 | AE100: (3.9)
A101: Y | B101: 2 | C101: (0.5) | D101: 10 | E101: (2.6) | F101: 4 | G101: (1.1) | H101: 6 | I101: (1.6) | J101: 15 | K101: (4.0) | L101: 20 | M101: (5.3) | N101: 2 | O101: (0.5) | P101: 68 | Q101: (17.9) | R101: 47 | S101: (12.4) | T101: 20 | U101: (5.3) | V101: 139 | W101: (36.7) | X101: 28 | Y101: (7.4) | Z101: 18 | AA101: (4.7) | AB101: 0 | AC101: (0.0) | AD101: 379 | AE101: (1.9)
A102: Z | B102: 19 | C102: (4.4) | D102: 1 | E102: (0.2) | F102: 11 | G102: (2.5) | H102: 11 | I102: (2.5) | J102: 23 | K102: (5.3) | L102: 28 | M102: (6.5) | N102: 0 | O102: (0.0) | P102: 11 | Q102: (2.5) | R102: 46 | S102: (10.6) | T102: 1 | U102: (0.2) | V102: 237 | W102: (54.9) | X102: 24 | Y102: (5.6) | Z102: 19 | AA102: (4.4) | AB102: 1 | AC102: (0.2) | AD102: 432 | AE102: (2.2)
A103: ZA | B103: 5 | C103: (0.5) | D103: 9 | E103: (0.8) | F103: 271 | G103: (25.2) | H103: 28 | I103: (2.6) | J103: 50 | K103: (4.6) | L103: 64 | M103: (5.9) | N103: 5 | O103: (0.5) | P103: 34 | Q103: (3.2) | R103: 99 | S103: (9.2) | T103: 57 | U103: (5.3) | V103: 303 | W103: (28.2) | X103: 23 | Y103: (2.1) | Z103: 127 | AA103: (11.8) | AB103: 1 | AC103: (0.1) | AD103: 1076 | AE103: (5.4)
A104: ZB | B104: 4 | C104: (0.8) | D104: 20 | E104: (3.9) | F104: 49 | G104: (9.7) | H104: 27 | I104: (5.3) | J104: 49 | K104: (9.7) | L104: 28 | M104: (5.5) | N104: 0 | O104: (0.0) | P104: 33 | Q104: (6.5) | R104: 70 | S104: (13.8) | T104: 29 | U104: (5.7) | V104: 138 | W104: (27.2) | X104: 24 | Y104: (4.7) | Z104: 36 | AA104: (7.1) | AB104: 0 | AC104: (0.0) | AD104: 507 | AE104: (2.6)
A105: ZC | B105: 8 | C105: (0.8) | D105: 45 | E105: (4.4) | F105: 421 | G105: (41.3) | H105: 18 | I105: (1.8) | J105: 83 | K105: (8.1) | L105: 58 | M105: (5.7) | N105: 2 | O105: (0.2) | P105: 32 | Q105: (3.1) | R105: 48 | S105: (4.7) | T105: 27 | U105: (2.6) | V105: 210 | W105: (20.6) | X105: 11 | Y105: (1.1) | Z105: 57 | AA105: (5.6) | AB105: 0 | AC105: (0.0) | AD105: 1020 | AE105: (5.2)
A106: ZD | B106: 11 | C106: (2.3) | D106: 21 | E106: (4.4) | F106: 9 | G106: (1.9) | H106: 10 | I106: (2.1) | J106: 42 | K106: (8.9) | L106: 15 | M106: (3.2) | N106: 4 | O106: (0.8) | P106: 27 | Q106: (5.7) | R106: 83 | S106: (17.5) | T106: 48 | U106: (10.1) | V106: 136 | W106: (28.8) | X106: 11 | Y106: (2.3) | Z106: 56 | AA106: (11.8) | AB106: 0 | AC106: (0.0) | AD106: 473 | AE106: (2.4)
A107: ZE | B107: 3 | C107: (1.0) | D107: 1 | E107: (0.3) | F107: 199 | G107: (66.1) | H107: 1 | I107: (0.3) | J107: 2 | K107: (0.7) | L107: 1 | M107: (0.3) | N107: 0 | O107: (0.0) | P107: 24 | Q107: (8.0) | R107: 19 | S107: (6.3) | T107: 24 | U107: (8.0) | V107: 16 | W107: (5.3) | X107: 5 | Y107: (1.7) | Z107: 6 | AA107: (2.0) | AB107: 0 | AC107: (0.0) | AD107: 301 | AE107: (1.5)
A108: ZF | B108: 1 | C108: (0.8) | D108: 1 | E108: (0.8) | F108: 2 | G108: (1.6) | H108: 3 | I108: (2.4) | J108: 11 | K108: (8.9) | L108: 3 | M108: (2.4) | N108: 5 | O108: (4.1) | P108: 29 | Q108: (23.6) | R108: 15 | S108: (12.2) | T108: 4 | U108: (3.3) | V108: 34 | W108: (27.6) | X108: 2 | Y108: (1.6) | Z108: 12 | AA108: (9.8) | AB108: 1 | AC108: (0.8) | AD108: 123 | AE108: (0.6)
A109: Total | B109: 189 | C109: (1.0) | D109: 353 | E109: (1.8) | F109: 5745 | G109: (29.1) | H109: 487 | I109: (2.5) | J109: 1161 | K109: (5.9) | L109: 996 | M109: (5.0) | N109: 52 | O109: (0.3) | P109: 820 | Q109: (4.1) | R109: 2083 | S109: (10.5) | T109: 665 | U109: (3.4) | V109: 5600 | W109: (28.3) | X109: 418 | Y109: (2.1) | Z109: 1153 | AA109: (5.8) | AB109: 38 | AC109: (0.2) | AD109: 19760 | AE109: (100.0)
A110: Grand
A111: Total | B111: 543 | C111: (0.9) | D111: 1035 | E111: (1.7) | F111: 17572 | G111: (29.5) | H111: 1452 | I111: (2.4) | J111: 3537 | K111: (5.9) | L111: 2946 | M111: (4.9) | N111: 208 | O111: (0.3) | P111: 2595 | Q111: (4.4) | R111: 6222 | S111: (10.4) | T111: 2021 | U111: (3.4) | V111: 16749 | W111: (28.1) | X111: 1355 | Y111: (2.3) | Z111: 3258 | AA111: (5.5) | AB111: 149 | AC111: (0.2) | AD111: 59642 | AE111: (100.0)
A114: * 'Other' includes a mixture of diagnoses but also some coding where a non-diagnostic Read code was given e.g. 'Post-surgical wound care', this practice varies by organisation.

Sheet 19
A1: TABLE 19 ADMISSIONS BY PRIMARY DIAGNOSTIC GROUP (PLANNED - FOLLOWING SURGERY), BY HEALTH ORGANISATION, 2012 - 2014
B3: DIAGNOSTIC GROUP
A4: Year / Organisation | B4: Blood / lymphatic | D4: Body wall and cavities | F4: Cardio - vascular | H4: Endocrine / metabolic | J4: Gastro - intestinal | L4: Infection | N4: Multisystem | P4: Musculo - skeletal | R4: Neurological | T4: Oncology | V4: Respiratory | X4: Trauma | Z4: Other | AB4: Unknown | AD4: Total
B5: n | C5: (%) | D5: n | E5: (%) | F5: n | G5: (%) | H5: n | I5: (%) | J5: n | K5: (%) | L5: n | M5: (%) | N5: n | O5: (%) | P5: n | Q5: (%) | R5: n | S5: (%) | T5: n | U5: (%) | V5: n | W5: (%) | X5: n | Y5: (%) | Z5: n | AA5: (%) | AB5: n | AC5: (%) | AD5: n | AE5: (%)
A6: 2012
A7: A | B7: 0 | C7: (0.0) | D7: 2 | E7: (1.1) | F7: 2 | G7: (1.1) | H7: 2 | I7: (1.1) | J7: 30 | K7: (16.2) | L7: 0 | M7: (0.0) | N7: 1 | O7: (0.5) | P7: 30 | Q7: (16.2) | R7: 18 | S7: (9.7) | T7: 38 | U7: (20.5) | V7: 44 | W7: (23.8) | X7: 2 | Y7: (1.1) | Z7: 16 | AA7: (8.6) | AB7: 0 | AC7: (0.0) | AD7: 185 | AE7: (2.7)
A8: B | B8: 0 | C8: (0.0) | D8: 0 | E8: (0.0) | F8: 0 | G8: (0.0) | H8: 1 | I8: (50.0) | J8: 0 | K8: (0.0) | L8: 0 | M8: (0.0) | N8: 0 | O8: (0.0) | P8: 1 | Q8: (50.0) | R8: 0 | S8: (0.0) | T8: 0 | U8: (0.0) | V8: 0 | W8: (0.0) | X8: 0 | Y8: (0.0) | Z8: 0 | AA8: (0.0) | AB8: 0 | AC8: (0.0) | AD8: 2 | AE8: (0.0)
A9: C | B9: 0 | C9: (0.0) | D9: 2 | E9: (2.9) | F9: 1 | G9: (1.4) | H9: 0 | I9: (0.0) | J9: 5 | K9: (7.1) | L9: 1 | M9: (1.4) | N9: 0 | O9: (0.0) | P9: 17 | Q9: (24.3) | R9: 2 | S9: (2.9) | T9: 10 | U9: (14.3) | V9: 28 | W9: (40.0) | X9: 1 | Y9: (1.4) | Z9: 3 | AA9: (4.3) | AB9: 0 | AC9: (0.0) | AD9: 70 | AE9: (1.0)
A10: D | B10: 1 | C10: (0.5) | D10: 13 | E10: (7.0) | F10: 5 | G10: (2.7) | H10: 6 | I10: (3.2) | J10: 38 | K10: (20.5) | L10: 4 | M10: (2.2) | N10: 0 | O10: (0.0) | P10: 22 | Q10: (11.9) | R10: 15 | S10: (8.1) | T10: 21 | U10: (11.4) | V10: 40 | W10: (21.6) | X10: 4 | Y10: (2.2) | Z10: 15 | AA10: (8.1) | AB10: 1 | AC10: (0.5) | AD10: 185 | AE10: (2.7)
A11: E1 | B11: 1 | C11: (0.6) | D11: 5 | E11: (3.1) | F11: 5 | G11: (3.1) | H11: 4 | I11: (2.5) | J11: 36 | K11: (22.5) | L11: 1 | M11: (0.6) | N11: 1 | O11: (0.6) | P11: 27 | Q11: (16.9) | R11: 20 | S11: (12.5) | T11: 9 | U11: (5.6) | V11: 34 | W11: (21.3) | X11: 1 | Y11: (0.6) | Z11: 16 | AA11: (10.0) | AB11: 0 | AC11: (0.0) | AD11: 160 | AE11: (2.3)
A12: E2 | B12: 1 | C12: (0.2) | D12: 0 | E12: (0.0) | F12: 477 | G12: (94.8) | H12: 0 | I12: (0.0) | J12: 0 | K12: (0.0) | L12: 0 | M12: (0.0) | N12: 1 | O12: (0.2) | P12: 4 | Q12: (0.8) | R12: 0 | S12: (0.0) | T12: 1 | U12: (0.2) | V12: 18 | W12: (3.6) | X12: 0 | Y12: (0.0) | Z12: 1 | AA12: (0.2) | AB12: 0 | AC12: (0.0) | AD12: 503 | AE12: (7.3)
A13: F | B13: 0 | C13: (0.0) | D13: 3 | E13: (0.6) | F13: 371 | G13: (75.4) | H13: 0 | I13: (0.0) | J13: 13 | K13: (2.6) | L13: 0 | M13: (0.0) | N13: 0 | O13: (0.0) | P13: 70 | Q13: (14.2) | R13: 0 | S13: (0.0) | T13: 0 | U13: (0.0) | V13: 20 | W13: (4.1) | X13: 2 | Y13: (0.4) | Z13: 13 | AA13: (2.6) | AB13: 0 | AC13: (0.0) | AD13: 492 | AE13: (7.2)
A14: H | B14: 0 | C14: (0.0) | D14: 1 | E14: (0.8) | F14: 2 | G14: (1.6) | H14: 8 | I14: (6.3) | J14: 13 | K14: (10.2) | L14: 3 | M14: (2.3) | N14: 0 | O14: (0.0) | P14: 2 | Q14: (1.6) | R14: 11 | S14: (8.6) | T14: 19 | U14: (14.8) | V14: 6 | W14: (4.7) | X14: 0 | Y14: (0.0) | Z14: 63 | AA14: (49.2) | AB14: 0 | AC14: (0.0) | AD14: 128 | AE14: (1.9)
A15: I | B15: 0 | C15: (0.0) | D15: 5 | E15: (1.2) | F15: 274 | G15: (67.0) | H15: 4 | I15: (1.0) | J15: 39 | K15: (9.5) | L15: 2 | M15: (0.5) | N15: 2 | O15: (0.5) | P15: 17 | Q15: (4.2) | R15: 6 | S15: (1.5) | T15: 37 | U15: (9.0) | V15: 14 | W15: (3.4) | X15: 3 | Y15: (0.7) | Z15: 6 | AA15: (1.5) | AB15: 0 | AC15: (0.0) | AD15: 409 | AE15: (6.0)
A16: K1K3 | B16: 4 | C16: (2.5) | D16: 22 | E16: (13.6) | F16: 2 | G16: (1.2) | H16: 0 | I16: (0.0) | J16: 23 | K16: (14.2) | L16: 1 | M16: (0.6) | N16: 1 | O16: (0.6) | P16: 11 | Q16: (6.8) | R16: 22 | S16: (13.6) | T16: 39 | U16: (24.1) | V16: 22 | W16: (13.6) | X16: 3 | Y16: (1.9) | Z16: 12 | AA16: (7.4) | AB16: 0 | AC16: (0.0) | AD16: 162 | AE16: (2.4)
A17: K2 | B17: 0 | C17: (0.0) | D17: 1 | E17: (0.5) | F17: 180 | G17: (92.3) | H17: 1 | I17: (0.5) | J17: 2 | K17: (1.0) | L17: 2 | M17: (1.0) | N17: 0 | O17: (0.0) | P17: 1 | Q17: (0.5) | R17: 1 | S17: (0.5) | T17: 2 | U17: (1.0) | V17: 4 | W17: (2.1) | X17: 0 | Y17: (0.0) | Z17: 1 | AA17: (0.5) | AB17: 0 | AC17: (0.0) | AD17: 195 | AE17: (2.8)
A18: L | B18: 0 | C18: (0.0) | D18: 0 | E18: (0.0) | F18: 0 | G18: (0.0) | H18: 0 | I18: (0.0) | J18: 0 | K18: (0.0) | L18: 0 | M18: (0.0) | N18: 0 | O18: (0.0) | P18: 19 | Q18: (79.2) | R18: 1 | S18: (4.2) | T18: 0 | U18: (0.0) | V18: 4 | W18: (16.7) | X18: 0 | Y18: (0.0) | Z18: 0 | AA18: (0.0) | AB18: 0 | AC18: (0.0) | AD18: 24 | AE18: (0.4)
A19: M | B19: 0 | C19: (0.0) | D19: 1 | E19: (1.2) | F19: 2 | G19: (2.4) | H19: 0 | I19: (0.0) | J19: 4 | K19: (4.7) | L19: 2 | M19: (2.4) | N19: 0 | O19: (0.0) | P19: 35 | Q19: (41.2) | R19: 5 | S19: (5.9) | T19: 9 | U19: (10.6) | V19: 6 | W19: (7.1) | X19: 2 | Y19: (2.4) | Z19: 19 | AA19: (22.4) | AB19: 0 | AC19: (0.0) | AD19: 85 | AE19: (1.2)
A20: N | B20: 2 | C20: (1.0) | D20: 12 | E20: (6.1) | F20: 2 | G20: (1.0) | H20: 2 | I20: (1.0) | J20: 19 | K20: (9.7) | L20: 0 | M20: (0.0) | N20: 5 | O20: (2.6) | P20: 90 | Q20: (45.9) | R20: 5 | S20: (2.6) | T20: 17 | U20: (8.7) | V20: 21 | W20: (10.7) | X20: 2 | Y20: (1.0) | Z20: 18 | AA20: (9.2) | AB20: 1 | AC20: (0.5) | AD20: 196 | AE20: (2.9)
A21: O | B21: 0 | C21: (0.0) | D21: 3 | E21: (0.8) | F21: 323 | G21: (85.7) | H21: 0 | I21: (0.0) | J21: 13 | K21: (3.4) | L21: 3 | M21: (0.8) | N21: 2 | O21: (0.5) | P21: 2 | Q21: (0.5) | R21: 4 | S21: (1.1) | T21: 3 | U21: (0.8) | V21: 23 | W21: (6.1) | X21: 0 | Y21: (0.0) | Z21: 1 | AA21: (0.3) | AB21: 0 | AC21: (0.0) | AD21: 377 | AE21: (5.5)
A22: P | B22: 1 | C22: (0.2) | D22: 10 | E22: (2.5) | F22: 310 | G22: (76.7) | H22: 1 | I22: (0.2) | J22: 11 | K22: (2.7) | L22: 1 | M22: (0.2) | N22: 5 | O22: (1.2) | P22: 14 | Q22: (3.5) | R22: 10 | S22: (2.5) | T22: 8 | U22: (2.0) | V22: 25 | W22: (6.2) | X22: 2 | Y22: (0.5) | Z22: 6 | AA22: (1.5) | AB22: 0 | AC22: (0.0) | AD22: 404 | AE22: (5.9)
A23: Q | B23: 0 | C23: (0.0) | D23: 5 | E23: (6.4) | F23: 1 | G23: (1.3) | H23: 0 | I23: (0.0) | J23: 12 | K23: (15.4) | L23: 2 | M23: (2.6) | N23: 0 | O23: (0.0) | P23: 9 | Q23: (11.5) | R23: 7 | S23: (9.0) | T23: 11 | U23: (14.1) | V23: 30 | W23: (38.5) | X23: 0 | Y23: (0.0) | Z23: 1 | AA23: (1.3) | AB23: 0 | AC23: (0.0) | AD23: 78 | AE23: (1.1)
A24: R | B24: 0 | C24: (0.0) | D24: 9 | E24: (2.7) | F24: 204 | G24: (60.9) | H24: 0 | I24: (0.0) | J24: 25 | K24: (7.5) | L24: 2 | M24: (0.6) | N24: 0 | O24: (0.0) | P24: 46 | Q24: (13.7) | R24: 8 | S24: (2.4) | T24: 11 | U24: (3.3) | V24: 23 | W24: (6.9) | X24: 1 | Y24: (0.3) | Z24: 5 | AA24: (1.5) | AB24: 1 | AC24: (0.3) | AD24: 335 | AE24: (4.9)
A25: S | B25: 0 | C25: (0.0) | D25: 0 | E25: (0.0) | F25: 0 | G25: (0.0) | H25: 1 | I25: (7.7) | J25: 0 | K25: (0.0) | L25: 0 | M25: (0.0) | N25: 0 | O25: (0.0) | P25: 7 | Q25: (53.8) | R25: 1 | S25: (7.7) | T25: 0 | U25: (0.0) | V25: 3 | W25: (23.1) | X25: 1 | Y25: (7.7) | Z25: 0 | AA25: (0.0) | AB25: 0 | AC25: (0.0) | AD25: 13 | AE25: (0.2)
A26: T | B26: 0 | C26: (0.0) | D26: 7 | E26: (4.4) | F26: 0 | G26: (0.0) | H26: 0 | I26: (0.0) | J26: 34 | K26: (21.3) | L26: 0 | M26: (0.0) | N26: 0 | O26: (0.0) | P26: 24 | Q26: (15.0) | R26: 12 | S26: (7.5) | T26: 38 | U26: (23.8) | V26: 32 | W26: (20.0) | X26: 7 | Y26: (4.4) | Z26: 6 | AA26: (3.8) | AB26: 0 | AC26: (0.0) | AD26: 160 | AE26: (2.3)
A27: U | B27: 6 | C27: (37.5) | D27: 0 | E27: (0.0) | F27: 1 | G27: (6.3) | H27: 0 | I27: (0.0) | J27: 3 | K27: (18.8) | L27: 1 | M27: (6.3) | N27: 0 | O27: (0.0) | P27: 0 | Q27: (0.0) | R27: 0 | S27: (0.0) | T27: 0 | U27: (0.0) | V27: 4 | W27: (25.0) | X27: 1 | Y27: (6.3) | Z27: 0 | AA27: (0.0) | AB27: 0 | AC27: (0.0) | AD27: 16 | AE27: (0.2)
A28: V | B28: 1 | C28: (0.2) | D28: 0 | E28: (0.0) | F28: 363 | G28: (81.4) | H28: 0 | I28: (0.0) | J28: 27 | K28: (6.1) | L28: 2 | M28: (0.4) | N28: 4 | O28: (0.9) | P28: 8 | Q28: (1.8) | R28: 7 | S28: (1.6) | T28: 6 | U28: (1.3) | V28: 13 | W28: (2.9) | X28: 1 | Y28: (0.2) | Z28: 14 | AA28: (3.1) | AB28: 0 | AC28: (0.0) | AD28: 446 | AE28: (6.5)
A29: W | B29: 0 | C29: (0.0) | D29: 3 | E29: (1.1) | F29: 237 | G29: (87.5) | H29: 1 | I29: (0.4) | J29: 1 | K29: (0.4) | L29: 1 | M29: (0.4) | N29: 0 | O29: (0.0) | P29: 0 | Q29: (0.0) | R29: 2 | S29: (0.7) | T29: 9 | U29: (3.3) | V29: 14 | W29: (5.2) | X29: 0 | Y29: (0.0) | Z29: 2 | AA29: (0.7) | AB29: 1 | AC29: (0.4) | AD29: 271 | AE29: (4.0)
A30: X | B30: 0 | C30: (0.0) | D30: 2 | E30: (0.8) | F30: 179 | G30: (73.7) | H30: 3 | I30: (1.2) | J30: 16 | K30: (6.6) | L30: 5 | M30: (2.1) | N30: 3 | O30: (1.2) | P30: 6 | Q30: (2.5) | R30: 4 | S30: (1.6) | T30: 4 | U30: (1.6) | V30: 11 | W30: (4.5) | X30: 0 | Y30: (0.0) | Z30: 9 | AA30: (3.7) | AB30: 1 | AC30: (0.4) | AD30: 243 | AE30: (3.5)
A31: Y | B31: 0 | C31: (0.0) | D31: 2 | E31: (0.9) | F31: 2 | G31: (0.9) | H31: 0 | I31: (0.0) | J31: 15 | K31: (6.8) | L31: 1 | M31: (0.5) | N31: 3 | O31: (1.4) | P31: 115 | Q31: (52.3) | R31: 18 | S31: (8.2) | T31: 9 | U31: (4.1) | V31: 37 | W31: (16.8) | X31: 12 | Y31: (5.5) | Z31: 6 | AA31: (2.7) | AB31: 0 | AC31: (0.0) | AD31: 220 | AE31: (3.2)
A32: Z | B32: 0 | C32: (0.0) | D32: 2 | E32: (6.7) | F32: 1 | G32: (3.3) | H32: 1 | I32: (3.3) | J32: 3 | K32: (10.0) | L32: 0 | M32: (0.0) | N32: 0 | O32: (0.0) | P32: 0 | Q32: (0.0) | R32: 0 | S32: (0.0) | T32: 0 | U32: (0.0) | V32: 11 | W32: (36.7) | X32: 0 | Y32: (0.0) | Z32: 3 | AA32: (10.0) | AB32: 9 | AC32: (30.0) | AD32: 30 | AE32: (0.4)
A33: ZA | B33: 2 | C33: (0.4) | D33: 7 | E33: (1.4) | F33: 186 | G33: (37.5) | H33: 0 | I33: (0.0) | J33: 24 | K33: (4.8) | L33: 4 | M33: (0.8) | N33: 2 | O33: (0.4) | P33: 30 | Q33: (6.0) | R33: 27 | S33: (5.4) | T33: 30 | U33: (6.0) | V33: 86 | W33: (17.3) | X33: 7 | Y33: (1.4) | Z33: 89 | AA33: (17.9) | AB33: 2 | AC33: (0.4) | AD33: 496 | AE33: (7.2)
A34: ZB | B34: 0 | C34: (0.0) | D34: 3 | E34: (2.5) | F34: 9 | G34: (7.6) | H34: 1 | I34: (0.8) | J34: 11 | K34: (9.2) | L34: 0 | M34: (0.0) | N34: 0 | O34: (0.0) | P34: 32 | Q34: (26.9) | R34: 10 | S34: (8.4) | T34: 20 | U34: (16.8) | V34: 16 | W34: (13.4) | X34: 1 | Y34: (0.8) | Z34: 16 | AA34: (13.4) | AB34: 0 | AC34: (0.0) | AD34: 119 | AE34: (1.7)
A35: ZC | B35: 2 | C35: (0.4) | D35: 4 | E35: (0.8) | F35: 293 | G35: (61.7) | H35: 0 | I35: (0.0) | J35: 26 | K35: (5.5) | L35: 4 | M35: (0.8) | N35: 1 | O35: (0.2) | P35: 31 | Q35: (6.5) | R35: 2 | S35: (0.4) | T35: 28 | U35: (5.9) | V35: 64 | W35: (13.5) | X35: 2 | Y35: (0.4) | Z35: 18 | AA35: (3.8) | AB35: 0 | AC35: (0.0) | AD35: 475 | AE35: (6.9)
A36: ZD | B36: 1 | C36: (1.1) | D36: 2 | E36: (2.2) | F36: 0 | G36: (0.0) | H36: 0 | I36: (0.0) | J36: 8 | K36: (8.6) | L36: 0 | M36: (0.0) | N36: 2 | O36: (2.2) | P36: 20 | Q36: (21.5) | R36: 9 | S36: (9.7) | T36: 25 | U36: (26.9) | V36: 12 | W36: (12.9) | X36: 2 | Y36: (2.2) | Z36: 11 | AA36: (11.8) | AB36: 1 | AC36: (1.1) | AD36: 93 | AE36: (1.4)
A37: ZE | B37: 1 | C37: (0.4) | D37: 2 | E37: (0.7) | F37: 202 | G37: (73.2) | H37: 2 | I37: (0.7) | J37: 4 | K37: (1.4) | L37: 4 | M37: (1.4) | N37: 0 | O37: (0.0) | P37: 31 | Q37: (11.2) | R37: 10 | S37: (3.6) | T37: 13 | U37: (4.7) | V37: 2 | W37: (0.7) | X37: 0 | Y37: (0.0) | Z37: 5 | AA37: (1.8) | AB37: 0 | AC37: (0.0) | AD37: 276 | AE37: (4.0)
A38: Total | B38: 23 | C38: (0.3) | D38: 128 | E38: (1.9) | F38: 3634 | G38: (53.1) | H38: 38 | I38: (0.6) | J38: 455 | K38: (6.6) | L38: 46 | M38: (0.7) | N38: 33 | O38: (0.5) | P38: 721 | Q38: (10.5) | R38: 237 | S38: (3.5) | T38: 417 | U38: (6.1) | V38: 667 | W38: (9.7) | X38: 57 | Y38: (0.8) | Z38: 375 | AA38: (5.5) | AB38: 17 | AC38: (0.2) | AD38: 6848 | AE38: (100.0)
A39: 2013
A40: A | B40: 0 | C40: (0.0) | D40: 4 | E40: (2.4) | F40: 0 | G40: (0.0) | H40: 1 | I40: (0.6) | J40: 24 | K40: (14.2) | L40: 3 | M40: (1.8) | N40: 2 | O40: (1.2) | P40: 37 | Q40: (21.9) | R40: 8 | S40: (4.7) | T40: 31 | U40: (18.3) | V40: 35 | W40: (20.7) | X40: 3 | Y40: (1.8) | Z40: 18 | AA40: (10.7) | AB40: 3 | AC40: (1.8) | AD40: 169 | AE40: (2.4)
A41: B | B41: 0 | C41: (0.0) | D41: 1 | E41: (20.0) | F41: 1 | G41: (20.0) | H41: 0 | I41: (0.0) | J41: 0 | K41: (0.0) | L41: 0 | M41: (0.0) | N41: 1 | O41: (20.0) | P41: 0 | Q41: (0.0) | R41: 0 | S41: (0.0) | T41: 0 | U41: (0.0) | V41: 1 | W41: (20.0) | X41: 0 | Y41: (0.0) | Z41: 0 | AA41: (0.0) | AB41: 1 | AC41: (20.0) | AD41: 5 | AE41: (0.1)
A42: C | B42: 1 | C42: (2.4) | D42: 0 | E42: (0.0) | F42: 1 | G42: (2.4) | H42: 0 | I42: (0.0) | J42: 4 | K42: (9.8) | L42: 1 | M42: (2.4) | N42: 0 | O42: (0.0) | P42: 16 | Q42: (39.0) | R42: 1 | S42: (2.4) | T42: 1 | U42: (2.4) | V42: 12 | W42: (29.3) | X42: 1 | Y42: (2.4) | Z42: 3 | AA42: (7.3) | AB42: 0 | AC42: (0.0) | AD42: 41 | AE42: (0.6)
A43: D | B43: 3 | C43: (2.6) | D43: 2 | E43: (1.7) | F43: 1 | G43: (0.9) | H43: 1 | I43: (0.9) | J43: 21 | K43: (18.3) | L43: 4 | M43: (3.5) | N43: 2 | O43: (1.7) | P43: 17 | Q43: (14.8) | R43: 13 | S43: (11.3) | T43: 6 | U43: (5.2) | V43: 20 | W43: (17.4) | X43: 1 | Y43: (0.9) | Z43: 24 | AA43: (20.9) | AB43: 0 | AC43: (0.0) | AD43: 115 | AE43: (1.6)
A44: E1 | B44: 0 | C44: (0.0) | D44: 5 | E44: (2.5) | F44: 6 | G44: (3.0) | H44: 3 | I44: (1.5) | J44: 30 | K44: (14.9) | L44: 1 | M44: (0.5) | N44: 3 | O44: (1.5) | P44: 47 | Q44: (23.4) | R44: 30 | S44: (14.9) | T44: 18 | U44: (9.0) | V44: 41 | W44: (20.4) | X44: 0 | Y44: (0.0) | Z44: 17 | AA44: (8.5) | AB44: 0 | AC44: (0.0) | AD44: 201 | AE44: (2.9)
A45: E2 | B45: 0 | C45: (0.0) | D45: 1 | E45: (0.2) | F45: 506 | G45: (95.8) | H45: 0 | I45: (0.0) | J45: 2 | K45: (0.4) | L45: 0 | M45: (0.0) | N45: 0 | O45: (0.0) | P45: 1 | Q45: (0.2) | R45: 0 | S45: (0.0) | T45: 2 | U45: (0.4) | V45: 15 | W45: (2.8) | X45: 0 | Y45: (0.0) | Z45: 1 | AA45: (0.2) | AB45: 0 | AC45: (0.0) | AD45: 528 | AE45: (7.5)
A46: F | B46: 0 | C46: (0.0) | D46: 3 | E46: (0.6) | F46: 384 | G46: (76.6) | H46: 0 | I46: (0.0) | J46: 14 | K46: (2.8) | L46: 1 | M46: (0.2) | N46: 0 | O46: (0.0) | P46: 64 | Q46: (12.8) | R46: 0 | S46: (0.0) | T46: 1 | U46: (0.2) | V46: 19 | W46: (3.8) | X46: 1 | Y46: (0.2) | Z46: 14 | AA46: (2.8) | AB46: 0 | AC46: (0.0) | AD46: 501 | AE46: (7.1)
A47: H | B47: 1 | C47: (0.7) | D47: 0 | E47: (0.0) | F47: 0 | G47: (0.0) | H47: 1 | I47: (0.7) | J47: 5 | K47: (3.4) | L47: 0 | M47: (0.0) | N47: 0 | O47: (0.0) | P47: 2 | Q47: (1.4) | R47: 10 | S47: (6.8) | T47: 14 | U47: (9.5) | V47: 10 | W47: (6.8) | X47: 0 | Y47: (0.0) | Z47: 105 | AA47: (70.9) | AB47: 0 | AC47: (0.0) | AD47: 148 | AE47: (2.1)
A48: I | B48: 1 | C48: (0.2) | D48: 4 | E48: (1.0) | F48: 330 | G48: (79.5) | H48: 3 | I48: (0.7) | J48: 30 | K48: (7.2) | L48: 2 | M48: (0.5) | N48: 1 | O48: (0.2) | P48: 10 | Q48: (2.4) | R48: 7 | S48: (1.7) | T48: 12 | U48: (2.9) | V48: 7 | W48: (1.7) | X48: 0 | Y48: (0.0) | Z48: 8 | AA48: (1.9) | AB48: 0 | AC48: (0.0) | AD48: 415 | AE48: (5.9)
A49: K1K3 | B49: 3 | C49: (1.9) | D49: 24 | E49: (15.0) | F49: 0 | G49: (0.0) | H49: 0 | I49: (0.0) | J49: 21 | K49: (13.1) | L49: 1 | M49: (0.6) | N49: 0 | O49: (0.0) | P49: 9 | Q49: (5.6) | R49: 26 | S49: (16.3) | T49: 32 | U49: (20.0) | V49: 30 | W49: (18.8) | X49: 1 | Y49: (0.6) | Z49: 13 | AA49: (8.1) | AB49: 0 | AC49: (0.0) | AD49: 160 | AE49: (2.3)
A50: K2 | B50: 0 | C50: (0.0) | D50: 1 | E50: (0.5) | F50: 180 | G50: (95.2) | H50: 0 | I50: (0.0) | J50: 0 | K50: (0.0) | L50: 2 | M50: (1.1) | N50: 0 | O50: (0.0) | P50: 0 | Q50: (0.0) | R50: 2 | S50: (1.1) | T50: 0 | U50: (0.0) | V50: 4 | W50: (2.1) | X50: 0 | Y50: (0.0) | Z50: 0 | AA50: (0.0) | AB50: 0 | AC50: (0.0) | AD50: 189 | AE50: (2.7)
A51: L | B51: 0 | C51: (0.0) | D51: 0 | E51: (0.0) | F51: 0 | G51: (0.0) | H51: 0 | I51: (0.0) | J51: 1 | K51: (4.0) | L51: 0 | M51: (0.0) | N51: 0 | O51: (0.0) | P51: 17 | Q51: (68.0) | R51: 2 | S51: (8.0) | T51: 0 | U51: (0.0) | V51: 4 | W51: (16.0) | X51: 0 | Y51: (0.0) | Z51: 1 | AA51: (4.0) | AB51: 0 | AC51: (0.0) | AD51: 25 | AE51: (0.4)
A52: M | B52: 0 | C52: (0.0) | D52: 0 | E52: (0.0) | F52: 2 | G52: (2.8) | H52: 1 | I52: (1.4) | J52: 4 | K52: (5.6) | L52: 1 | M52: (1.4) | N52: 0 | O52: (0.0) | P52: 31 | Q52: (43.1) | R52: 4 | S52: (5.6) | T52: 7 | U52: (9.7) | V52: 9 | W52: (12.5) | X52: 1 | Y52: (1.4) | Z52: 12 | AA52: (16.7) | AB52: 0 | AC52: (0.0) | AD52: 72 | AE52: (1.0)
A53: N | B53: 2 | C53: (0.6) | D53: 21 | E53: (6.7) | F53: 6 | G53: (1.9) | H53: 1 | I53: (0.3) | J53: 9 | K53: (2.9) | L53: 4 | M53: (1.3) | N53: 6 | O53: (1.9) | P53: 162 | Q53: (51.4) | R53: 15 | S53: (4.8) | T53: 27 | U53: (8.6) | V53: 42 | W53: (13.3) | X53: 1 | Y53: (0.3) | Z53: 19 | AA53: (6.0) | AB53: 0 | AC53: (0.0) | AD53: 315 | AE53: (4.5)
A54: O | B54: 0 | C54: (0.0) | D54: 0 | E54: (0.0) | F54: 363 | G54: (91.0) | H54: 0 | I54: (0.0) | J54: 8 | K54: (2.0) | L54: 2 | M54: (0.5) | N54: 0 | O54: (0.0) | P54: 1 | Q54: (0.3) | R54: 1 | S54: (0.3) | T54: 3 | U54: (0.8) | V54: 16 | W54: (4.0) | X54: 0 | Y54: (0.0) | Z54: 3 | AA54: (0.8) | AB54: 2 | AC54: (0.5) | AD54: 399 | AE54: (5.7)
A55: P | B55: 1 | C55: (0.2) | D55: 10 | E55: (2.4) | F55: 338 | G55: (82.2) | H55: 0 | I55: (0.0) | J55: 8 | K55: (1.9) | L55: 0 | M55: (0.0) | N55: 5 | O55: (1.2) | P55: 18 | Q55: (4.4) | R55: 9 | S55: (2.2) | T55: 5 | U55: (1.2) | V55: 12 | W55: (2.9) | X55: 1 | Y55: (0.2) | Z55: 4 | AA55: (1.0) | AB55: 0 | AC55: (0.0) | AD55: 411 | AE55: (5.8)
A56: Q | B56: 0 | C56: (0.0) | D56: 6 | E56: (10.5) | F56: 0 | G56: (0.0) | H56: 0 | I56: (0.0) | J56: 5 | K56: (8.8) | L56: 0 | M56: (0.0) | N56: 0 | O56: (0.0) | P56: 11 | Q56: (19.3) | R56: 3 | S56: (5.3) | T56: 5 | U56: (8.8) | V56: 24 | W56: (42.1) | X56: 1 | Y56: (1.8) | Z56: 2 | AA56: (3.5) | AB56: 0 | AC56: (0.0) | AD56: 57 | AE56: (0.8)
A57: R | B57: 0 | C57: (0.0) | D57: 6 | E57: (1.8) | F57: 214 | G57: (63.5) | H57: 0 | I57: (0.0) | J57: 19 | K57: (5.6) | L57: 1 | M57: (0.3) | N57: 1 | O57: (0.3) | P57: 45 | Q57: (13.4) | R57: 17 | S57: (5.0) | T57: 16 | U57: (4.7) | V57: 15 | W57: (4.5) | X57: 0 | Y57: (0.0) | Z57: 3 | AA57: (0.9) | AB57: 0 | AC57: (0.0) | AD57: 337 | AE57: (4.8)
A58: S | B58: 0 | C58: (0.0) | D58: 0 | E58: (0.0) | F58: 0 | G58: (0.0) | H58: 0 | I58: (0.0) | J58: 0 | K58: (0.0) | L58: 0 | M58: (0.0) | N58: 0 | O58: (0.0) | P58: 9 | Q58: (100.0) | R58: 0 | S58: (0.0) | T58: 0 | U58: (0.0) | V58: 0 | W58: (0.0) | X58: 0 | Y58: (0.0) | Z58: 0 | AA58: (0.0) | AB58: 0 | AC58: (0.0) | AD58: 9 | AE58: (0.1)
A59: T | B59: 0 | C59: (0.0) | D59: 6 | E59: (3.6) | F59: 2 | G59: (1.2) | H59: 0 | I59: (0.0) | J59: 33 | K59: (19.9) | L59: 1 | M59: (0.6) | N59: 0 | O59: (0.0) | P59: 29 | Q59: (17.5) | R59: 13 | S59: (7.8) | T59: 29 | U59: (17.5) | V59: 43 | W59: (25.9) | X59: 5 | Y59: (3.0) | Z59: 5 | AA59: (3.0) | AB59: 0 | AC59: (0.0) | AD59: 166 | AE59: (2.4)
A60: U | B60: 7 | C60: (29.2) | D60: 0 | E60: (0.0) | F60: 0 | G60: (0.0) | H60: 0 | I60: (0.0) | J60: 6 | K60: (25.0) | L60: 2 | M60: (8.3) | N60: 0 | O60: (0.0) | P60: 1 | Q60: (4.2) | R60: 0 | S60: (0.0) | T60: 0 | U60: (0.0) | V60: 5 | W60: (20.8) | X60: 1 | Y60: (4.2) | Z60: 2 | AA60: (8.3) | AB60: 0 | AC60: (0.0) | AD60: 24 | AE60: (0.3)
A61: V | B61: 1 | C61: (0.3) | D61: 2 | E61: (0.5) | F61: 308 | G61: (79.8) | H61: 5 | I61: (1.3) | J61: 10 | K61: (2.6) | L61: 1 | M61: (0.3) | N61: 4 | O61: (1.0) | P61: 9 | Q61: (2.3) | R61: 7 | S61: (1.8) | T61: 10 | U61: (2.6) | V61: 16 | W61: (4.1) | X61: 0 | Y61: (0.0) | Z61: 13 | AA61: (3.4) | AB61: 0 | AC61: (0.0) | AD61: 386 | AE61: (5.5)
A62: W | B62: 0 | C62: (0.0) | D62: 0 | E62: (0.0) | F62: 234 | G62: (92.5) | H62: 0 | I62: (0.0) | J62: 3 | K62: (1.2) | L62: 1 | M62: (0.4) | N62: 0 | O62: (0.0) | P62: 0 | Q62: (0.0) | R62: 1 | S62: (0.4) | T62: 4 | U62: (1.6) | V62: 8 | W62: (3.2) | X62: 0 | Y62: (0.0) | Z62: 2 | AA62: (0.8) | AB62: 0 | AC62: (0.0) | AD62: 253 | AE62: (3.6)
A63: X | B63: 1 | C63: (0.4) | D63: 4 | E63: (1.7) | F63: 181 | G63: (74.8) | H63: 0 | I63: (0.0) | J63: 17 | K63: (7.0) | L63: 3 | M63: (1.2) | N63: 3 | O63: (1.2) | P63: 6 | Q63: (2.5) | R63: 2 | S63: (0.8) | T63: 5 | U63: (2.1) | V63: 8 | W63: (3.3) | X63: 4 | Y63: (1.7) | Z63: 5 | AA63: (2.1) | AB63: 3 | AC63: (1.2) | AD63: 242 | AE63: (3.4)
A64: Y | B64: 0 | C64: (0.0) | D64: 7 | E64: (2.9) | F64: 1 | G64: (0.4) | H64: 0 | I64: (0.0) | J64: 11 | K64: (4.5) | L64: 1 | M64: (0.4) | N64: 3 | O64: (1.2) | P64: 145 | Q64: (59.9) | R64: 8 | S64: (3.3) | T64: 18 | U64: (7.4) | V64: 38 | W64: (15.7) | X64: 6 | Y64: (2.5) | Z64: 4 | AA64: (1.7) | AB64: 0 | AC64: (0.0) | AD64: 242 | AE64: (3.4)
A65: Z | B65: 0 | C65: (0.0) | D65: 0 | E65: (0.0) | F65: 0 | G65: (0.0) | H65: 0 | I65: (0.0) | J65: 4 | K65: (14.3) | L65: 0 | M65: (0.0) | N65: 0 | O65: (0.0) | P65: 7 | Q65: (25.0) | R65: 0 | S65: (0.0) | T65: 2 | U65: (7.1) | V65: 14 | W65: (50.0) | X65: 0 | Y65: (0.0) | Z65: 0 | AA65: (0.0) | AB65: 1 | AC65: (3.6) | AD65: 28 | AE65: (0.4)
A66: ZA | B66: 1 | C66: (0.2) | D66: 9 | E66: (1.7) | F66: 202 | G66: (38.8) | H66: 1 | I66: (0.2) | J66: 26 | K66: (5.0) | L66: 6 | M66: (1.2) | N66: 3 | O66: (0.6) | P66: 35 | Q66: (6.7) | R66: 38 | S66: (7.3) | T66: 26 | U66: (5.0) | V66: 78 | W66: (15.0) | X66: 8 | Y66: (1.5) | Z66: 86 | AA66: (16.5) | AB66: 1 | AC66: (0.2) | AD66: 520 | AE66: (7.4)
A67: ZB | B67: 0 | C67: (0.0) | D67: 7 | E67: (5.1) | F67: 7 | G67: (5.1) | H67: 1 | I67: (0.7) | J67: 16 | K67: (11.6) | L67: 1 | M67: (0.7) | N67: 1 | O67: (0.7) | P67: 31 | Q67: (22.5) | R67: 16 | S67: (11.6) | T67: 28 | U67: (20.3) | V67: 24 | W67: (17.4) | X67: 0 | Y67: (0.0) | Z67: 6 | AA67: (4.3) | AB67: 0 | AC67: (0.0) | AD67: 138 | AE67: (2.0)
A68: ZC | B68: 0 | C68: (0.0) | D68: 6 | E68: (1.3) | F68: 269 | G68: (58.7) | H68: 0 | I68: (0.0) | J68: 27 | K68: (5.9) | L68: 3 | M68: (0.7) | N68: 3 | O68: (0.7) | P68: 33 | Q68: (7.2) | R68: 1 | S68: (0.2) | T68: 30 | U68: (6.6) | V68: 72 | W68: (15.7) | X68: 2 | Y68: (0.4) | Z68: 12 | AA68: (2.6) | AB68: 0 | AC68: (0.0) | AD68: 458 | AE68: (6.5)
A69: ZD | B69: 0 | C69: (0.0) | D69: 10 | E69: (7.5) | F69: 0 | G69: (0.0) | H69: 3 | I69: (2.3) | J69: 18 | K69: (13.5) | L69: 1 | M69: (0.8) | N69: 2 | O69: (1.5) | P69: 33 | Q69: (24.8) | R69: 19 | S69: (14.3) | T69: 24 | U69: (18.0) | V69: 14 | W69: (10.5) | X69: 0 | Y69: (0.0) | Z69: 9 | AA69: (6.8) | AB69: 0 | AC69: (0.0) | AD69: 133 | AE69: (1.9)
A70: ZE | B70: 1 | C70: (0.3) | D70: 1 | E70: (0.3) | F70: 251 | G70: (76.3) | H70: 0 | I70: (0.0) | J70: 5 | K70: (1.5) | L70: 0 | M70: (0.0) | N70: 1 | O70: (0.3) | P70: 36 | Q70: (10.9) | R70: 9 | S70: (2.7) | T70: 16 | U70: (4.9) | V70: 8 | W70: (2.4) | X70: 1 | Y70: (0.3) | Z70: 0 | AA70: (0.0) | AB70: 0 | AC70: (0.0) | AD70: 329 | AE70: (4.7)
A71: ZF | B71: 0 | C71: (0.0) | D71: 0 | E71: (0.0) | F71: 0 | G71: (0.0) | H71: 0 | I71: (0.0) | J71: 0 | K71: (0.0) | L71: 0 | M71: (0.0) | N71: 0 | O71: (0.0) | P71: 7 | Q71: (63.6) | R71: 2 | S71: (18.2) | T71: 0 | U71: (0.0) | V71: 1 | W71: (9.1) | X71: 0 | Y71: (0.0) | Z71: 1 | AA71: (9.1) | AB71: 0 | AC71: (0.0) | AD71: 11 | AE71: (0.2)
A72: Total | B72: 23 | C72: (0.3) | D72: 140 | E72: (2.0) | F72: 3787 | G72: (53.9) | H72: 21 | I72: (0.3) | J72: 381 | K72: (5.4) | L72: 43 | M72: (0.6) | N72: 41 | O72: (0.6) | P72: 869 | Q72: (12.4) | R72: 264 | S72: (3.8) | T72: 372 | U72: (5.3) | V72: 645 | W72: (9.2) | X72: 38 | Y72: (0.5) | Z72: 392 | AA72: (5.6) | AB72: 11 | AC72: (0.2) | AD72: 7027 | AE72: (100.0)
A73: 2014
A74: A | B74: 0 | C74: (0.0) | D74: 2 | E74: (1.2) | F74: 1 | G74: (0.6) | H74: 0 | I74: (0.0) | J74: 14 | K74: (8.6) | L74: 0 | M74: (0.0) | N74: 0 | O74: (0.0) | P74: 31 | Q74: (19.1) | R74: 9 | S74: (5.6) | T74: 26 | U74: (16.0) | V74: 29 | W74: (17.9) | X74: 3 | Y74: (1.9) | Z74: 47 | AA74: (29.0) | AB74: 0 | AC74: (0.0) | AD74: 162 | AE74: (2.4)
A75: B | B75: 0 | C75: (0.0) | D75: 0 | E75: (0.0) | F75: 0 | G75: (0.0) | H75: 0 | I75: (0.0) | J75: 0 | K75: (0.0) | L75: 0 | M75: (0.0) | N75: 0 | O75: (0.0) | P75: 0 | Q75: (0.0) | R75: 1 | S75: (50.0) | T75: 0 | U75: (0.0) | V75: 1 | W75: (50.0) | X75: 0 | Y75: (0.0) | Z75: 0 | AA75: (0.0) | AB75: 0 | AC75: (0.0) | AD75: 2 | AE75: (0.0)
A76: C | B76: 1 | C76: (2.1) | D76: 0 | E76: (0.0) | F76: 2 | G76: (4.3) | H76: 0 | I76: (0.0) | J76: 4 | K76: (8.5) | L76: 0 | M76: (0.0) | N76: 0 | O76: (0.0) | P76: 19 | Q76: (40.4) | R76: 1 | S76: (2.1) | T76: 4 | U76: (8.5) | V76: 11 | W76: (23.4) | X76: 1 | Y76: (2.1) | Z76: 4 | AA76: (8.5) | AB76: 0 | AC76: (0.0) | AD76: 47 | AE76: (0.7)
A77: D | B77: 2 | C77: (1.0) | D77: 10 | E77: (5.0) | F77: 3 | G77: (1.5) | H77: 8 | I77: (4.0) | J77: 61 | K77: (30.7) | L77: 3 | M77: (1.5) | N77: 1 | O77: (0.5) | P77: 28 | Q77: (14.1) | R77: 16 | S77: (8.0) | T77: 17 | U77: (8.5) | V77: 33 | W77: (16.6) | X77: 3 | Y77: (1.5) | Z77: 13 | AA77: (6.5) | AB77: 1 | AC77: (0.5) | AD77: 199 | AE77: (2.9)
A78: E1 | B78: 0 | C78: (0.0) | D78: 8 | E78: (4.5) | F78: 6 | G78: (3.4) | H78: 2 | I78: (1.1) | J78: 20 | K78: (11.2) | L78: 2 | M78: (1.1) | N78: 3 | O78: (1.7) | P78: 38 | Q78: (21.2) | R78: 15 | S78: (8.4) | T78: 23 | U78: (12.8) | V78: 33 | W78: (18.4) | X78: 1 | Y78: (0.6) | Z78: 28 | AA78: (15.6) | AB78: 0 | AC78: (0.0) | AD78: 179 | AE78: (2.6)
A79: E2 | B79: 0 | C79: (0.0) | D79: 3 | E79: (0.6) | F79: 481 | G79: (93.4) | H79: 0 | I79: (0.0) | J79: 0 | K79: (0.0) | L79: 1 | M79: (0.2) | N79: 0 | O79: (0.0) | P79: 1 | Q79: (0.2) | R79: 0 | S79: (0.0) | T79: 1 | U79: (0.2) | V79: 27 | W79: (5.2) | X79: 0 | Y79: (0.0) | Z79: 1 | AA79: (0.2) | AB79: 0 | AC79: (0.0) | AD79: 515 | AE79: (7.6)
A80: F | B80: 0 | C80: (0.0) | D80: 4 | E80: (0.7) | F80: 393 | G80: (73.5) | H80: 0 | I80: (0.0) | J80: 15 | K80: (2.8) | L80: 2 | M80: (0.4) | N80: 0 | O80: (0.0) | P80: 66 | Q80: (12.3) | R80: 0 | S80: (0.0) | T80: 2 | U80: (0.4) | V80: 32 | W80: (6.0) | X80: 0 | Y80: (0.0) | Z80: 21 | AA80: (3.9) | AB80: 0 | AC80: (0.0) | AD80: 535 | AE80: (7.9)
A81: H | B81: 0 | C81: (0.0) | D81: 1 | E81: (0.8) | F81: 1 | G81: (0.8) | H81: 3 | I81: (2.3) | J81: 21 | K81: (16.2) | L81: 4 | M81: (3.1) | N81: 0 | O81: (0.0) | P81: 3 | Q81: (2.3) | R81: 17 | S81: (13.1) | T81: 21 | U81: (16.2) | V81: 5 | W81: (3.8) | X81: 0 | Y81: (0.0) | Z81: 54 | AA81: (41.5) | AB81: 0 | AC81: (0.0) | AD81: 130 | AE81: (1.9)
A82: I | B82: 0 | C82: (0.0) | D82: 3 | E82: (0.8) | F82: 337 | G82: (84.3) | H82: 1 | I82: (0.3) | J82: 19 | K82: (4.8) | L82: 1 | M82: (0.3) | N82: 0 | O82: (0.0) | P82: 2 | Q82: (0.5) | R82: 4 | S82: (1.0) | T82: 11 | U82: (2.8) | V82: 16 | W82: (4.0) | X82: 0 | Y82: (0.0) | Z82: 6 | AA82: (1.5) | AB82: 0 | AC82: (0.0) | AD82: 400 | AE82: (5.9)
A83: K1K3 | B83: 2 | C83: (1.2) | D83: 17 | E83: (10.2) | F83: 0 | G83: (0.0) | H83: 0 | I83: (0.0) | J83: 36 | K83: (21.6) | L83: 1 | M83: (0.6) | N83: 0 | O83: (0.0) | P83: 6 | Q83: (3.6) | R83: 33 | S83: (19.8) | T83: 34 | U83: (20.4) | V83: 24 | W83: (14.4) | X83: 1 | Y83: (0.6) | Z83: 13 | AA83: (7.8) | AB83: 0 | AC83: (0.0) | AD83: 167 | AE83: (2.5)
A84: K2 | B84: 1 | C84: (0.7) | D84: 0 | E84: (0.0) | F84: 136 | G84: (93.2) | H84: 0 | I84: (0.0) | J84: 0 | K84: (0.0) | L84: 2 | M84: (1.4) | N84: 0 | O84: (0.0) | P84: 0 | Q84: (0.0) | R84: 1 | S84: (0.7) | T84: 4 | U84: (2.7) | V84: 1 | W84: (0.7) | X84: 1 | Y84: (0.7) | Z84: 0 | AA84: (0.0) | AB84: 0 | AC84: (0.0) | AD84: 146 | AE84: (2.2)
A85: L | B85: 0 | C85: (0.0) | D85: 0 | E85: (0.0) | F85: 0 | G85: (0.0) | H85: 0 | I85: (0.0) | J85: 1 | K85: (3.7) | L85: 1 | M85: (3.7) | N85: 0 | O85: (0.0) | P85: 23 | Q85: (85.2) | R85: 0 | S85: (0.0) | T85: 0 | U85: (0.0) | V85: 1 | W85: (3.7) | X85: 1 | Y85: (3.7) | Z85: 0 | AA85: (0.0) | AB85: 0 | AC85: (0.0) | AD85: 27 | AE85: (0.4)
A86: M | B86: 0 | C86: (0.0) | D86: 1 | E86: (1.3) | F86: 1 | G86: (1.3) | H86: 1 | I86: (1.3) | J86: 4 | K86: (5.0) | L86: 0 | M86: (0.0) | N86: 2 | O86: (2.5) | P86: 31 | Q86: (38.8) | R86: 15 | S86: (18.8) | T86: 7 | U86: (8.8) | V86: 6 | W86: (7.5) | X86: 1 | Y86: (1.3) | Z86: 11 | AA86: (13.8) | AB86: 0 | AC86: (0.0) | AD86: 80 | AE86: (1.2)
A87: N | B87: 0 | C87: (0.0) | D87: 7 | E87: (2.8) | F87: 1 | G87: (0.4) | H87: 4 | I87: (1.6) | J87: 7 | K87: (2.8) | L87: 1 | M87: (0.4) | N87: 3 | O87: (1.2) | P87: 125 | Q87: (49.8) | R87: 15 | S87: (6.0) | T87: 23 | U87: (9.2) | V87: 34 | W87: (13.5) | X87: 1 | Y87: (0.4) | Z87: 30 | AA87: (12.0) | AB87: 0 | AC87: (0.0) | AD87: 251 | AE87: (3.7)
A88: O | B88: 0 | C88: (0.0) | D88: 2 | E88: (0.5) | F88: 356 | G88: (91.5) | H88: 0 | I88: (0.0) | J88: 4 | K88: (1.0) | L88: 3 | M88: (0.8) | N88: 0 | O88: (0.0) | P88: 4 | Q88: (1.0) | R88: 0 | S88: (0.0) | T88: 4 | U88: (1.0) | V88: 12 | W88: (3.1) | X88: 0 | Y88: (0.0) | Z88: 4 | AA88: (1.0) | AB88: 0 | AC88: (0.0) | AD88: 389 | AE88: (5.7)
A89: P | B89: 0 | C89: (0.0) | D89: 9 | E89: (2.2) | F89: 309 | G89: (74.5) | H89: 0 | I89: (0.0) | J89: 23 | K89: (5.5) | L89: 0 | M89: (0.0) | N89: 1 | O89: (0.2) | P89: 9 | Q89: (2.2) | R89: 11 | S89: (2.7) | T89: 7 | U89: (1.7) | V89: 34 | W89: (8.2) | X89: 2 | Y89: (0.5) | Z89: 10 | AA89: (2.4) | AB89: 0 | AC89: (0.0) | AD89: 415 | AE89: (6.1)
A90: Q | B90: 0 | C90: (0.0) | D90: 2 | E90: (2.7) | F90: 0 | G90: (0.0) | H90: 0 | I90: (0.0) | J90: 9 | K90: (12.2) | L90: 0 | M90: (0.0) | N90: 0 | O90: (0.0) | P90: 16 | Q90: (21.6) | R90: 4 | S90: (5.4) | T90: 2 | U90: (2.7) | V90: 38 | W90: (51.4) | X90: 0 | Y90: (0.0) | Z90: 3 | AA90: (4.1) | AB90: 0 | AC90: (0.0) | AD90: 74 | AE90: (1.1)
A91: R | B91: 2 | C91: (0.7) | D91: 11 | E91: (3.7) | F91: 194 | G91: (65.8) | H91: 3 | I91: (1.0) | J91: 19 | K91: (6.4) | L91: 1 | M91: (0.3) | N91: 0 | O91: (0.0) | P91: 27 | Q91: (9.2) | R91: 7 | S91: (2.4) | T91: 6 | U91: (2.0) | V91: 21 | W91: (7.1) | X91: 0 | Y91: (0.0) | Z91: 4 | AA91: (1.4) | AB91: 0 | AC91: (0.0) | AD91: 295 | AE91: (4.3)
A92: S | B92: 0 | C92: (0.0) | D92: 0 | E92: (0.0) | F92: 0 | G92: (0.0) | H92: 0 | I92: (0.0) | J92: 0 | K92: (0.0) | L92: 0 | M92: (0.0) | N92: 0 | O92: (0.0) | P92: 15 | Q92: (93.8) | R92: 0 | S92: (0.0) | T92: 0 | U92: (0.0) | V92: 0 | W92: (0.0) | X92: 0 | Y92: (0.0) | Z92: 1 | AA92: (6.3) | AB92: 0 | AC92: (0.0) | AD92: 16 | AE92: (0.2)
A93: T | B93: 0 | C93: (0.0) | D93: 1 | E93: (0.8) | F93: 1 | G93: (0.8) | H93: 1 | I93: (0.8) | J93: 24 | K93: (18.6) | L93: 3 | M93: (2.3) | N93: 0 | O93: (0.0) | P93: 19 | Q93: (14.7) | R93: 21 | S93: (16.3) | T93: 23 | U93: (17.8) | V93: 24 | W93: (18.6) | X93: 2 | Y93: (1.6) | Z93: 10 | AA93: (7.8) | AB93: 0 | AC93: (0.0) | AD93: 129 | AE93: (1.9)
A94: U | B94: 1 | C94: (5.0) | D94: 0 | E94: (0.0) | F94: 1 | G94: (5.0) | H94: 0 | I94: (0.0) | J94: 5 | K94: (25.0) | L94: 0 | M94: (0.0) | N94: 0 | O94: (0.0) | P94: 2 | Q94: (10.0) | R94: 1 | S94: (5.0) | T94: 1 | U94: (5.0) | V94: 8 | W94: (40.0) | X94: 0 | Y94: (0.0) | Z94: 1 | AA94: (5.0) | AB94: 0 | AC94: (0.0) | AD94: 20 | AE94: (0.3)
A95: V | B95: 1 | C95: (0.2) | D95: 4 | E95: (1.0) | F95: 326 | G95: (80.9) | H95: 4 | I95: (1.0) | J95: 23 | K95: (5.7) | L95: 2 | M95: (0.5) | N95: 1 | O95: (0.2) | P95: 11 | Q95: (2.7) | R95: 10 | S95: (2.5) | T95: 8 | U95: (2.0) | V95: 6 | W95: (1.5) | X95: 0 | Y95: (0.0) | Z95: 7 | AA95: (1.7) | AB95: 0 | AC95: (0.0) | AD95: 403 | AE95: (5.9)
A96: W | B96: 0 | C96: (0.0) | D96: 2 | E96: (0.7) | F96: 236 | G96: (85.2) | H96: 1 | I96: (0.4) | J96: 6 | K96: (2.2) | L96: 2 | M96: (0.7) | N96: 0 | O96: (0.0) | P96: 5 | Q96: (1.8) | R96: 8 | S96: (2.9) | T96: 6 | U96: (2.2) | V96: 7 | W96: (2.5) | X96: 0 | Y96: (0.0) | Z96: 4 | AA96: (1.4) | AB96: 0 | AC96: (0.0) | AD96: 277 | AE96: (4.1)
A97: X | B97: 0 | C97: (0.0) | D97: 10 | E97: (4.3) | F97: 177 | G97: (76.3) | H97: 0 | I97: (0.0) | J97: 18 | K97: (7.8) | L97: 2 | M97: (0.9) | N97: 1 | O97: (0.4) | P97: 7 | Q97: (3.0) | R97: 0 | S97: (0.0) | T97: 1 | U97: (0.4) | V97: 12 | W97: (5.2) | X97: 0 | Y97: (0.0) | Z97: 4 | AA97: (1.7) | AB97: 0 | AC97: (0.0) | AD97: 232 | AE97: (3.4)
A98: Y | B98: 0 | C98: (0.0) | D98: 3 | E98: (1.8) | F98: 0 | G98: (0.0) | H98: 0 | I98: (0.0) | J98: 9 | K98: (5.5) | L98: 1 | M98: (0.6) | N98: 1 | O98: (0.6) | P98: 68 | Q98: (41.7) | R98: 13 | S98: (8.0) | T98: 14 | U98: (8.6) | V98: 38 | W98: (23.3) | X98: 12 | Y98: (7.4) | Z98: 4 | AA98: (2.5) | AB98: 0 | AC98: (0.0) | AD98: 163 | AE98: (2.4)
A99: Z | B99: 0 | C99: (0.0) | D99: 0 | E99: (0.0) | F99: 0 | G99: (0.0) | H99: 0 | I99: (0.0) | J99: 3 | K99: (6.5) | L99: 2 | M99: (4.3) | N99: 0 | O99: (0.0) | P99: 10 | Q99: (21.7) | R99: 1 | S99: (2.2) | T99: 0 | U99: (0.0) | V99: 28 | W99: (60.9) | X99: 1 | Y99: (2.2) | Z99: 1 | AA99: (2.2) | AB99: 0 | AC99: (0.0) | AD99: 46 | AE99: (0.7)
A100: ZA | B100: 1 | C100: (0.2) | D100: 6 | E100: (1.1) | F100: 211 | G100: (39.7) | H100: 1 | I100: (0.2) | J100: 24 | K100: (4.5) | L100: 6 | M100: (1.1) | N100: 5 | O100: (0.9) | P100: 34 | Q100: (6.4) | R100: 29 | S100: (5.5) | T100: 46 | U100: (8.6) | V100: 68 | W100: (12.8) | X100: 6 | Y100: (1.1) | Z100: 95 | AA100: (17.9) | AB100: 0 | AC100: (0.0) | AD100: 532 | AE100: (7.8)
A101: ZB | B101: 0 | C101: (0.0) | D101: 10 | E101: (7.2) | F101: 7 | G101: (5.0) | H101: 1 | I101: (0.7) | J101: 23 | K101: (16.5) | L101: 1 | M101: (0.7) | N101: 0 | O101: (0.0) | P101: 31 | Q101: (22.3) | R101: 14 | S101: (10.1) | T101: 23 | U101: (16.5) | V101: 14 | W101: (10.1) | X101: 2 | Y101: (1.4) | Z101: 13 | AA101: (9.4) | AB101: 0 | AC101: (0.0) | AD101: 139 | AE101: (2.0)
A102: ZC | B102: 1 | C102: (0.2) | D102: 8 | E102: (1.9) | F102: 253 | G102: (59.4) | H102: 0 | I102: (0.0) | J102: 34 | K102: (8.0) | L102: 6 | M102: (1.4) | N102: 1 | O102: (0.2) | P102: 25 | Q102: (5.9) | R102: 4 | S102: (0.9) | T102: 19 | U102: (4.5) | V102: 51 | W102: (12.0) | X102: 2 | Y102: (0.5) | Z102: 22 | AA102: (5.2) | AB102: 0 | AC102: (0.0) | AD102: 426 | AE102: (6.3)
A103: ZD | B103: 2 | C103: (1.8) | D103: 2 | E103: (1.8) | F103: 0 | G103: (0.0) | H103: 0 | I103: (0.0) | J103: 9 | K103: (8.0) | L103: 1 | M103: (0.9) | N103: 2 | O103: (1.8) | P103: 25 | Q103: (22.1) | R103: 15 | S103: (13.3) | T103: 36 | U103: (31.9) | V103: 11 | W103: (9.7) | X103: 0 | Y103: (0.0) | Z103: 10 | AA103: (8.8) | AB103: 0 | AC103: (0.0) | AD103: 113 | AE103: (1.7)
A104: ZE | B104: 1 | C104: (0.5) | D104: 1 | E104: (0.5) | F104: 149 | G104: (70.6) | H104: 1 | I104: (0.5) | J104: 2 | K104: (0.9) | L104: 1 | M104: (0.5) | N104: 0 | O104: (0.0) | P104: 18 | Q104: (8.5) | R104: 13 | S104: (6.2) | T104: 14 | U104: (6.6) | V104: 8 | W104: (3.8) | X104: 1 | Y104: (0.5) | Z104: 2 | AA104: (0.9) | AB104: 0 | AC104: (0.0) | AD104: 211 | AE104: (3.1)
A105: ZF | B105: 0 | C105: (0.0) | D105: 1 | E105: (1.5) | F105: 0 | G105: (0.0) | H105: 1 | I105: (1.5) | J105: 4 | K105: (5.9) | L105: 0 | M105: (0.0) | N105: 4 | O105: (5.9) | P105: 27 | Q105: (39.7) | R105: 8 | S105: (11.8) | T105: 2 | U105: (2.9) | V105: 9 | W105: (13.2) | X105: 2 | Y105: (2.9) | Z105: 10 | AA105: (14.7) | AB105: 0 | AC105: (0.0) | AD105: 68 | AE105: (1.0)
A106: Total | B106: 15 | C106: (0.2) | D106: 128 | E106: (1.9) | F106: 3582 | G106: (52.8) | H106: 32 | I106: (0.5) | J106: 441 | K106: (6.5) | L106: 49 | M106: (0.7) | N106: 25 | O106: (0.4) | P106: 726 | Q106: (10.7) | R106: 286 | S106: (4.2) | T106: 385 | U106: (5.7) | V106: 642 | W106: (9.5) | X106: 43 | Y106: (0.6) | Z106: 433 | AA106: (6.4) | AB106: 1 | AC106: (0.0) | AD106: 6788 | AE106: (100.0)
A107: Grand
A108: Total | B108: 61 | C108: (0.3) | D108: 396 | E108: (1.9) | F108: 11003 | G108: (53.2) | H108: 91 | I108: (0.4) | J108: 1277 | K108: (6.2) | L108: 138 | M108: (0.7) | N108: 99 | O108: (0.5) | P108: 2316 | Q108: (11.2) | R108: 787 | S108: (3.8) | T108: 1174 | U108: (5.7) | V108: 1954 | W108: (9.5) | X108: 138 | Y108: (0.7) | Z108: 1200 | AA108: (5.8) | AB108: 29 | AC108: (0.1) | AD108: 20663 | AE108: (100.0)

Sheet 20
A1: TABLE 20 ADMISSIONS BY PRIMARY DIAGNOSTIC GROUP (UNPLANNED - FOLLOWING SURGERY), BY HEALTH ORGANISATION, 2012 - 2014
B3: DIAGNOSTIC GROUP
A4: Year / Organisation | B4: Blood / lymphatic | D4: Body wall and cavities | F4: Cardio - vascular | H4: Endocrine / metabolic | J4: Gastro - intestinal | L4: Infection | N4: Multisystem | P4: Musculo - skeletal | R4: Neurological | T4: Oncology | V4: Respiratory | X4: Trauma | Z4: Other | AB4: Unknown | AD4: Total
B5: n | C5: (%) | D5: n | E5: (%) | F5: n | G5: (%) | H5: n | I5: (%) | J5: n | K5: (%) | L5: n | M5: (%) | N5: n | O5: (%) | P5: n | Q5: (%) | R5: n | S5: (%) | T5: n | U5: (%) | V5: n | W5: (%) | X5: n | Y5: (%) | Z5: n | AA5: (%) | AB5: n | AC5: (%) | AD5: n | AE5: (%)
A6: 2012
A7: A | B7: 1 | C7: (2.2) | D7: 0 | E7: (0.0) | F7: 1 | G7: (2.2) | H7: 1 | I7: (2.2) | J7: 12 | K7: (26.7) | L7: 2 | M7: (4.4) | N7: 0 | O7: (0.0) | P7: 0 | Q7: (0.0) | R7: 4 | S7: (8.9) | T7: 11 | U7: (24.4) | V7: 6 | W7: (13.3) | X7: 2 | Y7: (4.4) | Z7: 5 | AA7: (11.1) | AB7: 0 | AC7: (0.0) | AD7: 45 | AE7: (4.6)
A8: B | B8: 0 | C8: (0.0) | D8: 0 | E8: (0.0) | F8: 0 | G8: (0.0) | H8: 0 | I8: (0.0) | J8: 1 | K8: (100.0) | L8: 0 | M8: (0.0) | N8: 0 | O8: (0.0) | P8: 0 | Q8: (0.0) | R8: 0 | S8: (0.0) | T8: 0 | U8: (0.0) | V8: 0 | W8: (0.0) | X8: 0 | Y8: (0.0) | Z8: 0 | AA8: (0.0) | AB8: 0 | AC8: (0.0) | AD8: 1 | AE8: (0.1)
A9: C | B9: 0 | C9: (0.0) | D9: 0 | E9: (0.0) | F9: 0 | G9: (0.0) | H9: 2 | I9: (9.5) | J9: 4 | K9: (19.0) | L9: 1 | M9: (4.8) | N9: 0 | O9: (0.0) | P9: 0 | Q9: (0.0) | R9: 2 | S9: (9.5) | T9: 1 | U9: (4.8) | V9: 8 | W9: (38.1) | X9: 1 | Y9: (4.8) | Z9: 2 | AA9: (9.5) | AB9: 0 | AC9: (0.0) | AD9: 21 | AE9: (2.1)
A10: D | B10: 0 | C10: (0.0) | D10: 1 | E10: (2.4) | F10: 1 | G10: (2.4) | H10: 1 | I10: (2.4) | J10: 9 | K10: (22.0) | L10: 1 | M10: (2.4) | N10: 0 | O10: (0.0) | P10: 1 | Q10: (2.4) | R10: 2 | S10: (4.9) | T10: 1 | U10: (2.4) | V10: 14 | W10: (34.1) | X10: 7 | Y10: (17.1) | Z10: 3 | AA10: (7.3) | AB10: 0 | AC10: (0.0) | AD10: 41 | AE10: (4.2)
A11: E1 | B11: 3 | C11: (5.1) | D11: 1 | E11: (1.7) | F11: 3 | G11: (5.1) | H11: 0 | I11: (0.0) | J11: 15 | K11: (25.4) | L11: 1 | M11: (1.7) | N11: 0 | O11: (0.0) | P11: 0 | Q11: (0.0) | R11: 7 | S11: (11.9) | T11: 3 | U11: (5.1) | V11: 16 | W11: (27.1) | X11: 1 | Y11: (1.7) | Z11: 9 | AA11: (15.3) | AB11: 0 | AC11: (0.0) | AD11: 59 | AE11: (6.0)
A12: E2 | B12: 0 | C12: (0.0) | D12: 0 | E12: (0.0) | F12: 7 | G12: (58.3) | H12: 0 | I12: (0.0) | J12: 1 | K12: (8.3) | L12: 1 | M12: (8.3) | N12: 0 | O12: (0.0) | P12: 0 | Q12: (0.0) | R12: 0 | S12: (0.0) | T12: 0 | U12: (0.0) | V12: 3 | W12: (25.0) | X12: 0 | Y12: (0.0) | Z12: 0 | AA12: (0.0) | AB12: 0 | AC12: (0.0) | AD12: 12 | AE12: (1.2)
A13: F | B13: 0 | C13: (0.0) | D13: 0 | E13: (0.0) | F13: 4 | G13: (17.4) | H13: 0 | I13: (0.0) | J13: 14 | K13: (60.9) | L13: 0 | M13: (0.0) | N13: 0 | O13: (0.0) | P13: 0 | Q13: (0.0) | R13: 0 | S13: (0.0) | T13: 0 | U13: (0.0) | V13: 4 | W13: (17.4) | X13: 0 | Y13: (0.0) | Z13: 1 | AA13: (4.3) | AB13: 0 | AC13: (0.0) | AD13: 23 | AE13: (2.4)
A14: G | B14: 1 | C14: (50.0) | D14: 0 | E14: (0.0) | F14: 0 | G14: (0.0) | H14: 0 | I14: (0.0) | J14: 0 | K14: (0.0) | L14: 0 | M14: (0.0) | N14: 0 | O14: (0.0) | P14: 0 | Q14: (0.0) | R14: 1 | S14: (50.0) | T14: 0 | U14: (0.0) | V14: 0 | W14: (0.0) | X14: 0 | Y14: (0.0) | Z14: 0 | AA14: (0.0) | AB14: 0 | AC14: (0.0) | AD14: 2 | AE14: (0.2)
A15: H | B15: 1 | C15: (1.5) | D15: 0 | E15: (0.0) | F15: 0 | G15: (0.0) | H15: 2 | I15: (3.0) | J15: 14 | K15: (20.9) | L15: 1 | M15: (1.5) | N15: 0 | O15: (0.0) | P15: 0 | Q15: (0.0) | R15: 7 | S15: (10.4) | T15: 4 | U15: (6.0) | V15: 4 | W15: (6.0) | X15: 1 | Y15: (1.5) | Z15: 33 | AA15: (49.3) | AB15: 0 | AC15: (0.0) | AD15: 67 | AE15: (6.9)
A16: I | B16: 1 | C16: (1.9) | D16: 0 | E16: (0.0) | F16: 7 | G16: (13.2) | H16: 1 | I16: (1.9) | J16: 5 | K16: (9.4) | L16: 3 | M16: (5.7) | N16: 0 | O16: (0.0) | P16: 0 | Q16: (0.0) | R16: 6 | S16: (11.3) | T16: 1 | U16: (1.9) | V16: 17 | W16: (32.1) | X16: 4 | Y16: (7.5) | Z16: 8 | AA16: (15.1) | AB16: 0 | AC16: (0.0) | AD16: 53 | AE16: (5.4)
A17: K1K3 | B17: 0 | C17: (0.0) | D17: 1 | E17: (2.2) | F17: 1 | G17: (2.2) | H17: 0 | I17: (0.0) | J17: 19 | K17: (42.2) | L17: 2 | M17: (4.4) | N17: 0 | O17: (0.0) | P17: 1 | Q17: (2.2) | R17: 4 | S17: (8.9) | T17: 1 | U17: (2.2) | V17: 12 | W17: (26.7) | X17: 1 | Y17: (2.2) | Z17: 3 | AA17: (6.7) | AB17: 0 | AC17: (0.0) | AD17: 45 | AE17: (4.6)
A18: K2 | B18: 0 | C18: (0.0) | D18: 0 | E18: (0.0) | F18: 1 | G18: (16.7) | H18: 1 | I18: (16.7) | J18: 0 | K18: (0.0) | L18: 2 | M18: (33.3) | N18: 0 | O18: (0.0) | P18: 0 | Q18: (0.0) | R18: 1 | S18: (16.7) | T18: 0 | U18: (0.0) | V18: 1 | W18: (16.7) | X18: 0 | Y18: (0.0) | Z18: 0 | AA18: (0.0) | AB18: 0 | AC18: (0.0) | AD18: 6 | AE18: (0.6)
A19: L | B19: 0 | C19: (0.0) | D19: 1 | E19: (20.0) | F19: 0 | G19: (0.0) | H19: 0 | I19: (0.0) | J19: 0 | K19: (0.0) | L19: 0 | M19: (0.0) | N19: 0 | O19: (0.0) | P19: 1 | Q19: (20.0) | R19: 0 | S19: (0.0) | T19: 0 | U19: (0.0) | V19: 2 | W19: (40.0) | X19: 0 | Y19: (0.0) | Z19: 1 | AA19: (20.0) | AB19: 0 | AC19: (0.0) | AD19: 5 | AE19: (0.5)
A20: M | B20: 0 | C20: (0.0) | D20: 0 | E20: (0.0) | F20: 2 | G20: (7.1) | H20: 1 | I20: (3.6) | J20: 2 | K20: (7.1) | L20: 4 | M20: (14.3) | N20: 1 | O20: (3.6) | P20: 1 | Q20: (3.6) | R20: 7 | S20: (25.0) | T20: 1 | U20: (3.6) | V20: 3 | W20: (10.7) | X20: 3 | Y20: (10.7) | Z20: 3 | AA20: (10.7) | AB20: 0 | AC20: (0.0) | AD20: 28 | AE20: (2.9)
A21: N | B21: 0 | C21: (0.0) | D21: 2 | E21: (4.9) | F21: 0 | G21: (0.0) | H21: 0 | I21: (0.0) | J21: 11 | K21: (26.8) | L21: 4 | M21: (9.8) | N21: 0 | O21: (0.0) | P21: 2 | Q21: (4.9) | R21: 2 | S21: (4.9) | T21: 3 | U21: (7.3) | V21: 9 | W21: (22.0) | X21: 2 | Y21: (4.9) | Z21: 6 | AA21: (14.6) | AB21: 0 | AC21: (0.0) | AD21: 41 | AE21: (4.2)
A22: O | B22: 0 | C22: (0.0) | D22: 0 | E22: (0.0) | F22: 2 | G22: (100.0) | H22: 0 | I22: (0.0) | J22: 0 | K22: (0.0) | L22: 0 | M22: (0.0) | N22: 0 | O22: (0.0) | P22: 0 | Q22: (0.0) | R22: 0 | S22: (0.0) | T22: 0 | U22: (0.0) | V22: 0 | W22: (0.0) | X22: 0 | Y22: (0.0) | Z22: 0 | AA22: (0.0) | AB22: 0 | AC22: (0.0) | AD22: 2 | AE22: (0.2)
A23: P | B23: 0 | C23: (0.0) | D23: 4 | E23: (6.7) | F23: 9 | G23: (15.0) | H23: 0 | I23: (0.0) | J23: 16 | K23: (26.7) | L23: 1 | M23: (1.7) | N23: 0 | O23: (0.0) | P23: 2 | Q23: (3.3) | R23: 5 | S23: (8.3) | T23: 0 | U23: (0.0) | V23: 17 | W23: (28.3) | X23: 3 | Y23: (5.0) | Z23: 3 | AA23: (5.0) | AB23: 0 | AC23: (0.0) | AD23: 60 | AE23: (6.1)
A24: Q | B24: 1 | C24: (3.6) | D24: 1 | E24: (3.6) | F24: 3 | G24: (10.7) | H24: 1 | I24: (3.6) | J24: 6 | K24: (21.4) | L24: 1 | M24: (3.6) | N24: 0 | O24: (0.0) | P24: 1 | Q24: (3.6) | R24: 4 | S24: (14.3) | T24: 0 | U24: (0.0) | V24: 8 | W24: (28.6) | X24: 2 | Y24: (7.1) | Z24: 0 | AA24: (0.0) | AB24: 0 | AC24: (0.0) | AD24: 28 | AE24: (2.9)
A25: R | B25: 1 | C25: (2.3) | D25: 1 | E25: (2.3) | F25: 5 | G25: (11.6) | H25: 1 | I25: (2.3) | J25: 7 | K25: (16.3) | L25: 4 | M25: (9.3) | N25: 0 | O25: (0.0) | P25: 0 | Q25: (0.0) | R25: 5 | S25: (11.6) | T25: 1 | U25: (2.3) | V25: 16 | W25: (37.2) | X25: 0 | Y25: (0.0) | Z25: 2 | AA25: (4.7) | AB25: 0 | AC25: (0.0) | AD25: 43 | AE25: (4.4)
A26: S | B26: 0 | C26: (0.0) | D26: 0 | E26: (0.0) | F26: 0 | G26: (0.0) | H26: 0 | I26: (0.0) | J26: 0 | K26: (0.0) | L26: 0 | M26: (0.0) | N26: 0 | O26: (0.0) | P26: 1 | Q26: (14.3) | R26: 3 | S26: (42.9) | T26: 0 | U26: (0.0) | V26: 3 | W26: (42.9) | X26: 0 | Y26: (0.0) | Z26: 0 | AA26: (0.0) | AB26: 0 | AC26: (0.0) | AD26: 7 | AE26: (0.7)
A27: T | B27: 1 | C27: (3.6) | D27: 0 | E27: (0.0) | F27: 0 | G27: (0.0) | H27: 0 | I27: (0.0) | J27: 11 | K27: (39.3) | L27: 3 | M27: (10.7) | N27: 0 | O27: (0.0) | P27: 0 | Q27: (0.0) | R27: 5 | S27: (17.9) | T27: 1 | U27: (3.6) | V27: 5 | W27: (17.9) | X27: 1 | Y27: (3.6) | Z27: 1 | AA27: (3.6) | AB27: 0 | AC27: (0.0) | AD27: 28 | AE27: (2.9)
A28: U | B28: 0 | C28: (0.0) | D28: 0 | E28: (0.0) | F28: 0 | G28: (0.0) | H28: 0 | I28: (0.0) | J28: 2 | K28: (15.4) | L28: 2 | M28: (15.4) | N28: 0 | O28: (0.0) | P28: 0 | Q28: (0.0) | R28: 0 | S28: (0.0) | T28: 0 | U28: (0.0) | V28: 7 | W28: (53.8) | X28: 2 | Y28: (15.4) | Z28: 0 | AA28: (0.0) | AB28: 0 | AC28: (0.0) | AD28: 13 | AE28: (1.3)
A29: V | B29: 0 | C29: (0.0) | D29: 4 | E29: (5.8) | F29: 20 | G29: (29.0) | H29: 3 | I29: (4.3) | J29: 16 | K29: (23.2) | L29: 2 | M29: (2.9) | N29: 0 | O29: (0.0) | P29: 1 | Q29: (1.4) | R29: 2 | S29: (2.9) | T29: 5 | U29: (7.2) | V29: 7 | W29: (10.1) | X29: 5 | Y29: (7.2) | Z29: 4 | AA29: (5.8) | AB29: 0 | AC29: (0.0) | AD29: 69 | AE29: (7.1)
A30: W | B30: 0 | C30: (0.0) | D30: 2 | E30: (9.1) | F30: 5 | G30: (22.7) | H30: 0 | I30: (0.0) | J30: 6 | K30: (27.3) | L30: 2 | M30: (9.1) | N30: 0 | O30: (0.0) | P30: 0 | Q30: (0.0) | R30: 2 | S30: (9.1) | T30: 0 | U30: (0.0) | V30: 0 | W30: (0.0) | X30: 0 | Y30: (0.0) | Z30: 5 | AA30: (22.7) | AB30: 0 | AC30: (0.0) | AD30: 22 | AE30: (2.3)
A31: X | B31: 0 | C31: (0.0) | D31: 0 | E31: (0.0) | F31: 4 | G31: (18.2) | H31: 0 | I31: (0.0) | J31: 5 | K31: (22.7) | L31: 1 | M31: (4.5) | N31: 0 | O31: (0.0) | P31: 0 | Q31: (0.0) | R31: 3 | S31: (13.6) | T31: 0 | U31: (0.0) | V31: 7 | W31: (31.8) | X31: 1 | Y31: (4.5) | Z31: 1 | AA31: (4.5) | AB31: 0 | AC31: (0.0) | AD31: 22 | AE31: (2.3)
A32: Y | B32: 3 | C32: (13.6) | D32: 2 | E32: (9.1) | F32: 2 | G32: (9.1) | H32: 0 | I32: (0.0) | J32: 3 | K32: (13.6) | L32: 2 | M32: (9.1) | N32: 1 | O32: (4.5) | P32: 0 | Q32: (0.0) | R32: 4 | S32: (18.2) | T32: 1 | U32: (4.5) | V32: 2 | W32: (9.1) | X32: 1 | Y32: (4.5) | Z32: 1 | AA32: (4.5) | AB32: 0 | AC32: (0.0) | AD32: 22 | AE32: (2.3)
A33: Z | B33: 0 | C33: (0.0) | D33: 1 | E33: (5.6) | F33: 1 | G33: (5.6) | H33: 0 | I33: (0.0) | J33: 5 | K33: (27.8) | L33: 1 | M33: (5.6) | N33: 0 | O33: (0.0) | P33: 0 | Q33: (0.0) | R33: 0 | S33: (0.0) | T33: 0 | U33: (0.0) | V33: 9 | W33: (50.0) | X33: 0 | Y33: (0.0) | Z33: 0 | AA33: (0.0) | AB33: 1 | AC33: (5.6) | AD33: 18 | AE33: (1.8)
A34: ZA | B34: 0 | C34: (0.0) | D34: 1 | E34: (1.4) | F34: 5 | G34: (7.2) | H34: 0 | I34: (0.0) | J34: 11 | K34: (15.9) | L34: 7 | M34: (10.1) | N34: 0 | O34: (0.0) | P34: 4 | Q34: (5.8) | R34: 10 | S34: (14.5) | T34: 1 | U34: (1.4) | V34: 22 | W34: (31.9) | X34: 3 | Y34: (4.3) | Z34: 5 | AA34: (7.2) | AB34: 0 | AC34: (0.0) | AD34: 69 | AE34: (7.1)
A35: ZB | B35: 0 | C35: (0.0) | D35: 2 | E35: (5.7) | F35: 6 | G35: (17.1) | H35: 3 | I35: (8.6) | J35: 12 | K35: (34.3) | L35: 1 | M35: (2.9) | N35: 0 | O35: (0.0) | P35: 1 | Q35: (2.9) | R35: 1 | S35: (2.9) | T35: 1 | U35: (2.9) | V35: 3 | W35: (8.6) | X35: 0 | Y35: (0.0) | Z35: 5 | AA35: (14.3) | AB35: 0 | AC35: (0.0) | AD35: 35 | AE35: (3.6)
A36: ZC | B36: 0 | C36: (0.0) | D36: 0 | E36: (0.0) | F36: 11 | G36: (29.7) | H36: 0 | I36: (0.0) | J36: 10 | K36: (27.0) | L36: 2 | M36: (5.4) | N36: 0 | O36: (0.0) | P36: 0 | Q36: (0.0) | R36: 0 | S36: (0.0) | T36: 0 | U36: (0.0) | V36: 10 | W36: (27.0) | X36: 0 | Y36: (0.0) | Z36: 4 | AA36: (10.8) | AB36: 0 | AC36: (0.0) | AD36: 37 | AE36: (3.8)
A37: ZD | B37: 0 | C37: (0.0) | D37: 1 | E37: (2.1) | F37: 0 | G37: (0.0) | H37: 0 | I37: (0.0) | J37: 8 | K37: (17.0) | L37: 0 | M37: (0.0) | N37: 0 | O37: (0.0) | P37: 4 | Q37: (8.5) | R37: 8 | S37: (17.0) | T37: 6 | U37: (12.8) | V37: 14 | W37: (29.8) | X37: 1 | Y37: (2.1) | Z37: 5 | AA37: (10.6) | AB37: 0 | AC37: (0.0) | AD37: 47 | AE37: (4.8)
A38: ZE | B38: 1 | C38: (16.7) | D38: 0 | E38: (0.0) | F38: 0 | G38: (0.0) | H38: 0 | I38: (0.0) | J38: 0 | K38: (0.0) | L38: 1 | M38: (16.7) | N38: 0 | O38: (0.0) | P38: 0 | Q38: (0.0) | R38: 2 | S38: (33.3) | T38: 0 | U38: (0.0) | V38: 2 | W38: (33.3) | X38: 0 | Y38: (0.0) | Z38: 0 | AA38: (0.0) | AB38: 0 | AC38: (0.0) | AD38: 6 | AE38: (0.6)
A39: Total | B39: 14 | C39: (1.4) | D39: 25 | E39: (2.6) | F39: 100 | G39: (10.2) | H39: 17 | I39: (1.7) | J39: 225 | K39: (23.0) | L39: 52 | M39: (5.3) | N39: 2 | O39: (0.2) | P39: 20 | Q39: (2.0) | R39: 97 | S39: (9.9) | T39: 42 | U39: (4.3) | V39: 231 | W39: (23.6) | X39: 41 | Y39: (4.2) | Z39: 110 | AA39: (11.3) | AB39: 1 | AC39: (0.1) | AD39: 977 | AE39: (100.0)
A40: 2013
A41: A | B41: 0 | C41: (0.0) | D41: 1 | E41: (2.3) | F41: 0 | G41: (0.0) | H41: 1 | I41: (2.3) | J41: 6 | K41: (13.6) | L41: 1 | M41: (2.3) | N41: 0 | O41: (0.0) | P41: 3 | Q41: (6.8) | R41: 6 | S41: (13.6) | T41: 3 | U41: (6.8) | V41: 12 | W41: (27.3) | X41: 2 | Y41: (4.5) | Z41: 9 | AA41: (20.5) | AB41: 0 | AC41: (0.0) | AD41: 44 | AE41: (4.7)
A42: B | B42: 0 | C42: (0.0) | D42: 0 | E42: (0.0) | F42: 0 | G42: (0.0) | H42: 0 | I42: (0.0) | J42: 3 | K42: (100.0) | L42: 0 | M42: (0.0) | N42: 0 | O42: (0.0) | P42: 0 | Q42: (0.0) | R42: 0 | S42: (0.0) | T42: 0 | U42: (0.0) | V42: 0 | W42: (0.0) | X42: 0 | Y42: (0.0) | Z42: 0 | AA42: (0.0) | AB42: 0 | AC42: (0.0) | AD42: 3 | AE42: (0.3)
A43: C | B43: 0 | C43: (0.0) | D43: 2 | E43: (18.2) | F43: 0 | G43: (0.0) | H43: 0 | I43: (0.0) | J43: 4 | K43: (36.4) | L43: 1 | M43: (9.1) | N43: 0 | O43: (0.0) | P43: 0 | Q43: (0.0) | R43: 0 | S43: (0.0) | T43: 0 | U43: (0.0) | V43: 3 | W43: (27.3) | X43: 1 | Y43: (9.1) | Z43: 0 | AA43: (0.0) | AB43: 0 | AC43: (0.0) | AD43: 11 | AE43: (1.2)
A44: D | B44: 0 | C44: (0.0) | D44: 1 | E44: (3.6) | F44: 2 | G44: (7.1) | H44: 0 | I44: (0.0) | J44: 6 | K44: (21.4) | L44: 5 | M44: (17.9) | N44: 0 | O44: (0.0) | P44: 0 | Q44: (0.0) | R44: 4 | S44: (14.3) | T44: 1 | U44: (3.6) | V44: 5 | W44: (17.9) | X44: 0 | Y44: (0.0) | Z44: 4 | AA44: (14.3) | AB44: 0 | AC44: (0.0) | AD44: 28 | AE44: (3.0)
A45: E1 | B45: 2 | C45: (3.2) | D45: 3 | E45: (4.8) | F45: 5 | G45: (7.9) | H45: 0 | I45: (0.0) | J45: 5 | K45: (7.9) | L45: 2 | M45: (3.2) | N45: 1 | O45: (1.6) | P45: 0 | Q45: (0.0) | R45: 12 | S45: (19.0) | T45: 4 | U45: (6.3) | V45: 27 | W45: (42.9) | X45: 0 | Y45: (0.0) | Z45: 2 | AA45: (3.2) | AB45: 0 | AC45: (0.0) | AD45: 63 | AE45: (6.7)
A46: E2 | B46: 0 | C46: (0.0) | D46: 0 | E46: (0.0) | F46: 5 | G46: (31.3) | H46: 0 | I46: (0.0) | J46: 3 | K46: (18.8) | L46: 1 | M46: (6.3) | N46: 0 | O46: (0.0) | P46: 0 | Q46: (0.0) | R46: 0 | S46: (0.0) | T46: 3 | U46: (18.8) | V46: 4 | W46: (25.0) | X46: 0 | Y46: (0.0) | Z46: 0 | AA46: (0.0) | AB46: 0 | AC46: (0.0) | AD46: 16 | AE46: (1.7)
A47: F | B47: 0 | C47: (0.0) | D47: 2 | E47: (6.9) | F47: 6 | G47: (20.7) | H47: 0 | I47: (0.0) | J47: 10 | K47: (34.5) | L47: 0 | M47: (0.0) | N47: 0 | O47: (0.0) | P47: 0 | Q47: (0.0) | R47: 0 | S47: (0.0) | T47: 0 | U47: (0.0) | V47: 8 | W47: (27.6) | X47: 0 | Y47: (0.0) | Z47: 3 | AA47: (10.3) | AB47: 0 | AC47: (0.0) | AD47: 29 | AE47: (3.1)
A48: G | B48: 0 | C48: (0.0) | D48: 0 | E48: (0.0) | F48: 0 | G48: (0.0) | H48: 0 | I48: (0.0) | J48: 0 | K48: (0.0) | L48: 0 | M48: (0.0) | N48: 0 | O48: (0.0) | P48: 0 | Q48: (0.0) | R48: 0 | S48: (0.0) | T48: 0 | U48: (0.0) | V48: 0 | W48: (0.0) | X48: 0 | Y48: (0.0) | Z48: 1 | AA48: (100.0) | AB48: 0 | AC48: (0.0) | AD48: 1 | AE48: (0.1)
A49: H | B49: 0 | C49: (0.0) | D49: 0 | E49: (0.0) | F49: 0 | G49: (0.0) | H49: 2 | I49: (4.7) | J49: 3 | K49: (7.0) | L49: 0 | M49: (0.0) | N49: 0 | O49: (0.0) | P49: 0 | Q49: (0.0) | R49: 3 | S49: (7.0) | T49: 3 | U49: (7.0) | V49: 5 | W49: (11.6) | X49: 1 | Y49: (2.3) | Z49: 26 | AA49: (60.5) | AB49: 0 | AC49: (0.0) | AD49: 43 | AE49: (4.6)
A50: I | B50: 0 | C50: (0.0) | D50: 0 | E50: (0.0) | F50: 14 | G50: (20.9) | H50: 2 | I50: (3.0) | J50: 3 | K50: (4.5) | L50: 4 | M50: (6.0) | N50: 0 | O50: (0.0) | P50: 1 | Q50: (1.5) | R50: 7 | S50: (10.4) | T50: 3 | U50: (4.5) | V50: 21 | W50: (31.3) | X50: 6 | Y50: (9.0) | Z50: 5 | AA50: (7.5) | AB50: 1 | AC50: (1.5) | AD50: 67 | AE50: (7.1)
A51: K1K3 | B51: 0 | C51: (0.0) | D51: 5 | E51: (9.3) | F51: 1 | G51: (1.9) | H51: 0 | I51: (0.0) | J51: 17 | K51: (31.5) | L51: 5 | M51: (9.3) | N51: 0 | O51: (0.0) | P51: 1 | Q51: (1.9) | R51: 6 | S51: (11.1) | T51: 3 | U51: (5.6) | V51: 6 | W51: (11.1) | X51: 4 | Y51: (7.4) | Z51: 6 | AA51: (11.1) | AB51: 0 | AC51: (0.0) | AD51: 54 | AE51: (5.7)
A52: K2 | B52: 0 | C52: (0.0) | D52: 0 | E52: (0.0) | F52: 3 | G52: (42.9) | H52: 0 | I52: (0.0) | J52: 0 | K52: (0.0) | L52: 0 | M52: (0.0) | N52: 0 | O52: (0.0) | P52: 0 | Q52: (0.0) | R52: 0 | S52: (0.0) | T52: 0 | U52: (0.0) | V52: 4 | W52: (57.1) | X52: 0 | Y52: (0.0) | Z52: 0 | AA52: (0.0) | AB52: 0 | AC52: (0.0) | AD52: 7 | AE52: (0.7)
A53: L | B53: 0 | C53: (0.0) | D53: 0 | E53: (0.0) | F53: 0 | G53: (0.0) | H53: 0 | I53: (0.0) | J53: 0 | K53: (0.0) | L53: 1 | M53: (16.7) | N53: 0 | O53: (0.0) | P53: 1 | Q53: (16.7) | R53: 1 | S53: (16.7) | T53: 0 | U53: (0.0) | V53: 2 | W53: (33.3) | X53: 1 | Y53: (16.7) | Z53: 0 | AA53: (0.0) | AB53: 0 | AC53: (0.0) | AD53: 6 | AE53: (0.6)
A54: M | B54: 0 | C54: (0.0) | D54: 0 | E54: (0.0) | F54: 1 | G54: (3.3) | H54: 0 | I54: (0.0) | J54: 5 | K54: (16.7) | L54: 4 | M54: (13.3) | N54: 0 | O54: (0.0) | P54: 0 | Q54: (0.0) | R54: 5 | S54: (16.7) | T54: 1 | U54: (3.3) | V54: 5 | W54: (16.7) | X54: 3 | Y54: (10.0) | Z54: 6 | AA54: (20.0) | AB54: 0 | AC54: (0.0) | AD54: 30 | AE54: (3.2)
A55: N | B55: 0 | C55: (0.0) | D55: 2 | E55: (4.3) | F55: 2 | G55: (4.3) | H55: 0 | I55: (0.0) | J55: 10 | K55: (21.7) | L55: 3 | M55: (6.5) | N55: 0 | O55: (0.0) | P55: 1 | Q55: (2.2) | R55: 3 | S55: (6.5) | T55: 3 | U55: (6.5) | V55: 12 | W55: (26.1) | X55: 4 | Y55: (8.7) | Z55: 6 | AA55: (13.0) | AB55: 0 | AC55: (0.0) | AD55: 46 | AE55: (4.9)
A56: O | B56: 0 | C56: (0.0) | D56: 0 | E56: (0.0) | F56: 2 | G56: (100.0) | H56: 0 | I56: (0.0) | J56: 0 | K56: (0.0) | L56: 0 | M56: (0.0) | N56: 0 | O56: (0.0) | P56: 0 | Q56: (0.0) | R56: 0 | S56: (0.0) | T56: 0 | U56: (0.0) | V56: 0 | W56: (0.0) | X56: 0 | Y56: (0.0) | Z56: 0 | AA56: (0.0) | AB56: 0 | AC56: (0.0) | AD56: 2 | AE56: (0.2)
A57: P | B57: 0 | C57: (0.0) | D57: 3 | E57: (8.8) | F57: 2 | G57: (5.9) | H57: 0 | I57: (0.0) | J57: 9 | K57: (26.5) | L57: 4 | M57: (11.8) | N57: 0 | O57: (0.0) | P57: 0 | Q57: (0.0) | R57: 5 | S57: (14.7) | T57: 5 | U57: (14.7) | V57: 4 | W57: (11.8) | X57: 2 | Y57: (5.9) | Z57: 0 | AA57: (0.0) | AB57: 0 | AC57: (0.0) | AD57: 34 | AE57: (3.6)
A58: Q | B58: 1 | C58: (2.2) | D58: 3 | E58: (6.7) | F58: 0 | G58: (0.0) | H58: 1 | I58: (2.2) | J58: 13 | K58: (28.9) | L58: 2 | M58: (4.4) | N58: 0 | O58: (0.0) | P58: 0 | Q58: (0.0) | R58: 6 | S58: (13.3) | T58: 2 | U58: (4.4) | V58: 11 | W58: (24.4) | X58: 3 | Y58: (6.7) | Z58: 3 | AA58: (6.7) | AB58: 0 | AC58: (0.0) | AD58: 45 | AE58: (4.8)
A59: R | B59: 0 | C59: (0.0) | D59: 1 | E59: (2.9) | F59: 4 | G59: (11.8) | H59: 0 | I59: (0.0) | J59: 10 | K59: (29.4) | L59: 4 | M59: (11.8) | N59: 0 | O59: (0.0) | P59: 0 | Q59: (0.0) | R59: 5 | S59: (14.7) | T59: 0 | U59: (0.0) | V59: 9 | W59: (26.5) | X59: 0 | Y59: (0.0) | Z59: 0 | AA59: (0.0) | AB59: 1 | AC59: (2.9) | AD59: 34 | AE59: (3.6)
A60: S | B60: 1 | C60: (50.0) | D60: 0 | E60: (0.0) | F60: 0 | G60: (0.0) | H60: 0 | I60: (0.0) | J60: 0 | K60: (0.0) | L60: 0 | M60: (0.0) | N60: 0 | O60: (0.0) | P60: 0 | Q60: (0.0) | R60: 0 | S60: (0.0) | T60: 0 | U60: (0.0) | V60: 1 | W60: (50.0) | X60: 0 | Y60: (0.0) | Z60: 0 | AA60: (0.0) | AB60: 0 | AC60: (0.0) | AD60: 2 | AE60: (0.2)
A61: T | B61: 1 | C61: (2.9) | D61: 2 | E61: (5.9) | F61: 2 | G61: (5.9) | H61: 0 | I61: (0.0) | J61: 9 | K61: (26.5) | L61: 1 | M61: (2.9) | N61: 0 | O61: (0.0) | P61: 0 | Q61: (0.0) | R61: 7 | S61: (20.6) | T61: 3 | U61: (8.8) | V61: 6 | W61: (17.6) | X61: 1 | Y61: (2.9) | Z61: 2 | AA61: (5.9) | AB61: 0 | AC61: (0.0) | AD61: 34 | AE61: (3.6)
A62: U | B62: 0 | C62: (0.0) | D62: 0 | E62: (0.0) | F62: 0 | G62: (0.0) | H62: 0 | I62: (0.0) | J62: 2 | K62: (16.7) | L62: 0 | M62: (0.0) | N62: 0 | O62: (0.0) | P62: 0 | Q62: (0.0) | R62: 0 | S62: (0.0) | T62: 0 | U62: (0.0) | V62: 9 | W62: (75.0) | X62: 0 | Y62: (0.0) | Z62: 1 | AA62: (8.3) | AB62: 0 | AC62: (0.0) | AD62: 12 | AE62: (1.3)
A63: V | B63: 0 | C63: (0.0) | D63: 0 | E63: (0.0) | F63: 19 | G63: (33.3) | H63: 2 | I63: (3.5) | J63: 11 | K63: (19.3) | L63: 1 | M63: (1.8) | N63: 2 | O63: (3.5) | P63: 0 | Q63: (0.0) | R63: 7 | S63: (12.3) | T63: 4 | U63: (7.0) | V63: 8 | W63: (14.0) | X63: 0 | Y63: (0.0) | Z63: 3 | AA63: (5.3) | AB63: 0 | AC63: (0.0) | AD63: 57 | AE63: (6.0)
A64: W | B64: 0 | C64: (0.0) | D64: 1 | E64: (9.1) | F64: 1 | G64: (9.1) | H64: 0 | I64: (0.0) | J64: 1 | K64: (9.1) | L64: 1 | M64: (9.1) | N64: 0 | O64: (0.0) | P64: 0 | Q64: (0.0) | R64: 0 | S64: (0.0) | T64: 0 | U64: (0.0) | V64: 6 | W64: (54.5) | X64: 0 | Y64: (0.0) | Z64: 1 | AA64: (9.1) | AB64: 0 | AC64: (0.0) | AD64: 11 | AE64: (1.2)
A65: X | B65: 0 | C65: (0.0) | D65: 1 | E65: (3.3) | F65: 6 | G65: (20.0) | H65: 1 | I65: (3.3) | J65: 10 | K65: (33.3) | L65: 3 | M65: (10.0) | N65: 0 | O65: (0.0) | P65: 0 | Q65: (0.0) | R65: 0 | S65: (0.0) | T65: 0 | U65: (0.0) | V65: 6 | W65: (20.0) | X65: 1 | Y65: (3.3) | Z65: 1 | AA65: (3.3) | AB65: 1 | AC65: (3.3) | AD65: 30 | AE65: (3.2)
A66: Y | B66: 0 | C66: (0.0) | D66: 0 | E66: (0.0) | F66: 2 | G66: (15.4) | H66: 0 | I66: (0.0) | J66: 0 | K66: (0.0) | L66: 2 | M66: (15.4) | N66: 0 | O66: (0.0) | P66: 0 | Q66: (0.0) | R66: 0 | S66: (0.0) | T66: 0 | U66: (0.0) | V66: 6 | W66: (46.2) | X66: 2 | Y66: (15.4) | Z66: 1 | AA66: (7.7) | AB66: 0 | AC66: (0.0) | AD66: 13 | AE66: (1.4)
A67: Z | B67: 2 | C67: (6.3) | D67: 0 | E67: (0.0) | F67: 0 | G67: (0.0) | H67: 0 | I67: (0.0) | J67: 7 | K67: (21.9) | L67: 3 | M67: (9.4) | N67: 0 | O67: (0.0) | P67: 0 | Q67: (0.0) | R67: 0 | S67: (0.0) | T67: 0 | U67: (0.0) | V67: 14 | W67: (43.8) | X67: 0 | Y67: (0.0) | Z67: 4 | AA67: (12.5) | AB67: 2 | AC67: (6.3) | AD67: 32 | AE67: (3.4)
A68: ZA | B68: 2 | C68: (2.1) | D68: 2 | E68: (2.1) | F68: 6 | G68: (6.3) | H68: 2 | I68: (2.1) | J68: 20 | K68: (20.8) | L68: 9 | M68: (9.4) | N68: 0 | O68: (0.0) | P68: 2 | Q68: (2.1) | R68: 17 | S68: (17.7) | T68: 3 | U68: (3.1) | V68: 22 | W68: (22.9) | X68: 5 | Y68: (5.2) | Z68: 6 | AA68: (6.3) | AB68: 0 | AC68: (0.0) | AD68: 96 | AE68: (10.2)
A69: ZB | B69: 0 | C69: (0.0) | D69: 1 | E69: (2.8) | F69: 5 | G69: (13.9) | H69: 3 | I69: (8.3) | J69: 9 | K69: (25.0) | L69: 3 | M69: (8.3) | N69: 0 | O69: (0.0) | P69: 0 | Q69: (0.0) | R69: 3 | S69: (8.3) | T69: 1 | U69: (2.8) | V69: 8 | W69: (22.2) | X69: 2 | Y69: (5.6) | Z69: 1 | AA69: (2.8) | AB69: 0 | AC69: (0.0) | AD69: 36 | AE69: (3.8)
A70: ZC | B70: 1 | C70: (3.0) | D70: 1 | E70: (3.0) | F70: 6 | G70: (18.2) | H70: 0 | I70: (0.0) | J70: 8 | K70: (24.2) | L70: 2 | M70: (6.1) | N70: 0 | O70: (0.0) | P70: 2 | Q70: (6.1) | R70: 0 | S70: (0.0) | T70: 2 | U70: (6.1) | V70: 8 | W70: (24.2) | X70: 1 | Y70: (3.0) | Z70: 2 | AA70: (6.1) | AB70: 0 | AC70: (0.0) | AD70: 33 | AE70: (3.5)
A71: ZD | B71: 0 | C71: (0.0) | D71: 0 | E71: (0.0) | F71: 0 | G71: (0.0) | H71: 1 | I71: (7.7) | J71: 3 | K71: (23.1) | L71: 0 | M71: (0.0) | N71: 0 | O71: (0.0) | P71: 1 | Q71: (7.7) | R71: 1 | S71: (7.7) | T71: 0 | U71: (0.0) | V71: 5 | W71: (38.5) | X71: 0 | Y71: (0.0) | Z71: 2 | AA71: (15.4) | AB71: 0 | AC71: (0.0) | AD71: 13 | AE71: (1.4)
A72: ZE | B72: 0 | C72: (0.0) | D72: 0 | E72: (0.0) | F72: 2 | G72: (33.3) | H72: 0 | I72: (0.0) | J72: 1 | K72: (16.7) | L72: 0 | M72: (0.0) | N72: 0 | O72: (0.0) | P72: 0 | Q72: (0.0) | R72: 1 | S72: (16.7) | T72: 2 | U72: (33.3) | V72: 0 | W72: (0.0) | X72: 0 | Y72: (0.0) | Z72: 0 | AA72: (0.0) | AB72: 0 | AC72: (0.0) | AD72: 6 | AE72: (0.6)
A73: ZF | B73: 1 | C73: (16.7) | D73: 1 | E73: (16.7) | F73: 2 | G73: (33.3) | H73: 0 | I73: (0.0) | J73: 0 | K73: (0.0) | L73: 0 | M73: (0.0) | N73: 0 | O73: (0.0) | P73: 0 | Q73: (0.0) | R73: 0 | S73: (0.0) | T73: 0 | U73: (0.0) | V73: 2 | W73: (33.3) | X73: 0 | Y73: (0.0) | Z73: 0 | AA73: (0.0) | AB73: 0 | AC73: (0.0) | AD73: 6 | AE73: (0.6)
